Workbook

Sheet Design Regulator
A1: LM(2)5148/-Q1 Synchronous Buck Controller Design Tool
N2: http://www.ti.com/product/lm5175
A3: About | C3: xx | F3: = Input Box | N3: TERMS OF USE
A5: Step 1: Operating Specifications
D6: Input Voltage – Min, VIN(min) | E6: 9 | F6: V
D7: Input Voltage – Nom, VIN(nom) | E7: 16.8 | F7: V
D8: Input Voltage – Max, VIN(max) | E8: 36 | F8: V
D9: Output Voltage, VOUT | E9: 7.4 | F9: V
D10: Full Load Output Current, IOUT | E10: 12 | F10: A
D11: Switching Frequency, FSW | E11: 100 | F11: kHz
D12: Frequency Set Resistor, RT | E12: ='Variable Management'!C442 -> 221 | F12: kΩ
D13: Ambient Temperature, TA | E13: 25 | F13: °C
A15: Step 2: Current Sense Resistor
D16: Required IOCP Setpoint at VIN(nom) | E16: 15 | F16: A
D17: Recommended Sense Resistance | E17: =Rs_ideal*1000 -> 2.799109245 | F17: mΩ
D18: Sense Resistance, RS | E18: 3.5 | F18: mΩ
D19: Min Inductor Sat Current, ILO(SAT) | E19: ='Variable Management'!B95 -> 17.14285714 | F19: A
D20: Max power loss in shunt | E20: ='Variable Management'!B105 -> 0.803160911 | F20: W
D21: VIN(min) | E21: ='Variable Management'!B97 -> 15.10254694 | F21: A
C22: IOUT(typ) at OCP Inception: | D22: VIN(nom) | E22: ='Variable Management'!B98 -> 10.70746654 | F22: A
D23: VIN(max) | E23: ='Variable Management'!B99 -> 7.993346387 | F23: A
A25: Step 3: Buck Inductance
D26: Recommended Inductance | E26: =Lopt*1000000 -> 10.79166667 | F26: µH
D27: Inductance, LO | E27: 3.3 | F27: µH
D28: Inductor DCR | E28: 14 | F28: mΩ
D29: DIL as a % at VIN(nom) | E29: ='Variable Management'!B68*100 -> 107.25651 | F29: %
A31: Step 4: Output Capacitors
D32: Output Voltage Ripple Spec | E32: 100 | F32: mVpk-pk
D33: Minimum Output Capacitance | E33: ='Variable Management'!B121 -> 160.884765 | F33: µF
D34: Output Capacitance (derated), COUT | E34: 150 | F34: µF | K34: =CHOOSE(SCH_MODE, "", "** For Single-Output Operation in 2-Phase Mode, tie MODE to VDDA and use FB1 to set VOUT **", "** For Single-Output Operation in 3-Phase Mode, tie both MODE pins to VDDA. Use FB1 of master IC to set VOUT. Connect FB2 of master IC to AGND. Connect FB2 of slave IC to VDDA to configure it as a slave **", "** For Single-Output Operation in 4-Phase Mode, tie both MODE pins to VDDA. Use FB1 of master IC to set VOUT. Connect FB2 of master IC to AGND. Connect FB2 of slave IC to VDDA to configure it as a slave **") -> 
D35: Maximum Permitted ESR | E35: ='Variable Management'!B125 ->  | F35: mΩ
D36: Output Capacitor ESR | E36: 20 | F36: mΩ | K36: =CHOOSE(SCH_MODE, "", "** Tie VCCX to GND if not used **", "** Slave controller (CNTRL2) not shown **","** Slave controller (CNTRL2) not shown **") ->  | P36: =IF(SCH_MODE=1, "** Tie VCCX to GND if not used **", "") -> ** Tie VCCX to GND if not used **
D37: Resulting Output Voltage Ripple (max) | E37: ='Variable Management'!B127*1000 -> 278.866926 | F37: mVpk-pk | K37: =IF(OR(SCH_MODE=3, SCH_MODE=4),"** Tie VCCX to GND if not used **", "") -> 
D38: Output Capacitor RMS Current (max) | E38: ='Variable Management'!B114 -> 5.282472498 | F38: A (rms)
A40: Step 5: Input Capacitors
D41: Input Voltage Ripple Spec | E41: 300 | F41: mVpk-pk
D42: Minimum Input Capacitance | E42: ='Variable Management'!B148 -> 100 | F42: µF
D43: Input Capacitance (derated), CIN | E43: 160 | F43: µF
D44: Maximum Permitted ESR | E44: ='Variable Management'!B154 -> 5.319271982 | F44: mΩ
D45: Input Capacitor ESR | E45: 0.05 | F45: mΩ
D46: Resulting Input Voltage Ripple (max) | E46: ='Variable Management'!B161*1000 -> 188.5574755 | F46: mVpk-pk
D47: Input Capacitor RMS Current (max) | E47: ='Variable Management'!B138 -> 6 | F47: A (rms)
D48: AEF Filter Inductor | E48: 0.68 | F48: µH
A49: Step 6: Enable, CNFG, FPWM/PFM
D52: Input Voltage UVLO Turn-ON | E52: 5.5 | F52: V
D53: Input Voltage UVLO Turn-OFF | E53: 4.5 | F53: V
D54: Upper Enable Resistor, RUV1 | E54: =IF(UVLO_TYPE=1,'Variable Management'!B187,0) -> 0 | F54: kΩ
D55: Lower Enable Resistor, RUV2 | E55: =IF(UVLO_TYPE=1,'Variable Management'!B188,"DNP") -> DNP | F55: kΩ
D56: Configuration Resistor, RCNFG | E56: =IF(DITHER=1,"41.2","29.4") -> 41.2 | F56: kΩ
D57: =IF(DEMB=1, "* Tie PFM to GND", "* Tie PFM to VDDA") -> * Tie PFM to GND
A59: Step 7: Compensation Design
D60: Load Pole Frequency | E60: =Fp_dominant -> 2277.193908 | F60: Hz
D61: ESR Zero Frequency | E61: =Fesr/1000 -> 53.05164776 | F61: kHz
D62: Desired Crossover Frequency | E62: 34 | F62: =" kHz " -> kHz
D63: Error Amp Pole Frequency | E63: =Fp1_u -> 0.248666777 | F63: Hz
D64: =CHOOSE(VOUT_setting, "Upper Feedback Resistor","","","") -> Upper Feedback Resistor | E64: 100 | F64: kΩ
D65: =CHOOSE(VOUT_setting, "Lower Feedback Resistor", "PULLUP FB to VDDA with "&'Variable Management'!D418,"TIE FB TO VDDA","PULLUP FB to VDDA with"&'Variable Management'!D418) -> Lower Feedback Resistor | E65: =IF(Vout=Vref,"OPEN",Rfb2_u/1000) -> 12.1 | F65: =IF(Vout=Vref,"","kΩ") -> kΩ
A67: Compensation Components
B68: Calculated / | C68: Std Values | D68: =C68 -> Std Values | F68: Actual P/Z Frequencies
A69: RC1 | B69: =Rcea1/1000 -> 8.645270274 | C69: ='Standard Value Calculator'!S32 -> 8.66 | D69: 3.3 | E69: kΩ | F69: =Fp1_u -> 0.248666777 | G69: Hz (FPEA)
A70: CC1 | B70: =Cc1ea*1000000000 -> 5.414553386 | C70: ='Standard Value Calculator'!S33 -> 5.6 | D70: 10 | E70: nF | F70: =Fz1_u/1000 -> 4.822877069 | G70: kHz (FZCOMP)
A71: CC2 | B71: =IF(Cc2ea<0, "N/A", Cc2ea*1000000000000) -> 336.3586416 | C71: ='Standard Value Calculator'!S34 -> 330 | D71: 10 | E71: pF | F71: =Fp2_u/1000 -> 1152.943601 | G71: kHz (FPCOMP)
M72: ** Specify Inductor Core Loss ** | N72: 0.2 | O72: W
A74: Efficiency / Power Loss Analyzer
A76: Step 8: Efficiency
F77: Power MOSFETs | G77: (Q1, Q2)
E78: NVMFS6H858NLT1G, NVMFS6H848NLT1G
E79: High-side | F79: Low-side
D80: On-State Resistance, RDS(on) | E80: 25 | F80: 11 | G80: mΩ
D81: Total Gate Charge, QG | E81: 6.5 | F81: 14 | G81: nC
D82: Gate-Drain Charge, QGD | E82: 2.1 | F82: 4.3 | G82: nC
D83: Gate-Source Charge, QGS | E83: 2.2 | F83: 4.6 | G83: nC
D84: Output Charge, QOSS | F84: 10 | G84: nC
D85: Output Capacitance, COSS | E85: 82 | F85: 192 | G85: pF
D86: Gate Resistance, RG | E86: 0.5 | F86: 0.5 | G86: Ω
D87: Transconductance, gFS | E87: 45 | F87: 84 | G87: S
D88: Gate-Source Threshold Voltage, VTH | E88: 2 | F88: 2 | G88: V
D89: Body Diode Forward Voltage, VBD | E89: 0.8 | F89: 0.8 | G89: V
D90: Body Diode Rev Recovery Charge, QRR | F90: 60 | G90: nC
D91: Thermal Resistance, θJA | E91: 43 | F91: 38 | G91: °C/W
A93: External Schottky Diode (if applicable)
D94: Schottky Fwd Voltage, VFWDsch | F94: 0 | G94: V
D95: Schottky Rev Recovery Charge, QRRsch | F95: 0 | G95: nC
A99: Step 9: IC Power Loss
D100: IC Power Dissipation | E100: ='Variable Management'!B361 -> 0.03444 | F100: W
D101: IC Junction Temperature (estimate) | E101: ='Variable Management'!B363 -> 26.174404 | F101: °C
E102: =CHOOSE(Ext_VCC, "", "* Tie VCCX to PGND") -> * Tie VCCX to PGND

Sheet Input Filters (hidden)
A1: LM(2)5149-Q1 Synchronous Buck Controller Design Tool
O2: http://www.ti.com/product/lm5175
A3: About | C3: xx | F3: = Input Box | O3: TERMS OF USE
E7: AEF | M7: Passive
B9: Design tab - LAEF | C9: ='Design Regulator'!E48 & " µH" -> 0.68 µH | F9: LAEF | G9: 1 | H9: µH | J9: Suggested LIN Inductor | K9: 0.1-10 | L9: µH | N9: Chosen LIN | O9: 0.68 | P9: µH
B10: Design tab - CINJ | C10: ='Design Regulator'!#REF! & " µF" ->  | F10: CINJ | G10: 1 | H10: µF | J10: Suggested CF | K10: 0.1-10 | L10: µF | N10: Chosen CF | O10: 0.47 | P10: µF
B11: Design tab - CDAMP | C11: ='Design Regulator'!#REF! & " µF" ->  | F11: CDAMP | G11: 1 | H11: µF | J11: Suggested CDAMP | K11: 1-10 | L11: µF | N11: Chosen CDAMP | O11: 1 | P11: µF
B12: Design tab - RDAMP | C12: ='Design Regulator'!#REF! & " Ω" ->  | F12: RDAMP | G12: 10 | H12: Ω | J12: Suggested RDAMP | K12: =Rdamp_PassiveStd -> 0.0143 | L12: Ω | N12: Chosen RDAMP | O12: 0.35 | P12: Ω
C14: VIN Ripple at Fsw | F14: =VinRipple_dBuV -> 105.5088751 | G14: dBµV | H14: VIN Ripple | I14: =VinRipple_dBuV -> 105.5088751 | J14: dBµV
D16: AEF Attenuation at Fsw | E16: =-'Input Filter Calculations'!AM97 ->  | F16: dB | L16: Passive Attenuation at Fsw | M16: =-'Input Filter Calculations'!AA97 -> -4.147700439 | N16: dB
D17: AEF EMI at Fsw | E17: =VinRipple_dBuV-E16 ->  | F17: dB-µV | L17: Passive EMI at Fsw | M17: =VinRipple_dBuV-M16 -> 109.6565755 | N17: dB-µV

Sheet Design Input Filter (hidden)
A1: LM5149-Q1 Synchronous Buck Controller Design Tool
O2: http://www.ti.com/product/lm5175
A3: About | C3: xx | F3: = Input Box | O3: TERMS OF USE
B7: Choose Filter
B8: Suggested Inductor | C8: =CHOOSE(INFILTER_TYPE,"","0.01-1","0.1-10") ->  | D8: µH | F8: Chosen Inductor | G8: 1 | H8: µH
B9: =CHOOSE(INFILTER_TYPE,"","Suggested Cinj","Suggested Cf") ->  | C9: =CHOOSE(INFILTER_TYPE,"",'Standard Value Calculator'!S24,'Standard Value Calculator'!S23) ->  | D9: µF | F9: =CHOOSE(INFILTER_TYPE,"","Chosen Cinj","Chosen Cf") ->  | G9: 0.068 | H9: µF
B10: Suggested Cdamp | C10: =CHOOSE(INFILTER_TYPE,"",CHOOSE(OSC,"DNP",'Standard Value Calculator'!S25),'Standard Value Calculator'!S28) ->  | D10: µF | F10: Chosen Cdamp | G10: 0.033 | H10: µF
B11: Suggested Rdamp | C11: =CHOOSE(INFILTER_TYPE,"",'Standard Value Calculator'!S26,Rdamp_PassiveStd) ->  | D11: Ω | F11: Chosen Rdamp | G11: 43.2 | H11: Ω
F12: Filter Attenuation | G12: =-'Variable Management'!B302 -> 0 | H12: dB
F13: VIN Ripple | G13: =VinRipple_dBuV -> 105.5088751 | H13: dB-µV
F14: Fsw Conducted EMC | G14: ='Variable Management'!B303 -> 105.5088751 | H14: dB-µV

Sheet BOM & Schematic (hidden)
A36: ** Tie DEMB to VDDA for FPWM, AGND for DEM **
A37: ** Tie VCCX to GND if not used ** | I37: =IF(OR(SCH_MODE=3, SCH_MODE=4),"** Tie VCCX to GND if not used **", "") -> 
A38: ** Tie DITH to VDDA to disable spread spectrum **
A39: ** Tie OSC to VDDA for 2.2MHz, AGND for 440kHz **
A40: ="VIN = "&VIN_min&" V to "&VIN_max&" V, VOUT = "& Vout &" V, IOUT = " &Iout & " A, Fsw = " & Fsw/1000 &" kHz, Current Limit = "&ROUNDUP(Ilimit_DC,0)&" A" -> VIN = 9 V to 36 V, VOUT = 7.4 V, IOUT = 12 A, Fsw = 100 kHz, Current Limit = 15 A
A41: High Efficiency Synchronous Buck Regulator BOM
A42: Count | B42: Ref Des | C42: Value | D42: Description | H42: Size | I42: Part Number | J42: MFR
A43: 1 | B43: CBOOT | C43: 0.1 | D43: =C43 -> 0.1 | H43: 0603 | I43: Std | J43: Std
A44: 1 | B44: CC1 | C44: ='Design Regulator'!D70 -> 10 | D44: 10 | H44: 0603 | I44: Std | J44: Std
A45: 1 | B45: CC2 | C45: ='Design Regulator'!D71 -> 10 | D45: 10 | H45: 0603 | I45: Std | J45: Std
A46: 1 | B46: CRES | C46: =Cres_u*1000000000 -> 82 | D46: =C46 -> 82 | H46: 0603 | I46: Std | J46: Std
A47: 1 | B47: CDITH | C47: =Cdither*1000000000 -> 2.2 | D47: =C47 -> 2.2 | H47: 0603 | I47: Std | J47: Std
A48: =ROUNDUP('Design Regulator'!E43/10,0) -> 16 | B48: CIN | C48: 10 | D48: =C48 -> 10 | H48: 1210 | I48: Std | J48: Std
A49: =ROUNDUP('Design Regulator'!E34/47,0) -> 4 | B49: COUT | C49: 47 | D49: =C49 -> 47 | H49: 1210 | I49: Std | J49: Std
A50: 1 | B50: CSS | C50: ='Design Regulator'!#REF! ->  | D50: =C50 ->  | H50: 0603 | I50: Std | J50: Std
A51: 2 | B51: CVCC, CVCCX | C51: 2.2 | D51: 2.2 | H51: 0603 | I51: Std | J51: Std
A52: 1 | B52: CVDDA | C52: 0.47 | D52: 0.47 | H52: 0603 | I52: Std | J52: Std
A53: 1 | B53: DBOOT | C53: See description | D53: Schottky Diode, 60V, 200mA | H53: - | I53: - | J53: Various
A54: 1 | B54: LO | C54: ='Design Regulator'!E27 -> 3.3 | D54: ="Inductor, "&Lf*1000000&"µH, "&Rdcr*1000&"mΩ, >"&ROUNDUP(Ilimit_DC*1.1,0)&"A" -> Inductor, 3.3µH, 14mΩ, >17A | H54: - | I54: - | J54: Various
A55: 2 | B55: Q1, Q2 | C55: See description | D55: ='Design Regulator'!E80 -> 25 | H55: Std | I55: ='Design Regulator'!E78 -> NVMFS6H858NLT1G, NVMFS6H848NLT1G | J55: -
A56: 1 | B56: RC1 | C56: ='Design Regulator'!D69 -> 3.3 | D56: =C56 -> 3.3 | H56: 0603 | I56: Std | J56: Std
A57: 1 | B57: RS | C57: =Rs*1000 -> 3.5 | D57: 3.5 | H57: 0508 | I57: Std | J57: Std
A58: 1 | B58: RT | C58: ='Design Regulator'!E12 -> 221 | D58: 221 | H58: 0603 | I58: Std | J58: Std
A59: 1 | B59: RFB1 | C59: ='Design Regulator'!E64 -> 100 | D59: 100 | H59: 0603 | I59: Std | J59: Std
A60: 1 | B60: RFB2 | C60: ='Design Regulator'!E65 -> 12.1 | D60: 12.1 | H60: 0603 | I60: Std | J60: Std
A61: 1 | B61: RPGOOD | C61: 100 | D61: 100 | H61: 0603 | I61: Std | J61: Std
A62: 1 | B62: RCS | C62: 100 | D62: 100 | H62: 0603 | I62: Std | J62: Std
A63: 1 | B63: RDEMB | C63: 100 | D63: 100 | H63: 0603 | I63: Std | J63: Std
A64: 1 | B64: RVIN | C64: 2.2 | D64: 2.2 | H64: 0603 | I64: Std | J64: Std
A65: 1 | B65: U1 | C65: LM5141-Q1 | D65: IC, LM5141-Q1, Synchronous Buck PWM Controller, 3.8V–65V Input | H65: VQFN-24 | I65: LM5141QRGEQ1 | J65: TI
A68: NOTES:
A69: ** For information on TI NexFETTM MOSFETs, see ** | D69: http://www.ti.com/nexfet | E69: **
A70: ** Inductor saturation current should be higher than the peak inductor current at the OCP setpoint for all input voltages and operating temperatures **
A71: ** Effective input and output capacitances should be appropriately derated for applied voltage and temperature, particularly with ceramics **

Sheet EVM
A1: LM25149-Q1 Quickstart Design Tool
B6: LM25149-Q1EVM-2100 PCB Layout

Sheet Variable Management (hidden)
A1: EXCEL Variables Names/Calculations
B2: Input from user =
B3: Output =
B4: Constant
A5: Variable Name | B5: Value | C5: STD Units | E5: Notes | I5: Iteration
A6: Step 1: Operational Specs
A7: VIN_min | B7: ='Design Regulator'!E6 -> 9 | C7: V | D7: Minimum input voltage | I7: 1
A8: VIN_nom | B8: ='Design Regulator'!E7 -> 16.8 | C8: V | D8: Nominal input voltage | K8: =CHOOSE(SCH_MODE, "Efficiency vs. IOUT (Ch1)", "Efficiency vs. IOUT - 2 Ph", "Efficiency vs. IOUT - 3 Ph", "Efficiency vs. IOUT - 4 Ph") -> Efficiency vs. IOUT (Ch1) | L8: 1 | N8: DITHER Enabled | O8: 1 | T8: Dual Outputs | U8: 1 | W8: FPWM | X8: 1 | Z8: =CHOOSE(SCH_MODE, "Bode Plot (Ch1)", "Bode Plot - 2 Ph", "Bode Plot - 3 Ph", "Bode Plot - 4 Ph") -> Bode Plot (Ch1) | AA8: 1
A9: VIN_max | B9: ='Design Regulator'!E8 -> 36 | C9: V | D9: Maximum input voltage | K9: =IF(MODE=1, "Efficiency vs. IOUT (Ch2)", "N/A - Do Not Use") -> Efficiency vs. IOUT (Ch2) | L9: 2 | N9: DITHER Disabled | O9: 2 | T9: Single Output – 2 Phases | U9: 2 | W9: PFM | X9: 2 | Z9: =IF(MODE=1, "AEF Gain", "N/A - Do Not Use") -> AEF Gain | AA9: 2
K10: PLOT_TYPE | L10: 1 | N10: DITHER Yes/No | O10: 1 | P10: 1 = Yes, 2 = No | T10: Single Output – 3 Phases | U10: 3 | W10: FPWM/PFM | X10: 1 | Z10: BODE_PLOT_TYPE | AA10: 1
A11: Vout | B11: ='Design Regulator'!E9 -> 7.4 | C11: V | D11: Output voltage - channel 1 | T11: Single Output – 4 Phases | U11: 4
A12: Iout | B12: ='Design Regulator'!E10 -> 12 | C12: A | D12: Output current - channel 1 | I12: 1 | T12: Single/Dual Yes/No | U12: 1
I13: 1 | K13: Adjustable | L13: 1 | N13: 3.3V | O13: 1 | T13: MODE (Single/Dual), DUAL = 1, SINGLE = 2 | U13: =IF(U12=1, 1, 2) -> 1 | W13: VCCX Connected | X13: 1
A14: Rout | B14: =Vout/Iout -> 0.6166666667 | C14: W | D14: Load resistance - Channel 1 | K14: 5V | L14: 2 | N14: 5V | O14: 2 | T14: SINGLE OUTPUT (1 = YES) | U14: =IF(U12=1, 2, 1) -> 2 | W14: No External VCC | X14: 2
K15: 3.3V | L15: 3 | N15: Adjustable | O15: 3 | T15: Number of Phases | U15: =SCH_MODE -> 1 | W15: Ext_VCC | X15: 2
A16: Pout | B16: =Vout*Iout -> 88.8 | C16: W | D16: Output power | K16: 12V | L16: 4 | N16: Ch2 Output Setting | O16: =IF(Vout2=3.3, 1, IF(Vout2=5, 2, 3)) -> 3
K17: Output Voltage Setting | L17: =IF(Vout=3.3, 3, IF(Vout=5, 2, IF(Vout=12,4,1))) -> 1
A18: Efficiency | B18: 0.9 | D18: Estimate of efficiency
A19: Pin | B19: =Pout/Efficiency -> 98.66666667 | C19: W | D19: Calculate input power assuming finite efficiency | W19: 2.2 MHz Fsw Setting | X19: 1 | Z19: Internal Compensation | AA19: 1
W20: 440 kHz Fsw Setting | X20: 2 | Z20: External Compensation | AA20: 2
A21: Iin_Vinmin | B21: =Pin/VIN_min -> 10.96296296 | C21: A | L21: =Vout -> 7.4 | W21: OSC | X21: =IF(Fsw>1000000,1,2) -> 2 | Z21: COMP_TYPE | AA21: 2
A22: Iin_Vinnom | B22: =Pin/VIN_nom -> 5.873015873 | C22: A | D22: Input currents at min, nom, max Vin | H22: =AND(OSC=1, OR(Fsw/1000>2530, Fsw/1000<1800)) -> FALSE
A23: Iin_Vinmax | B23: =Pin/VIN_max -> 2.740740741 | C23: A | H23: =AND(OSC=2, OR(Fsw/1000>500, Fsw/1000<300)) -> TRUE
H24: =OR(H22,H23) -> TRUE
A25: OSC setting | B25: =CHOOSE(OSC, 2200, 440) -> 440 | C25: kHz | K25: SetVout_IntComp_nAEF | L25: 1 | W25: No Input Filter | X25: 1 | Z25: UVLO Divider | AA25: 1
A26: Fsw | B26: ='Design Regulator'!E11*1000 -> 100000 | C26: Hz | D26: Nominal switching frequency - determines RT resistor (SYNCIN must be 80-120% of this) | K26: SetVout_IntComp_AEF | L26: 2 | W26: AEF Input Filter | X26: 2 | Z26: No UVLO Divider | AA26: 2
A27: RT resistor to AGND | B27: =((1000000000/Fsw)-53)/45+0.1 -> 221.1444444 | C27: kΩ | K27: SetVout_ExtComp_nAEF | L27: 3 | W27: Passive LC Filter | X27: 3 | Z27: UVLO_TYPE | AA27: 2
C28: kΩ | I28: 1 | K28: SetVout_ExtComp_AEF | L28: 4 | W28: INFILTER_TYPE | X28: 1
A29: Tsw | B29: =1/Fsw -> 1e-05 | C29: sec | D29: Switching period | K29: AdjVout_IntComp_nAEF | L29: 5
A30: Vref | B30: 0.8 | C30: V | D30: Reference voltage | K30: AdjVout_IntComp_AEF | L30: 6
A31: Rt | B31: ='Standard Value Calculator'!S12/1000 -> 221 | C31: kΩ | D31: Frequency set resistor | F31: =IF(OR((Fsw=440000),(Fsw=2200000)),"N/A",Rfadj/1000) -> 0.221 | K31: AdjVout_ExtComp_nAEF | L31: 7
K32: AdjVout_ExtComp_AEF | L32: 8
A33: Step 2: Buck Inductor | B33: Channel 1 | K33: Schematic setting | L33: =(IF(OR(Vout=3.3,Vout=5,Vout=12),CHOOSE(COMP_TYPE,IF(INFILTER_TYPE=1,1,2),IF(INFILTER_TYPE=1,3,4)),CHOOSE(COMP_TYPE,IF(INFILTER_TYPE=1,5,6),IF(INFILTER_TYPE=1,7,8)))) -> 7
A34: Don1 | B34: =Vout/VIN_nom -> 0.4404761905 | F34: Ideal Duty Cycle at VIN(nom)
A35: Doff1 | B35: =1-34:34 -> 0.5595238095 | F35: Ideal 1- Duty Cycle at VIN(nom)
A37: D_Vinmin | B37: =Vout/VIN_min -> 0.8222222222
A38: D_Vinnom | B38: =Vout/VIN_nom -> 0.4404761905
A39: D_Vinmax | B39: =Vout/VIN_max -> 0.2055555556
A41: L_Vinnom | B41: =(VIN_nom-Vout)*D1_Vinnom/(Fsw*(Iout/Number_of_Phases)*0.3) -> 1.150132275e-05 | C41: H | F41: Calculated inductance for 35% ripple at VIN(nom)
A42: L_slopecomp | B42: =1000*Vout*Rs/24/Fsw -> 1.079166667e-05 | C42: H | F42: Calculated inductance based on one times inductor downslope
A44: Lopt | B44: =B42 -> 1.079166667e-05 | C44: H | F44: Slope comp
A46: Lo | B46: ='Design Regulator'!E27/1000000 -> 3.3e-06 | C46: H | F46: Chosen inductance
A47: Rdcr | B47: ='Design Regulator'!E28/1000 -> 0.014 | C47: W | F47: Chosen inductor DCR
A49: Don2 | B49: =(Vout+Iout*(Rdcr+Rs))/(Vin+Iout*Rs) -> 0.451846574
A50: Doff2 | B50: =1-_Don2 -> 0.548153426
A52: D_Vinmin_2 | B52: =CHOOSE(MODE, (Vout+Iout*(Rdcr+Rs))/(VIN_min+Iout*Rs), (Vout+Iout/Number_of_Phases*(Rdcr+Rs))/(VIN_min+Iout/Number_of_Phases*Rs)) -> 0.8416279584 | F52: Duty cycles adjusted for DCR/shunt voltage drops
A53: D_Vinnom_2 | B53: =CHOOSE(MODE, (Vout+Iout*(Rdcr+Rs))/(VIN_nom+Iout*Rs), (Vout+Iout/Number_of_Phases*(Rdcr+Rs))/(VIN_nom+Iout/Number_of_Phases*Rs)) -> 0.451846574 | F53: need to include RDS(on) later
A54: D_Vinmax_2 | B54: =CHOOSE(MODE, (Vout+Iout*(Rdcr+Rs))/(VIN_max+Iout*Rs), (Vout+Iout/Number_of_Phases*(Rdcr+Rs))/(VIN_max+Iout/Number_of_Phases*Rs)) -> 0.2111425559
A56: Iripple_Vinmin | B56: =(VIN_min-Vout)*D1_Vinmin_2/(Fsw*Lf) -> 4.080620404 | C56: A
A57: Iripple_Vinnom | B57: =(VIN_nom-Vout)*D1_Vinnom_2/(Fsw*Lf) -> 12.8707812 | C57: A
A58: Iripple_Vinmax | B58: =(VIN_max-Vout)*D1_Vinmax_2/(Fsw*Lf) -> 18.29902151 | C58: A
A60: Ishunt_rms_Vinmin | B60: =SQRT((Iout/Number_of_Phases)^2+(Iripple_Vinmin^2)/12) -> 12.05767896 | C60: A
A61: Ishunt_rms_Vinnom | B61: =SQRT((Iout/Number_of_Phases)^2+(Iripple_Vinnom^2)/12) -> 12.56203609 | C61: A
A62: Ishunt_rms_Vinmax | B62: =SQRT((Iout/Number_of_Phases)^2+(Iripple_Vinmax^2)/12) -> 13.11123624 | C62: A
A63: Max shunt power loss at full load | B63: =B61^2*Rs -> 0.5523166275 | C63: W | F63: Note this is power loss at full load - not loss near OCP!
A65: Max inductor ripple current | B65: =MAX(B56:B58) -> 18.29902151 | C65: A | F65: Ripple current at Vin(max)
B67: =B56/(Iout/Number_of_Phases) -> 0.3400517004
A68: % ripple current | B68: =B57/(Iout/Number_of_Phases) -> 1.0725651
B69: =B58/(Iout/Number_of_Phases) -> 1.524918459
A71: Inductor copper temerature | B71: 100 | C71: °C
A72: DCR at hot | B72: =Rdcr*(1+0.0039*(B71-25)) -> 0.018095 | C72: W
A75: Step 3: Sense Resistors, Slope Comp, Current Limit
A77: Ilimit_DC | B77: ='Design Regulator'!E16 -> 15 | C77: A | F77: Chosen OCP level - based on output current
A79: Ilimit_inductor_Vinmin | B79: =CHOOSE(MODE, Ilimit_DC+Iripple_Vinmin/2, Ilimit_DC/Number_of_Phases+Iripple_Vinmin/2) -> 17.0403102 | C79: A | F79: Peak inductor current at current limit inception
A80: Ilimit_inductor_Vinnom | B80: =CHOOSE(MODE, Ilimit_DC+Iripple_Vinnom/2, Ilimit_DC/Number_of_Phases+Iripple_Vinnom/2) -> 21.4353906 | C80: A
A81: Ilimit_inductor_Vinmax | B81: =CHOOSE(MODE, Ilimit_DC+Iripple_Vinmax/2, Ilimit_DC/Number_of_Phases+Iripple_Vinmax/2) -> 24.14951076 | C81: A
A84: CS threshold_min | B84: 0.052 | C84: V
A85: CS threshold | B85: 0.06 | C85: V
A86: CS threshold_max | B86: 0.068 | C86: V
A88: Shunt required to get OCP at VIN(min) | B88: =Buck_CS_threshold/B79 -> 0.003521062662 | C88: W
A89: Shunt required to get OCP at VIN(nom) | B89: =Buck_CS_threshold/B80 -> 0.002799109245 | C89: W
A90: Shunt required to get OCP at VIN(max) | B90: =Buck_CS_threshold/B81 -> 0.002484522383 | C90: W
A92: Rs_ideal | B92: =B89 -> 0.002799109245 | C92: W | F92: Ideal Rs for the required OCP -- based on 73mV CL threshold
A93: Rs | B93: ='Design Regulator'!E18/1000 -> 0.0035 | C93: W | F93: Selected (starndard value) current limit sense resistor
A95: Current limit - peak | B95: =Buck_CS_threshold/Rs -> 17.14285714 | C95: A | F95: Peak inductor current limit = min sat current
A97: Iout_OCP_Vinmin | B97: =Number_of_Phases*(Buck_CS_threshold/Rs-Iripple_Vinmin/2) -> 15.10254694 | C97: A | F97: Current limit setpoints (i.e. IOUT) after standard components are selected
A98: Iout_OCP_Vinnom | B98: =Number_of_Phases*(Buck_CS_threshold/Rs-Iripple_Vinnom/2) -> 10.70746654 | C98: A
A99: Iout_OCP_Vinmax | B99: =Number_of_Phases*(Buck_CS_threshold/Rs-Iripple_Vinmax/2) -> 7.993346387 | C99: A
A101: Irms_OCP_Vinmin | B101: =SQRT((Iout_OCP_Vinmin/Number_of_Phases)^2+(Iripple_Vinmin^2)/12) -> 15.14841728 | C101: A
A102: Irms_OCP_Vinnom | B102: =SQRT((Iout_OCP_Vinnom/Number_of_Phases)^2+(Iripple_Vinnom^2)/12) -> 11.33378094 | C102: A
A103: Irms_OCP_Vinmax | B103: =SQRT((Iout_OCP_Vinmax/Number_of_Phases)^2+(Iripple_Vinmax^2)/12) -> 9.581132613 | C103: A
A105: Pshunt_Vinmin | B105: =B101^2*Rs -> 0.803160911 | C105: W | F105: Max power dissipations in shunt
A106: Pshunt_Vinnom | B106: =B102^2*Rs -> 0.4495910667 | C106: W
A107: Pshunt_Vinmax | B107: =B103^2*Rs -> 0.3212933575 | C107: W
A110: Step 4: Output Capacitor
A111: Icoutrms_VINmin | B111: =Iripple_Vinmin/SQRT(12) -> 1.177973644 | C111: A | F111: Output Cap RMS current
A112: Icoutrms_VINnom | B112: =Iripple_Vinnom/SQRT(12) -> 3.715474495 | C112: A
A113: Icoutrms_VINmax | B113: =Iripple_Vinmax/SQRT(12) -> 5.282472498 | C113: A
A114: Max Cout rms current | B114: =MAX(B111:B113) -> 5.282472498 | C114: A
A116: Vripple1 | B116: ='Design Regulator'!E32/1000 -> 0.1 | C116: V | F116: Output voltage ripple spec(pk-pk)
A118: Output Ripple Spec (pk-pk) | B118: =Vo1_ripple*1000 -> 100 | C118: mV | F118: Vout ripple spec at Vin(nom)
A120: Coutmin | B120: =Iripple_Vinnom/(Fsw*8*Vo1_ripple) -> 0.000160884765 | C120: F | F120: Minimum output capacitnace | H120: =Vo2_ripple -> 0 | I120: 1
A121: Reported Coutmin | B121: =IF(Cout_min*1000000<2, 2.2,Cout_min*1000000) -> 160.884765 | C121: uF
A122: Cout | B122: ='Design Regulator'!E34/1000000 -> 0.00015 | C122: F | F122: Chosen output capacitance | I122: 1
A123: Resrmax | B123: =SQRT((Vo1_ripple/Iripple_Vinnom)^2-(1/(Fsw*Cout*8))^2) ->  | C123: W | F123: Max ESR before ripple exceeds Vripple1 | I123: 1
A125: Reported Cout ESR max | B125: =IF(OR(CoutEsrMax>0.3, CoutEsrMax<0, (ISERROR(CoutEsrMax))), "N/A", CoutEsrMax*1000) ->  | C125: mΩ
A126: CoutEsr | B126: ='Design Regulator'!E36/1000 -> 0.02 | C126: W | F126: Chosen ESR | I126: 1 | K126: =ISERROR(CoutEsrMax) -> TRUE | L126: =ISERROR(B125) -> TRUE
A127: Vripple | B127: =Iripple_Vinnom*SQRT(Cout_ESR^2+(1/(8*Fsw*Cout))^2) -> 0.278866926 | C127: Vp-p | L127: =OR(CoutEsrMax>0.3,CoutEsrMax<0) -> 
K128: =OR(TRUE, FALSE, TRUE) -> TRUE
A129: Step 5: Input Capacitor
K130: Two channels operating at full load
A131: Icinrms_VINmin | B131: =SQRT(D1_Vinmin_2*(Iout^2*(1-D1_Vinmin_2)+Iripple_Vinmin^2/12)) -> 4.512390727 | C131: A | D131: =D1_Vinmax -> 0.2055555556 | F131: Calculate input cap rms current with one output unloaded | K131: =SQRT(Iout^2*D1_Vinmin*(1-D1_Vinmin)+Iout2^2*D2_Vinmin*(1-D2_Vinmin)-2*Iout*Iout2*D1_Vinmin*D2_Vinmin) ->  | L131: A | M131: =SQRT(Iout^2*D1_Vinmin*(1-D1_Vinmin)+Iout2^2*D2_Vinmin*(1-D2_Vinmin)-2*Iout*Iout2*(0.5-D2_Vinmin*(1-D1_Vinmin))) ->  | N131: A
A132: Icinrms_VINnom | B132: =SQRT(D1_Vinnom_2*(Iout^2*(1-D1_Vinnom_2)+Iripple_Vinnom^2/12)) -> 6.473308966 | C132: A | D132: =D1_Vinmin -> 0.8222222222 | K132: =SQRT(Iout^2*D1_Vinnom*(1-D1_Vinnom)+Iout2^2*D2_Vinnom*(1-D2_Vinnom)-2*Iout*Iout2*D1_Vinnom*D2_Vinnom) ->  | L132: A
A133: Icinrms_VINmax | B133: =SQRT(D1_Vinmax_2*(Iout^2*(1-D1_Vinmax_2)+Iripple_Vinmax^2/12)) -> 5.465955456 | C133: A | K133: =SQRT(Iout^2*D1_Vinmax*(1-D1_Vinmax)+Iout2^2*D2_Vinmax*(1-D2_Vinmax)-2*Iout*Iout2*D1_Vinmax*D2_Vinmax) ->  | L133: A
A134: Icinrms - multiphase | B134: =Iout*SQRT((D1_Vinmin-F136/Number_of_Phases)*((F136+1)/Number_of_Phases-D1_Vinmin)) -> 4.587906809 | C134: A | K134: =MAX(K131:K133) ->  | L134: A
A135: Max Cin rms current | B135: =MAX(B131:B133) -> 6.473308966 | C135: A | F135: =Number_of_Phases*D1_Vinnom -> 0.4404761905 | G135: N*D
F136: =FLOOR(Number_of_Phases*D1_Vinnom,1) -> 0 | G136: floor(N*D)
A137: Icinrms - multiphase - max | B137: =Iout/2/Number_of_Phases -> 6 | C137: A
A138: Final result | B138: =IF(D1_Vinmin<0.5, B135, B137) -> 6 | C138: A | D138: …report this
A140: Vinripple1 | B140: ='Design Regulator'!E41/1000 -> 0.3 | C140: Vp-p | F140: Input voltage ripple spec (pk-pk)
A142: Cinmin_Vinmin | B142: =Iout/Number_of_Phases*D1_Vinmin*(1-D1_Vinmin)/(Vinripple1*Fsw) -> 5.84691358e-05 | C142: F
A143: Cinmin_Vinnom | B143: =Iout/Number_of_Phases*D1_Vinnom*(1-D1_Vinnom)/(Vinripple1*Fsw) -> 9.858276644e-05 | C143: F
A144: Cinmin_Vinmax | B144: =Iout/Number_of_Phases*D1_Vinmax*(1-D1_Vinmax)/(Vinripple1*Fsw) -> 6.532098765e-05 | C144: F | F144: Calculate cap at Vinmax and 50% duty cycle (Vin = 2*Vout)
A146: Cinmin_50%D | B146: =Iout*0.5*(1-0.5)/(Vinripple1*Fsw) -> 0.0001 | C146: F | F146: Buck 50% typically worst case
A147: Cinmin | B147: =IF(D1_Vinmin<0.5, B142,B146) -> 0.0001 | C147: F | D147: =(VIN_min+VIN_max)/2 -> 22.5
A148: Reported Cinmin | B148: =IF(Cinmin*1000000<2.2, 2.2,Cinmin*1000000) -> 100 | C148: uF | D148: =2*Vout -> 14.8 | F148: …report this
A150: Cin | B150: ='Design Regulator'!E43/1000000 -> 0.00016 | C150: F | F150: Input capacitance
A151: CinEsrMax_Vinmax | B151: =-(Iout/Number_of_Phases*D1_Vinmax*(1-D1_Vinmax)/(Cin*Fsw)-Vinripple1)/(Iout/Number_of_Phases+Iripple_Vinmax/2) -> 0.008393723628 | C151: W
A152: CinEsrMax_50%D | B152: =-(Iout/Number_of_Phases*0.5*(1-0.5)/(Cin*Fsw)-Vinripple1)/(Iout/Number_of_Phases+Iripple_Vinmax/2) -> 0.005319271982 | C152: W | F152: Calculate ESR at Vinmax and 50% duty cycle (Vin = 2*Vout)
A153: CinEsrMax | B153: =IF(VIN_max<2*Vout, B151,B152) -> 0.005319271982 | C153: W
A154: Reported Cin ESR max | B154: =IF(OR(CinEsrMax>0.3, CinEsrMax<0), "N/A",CinEsrMax*1000) -> 5.319271982 | C154: mΩ | F154: …report this
A155: RCinEsr | B155: ='Design Regulator'!E45/1000 -> 5e-05 | C155: W | F155: Input capacitance series resistance (ESR)
A157: Vinripple2_Vinmin | B157: =Iout/Number_of_Phases*D1_Vinmin_2*(1-D1_Vinmin_2)/(Cin*Fsw)+(Iout/Number_of_Phases +Iripple_Vinmin/2)*RCinEsr -> 0.100669769 | C157: Vp-p
A158: Vinripple2_Vinnom | B158: =Iout/Number_of_Phases*D1_Vinnom_2*(1-D1_Vinnom_2)/(Cin*Fsw)+(Iout/Number_of_Phases +Iripple_Vinnom/2)*RCinEsr -> 0.1866827052 | C158: Vp-p
A159: Vinripple2_Vinmax | B159: =Iout/Number_of_Phases*D1_Vinmax_2*(1-D1_Vinmax_2)/(Cin*Fsw)+(Iout/Number_of_Phases +Iripple_Vinmax/2)*RCinEsr -> 0.1259785083 | C159: Vp-p
A160: Vinripple2_50%D | B160: =Iout/Number_of_Phases*0.5*(1-0.5)/(Cin*Fsw)+(Iout/Number_of_Phases +Iripple_Vinmax/2)*RCinEsr -> 0.1885574755 | C160: Vp-p | F160: Calculate ripple at Vinmax and 50% duty cycle (Vin = 2*Vout)
A161: Vinripple2 | B161: =IF(D1_Vinmin<0.5, B157,B160) -> 0.1885574755 | C161: Vp-p | F161: …report highest of these
B163: =Iout*D1_Vinmax_2*(1-D1_Vinmax_2)/(Cin*Fsw) -> 0.1249210327 | C163: Vp-p
A165: Step 6a: Soft Start
A166: Tss | B166: ='Design Regulator'!E50/1000 -> 0 | C166: s | D166: Soft-start time
A167: Iss | B167: =Cout*Vout/Tss ->  | C167: A | D167: Load cap current during soft start
A168: Css | B168: =0.000022*Tss/1.2 -> 0 | C168: F
A169: Css_u | B169: ='Standard Value Calculator'!B4 -> 0 | C169: F
A171: Step 6b: Other Components - Dither, Hiccup, DEMB, MODE
A172: Tres | B172: ='Design Regulator'!E53/1000 -> 0.0045 | C172: s | D172: Hiccup time
A173: Cres | B173: =0.00002*Tres/1.2 -> 7.5e-08 | C173: F
A174: Cres_u | B174: ='Standard Value Calculator'!G4 -> 8.2e-08 | C174: F
A176: RPG1/2 | B176: 100 | C176: kΩ
A177: RFB1/2 | C177: W | E177: Tie to VDDA or AGND for 3.3V/5V output, respectively.
A178: R_MODE | C178: W | E178: Tie to VDDA or AGND for Single/Dual operation, respectively.
A179: R_DEMB | C179: W | E179: Tie to VDDA or AGND for FPWM/DEM, respectively.
A181: Enable Hysteresis Current | B181: 1e-05 | C181: A | E181: 10 µA Hysteresis Current
A182: Turn ON Voltage | B182: ='Design Regulator'!E52 -> 5.5
A183: Hysteresis Voltage | B183: ='Design Regulator'!E52-'Design Regulator'!E53 -> 1
A185: Upper FB resistor | B185: =B183/B181 -> 100000 | C185: W
A186: Lower FB resister | B186: =B185/(B182-1) -> 22222.22222 | C186: W
A187: Standard upper FB resistor | B187: ='Standard Value Calculator'!S40 -> 100 | C187: kΩ
A188: Standard lower FB resistor | B188: ='Standard Value Calculator'!S41 -> 22.1 | C188: kΩ
A190: Dither Modulation Frequency | B190: ='Design Regulator'!E56*1000 -> 41200 | C190: Hz
A191: Cdither_calculated | B191: =10*10^-6/Fdither/0.12 -> 2.022653722e-09 | C191: F
A192: Cdither_stdvalue | B192: ='Standard Value Calculator'!S21 -> 2.2e-09 | C192: F
A195: Step 7: Compensation
A196: Pi | B196: 3.14159265 | D196: p
A197: CS Amp Gain | B197: 10
A198: Ri | B198: =Rs*CSAmp_gain -> 0.035 | C198: W | F198: Current Sense effective resistance = shunt resistor Rs * CS amp gain
A199: gm | B199: =IF(COMP_TYPE=1,0.00003,0.0012) -> 0.0012 | C199: S | F199: Error Amp Transconductance
A201: Se_ext | B201: =B205/Ri*1000 -> 649350.6494 | C201: A/s | F201: Slope Comp Slope - referred to inductor current
A202: Sn | B202: =(Vin-Vout)/Lf -> 2848484.848 | C202: A/s | F202: On-time Slope
A203: Sf | B203: =Vout/Lf -> 2242424.242 | C203: A/s | F203: Off-time Slope
A205: Se_int | B205: =Fsw*0.001*(5/22) -> 22.72727273 | C205: mV/μs | F205: Slope Comp Slope - referred to IC
A206: Sn_int | B206: =Sn*Ri/1000 -> 99.6969697 | C206: mV/μs | F206: etc
A207: Sf_int | B207: =Sf*Ri/1000 -> 78.48484848 | C207: mV/μs | F207: etc
A209: mc_buck | B209: =1+Se_ext/Sn -> 1.227963526 | F209: mc = 1 + Se/Sn for peak current-mode buck
A210: k_buck | B210: =mc_buck*(1-D1_Vinnom_2) -> 0.6731124136 | F210: mc*(1-d)
A212: mc | B212: =1+Se_ext/Sn -> 1.227963526
A213: k | B213: =mc_buck*(1-D1_Vinnom_2) -> 0.6731124136
A214: Q | B214: =1/Pi/(k-0.5) -> 1.838746742 | F214: 1/(Pi*(k-0.5)) | H214: Q = 2/Pi = 0.636 gives ideal one-cycle damping
A216: Error Amp (EA)
A217: GBW | B217: 6 | C217: MHz | F217: EA gain-bandwidth product
A218: Cbw | B218: =gm/(2*Pi*GBW*1000000) -> 3.183098865e-11 | C218: F | F218: EA effective bandwidth limiting capacitance = gm/(2*Pi*GBW)
A219: RoEA | B219: 64000000 | C219: W | F219: EA output resistance
A220: AEA | B220: =gm*RoEA -> 76800 | C220: V/V | F220: EA DC gain = gm*RoEA
A221: Afb | B221: =IF(VOUT_setting=1,Vref/Vout,SQRT((1+(Fcross*zterm1)^2)/((1+Afbr-pterm4*(Fcross)^2)^2+(Fcross*pterm3)^2))) -> 0.1081081081 | C221: V/V | F221: Feedback gain from Vout to FB
A222: Acs | B222: =1/Ri -> 28.57142857 | F222: Acs = 1/Ri
A223: Am_buck | B223: =(Ro/Number_of_Phases)/Ri/((1+Ro/Number_of_Phases*(k-0.5)/(Fsw*Lf))) -> 13.31253662
A224: Am | B224: =(Ro*Number_of_Phases)/Ri/((1+Ro*Number_of_Phases*(k-0.5)/(Fsw*Lf))) -> 13.31253662 | F224: Buck modulator gain
A226: Scaling factor to calculate Rcomp - buck | B226: =2*Pi*Ri/gm -> 183.2595713 | F226: 2*Pi*Ri/gm -- scaling factor to calculate Rcomp given desired buck crossover frequency
A227: DC Gain is Adc = AEA*Afb*Am
A229: Ro | B229: =Rout -> 0.6166666667 | C229: W | F229: Output Resistance
A231: Fp_load_buck | B231: =1/(2*Pi*Ro*Cout)+(k-0.5)/(2*Pi*Fsw*Lf*Cout/Number_of_Phases) -> 2277.193908 | C231: Hz | F231: Buck dominant pole frequency -- note slope comp influence
A232: Fp_dominant | B232: =Fload_u -> 2277.193908 | C232: Hz
B233: =Cbw -> 3.183098865e-11
A234: Fp_EA | B234: =1/(2*Pi*(RoEA+Rcea1_u)*Cc1ea_u) -> 0.248666777 | C234: Hz | F234: Error Amp LF pole -- related to amplifier ouptut resistance and comp cap
A235: Fp_HF | B235: =1/(2*Pi*Rcea1_u*(Cc2ea_u+Cbw)) -> 1152943.601 | C235: Hz | F235: Error Amp HF pole cancels zero related to Output Cap ESR
A236: Fesr | B236: =1/(2*Pi*Cout*Cout_ESR) -> 53051.64776 | C236: Hz | F236: Cout ESR zero frequency
A237: F_mod | B237: =Fsw/2 -> 50000 | C237: Hz | F237: Zero-order sample-and-hold effects of current-mode control modeled as pole at Fsw/2
D238: Internal Comp Crossover
A239: Desired Crossover Frequency | B239: =CHOOSE(COMP_TYPE,Fcross_Ch2,'Design Regulator'!E62*1000) -> 34000 | C239: Hz | D239: =Fsw/50 -> 2000
A240: Rcea1 | B240: =Fcross*Cout/Number_of_Phases*2*Pi*Ri/(gm*Afb) -> 8645.270274 | C240: W | F240: This component will largely determine the crossover frequency | K240: =Fcross/Fp_dominant/(gm*Afb*Am) -> 8645.270274
A241: Cc1ea, Cc3ea | B241: =10/(Rcea1*Fcross*2*Pi) -> 5.414553386e-09 | C241: F | F241: This along with Rcea1 will set a zero at Fcrossover/5 to optimize phase margin
A242: Cc2ea, Cc4ea | B242: =MAX(1/(Rcea1*2*Pi*Fesr)-Cbw, 1/(Rcea1*2*Pi*(Fsw/2))-Cbw) -> 3.363586416e-10 | C242: F | F242: This along with Rcea1 places a pole at the output cap ESR zero
A244: =CHOOSE(COMP_TYPE,"Internal Compensation","External Compensation") -> External Compensation
A245: Chosen Compensation Components from the standard value sheet | D245: Internal Values
A246: Rcea1_u | B246: =CHOOSE(COMP_TYPE,D246,'Design Regulator'!D69*1000) -> 3300 | C246: W | D246: 400000 | G246: =1/(Rcea1*2*Pi*(Fsw/2))-Cbw -> 3.363586416e-10
A247: Cc1ea_u | B247: =CHOOSE(COMP_TYPE,Cc3ea_u,'Design Regulator'!D70*0.000000001) -> 1e-08 | C247: F | D247: =50*0.000000000001 -> 5e-11
A248: Cc2ea_u | B248: =CHOOSE(COMP_TYPE,Cc4ea_u,'Design Regulator'!D71*0.000000000001) -> 1e-11 | C248: F | D248: =0.000000000001 -> 1e-12
A250: Resulting Pole/Zero Locations | F250: =Cout -> 0.00015 | G250: =Cout_ESR -> 0.02
A251: Fz1 | B251: =1/(2*Pi*Rcea1_u*Cc1ea_u) -> 4822.877069 | C251: Hz | F251: This zero is set at or close to the dominant load pole
A252: Fp2 | B252: =1/(2*Pi*Rcea1_u*(Cc1ea_u*(Cc2ea_u+Cbw)/(Cc1ea_u+Cc2ea_u+Cbw))) -> 1157766.478 | C252: Hz | F252: This pole cancels the zero from the Output Cap ESR
D253: Internal Values
... 154 more rows

Sheet Schematic Management (hidden)
N1: 3.3V or 5V fixed (FB1/2)
A2: =IF(MODE=1, CHOOSE(SCH_SETTING, "SCH_SetVout_IntComp_nAEF","SCH_SetVout_IntComp_AEF","SCH_SetVout_ExtComp_nAEF","SCH_SetVout_ExtComp_AEF","SCH_AdjVout_IntComp_nAEF","SCH_AdjVout_IntComp_AEF","SCH_AdjVout_ExtComp_nAEF","SCH_AdjVout_ExtComp_AEF")) -> SCH_AdjVout_ExtComp_nAEF | J2: With/without dither (DITH) | N2: With/without VOUT connected to VCCX
J3: FPWM or DEM (DEMB)
J4: Shunt or inductor DCR current sensing

Sheet Stability Calculations (hidden)
A2: Divider Network & EA Poles/Zeros | E2: Modulator | J2: Power Stage Poles/Zeros | M2: Complex Pole Pair | P2: Feedback natural frequencies | T2: Total System
B3: Afb1 | C3: =Afb -> 0.1081081081 | D3: V/V | E3: Acs | F3: =Acs -> 28.57142857 | G3: A/V | H3: gm | I3: =gm -> 0.0012 | J3: z_ESR | K3: =Fesr -> 53051.64776 | L3: Hz | M3: p3 | N3: =Fsw/2 -> 50000 | O3: Hz | P3: zterm1 | Q3: =((1/wffHz)+(1/wfftHz)) -> 2.767114806e-07 | T3: Adc | U3: =IF(VOUT_setting=1,Am*Afb*AEA,Am*AEA) -> 110530.0338 | V3: V/V
B4: EA zero, z1 | C4: =Fz1_u -> 4822.877069 | D4: Hz | E4: Am | F4: =Am -> 13.31253662 | G4: V/V | J4: p_dom | K4: =Fp_dominant -> 2277.193908 | L4: Hz | M4: pterm1 | N4: =Q*pole3 -> 91937.33709 | P4: pterm3 | Q4: =((1/wfbtHz)+(1/wffHz)+(1/wfftHz)+(Afbr/wffHz)) -> 2.040157537e-06 | T4: Crossover | U4: =AI7 -> 15.136 | V4: kHz
B5: EA pole, p1 | C5: =Fp1_u -> 0.248666777 | D5: Hz | E5: Q | F5: =Q -> 1.838746742 | M5: pterm2 | N5: =pole3^2 -> 2500000000 | P5: pterm4 | Q5: =1/(wffHz*wfbtHz) -> 6.37497486e-14 | T5: Phase Margin | U5: =AI9 -> 85.78183093 | V5: °
B6: Aea | C6: =AEA -> 76800 | D6: V/V | E6: mc | F6: =mc -> 1.227963526 | P6: Afbr | Q6: =Rfb1_/Rfb2_u -> 8.26446281 | T6: radconv | U6: =180/Pi -> 57.29577958 | AH6: XOVER SEARCH
B7: EA pole, p2 | C7: =Fp2_u -> 1152943.601 | D7: Hz | E7: k | F7: =k -> 0.6731124136 | AH7: xover | AI7: =SUM(AH12:AH613)/1000 -> 15.136
AH9: phase margin | AI9: =SUM(AI13:AI613) -> 85.78183093
A10: Freq (Hz) | C10: Power Stage | I10: Error Amplifier | O10: Feedback Gain | S10: Sampling Double Pole | U10: System Response | AB10: ERROR AMP Response | AE10: PLANT Response
C11: p_dom | E11: z_ESR | G11: z_RHP | I11: p1 | K11: z1 | M11: p2 | O11: z1 | Q11: p1p2 | S11: p3
C12: Gain(V/V) | D12: Phase(rad) | E12: Gain(V/V) | F12: Phase(rad) | G12: Gain(V/V) | H12: Phase(rad) | I12: Gain(V/V) | J12: Phase(rad) | K12: Gain(V/V) | L12: Phase(rad) | M12: Gain(V/V) | N12: Phase(rad) | O12: Gain(V/V) | P12: Phase(rad) | Q12: Gain(V/V) | R12: Phase(rad) | S12: Gain(V/V) | T12: Phase(rad) | U12: Gain (dB) | V12: Phase (°) | W12: Phase Margin (°) | Z12: Fsquare | AB12: Gain(dB) | AC12: Phase(Deg) | AE12: Gain(dB) | AF12: Phase(Deg)
A13: 1 | B13: =A13/1000 -> 0.001 | C13: =SQRT(1+(A13/pole1)^2) -> 1.000000096 | D13: =ATAN(A13/pole1) -> 0.0004391369273 | E13: =SQRT(1+(A13/Zero1)^2) -> 1 | F13: =ATAN(A13/Zero1) -> 1.88495559e-05 | G13: =IF(VIN_nom>Vout, 1, SQRT(1+(A13/z_RHP)^2)) -> 1 | H13: =IF(VIN_nom>Vout, 0, -ATAN(A13/z_RHP)) -> 0 | I13: =SQRT(1+(A13/Pole2)^2) -> 4.143914505 | J13: =ATAN(A13/Pole2) -> 1.327072855 | K13: =SQRT(1+(A13/Zero2)^2) -> 1.000000021 | L13: =ATAN(A13/Zero2) -> 0.0002073451119 | M13: =SQRT(1+(A13/pole4)^2) -> 1 | N13: =ATAN(A13/pole4) -> 8.673451149e-07 | O13: =IF(VOUT_setting=1,1,SQRT(1+(A13*zterm1)^2)) -> 1 | P13: =IF(VOUT_setting=1,0,ATAN(((A13*zterm1)))) -> 0 | Q13: =IF(VOUT_setting=1,1,SQRT((1+Afbr-pterm4*(A13)^2)^2+(A13*$Q$4)^2)) -> 1 | R13: =IF(VOUT_setting=1,0,ATAN(A13*$Q$4/(1+Afbr-$Q$5*(A13)^2))) -> 0 | S13: =SQRT((1-(Z13/pterm2))^2+(A13/pterm1)^2) -> 0.9999999997 | T13: =IF((ATAN((A13/pterm1)/(1-A13^2/pterm2))>0),ATAN((A13/pterm1)/(1-A13^2/pterm2)),PI()+ATAN((A13/pterm1)/(1-A13^2/pterm2))) -> 1.087697373e-05 | U13: =20*LOG10(((E13*K13*G13*O13)/(C13*I13*S13*M13*Q13))*Adc) -> 88.52138967 | V13: =((F13+L13+H13+P13)-(D13+J13+T13+N13+R13))*radconv -> -76.04854737 | W13: =IF(V13>0,V13,V13+180) -> 103.9514526 | Y13: =IF(U13<0,A13,1000000000) -> 1000000000 | Z13: =A13^2 -> 1 | AB13: =20*LOG10((K13/(I13*M13))*AEA) -> 85.35900885 | AC13: =(L13-(J13+N13))*radconv -> -76.02384347 | AE13: =20*LOG10((E13*G13/(C13*S13))*Acs*Am) -> 51.60385459 | AF13: =(F13+H13-(D13+T13))*radconv -> -0.02470389728 | AH13: =SUM((U14<0)*(U13>0))*A13 -> 0 | AI13: =IF(AH13>0,W11,0) -> 0
A14: 1.0965 | B14: =A14/1000 -> 0.0010965 | C14: 1.000000116 | D14: 0.0004815136346 | E14: 1 | F14: 2.066853804e-05 | G14: 1 | H14: 0 | I14: 4.521485008 | J14: 1.347786128 | K14: 1.000000026 | L14: 0.0002273539146 | M14: 1 | N14: 9.510439185e-07 | O14: 1 | P14: 0 | Q14: =IF(VOUT_setting=1,1,SQRT((1+Afbr-pterm4*(A14)^2)^2+(A14*$Q$4)^2)) -> 1 | R14: 0 | S14: 0.9999999996 | T14: 1.19266017e-05 | U14: 87.76398337 | V14: -77.23657278 | W14: 102.7634272 | Y14: 1000000000 | Z14: 1.20231225 | AB14: 84.60160272 | AC14: -77.20948495 | AE14: 51.60385442 | AF14: -0.02708782301 | AH14: 0 | AI14: 0
A15: 1.2023 | B15: 0.0012023 | C15: 1.000000139 | D15: 0.0005279743126 | E15: 1 | F15: 2.266282105e-05 | G15: 1 | H15: 0 | I15: 4.937314516 | J15: 1.366846102 | K15: 1.000000031 | L15: 0.0002492910265 | M15: 1 | N15: 1.042809032e-06 | O15: 1 | P15: 0 | Q15: =IF(VOUT_setting=1,1,SQRT((1+Afbr-$Q$5*(A15)^2)^2+(A15*$Q$4)^2)) -> 1 | R15: 0 | S15: 0.9999999995 | T15: 1.307738552e-05 | U15: 86.99978925 | V15: -78.32999088 | W15: 101.6700091 | Y15: 1000000000 | Z15: 1.44552529 | AB15: 83.8374088 | AC15: -78.30028939 | AE15: 51.60385422 | AF15: -0.02970149484 | AH15: 0 | AI15: 0
A16: 1.3183 | B16: 0.0013183 | C16: 1.000000168 | D16: 0.0005789141838 | E16: 1 | F16: 2.484936954e-05 | G16: 1 | H16: 0 | I16: 5.394961285 | J16: 1.384360019 | K16: 1.000000037 | L16: 0.0002733430582 | M16: 1 | N16: 1.143421065e-06 | O16: 1 | P16: 0 | Q16: 1 | R16: 0 | S16: 0.9999999994 | T16: 1.433911447e-05 | U16: 86.22983828 | V16: -79.33495778 | W16: 100.6650422 | Y16: 1000000000 | Z16: 1.73791489 | AB16: 83.06745808 | AC16: -79.30239063 | AE16: 51.60385397 | AF16: -0.03256714621 | AH16: 0 | AI16: 0
A17: 1.4454 | B17: 0.0014454 | C17: 1.000000201 | D17: 0.0006347284703 | E17: 1 | F17: 2.724514809e-05 | G17: 1 | H17: 0 | I17: 5.897990761 | J17: 1.400424032 | K17: 1.000000045 | L17: 0.0002996966201 | M17: 1 | N17: 1.253660629e-06 | O17: 1 | P17: 0 | Q17: 1 | R17: 0 | S17: 0.9999999993 | T17: 1.572157784e-05 | U17: 85.45552295 | V17: -80.25699415 | W17: 99.74300585 | Y17: 1000000000 | Z17: 2.08918116 | AB17: 82.29314303 | AC17: -80.22128714 | AE17: 51.60385368 | AF17: -0.03570701059 | AH17: 0 | AI17: 0
A18: 1.5849 | B18: 0.0015849 | C18: 1.000000242 | D18: 0.0006959880485 | E18: 1 | F18: 2.987466114e-05 | G18: 1 | H18: 0 | I18: 6.451561457 | J18: 1.415167622 | K18: 1.000000054 | L18: 0.0003286212608 | M18: 1 | N18: 1.374655273e-06 | O18: 1 | P18: 0 | Q18: 1 | R18: 0 | S18: 0.9999999991 | T18: 1.723891567e-05 | U18: 84.67630766 | V18: -81.10353551 | W18: 98.89646449 | Y18: 1000000000 | Z18: 2.51190801 | AB18: 81.5139281 | AC18: -81.06438231 | AE18: 51.60385333 | AF18: -0.03915320293 | AH18: 0 | AI18: 0
A19: 1.7378 | B19: 0.0017378 | C19: 1.000000291 | D19: 0.0007631320532 | E19: 1.000000001 | F19: 3.275675823e-05 | G19: 1 | H19: 0 | I19: 7.059652645 | J19: 1.428668274 | K19: 1.000000065 | L19: 0.0003603243251 | M19: 1 | N19: 1.507272341e-06 | O19: 1 | P19: 0 | Q19: 1 | R19: 0 | S19: 0.999999999 | T19: 1.890200496e-05 | U19: 83.89393744 | V19: -81.87903426 | W19: 98.12096574 | Y19: 1000000000 | Z19: 3.01994884 | AB19: 80.7315583 | AC19: -81.83610383 | AE19: 51.60385291 | AF19: -0.04293042702 | AH19: 0 | AI19: 0
A20: 1.9055 | B20: 0.0019055 | C20: 1.00000035 | D20: 0.0008367752735 | E20: 1.000000001 | F20: 3.591782875e-05 | G20: 1 | H20: 0 | I20: 7.727839516 | J20: 1.441030166 | K20: 1.000000078 | L20: 0.0003950960959 | M20: 1 | N20: 1.652726116e-06 | O20: 1 | P20: 0 | Q20: 1 | R20: 0 | S20: 0.9999999988 | T20: 2.072607346e-05 | U20: 83.10844182 | V20: -82.58947737 | W20: 97.41052263 | Y20: 1000000000 | Z20: 3.63093025 | AB20: 79.94606319 | AC20: -82.5424041 | AE20: 51.6038524 | AF20: -0.04707326817 | AH20: 0 | AI20: 0
A21: 2.0893 | B21: 0.0020893 | C21: 1.000000421 | D21: 0.0009174885838 | E21: 1.000000001 | F21: 3.938237712e-05 | G21: 1 | H21: 0 | I21: 8.46130732 | J21: 1.452334407 | K21: 1.000000094 | L21: 0.0004332061215 | M21: 1 | N21: 1.812144149e-06 | O21: 1 | P21: 0 | Q21: 1 | R21: 0 | S21: 0.9999999985 | T21: 2.272526124e-05 | U21: 82.32085385 | V21: -83.23952887 | W21: 96.76047113 | Y21: 1000000000 | Z21: 4.36517449 | AB21: 79.15847583 | AC21: -83.18791503 | AE21: 51.60385179 | AF21: -0.05161384122 | AH21: 0 | AI21: 0
A22: 2.2909 | B22: 0.0022909 | C22: 1.000000506 | D22: 0.001006018512 | E22: 1.000000001 | F22: 4.318244758e-05 | G22: 1 | H22: 0 | I22: 9.266844297 | J22: 1.462674184 | K22: 1.000000113 | L22: 0.000475006888 | M22: 1 | N22: 1.987000924e-06 | O22: 1 | P22: 0 | Q22: 1 | R22: 0 | S22: 0.9999999982 | T22: 2.491805916e-05 | U22: 81.53096534 | V22: -83.83454975 | W22: 96.16545025 | Y22: 1000000000 | Z22: 5.24822281 | AB22: 78.36858806 | AC22: -83.77795561 | AE22: 51.60385105 | AF22: -0.05659414255 | AH22: 0 | AI22: 0
A23: 2.5119 | B23: 0.0025119 | C23: 1.000000608 | D23: 0.001103067671 | E23: 1.000000001 | F23: 4.734819943e-05 | G23: 1 | H23: 0 | I23: 10.15084712 | J23: 1.472122335 | K23: 1.000000136 | L23: 0.000520830147 | M23: 1 | N23: 2.178684194e-06 | O23: 1 | P23: 0 | Q23: 1 | R23: 0 | S23: 0.9999999978 | T23: 2.732187037e-05 | U23: 80.73955624 | V23: -84.37873398 | W23: 95.62126602 | Y23: 1000000000 | Z23: 6.30964161 | AB23: 77.57717984 | AC23: -84.31668028 | AE23: 51.60385017 | AF23: -0.06205369802 | AH23: 0 | AI23: 0
A24: 2.7542 | B24: 0.0027542 | C24: 1.000000731 | D24: 0.001209470413 | E24: 1.000000001 | F24: 5.191544681e-05 | G24: 1 | H24: 0 | I24: 11.12091797 | J24: 1.48075407 | K24: 1.000000163 | L24: 0.0005710698534 | M24: 1 | N24: 2.388841915e-06 | O24: 1 | P24: 0 | Q24: 1 | R24: 0 | S24: 0.9999999974 | T24: 2.995736112e-05 | U24: 79.9467884 | V24: -84.87641525 | W24: 95.12358475 | Y24: 1000000000 | Z24: 7.58561764 | AB24: 76.78441307 | AC24: -84.80837581 | AE24: 51.6038491 | AF24: -0.06803944457 | AH24: 0 | AI24: 0
A25: 3.02 | B25: 0.00302 | C25: 1.000000879 | D25: 0.001326192828 | E25: 1.000000002 | F25: 5.692565876e-05 | G25: 1 | H25: 0 | I25: 12.18586718 | J25: 1.488641666 | K25: 1.000000196 | L25: 0.0006261821652 | M25: 1 | N25: 2.619382247e-06 | O25: 1 | P25: 0 | Q25: 1 | R25: 0 | S25: 0.9999999969 | T25: 3.284846076e-05 | U25: 79.15247136 | V25: -85.33176298 | W25: 94.66823702 | Y25: 1000000000 | Z25: 9.1204 | AB25: 75.9900973 | AC25: -85.25715725 | AE25: 51.60384782 | AF25: -0.07460573014 | AH25: 0 | AI25: 0
A26: 3.3113 | B26: 0.0033113 | C26: 1.000001057 | D26: 0.001454113176 | E26: 1.000000002 | F26: 6.241653437e-05 | G26: 1 | H26: 0 | I26: 13.35370935 | J26: 1.495840599 | K26: 1.000000236 | L26: 0.0006865817711 | M26: 1 | N26: 2.872039879e-06 | O26: 1 | P26: 0 | Q26: 1 | R26: 0 | S26: 0.9999999963 | T26: 3.601692324e-05 | U26: 78.35756058 | V26: -85.74798151 | W26: 94.25201849 | Y26: 1000000000 | Z26: 10.96470769 | AB26: 75.19518806 | AC26: -85.66617954 | AE26: 51.60384629 | AF26: -0.08180196172 | AH26: 0 | AI26: 0
A27: 3.6308 | B27: 0.0036308 | C27: 1.000001271 | D27: 0.001594417107 | E27: 1.000000002 | F27: 6.843896745e-05 | G27: 1 | H27: 0 | I27: 14.63526992 | J27: 1.50241496 | K27: 1.000000283 | L27: 0.000752828501 | M27: 1 | N27: 3.149156643e-06 | O27: 1 | P27: 0 | Q27: 1 | R27: 0 | S27: 0.9999999955 | T27: 3.949211639e-05 | U27: 77.5615828 | V27: -86.12877776 | W27: 93.87122224 | Y27: 1000000000 | Z27: 13.18270864 | AB27: 74.39921213 | AC27: -86.03908292 | AE27: 51.60384444 | AF27: -0.08969483873 | AH27: 0 | AI27: 0
A28: 3.9811 | B28: 0.0039811 | C28: 1.000001528 | D28: 0.001748246353 | E28: 1.000000003 | F28: 7.504196685e-05 | G28: 1 | H28: 0 | I28: 16.04097893 | J28: 1.508415542 | K28: 1.000000341 | L28: 0.0008254614494 | M28: 1 | N28: 3.452987637e-06 | O28: 1 | P28: 0 | Q28: 1 | R28: 0 | S28: 0.9999999946 | T28: 4.330232035e-05 | U28: 76.76497844 | V28: -86.47709538 | W28: 93.52290462 | Y28: 1000000000 | Z28: 15.84915721 | AB28: 73.60260999 | AC28: -86.37874679 | AE28: 51.60384222 | AF28: -0.09834858988 | AH28: 0 | AI28: 0
A29: 4.3652 | B29: 0.0043652 | C29: 1.000001837 | D29: 0.00191691829 | E29: 1.000000003 | F29: 8.228208123e-05 | G29: 1 | H29: 0 | I29: 17.5828756 | J29: 1.513892103 | K29: 1.00000041 | L29: 0.0009051026484 | M29: 1 | N29: 3.786134896e-06 | O29: 1 | P29: 0 | Q29: 1 | R29: 0 | S29: 0.9999999935 | T29: 4.748016604e-05 | U29: 75.96779567 | V29: -86.79582394 | W29: 93.20417606 | Y29: 1000000000 | Z29: 19.05497104 | AB29: 72.80542989 | AC29: -86.68798661 | AE29: 51.60383955 | AF29: -0.107837325 | AH29: 0 | AI29: 0
A30: 4.7863 | B30: 0.0047863 | C30: 1.000002209 | D30: 0.002101838115 | E30: 1.000000004 | F30: 9.021962916e-05 | G30: 1 | H30: 0 | I30: 19.27380611 | J30: 1.518889132 | K30: 1.000000492 | L30: 0.0009924155976 | M30: 1 | N30: 4.151373923e-06 | O30: 1 | P30: 0 | Q30: 1 | R30: 0 | S30: 0.9999999922 | T30: 5.206045978e-05 | U30: 75.17024153 | V30: -87.08755366 | W30: 92.91244634 | Y30: 1000000000 | Z30: 22.90866769 | AB30: 72.00787896 | AC30: -86.96931357 | AE30: 51.60383634 | AF30: -0.118240094 | AH30: 0 | AI30: 0
A31: 5.2481 | B31: 0.0052481 | C31: 1.000002656 | D31: 0.002304630576 | E31: 1.000000005 | F31: 9.8924354e-05 | G31: 1 | H31: 0 | I31: 21.12862826 | J31: 1.52344949 | K31: 1.000000592 | L31: 0.001088167468 | M31: 1 | N31: 4.551913897e-06 | O31: 1 | P31: 0 | Q31: 1 | R31: 0 | S31: 0.9999999906 | T31: 5.708344638e-05 | U31: 74.37216221 | V31: -87.35478787 | W31: 92.64521213 | Y31: 1000000000 | Z31: 27.54255361 | AB31: 71.2098035 | AC31: -87.22513957 | AE31: 51.60383248 | AF31: -0.1296482981 | AH31: 0 | AI31: 0
A32: 5.7544 | B32: 0.0057544 | C32: 1.000003193 | D32: 0.002526964318 | E32: 1.000000006 | F32: 0.000108467884 | G32: 1 | H32: 0 | I32: 23.16260509 | J32: 1.527609867 | K32: 1.000000712 | L32: 0.001193146163 | M32: 1 | N32: 4.991050729e-06 | O32: 1 | P32: 0 | Q32: 1 | R32: 0 | S32: 0.9999999887 | T32: 6.259045836e-05 | U32: 73.5738366 | V32: -87.59967776 | W32: 92.40032224 | Y32: 1000000000 | Z32: 33.11311936 | AB32: 70.41148253 | AC32: -87.45752195 | AE32: 51.60382784 | AF32: -0.1421558077 | AH32: 0 | AI32: 0
A33: 6.3096 | B33: 0.0063096 | C33: 1.000003839 | D33: 0.002770771444 | E33: 1.000000007 | F33: 0.0001189331573 | G33: 1 | H33: 0 | I33: 25.39341307 | J33: 1.53140585 | K33: 1.000000856 | L33: 0.001308263991 | M33: 1 | N33: 5.472600737e-06 | O33: 1 | P33: 0 | Q33: 1 | R33: 0 | S33: 0.9999999864 | T33: 6.862935441e-05 | U33: 72.77515878 | V33: -87.82431889 | W33: 92.17568111 | Y33: 1000000000 | Z33: 39.81105216 | AB33: 69.61281029 | AC33: -87.66844758 | AE33: 51.60382226 | AF33: -0.1558713143 | AH33: 0 | AI33: 0
A34: 6.9183 | B34: 0.0069183 | C34: 1.000004615 | D34: 0.003038071853 | E34: 1.000000009 | F34: 0.0001304068818 | G34: 1 | H34: 0 | I34: 27.83953529 | J34: 1.534868458 | K34: 1.000001029 | L34: 0.001434474724 | M34: 1 | N34: 6.000553708e-06 | O34: 1 | P34: 0 | Q34: 1 | R34: 0 | S34: 0.9999999837 | T34: 7.525016863e-05 | U34: 71.97633549 | V34: -88.03054777 | W34: 91.96945223 | Y34: 1000000000 | Z34: 47.86287489 | AB34: 68.8139937 | AC34: -87.85963932 | AE34: 51.60381555 | AF34: -0.1709084483 | AH34: 0 | AI34: 0
A35: 7.5858 | B35: 0.0075858 | C35: 1.000005548 | D35: 0.003331192796 | E35: 1.00000001 | F35: 0.0001429889602 | G35: 1 | H35: 0 | I35: 30.52227047 | J35: 1.5380275 | K35: 1.000001237 | L35: 0.001572877276 | M35: 1 | N35: 6.579506573e-06 | O35: 1 | P35: 0 | Q35: 1 | R35: 0 | S35: 0.9999999804 | T35: 8.2510549e-05 | U35: 71.17723213 | V35: -88.22014052 | W35: 91.77985948 | Y35: 1000000000 | Z35: 57.54436164 | AB35: 68.01489842 | AC35: -88.03274239 | AE35: 51.60380749 | AF35: -0.1873981304 | AH35: 0 | AI35: 0
A36: 8.3176 | B36: 0.0083176 | C36: 1.000006671 | D36: 0.003652549298 | E36: 1.000000012 | F36: 0.0001567830649 | G36: 1 | H36: 0 | I36: 33.46372362 | J36: 1.540908771 | K36: 1.000001487 | L36: 0.001724612018 | M36: 1 | N36: 7.214229728e-06 | O36: 1 | P36: 0 | Q36: 1 | R36: 0 | S36: 0.9999999764 | T36: 9.047031892e-05 | U36: 70.37807605 | V36: -88.39464589 | W36: 91.60535411 | Y36: 1000000000 | Z36: 69.18246976 | AB36: 67.21575202 | AC36: -88.18916967 | AE36: 51.60379779 | AF36: -0.205476219 | AH36: 0 | AI36: 0
A37: 9.1201 | B37: 0.0091201 | C37: 1.00000802 | D37: 0.004004951536 | E37: 1.000000015 | F37: 0.0001719098331 | G37: 1 | H37: 0 | I37: 36.68961946 | J37: 1.543537285 | K37: 1.000001788 | L37: 0.001891005928 | M37: 1 | N37: 7.910274182e-06 | O37: 1 | P37: 0 | Q37: 1 | R37: 0 | S37: 0.9999999716 | T37: 9.919909106e-05 | U37: 69.57868815 | V37: -88.55557945 | W37: 91.44442055 | Y37: 1000000000 | Z37: 83.17622401 | AB37: 66.41637578 | AC37: -88.33027865 | AE37: 51.60378614 | AF37: -0.2253008018 | AH37: 0 | AI37: 0
A38: 10 | B38: 0.01 | C38: 1.000009642 | D38: 0.004391341328 | E38: 1.000000018 | F38: 0.0001884955568 | G38: 1 | H38: 0 | I38: 40.22689079 | J38: 1.545934773 | K38: 1.00000215 | L38: 0.002073448178 | M38: 1 | N38: 8.673451149e-06 | O38: 1 | P38: 0 | Q38: 1 | R38: 0 | S38: 0.9999999659 | T38: 0.0001087697412 | U38: 68.7792121 | V38: -88.70427247 | W38: 91.29572753 | Y38: 1000000000 | Z38: 100 | AB38: 65.61691374 | AC38: -88.4572351 | AE38: 51.60377212 | AF38: -0.247037372 | AH38: 0 | AI38: 0
A39: 10.965 | B39: 0.010965 | C39: 1.000011593 | D39: 0.004815099504 | E39: 1.000000021 | F39: 0.0002066853775 | G39: 1 | H39: 0 | I39: 44.10649236 | J39: 1.548121985 | K39: 1.000002584 | L39: 0.002273535268 | M39: 1 | N39: 9.510439185e-06 | O39: 1 | P39: 0 | Q39: 1 | R39: 0 | S39: 0.999999959 | T39: 0.0001192660221 | U39: 67.97947793 | V39: -88.84201305 | W39: 91.15798695 | Y39: 1000000000 | Z39: 120.231225 | AB39: 64.81719643 | AC39: -88.57113693 | AE39: 51.60375527 | AF39: -0.2708761197 | AH39: 0 | AI39: 0
A40: 12.023 | B40: 0.012023 | C40: 1.000013938 | D40: 0.005279694559 | E40: 1.000000026 | F40: 0.0002266282067 | G40: 1 | H40: 0 | I40: 48.36018469 | J40: 1.550116685 | K40: 1.000003107 | L40: 0.002492905152 | M40: 1 | N40: 1.042809032e-05 | O40: 1 | P40: 0 | Q40: 1 | R40: 0 | S40: 0.9999999507 | T40: 0.0001307738619 | U40: 67.17975362 | V40: -88.96992063 | W40: 91.03007937 | Y40: 1000000000 | Z40: 144.552529 | AB40: 64.01749237 | AC40: -88.67290847 | AE40: 51.60373501 | AF40: -0.2970121663 | AH40: 0 | AI40: 0
A41: 13.183 | B41: 0.013183 | C41: 1.000016757 | D41: 0.005789077814 | E41: 1.000000031 | F41: 0.0002484936903 | G41: 1 | H41: 0 | I41: 53.02415229 | J41: 1.551935878 | K41: 1.000003736 | L41: 0.002733423842 | M41: 1 | N41: 1.143421065e-05 | O41: 1 | P41: 0 | Q41: 1 | R41: 0 | S41: 0.9999999408 | T41: 0.0001433911536 | U41: 66.38001906 | V41: -89.08908528 | W41: 90.91091472 | Y41: 1000000000 | Z41: 173.791489 | AB41: 63.21778217 | AC41: -88.76341749 | AE41: 51.60371066 | AF41: -0.3256677946 | AH41: 0 | AI41: 0
A42: 14.454 | B42: 0.014454 | C42: 1.000020144 | D42: 0.006347200318 | E42: 1.000000037 | F42: 0.0002724514742 | G42: 1 | H42: 0 | I42: 58.13458094 | J42: 1.553594013 | K42: 1.000004491 | L42: 0.002996957318 | M42: 1 | N42: 1.253660629e-05 | O42: 1 | P42: 0 | Q42: 1 | R42: 0 | S42: 0.9999999288 | T42: 0.0001572157901 | U42: 65.58078011 | V42: -89.20045067 | W42: 90.79954933 | Y42: 1000000000 | Z42: 208.918116 | AB42: 62.41857248 | AC42: -88.84338539 | AE42: 51.6036814 | AF42: -0.357065272 | AH42: 0 | AI42: 0
A43: 15.849 | B43: 0.015849 | C43: 1.00002422 | D43: 0.006959769233 | E43: 1.000000045 | F43: 0.0002987466026 | G43: 1 | H43: 0 | I43: 63.74374105 | J43: 1.555107869 | K43: 1.0000054 | L43: 0.003286200897 | M43: 1 | N43: 1.374655273e-05 | O43: 1 | P43: 0 | Q43: 1 | R43: 0 | S43: 0.9999999144 | T43: 0.0001723891722 | U43: 64.78069276 | V43: -89.30514549 | W43: 90.69485451 | Y43: 1000000000 | Z43: 251.190801 | AB43: 61.61852034 | AC43: -88.91361983 | AE43: 51.60364619 | AF43: -0.3915256564 | AH43: 0 | AI43: 0
A44: 17.378 | B44: 0.017378 | C44: 1.000029118 | D44: 0.007631173877 | E44: 1.000000054 | F44: 0.0003275675707 | G44: 1 | H44: 0 | I44: 69.89184177 | J44: 1.556488017 | K44: 1.000006492 | L44: 0.003603227813 | M44: 1 | N44: 1.507272341e-05 | O44: 1 | P44: 0 | Q44: 1 | R44: 0 | S44: 0.9999998971 | T44: 0.00018902007 | U44: 63.98088118 | V44: -89.40390407 | W44: 90.59609593 | Y44: 1000000000 | Z44: 301.994884 | AB44: 60.81875108 | AC44: -88.9746082 | AE44: 51.60360387 | AF44: -0.4292958693 | AH44: 0 | AI44: 0
A45: 19.055 | B45: 0.019055 | C45: 1.000035009 | D45: 0.008367559395 | E45: 1.000000065 | F45: 0.0003591782722 | G45: 1 | H45: 0 | I45: 76.63517703 | J45: 1.557747119 | K45: 1.000007805 | L45: 0.003950940606 | M45: 1 | N45: 1.652726116e-05 | O45: 1 | P45: 0 | Q45: 1 | R45: 0 | S45: 0.9999998762 | T45: 0.0002072607615 | U45: 63.1808081 | V45: -89.49763187 | W45: 90.50236813 | Y45: 1000000000 | Z45: 363.093025 | AB45: 60.01872889 | AC45: -89.02691027 | AE45: 51.60355298 | AF45: -0.4707216065 | AH45: 0 | AI45: =IF(AH45>0,W43,0) -> 0
A46: 20.893 | B46: 0.020893 | C46: 1.000042088 | D46: 0.009174630982 | E46: 1.000000078 | F46: 0.0003938237511 | G46: 1 | H46: 0 | I46: 84.02602071 | J46: 1.558894971 | K46: 1.000009383 | L46: 0.004332034386 | M46: 1 | N46: 1.812144148e-05 | O46: 1 | P46: 0 | Q46: 1 | R46: 0 | S46: 0.9999998512 | T46: 0.0002272526478 | U46: 62.38104802 | V46: -89.58705743 | W46: 90.41294257 | Y46: 1000000000 | Z46: 436.517449 | AB46: 59.21902997 | AC46: -89.07093361 | AE46: 51.60349182 | AF46: -0.5161238133 | AH46: 0 | AI46: 0
A47: 22.909 | B47: 0.022909 | C47: 1.000050602 | D47: 0.01005984915 | E47: 1.000000093 | F47: 0.0004318244493 | G47: 1 | H47: 0 | I47: 92.13273209 | J47: 1.559942208 | K47: 1.000011282 | L47: 0.004750033512 | M47: 1 | N47: 1.987000923e-05 | O47: 1 | P47: 0 | Q47: 1 | R47: 0 | S47: 0.9999998211 | T47: 0.0002491806382 | U47: 61.58098789 | V47: -89.67300867 | W47: 90.32699133 | Y47: 1000000000 | Z47: 524.822281 | AB47: 58.41904339 | AC47: -89.10708649 | AE47: 51.60341827 | AF47: -0.5659221798 | AH47: 0 | AI47: 0
A48: 25.119 | B48: 0.025119 | C48: 1.000060836 | D48: 0.01103023383 | E48: 1.000000112 | F48: 0.0004734819593 | G48: 1 | H48: 0 | I48: 101.0196501 | J48: 1.560897101 | K48: 1.000013563 | L48: 0.005208254848 | M48: 1 | N48: 2.178684194e-05 | O48: 1 | P48: 0 | Q48: 1 | R48: 0 | S48: 0.9999997849 | T48: 0.0002732187652 | U48: 60.7810811 | V48: -89.75616512 | W48: 90.24383488 | Y48: 1000000000 | Z48: 630.964161 | AB48: 57.619225 | AC48: -89.13565351 | AE48: 51.60332986 | AF48: -0.6205116104 | AH48: 0 | AI48: 0
A49: 27.542 | B49: 0.027542 | C49: 1.000073138 | D49: 0.01209412034 | E49: 1.000000135 | F49: 0.000519154422 | G49: 1 | H49: 0 | I49: 110.7631782 | J49: 1.561767933 | K49: 1.000016306 | L49: 0.005710637077 | M49: 1 | N49: 2.388841915e-05 | O49: 1 | P49: 0 | Q49: 1 | R49: 0 | S49: 0.9999997414 | T49: 0.0002995736923 | U49: 59.98120767 | V49: -89.83724555 | W49: 90.16275445 | Y49: 1000000000 | Z49: 758.561764 | AB49: 56.81945785 | AC49: -89.15688455 | AE49: 51.60322359 | AF49: -0.6803610039 | AH49: 0 | AI49: 0
A50: 30.2 | B50: 0.0302 | C50: 1.000087936 | D50: 0.01326115864 | E50: 1.000000162 | F50: 0.0005692565267 | G50: 1 | H50: 0 | I50: 121.4517842 | J50: 1.562562514 | K50: 1.000019605 | L50: 0.006261740629 | M50: 1 | N50: 2.619382246e-05 | O50: 1 | P50: 0 | Q50: 1 | R50: 0 | S50: 0.9999996891 | T50: 0.0003284847146 | U50: 59.18093869 | V50: -89.91698006 | W50: 90.08301994 | Y50: 1000000000 | Z50: 912.04 | AB50: 56.0193167 | AC50: -89.17096684 | AE50: 51.60309576 | AF50: -0.7460132138 | AH50: 0 | AI50: 0
A51: 33.113 | B51: 0.033113 | C51: 1.000105717 | D51: 0.01454011726 | E51: 1.000000195 | F51: 0.0006241652635 | G51: 1 | H51: 0 | I51: 133.1658941 | J51: 1.563286826 | K51: 1.000023569 | L51: 0.006865710909 | M51: 1 | N51: 2.872039878e-05 | O51: 1 | P51: 0 | Q51: 1 | R51: 0 | S51: 0.9999996263 | T51: 0.0003601693734 | U51: 58.38103733 | V51: -89.9959682 | W51: 90.0040318 | Y51: 1000000000 | Z51: 1096.470769 | AB51: 55.21956893 | AC51: -89.17800669 | AE51: 51.60294216 | AF51: -0.817961503 | AH51: 0 | AI51: 0
A52: 36.308 | B52: 0.036308 | C52: 1.0001271 | D52: 0.01594283369 | E52: 1.000000234 | F52: 0.0006843895688 | G52: 1 | H52: 0 | I52: 146.0140835 | J52: 1.563947619 | K52: 1.000028337 | L52: 0.007528144215 | M52: 1 | N52: 3.149156642e-05 | O52: 1 | P52: 0 | Q52: 1 | R52: 0 | S52: 0.9999995507 | T52: 0.0003949213498 | U52: 57.58085927 | V52: -90.07494326 | W52: 89.92505674 | Y52: 1000000000 | Z52: 1318.270864 | AB52: 54.41957559 | AC52: -89.17807148 | AE52: 51.60275745 | AF52: -0.8968717779 | AH52: 0 | AI52: 0
A53: 39.811 | B53: 0.039811 | C53: 1.000152807 | D53: 0.01748070057 | E53: 1.000000282 | F53: 0.0007504195291 | G53: 1 | H53: 0 | I53: 160.1009073 | J53: 1.564550225 | K53: 1.000034069 | L53: 0.008254428891 | M53: 1.000000001 | N53: 3.452987636e-05 | O53: 1 | P53: 0 | Q53: 1 | R53: 0 | S53: 0.9999994598 | T53: 0.0004330234485 | U53: 56.78070608 | V53: -90.15454424 | W53: 89.84545576 | Y53: 1000000000 | Z53: 1584.915721 | AB53: 53.61964445 | AC53: -89.17115933 | AE53: 51.6025354 | AF53: -0.9833849106 | AH53: 0 | AI53: 0
A54: 43.652 | B54: 0.043652 | C54: 1.000183712 | D54: 0.01916685894 | E54: 1.000000339 | F54: 0.0008228206285 | G54: 1 | H54: 0 | I54: 175.5470063 | J54: 1.565099816 | K54: 1.00004096 | L54: 0.009050781811 | M54: 1.000000001 | N54: 3.786134894e-05 | O54: 1 | P54: 0 | Q54: 1 | R54: 0 | S54: 0.9999993505 | T54: 0.0004748019833 | U54: 55.98050628 | V54: -90.2354519 | W54: 89.7645481 | Y54: 1000000000 | Z54: 1905.497104 | AB54: 52.81971161 | AC54: -89.15721177 | AE54: 51.60226844 | AF54: -1.078240125 | AH54: 0 | AI54: 0
A55: 47.863 | B55: 0.047863 | C55: 1.000220862 | D55: 0.0210153178 | E55: 1.000000407 | F55: 0.0009021960493 | G55: 1 | H55: 0 | I55: 192.4810646 | J55: 1.565600987 | K55: 1.000049243 | L55: 0.009923833447 | M55: 1.000000001 | N55: 4.151373921e-05 | O55: 1 | P55: 0 | Q55: 1 | R55: 0 | S55: 0.9999992192 | T55: 0.0005206050235 | U55: 55.18036566 | V55: -90.31833932 | W55: 89.68166068 | Y55: 1000000000 | Z55: 2290.866769 | AB55: 52.01989186 | AC55: -89.13611386 | AE55: 51.60194756 | AF55: -1.182225461 | AH55: 0 | AI55: 0
A56: 52.481 | B56: 0.052481 | C56: 1.000265532 | D56: 0.02304226763 | E56: 1.000000489 | F56: 0.0009892432205 | G56: 1 | H56: 0 | I56: 211.0518733 | J56: 1.566058137 | K56: 1.000059204 | L56: 0.0108812495 | M56: 1.000000001 | N56: 4.551913894e-05 | O56: 1 | P56: 0 | Q56: 1 | R56: 0 | S56: 0.9999990612 | T56: 0.000570835025 | U56: 54.38004237 | V56: -90.40393189 | W56: 89.59606811 | Y56: 1000000000 | Z56: 2754.255361 | AB56: 51.21995439 | AC56: -89.10768023 | AE56: 51.60156175 | AF56: -1.296251663 | AH56: 0 | AI56: 0
A57: 57.544 | B57: 0.057544 | C57: 1.000319228 | D57: 0.02526432031 | E57: 1.000000588 | F57: 0.001084678419 | G57: 1 | H57: 0 | I57: 231.4122457 | J57: 1.566475021 | K57: 1.000071177 | L57: 0.01193090115 | M57: 1.000000001 | N57: 4.991050725e-05 | O57: 1 | P57: 0 | Q57: 1 | R57: 0 | S57: 0.9999988714 | T57: 0.0006259053234 | U57: 53.5797401 | V57: -90.49293005 | W57: 89.50706995 | Y57: 1000000000 | Z57: 3311.311936 | AB57: 50.42011587 | AC57: -89.07167689 | AE57: 51.601098 | AF57: -1.421253166 | AH57: 0 | AI57: 0
A58: 63.096 | B58: 0.063096 | C58: 1.000383787 | D58: 0.02770069799 | E58: 1.000000707 | F58: 0.001189331018 | G58: 1 | H58: 0 | I58: 253.7391234 | J58: 1.566855261 | K58: 1.000085574 | L58: 0.01308190106 | M58: 1.000000001 | N58: 5.472600732e-05 | O58: 1 | P58: 0 | Q58: 1 | R58: 0 | S58: 0.9999986431 | T58: 0.0006862945194 | U58: 52.77928563 | V58: -90.58610273 | W58: 89.41389727 | Y58: 1000000000 | Z58: 3981.105216 | AB58: 49.62021894 | AC58: -89.02779151 | AE58: 51.60054046 | AF58: -1.558311218 | AH58: 0 | AI58: 0
A59: 69.183 | B59: 0.069183 | C59: 1.00046139 | D59: 0.03037147007 | E59: 1.00000085 | F59: 0.001304068087 | G59: 1 | H59: 0 | I59: 278.2174914 | J59: 1.567202009 | K59: 1.000102881 | L59: 0.01434377329 | M59: 1.000000002 | N59: 6.000553701e-05 | O59: 1 | P59: 0 | Q59: 1 | R59: 0 | S59: 0.9999983686 | T59: 0.0007525029719 | U59: 51.97882589 | V59: -90.68421594 | W59: 89.31578406 | Y59: 1000000000 | Z59: 4786.287489 | AB59: 48.82042934 | AC59: -88.97566124 | AE59: 51.59987031 | AF59: -1.708554701 | AH59: 0 | AI59: 0
A60: 75.858 | B60: 0.075858 | C60: 1.000554693 | D60: 0.03329973733 | E60: 1.000001022 | F60: 0.001429888637 | G60: 1 | H60: 0 | I60: 305.0604849 | J60: 1.567518282 | K60: 1.00012369 | L60: 0.01572748885 | M60: 1.000000002 | N60: 6.579506563e-05 | O60: 1 | P60: 0 | Q60: 1 | R60: 0 | S60: 0.9999980386 | T60: 0.0008251071849 | U60: 51.17817045 | V60: -90.78811603 | W60: 89.21188397 | Y60: 1000000000 | Z60: 5754.436164 | AB60: 48.02057954 | AC60: -88.91483304 | AE60: 51.59906467 | AF60: -1.873282985 | AH60: 0 | AI60: 0
A61: 83.176 | B61: 0.083176 | C61: 1.000666839 | D61: 0.03650942516 | E61: 1.000001229 | F61: 0.001567829377 | G61: 1 | H61: 0 | I61: 334.4892821 | J61: 1.56780669 | K61: 1.000148704 | L61: 0.01724442775 | M61: 1.000000003 | N61: 7.214229715e-05 | O61: 1 | P61: 0 | Q61: 1 | R61: 0 | S61: 0.9999976419 | T61: 0.0009047054234 | U61: 50.37749442 | V61: -90.89864882 | W61: 89.10135118 | Y61: 1000000000 | Z61: 6918.246976 | AB61: 47.22087178 | AC61: -88.84480705 | AE61: 51.59809642 | AF61: -2.053841773 | AH61: 0 | AI61: 0
A62: 91.201 | B62: 0.091201 | C62: 1.000801669 | D62: 0.04002833707 | E62: 1.000001478 | F62: 0.001719096654 | G62: 1 | H62: 0 | I62: 366.7612542 | J62: 1.568069754 | K62: 1.00017878 | L62: 0.01890782828 | M62: 1.000000003 | N62: 7.910274166e-05 | O62: 1 | P62: 0 | Q62: 1 | R62: 0 | S62: 0.999997165 | T62: 0.0009919938558 | U62: 49.5765668 | V62: -91.01676734 | W62: 88.98323266 | Y62: 1000000000 | Z62: 8317.622401 | AB62: 46.42110811 | AC62: -88.76497248 | AE62: 51.59693246 | AF62: -2.251794856 | AH62: 0 | AI62: 0
A63: 100 | B63: 0.1 | C63: 1.000963742 | D63: 0.04388550026 | E63: 1.000001777 | F63: 0.001884953358 | G63: 1 | H63: 0 | I63: 402.145837 | J63: 1.568309664 | K63: 1.000214937 | L63: 0.02073154086 | M63: 1.000000004 | N63: 8.673451127e-05 | O63: 1 | P63: 0 | Q63: 1 | R63: 0 | S63: 0.9999965915 | T63: 0.001087701294 | U63: 48.7754793 | V63: -91.14343933 | W63: 88.85656067 | Y63: 1000000000 | Z63: 10000 | AB63: 45.62141954 | AC63: -88.67466455 | AE63: 51.59553353 | AF63: -2.468774771 | AH63: 0 | AI63: 0
A64: 109.65 | B64: 0.10965 | C64: 1.001158606 | D64: 0.04811420501 | E64: 1.000002136 | F64: 0.002066850861 | G64: 1 | H64: 0 | I64: 440.9526809 | J64: 1.568528508 | K64: 1.000258416 | L64: 0.02273147577 | M64: 1.000000005 | N64: 9.510439156e-05 | O64: 1 | P64: 0 | Q64: 1 | R64: 0 | S64: 0.999995902 | T64: 0.001192665339 | U64: 47.974007 | V64: -91.27974885 | W64: 88.72025115 | Y64: 1000000000 | Z64: 12023.1225 | AB64: 44.82162889 | AC64: -88.5730951 | AE64: 51.59385187 | AF64: -2.706653744 | AH64: 0 | AI64: 0
A65: 120.23 | B65: 0.12023 | C65: 1.001392815 | D65: 0.05274845922 | E65: 1.000002568 | F65: 0.002266278226 | G65: 1 | H65: 0 | I65: 483.4994791 | J65: 1.568728071 | K65: 1.000310682 | L65: 0.02492394094 | M65: 1.000000005 | N65: 0.0001042809028 | O65: 1 | P65: 0 | Q65: 1 | R65: 0 | S65: 0.999995073 | T65: 0.001307745367 | U65: 47.17235961 | V65: -91.4267802 | W65: 88.5732198 | Y65: 1000000000 | Z65: 14455.2529 | AB65: 44.02200227 | AC65: -88.45943599 | AE65: 51.5918311 | AF65: -2.967344205 | AH65: 0 | AI65: 0
A66: 131.83 | B66: 0.13183 | C66: 1.001674307 | D66: 0.05782688182 | E66: 1.000003087 | F66: 0.00248493184 | G66: 1 | H66: 0 | I66: 530.148161 | J66: 1.568910061 | K66: 1.000373512 | L66: 0.02732750181 | M66: 1.000000007 | N66: 0.000114342106 | O66: 1 | P66: 0 | Q66: 1 | R66: 0 | S66: 0.9999940764 | T66: 0.001433920432 | U66: 46.37045208 | V66: -91.58574356 | W66: 88.41425644 | Y66: 1000000000 | Z66: 17379.1489 | AB66: 43.22252284 | AC66: -88.33272581 | AE66: 51.58940301 | AF66: -3.253017756 | AH66: 0 | AI66: 0
A67: 144.54 | B67: 0.14454 | C67: 1.002012377 | D67: 0.06338782113 | E67: 1.000003711 | F67: 0.002724508068 | G67: 1 | H67: 0 | I67: 581.260656 | J67: 1.569075927 | K67: 1.00044899 | L67: 0.02996069502 | M67: 1.000000008 | N67: 0.0001253660623 | O67: 1 | P67: 0 | Q67: 1 | R67: 0 | S67: 0.9999928791 | T67: 0.001572169625 | U67: 45.5687188 | V67: -91.75782054 | W67: 88.24217946 | Y67: 1000000000 | Z67: 20891.8116 | AB67: 42.42370478 | AC67: -88.19199005 | AE67: 51.58648779 | AF67: -3.565830498 | AH67: 0 | AI67: 0
A68: 158.49 | B68: 0.15849 | C68: 1.002419072 | D68: 0.0694867628 | E68: 1.000004462 | F68: 0.002987457227 | G68: 1 | H68: 0 | I68: 637.3597511 | J68: 1.569227354 | K68: 1.000539814 | L68: 0.03285030544 | M68: 1.000000009 | N68: 0.0001374655264 | O68: 1 | P68: 0 | Q68: 1 | R68: 0 | S68: 0.9999914383 | T68: 0.001723907179 | U68: 44.76572749 | V68: -91.94469905 | W68: 88.05530095 | Y68: 1000000000 | Z68: 25119.0801 | AB68: 41.62421913 | AC68: -88.03579689 | AE68: 51.58298213 | AF68: -3.90890216 | AH68: 0 | AI68: 0
A69: 173.78 | B69: 0.17378 | C69: 1.002907627 | D69: 0.07616559368 | E69: 1.000005365 | F69: 0.003275664108 | G69: 1 | H69: 0 | I69: 698.8475904 | J69: 1.569365399 | K69: 1.000648958 | L69: 0.03601685213 | M69: 1.000000011 | N69: 0.0001507272329 | O69: 1 | P69: 0 | Q69: 1 | R69: 0 | S69: 0.9999897067 | T69: 0.001890221076 | U69: 43.96250879 | V69: -92.14762343 | W69: 87.85237657 | Y69: 1000000000 | Z69: 30199.4884 | AB69: 40.82520981 | AC69: -87.8630364 | AE69: 51.57877275 | AF69: -4.284587028 | AH69: 0 | AI69: 0
A70: 190.55 | B70: 0.19055 | C70: 1.003494859 | D70: 0.0834830618 | E70: 1.00000645 | F70: 0.003591767431 | G70: 1 | H70: 0 | I70: 766.2871758 | J70: 1.569491333 | K70: 1.0007802 | L70: 0.03948907259 | M70: 1.000000014 | N70: 0.0001652726101 | O70: 1 | P70: 0 | Q70: 1 | R70: 0 | S70: 0.9999876242 | T70: 0.002072634478 | U70: 43.15840936 | V70: -92.36832887 | W70: 87.63167113 | Y70: 1000000000 | Z70: 36309.3025 | AB70: 40.02616722 | AC70: -87.67214167 | AE70: 51.57371591 | AF70: -4.696187201 | AH70: 0 | AI70: 0
A71: 208.93 | B71: 0.20893 | C71: 1.004200108 | D71: 0.09149273361 | E71: 1.000007755 | F71: 0.003938217354 | G71: 1 | H71: 0 | I71: 840.2012947 | J71: 1.569606136 | K71: 1.000937898 | L71: 0.04329354575 | M71: 1.000000016 | N71: 0.0001812144129 | O71: 1 | P71: 0 | Q71: 1 | R71: 0 | S71: 0.9999851215 | T71: 0.002272561889 | U71: 42.35387296 | V71: -92.608365 | W71: 87.391635 | Y71: 1000000000 | Z71: 43651.7449 | AB71: 39.22769999 | AC71: -87.46165253 | AE71: 51.56764673 | AF71: -5.14671247 | AH71: 0 | AI71: 0
A72: 229.09 | B72: 0.22909 | C72: 1.00504763 | D72: 0.1002645428 | E72: 1.000009324 | F72: 0.00431821792 | G72: 1 | H72: 0 | I72: 921.2735925 | J72: 1.569710873 | K72: 1.001127522 | L72: 0.04746501514 | M72: 1.00000002 | N72: 0.0001987000898 | O72: 1 | P72: 0 | Q72: 1 | R72: 0 | S72: 0.9999821117 | T72: 0.002491853065 | U72: 41.54812493 | V72: -92.86973994 | W72: 87.13026006 | Y72: 1000000000 | Z72: 52482.2281 | AB72: 38.42923979 | AC72: -87.2296478 | AE72: 51.5603589 | AF72: -5.640092146 | AH72: 0 | AI72: 0
A73: 251.19 | B73: 0.25119 | C73: 1.006065402 | D73: 0.1098626605 | E73: 1.000011209 | F73: 0.004734784564 | G73: 1 | H73: 0 | I73: 1010.1475 | J73: 1.569806372 | K73: 1.001355402 | L73: 0.05203600174 | M73: 1.000000024 | N73: 0.000217868416 | O73: 1 | P73: 0 | Q73: 1 | R73: 0 | S73: 0.9999784939 | T73: 0.00273224919 | U73: 40.74143476 | V73: -93.15424949 | W73: 86.84575051 | Y73: 1000000000 | Z73: 63096.4161 | AB73: 37.63129323 | AC73: -86.97431954 | AE73: 51.5516153 | AF73: -6.179929953 | AH73: 0 | AI73: 0
A74: 275.42 | B74: 0.27542 | C74: 1.007287546 | D74: 0.1203624768 | E74: 1.000013476 | F74: 0.005191498046 | G74: 1 | H74: 0 | I74: 1107.587091 | J74: 1.569893463 | K74: 1.001629277 | L74: 0.05704503347 | M74: 1.000000029 | N74: 0.000238884187 | O74: 1 | P74: 0 | Q74: 1 | R74: 0 | S74: 0.9999741449 | T74: 0.002995818042 | U74: 39.93346064 | V74: -93.46397596 | W74: 86.53602404 | Y74: 1000000000 | Z74: 75856.1764 | AB74: 36.83380665 | AC74: -86.69351722 | AE74: 51.54112776 | AF74: -6.770458743 | AH74: 0 | AI74: 0
A75: 302 | B75: 0.302 | C75: 1.008755617 | D75: 0.1318499652 | E75: 1.000016203 | F75: 0.005692504393 | G75: 1 | H75: 0 | I75: 1214.477085 | J75: 1.569972927 | K75: 1.001958603 | L75: 0.06253657381 | M75: 1.000000034 | N75: 0.0002619382187 | O75: 1 | P75: 0 | Q75: 1 | R75: 0 | S75: 0.9999689137 | T75: 0.00328495409 | U75: 39.12350626 | V75: -93.80125305 | W75: 86.19874695 | Y75: 1000000000 | Z75: 91204 | AB75: 36.03643318 | AC75: -86.38474898 | AE75: 51.52854685 | AF75: -7.416504071 | AH75: 0 | AI75: 0
A76: 331.13 | B76: 0.33113 | C76: 1.010516938 | D76: 0.1443993463 | E76: 1.000019479 | F76: 0.006241572392 | G76: 1 | H76: 0 | I76: 1331.621769 | J76: 1.570045363 | K76: 1.002354202 | L76: 0.06855060833 | M76: 1.000000041 | N76: 0.00028720398 | O76: 1 | P76: 0 | Q76: 1 | R76: 0 | S76: 0.9999626275 | T76: 0.003601834707 | U76: 38.31203415 | V76: -94.16799535 | W76: 85.83200465 | Y76: 1000000000 | Z76: 109647.0769 | AB76: 35.24003063 | AC76: -86.04576806 | AE76: 51.51347729 | AF76: -8.122227286 | AH76: 0 | AI76: 0
A77: 363.08 | B77: 0.36308 | C77: =SQRT(1+(A77/pole1)^2) -> 1.012631079 | D77: =ATAN(A77/pole1) -> 0.1581109928 | E77: =SQRT(1+(A77/Zero1)^2) -> 1.000023419 | F77: =ATAN(A77/Zero1) -> 0.006843789906 | G77: =IF(VIN_nom>Vout, 1, SQRT(1+(A77/z_RHP)^2)) -> 1 | H77: =IF(VIN_nom>Vout, 0, -ATAN(A77/z_RHP)) -> 0 | I77: =SQRT(1+(A77/Pole2)^2) -> 1460.106933 | J77: =ATAN(A77/Pole2) -> 1.570111445 | K77: =SQRT(1+(A77/Zero2)^2) -> 1.002829751 | L77: =ATAN(A77/Zero2) -> 0.07514112388 | M77: =SQRT(1+(A77/pole4)^2) -> 1.00000005 | N77: =ATAN(A77/pole4) -> 0.0003149156539 | O77: =IF(VOUT_setting=1,1,SQRT(1+(A77*zterm1)^2)) -> 1 | P77: =IF(VOUT_setting=1,0,ATAN(((A77*zterm1)))) -> 0 | Q77: 1 | R77: =IF(VOUT_setting=1,0,ATAN(A77*$Q$4/(1+Afbr-$Q$5*(A77)^2))) -> 0 | S77: =SQRT((1-(Z77/pterm2))^2+(A77/pterm1)^2) -> 0.9999550677 | T77: =IF((ATAN((A77/pterm1)/(1-A77^2/pterm2))>0),ATAN((A77/pterm1)/(1-A77^2/pterm2)),PI()+ATAN((A77/pterm1)/(1-A77^2/pterm2))) -> 0.003949399343 | U77: =20*LOG10(((E77*K77*G77*O77)/(C77*I77*S77*M77*Q77))*Adc) -> 37.49802521 | V77: =((F77+L77+H77+P77)-(D77+J77+T77+N77+R77))*radconv -> -94.56678958 | W77: =IF(V77>0,V77,V77+180) -> 85.43321042 | Y77: =IF(U77<0,A77,1000000000) -> 1000000000 | Z77: =A77^2 -> 131827.0864 | AB77: =20*LOG10((K77/(I77*M77))*AEA) -> 34.4440749 | AC77: =(L77-(J77+N77))*radconv -> -85.67353336 | AE77: =20*LOG10((E77*G77/(C77*S77))*Acs*Am) -> 51.49542407 | AF77: =(F77+H77-(D77+T77))*radconv -> -8.893256226 | AH77: =SUM((U78<0)*(U77>0))*A77 -> 0 | AI77: =IF(AH77>0,W75,0) -> 0
A78: 398.11 | B78: =A78/1000 -> 0.39811 | C78: 1.015166841 | D78: 0.1730756804 | E78: 1.000028156 | F78: 0.007504055843 | G78: 1 | H78: 0 | I78: 1600.978154 | J78: 1.570171709 | K78: 1.003401151 | L78: 0.08235944023 | M78: 1.00000006 | N78: 0.00034529875 | O78: 1 | P78: 0 | Q78: 1 | R78: 0 | S78: 0.9999459794 | T78: 0.00433047948 | U78: 36.68135462 | V78: -94.99982145 | W78: 85.00017855 | Y78: 1000000000 | Z78: 158491.5721 | AB78: 33.64900766 | AC78: -85.26514794 | AE78: 51.47382073 | AF78: -9.734673505 | AH78: 0 | AI78: 0
A79: 436.52 | B79: 0.43652 | C79: 1.018207173 | D79: 0.1893945471 | E79: 1.000033851 | F79: 0.008228022456 | G79: 1 | H79: 0 | I79: 1755.441865 | J79: 1.57022667 | K79: 1.004087702 | L79: 0.09026434051 | M79: 1.000000072 | N79: 0.0003786134715 | O79: 1 | P79: 0 | Q79: =IF(VOUT_setting=1,1,SQRT((1+Afbr-$Q$5*(A79)^2)^2+(A79*$Q$4)^2)) -> 1 | R79: 0 | S79: 0.9999350527 | T79: 0.004748342805 | U79: 35.86144448 | V79: -95.46942561 | W79: 84.53057439 | Y79: 1000000000 | Z79: 190549.7104 | AB79: 32.8549277 | AC79: -84.81728835 | AE79: 51.44799054 | AF79: -10.65213727 | AH79: 0 | AI79: 0
A80: 478.63 | B80: 0.47863 | C80: 1.021849972 | D80: 0.2071685319 | E80: 1.000040697 | F80: 0.009021718169 | G80: 1 | H80: 0 | I80: 1924.784929 | J80: 1.570276788 | K80: 1.004912381 | L80: 0.09891769757 | M80: 1.000000086 | N80: 0.0004151373685 | O80: 1 | P80: 0 | Q80: 1 | R80: 0 | S80: 0.9999219179 | T80: 0.005206475987 | U80: 35.03781403 | V80: -95.97773702 | W80: 84.02226298 | Y80: 1000000000 | Z80: 229086.6769 | AB80: 32.0621434 | AC80: -84.32645176 | AE80: 51.4171444 | AF80: -11.65128527 | AH80: 0 | AI80: 0
A81: 524.81 | B81: 0.52481 | C81: 1.02621314 | D81: 0.2265085235 | E81: 1.000048929 | F81: 0.009892112759 | G81: 1 | H81: 0 | I81: 2110.495279 | J81: 1.570322504 | K81: 1.005903123 | L81: 0.1083903124 | M81: 1.000000104 | N81: 0.0004551913583 | O81: 1 | P81: 0 | Q81: 1 | R81: 0 | S81: 0.999906124 | T81: 0.005708911518 | U81: 34.20952958 | V81: -96.52692783 | W81: 83.47307217 | Y81: 1000000000 | Z81: 275425.5361 | AB81: 31.27065893 | AC81: -83.78862517 | AE81: 51.38034441 | AF81: -12.73830266 | AH81: 0 | AI81: 0
A82: 575.44 | B82: 0.57544 | C82: 1.031433836 | D82: 0.2475153724 | E82: 1.000058825 | F82: 0.01084636309 | G82: 1 | H82: 0 | I82: 2314.101066 | J82: 1.570364194 | K82: 1.007092841 | L82: 0.1187532729 | M82: 1.000000125 | N82: 0.0004991050315 | O82: 1 | P82: 0 | Q82: 1 | R82: 0 | S82: 0.9998871378 | T82: 0.006259793132 | U82: 33.37601251 | V82: -97.11857107 | W82: 82.88142893 | Y82: 1000000000 | Z82: 331131.1936 | AB82: 30.48096705 | AC82: -83.19977596 | AE82: 51.33651923 | AF82: -13.91879512 | AH82: 0 | AI82: 0
A83: 630.96 | B83: 0.63096 | C83: 1.037676316 | D83: 0.2702969467 | E83: 1.000070723 | F83: 0.01189275506 | G83: 1 | H83: 0 | I83: 2537.371726 | J83: 1.570402218 | K83: 1.008521475 | L83: 0.1300876564 | M83: 1.00000015 | N83: 0.0005472600191 | O83: 1 | P83: 0 | Q83: 1 | R83: 0 | S83: 0.9998643092 | T83: 0.006863920603 | U83: 32.5361807 | V83: -97.75404463 | W83: 82.24595537 | Y83: 1000000000 | Z83: 398110.5216 | AB83: 29.69324419 | AC83: -82.55530134 | AE83: 51.28441028 | AF83: -15.19874329 | AH83: 0 | AI83: 0
A84: 691.83 | B84: 0.69183 | C84: 1.045131271 | D84: 0.2949468104 | E84: 1.000085026 | F84: 0.0130399491 | G84: 1 | H84: 0 | I84: 2782.157122 | J84: 1.570436893 | K84: 1.010236213 | L84: 0.1424756261 | M84: 1.00000018 | N84: 0.0006000552988 | O84: 1 | P84: 0 | Q84: 1 | R84: 0 | S84: 0.9998368665 | T84: 0.007526315571 | U84: 31.6891688 | V84: -98.43383416 | W84: 81.56616584 | Y84: 1000000000 | Z84: 478628.7489 | AB84: 28.90804842 | AC84: -81.85053466 | AE84: 51.22259415 | AF84: -16.58329951 | AH84: 0 | AI84: 0
A85: 758.58 | B85: 0.75858 | C85: 1.054025273 | D85: 0.3215590027 | E85: 1.000102224 | F85: 0.01429792172 | G85: 1 | H85: 0 | I85: 3050.588623 | J85: 1.570468521 | K85: 1.012294162 | L85: 0.156009704 | M85: 1.000000216 | N85: 0.0006579505623 | O85: 1 | P85: 0 | Q85: 1 | R85: 0 | S85: 0.9998038698 | T85: 0.008252767008 | U85: 30.833637 | V85: -99.15783029 | W85: 80.84216971 | Y85: 1000000000 | Z85: 575443.6164 | AB85: 28.12568424 | AC85: -81.0802184 | AE85: 51.14942653 | AF85: -18.07761189 | AH85: 0 | AI85: 0
A86: 831.76 | B86: 0.83176 | C86: 1.064618406 | D86: 0.3502012296 | E86: 1.000122897 | F86: 0.01567702218 | G86: 1 | H86: 0 | I86: 3344.878022 | J86: 1.570497362 | K86: 1.014762497 | L86: 0.1707814172 | M86: 1.00000026 | N86: 0.0007214228476 | O86: 1 | P86: 0 | Q86: 1 | R86: 0 | S86: 0.999764205 | T86: 0.009049288921 | U86: 29.96852259 | V86: -99.92446206 | W86: 80.07553794 | Y86: 1000000000 | Z86: 691824.6976 | AB86: 27.34690461 | AC86: -80.23915074 | AE86: 51.06309175 | AF86: -19.68531131 | AH86: 0 | AI86: 0
A87: 912.01 | B87: 0.91201 | C87: 1.077217751 | D87: 0.380935006 | E87: 1.000147754 | F87: 0.01718929029 | G87: 1 | H87: 0 | I87: 3667.599045 | J87: 1.570523669 | K87: 1.017722516 | L87: 0.1868939513 | M87: 1.000000313 | N87: 0.0007910272533 | O87: 1 | P87: 0 | Q87: 1 | R87: 0 | S87: 0.9997165126 | T87: 0.009922884615 | U87: 29.09222992 | V87: -100.7310996 | W87: 79.2689004 | Y87: 1000000000 | Z87: 831762.2401 | AB87: 26.57217232 | AC87: -79.32146584 | AE87: 50.96153136 | AF87: -21.40963376 | AH87: 0 | AI87: 0
A88: 1000 | B88: 1 | C88: 1.092172727 | D88: 0.4137835846 | E88: 1.000177637 | F88: 0.01884732392 | G88: 1 | H88: 0 | I88: 4021.446061 | J88: 1.57054766 | K88: 1.021269796 | L88: 0.2044480914 | M88: 1.000000376 | N88: 0.0008673448974 | O88: 1 | P88: 0 | Q88: 1 | R88: 0 | S88: 0.9996591762 | T88: 0.01088089683 | U88: 28.2034447 | V88: -101.5730454 | W88: 78.42695463 | Y88: 1000000000 | Z88: 1000000 | AB88: 25.80238593 | AC88: -78.32143497 | AE88: 50.84253253 | AF88: -23.2516104 | AH88: 0 | AI88: 0
A89: 1096.5 | B89: 1.0965 | C89: 1.109889822 | D89: 0.4487494759 | E89: 1.000213571 | F89: 0.02066559568 | G89: 1 | H89: 0 | I89: 4409.515583 | J89: 1.570569545 | K89: 1.025519285 | L89: 0.2235538032 | M89: 1.000000452 | N89: 0.0009510436318 | O89: 1 | P89: 0 | Q89: 1 | R89: 0 | S89: 0.9995902287 | T89: 0.01193177399 | U89: 27.30047857 | V89: -102.4438477 | W89: 77.55615228 | Y89: 1000000000 | Z89: 1202312.25 | AB89: 25.03827947 | AC89: -77.23280779 | AE89: 50.70367287 | AF89: -25.21103993 | AH89: 0 | AI89: 0
A90: 1202.3 | B90: 1.2023 | C90: 1.13082135 | D90: 0.4857758362 | E90: 1.000256769 | F90: 0.02265894235 | G90: 1 | H90: 0 | I90: 4834.984554 | J90: 1.570589501 | K90: 1.030604686 | L90: 0.2443112876 | M90: 1.000000544 | N90: 0.001042808654 | O90: 1 | P90: 0 | Q90: 1 | R90: 0 | S90: 0.9995073447 | T90: 0.01308420465 | U90: 26.38217196 | V90: -103.3342059 | W90: 76.66579412 | Y90: 1000000000 | Z90: 1445525.29 | AB90: 24.28116011 | AC90: -76.04989271 | AE90: 50.54248561 | AF90: -27.28431318 | AH90: 0 | AI90: =IF(AH90>0,W90,0) -> 0
A91: 1318.3 | B91: 1.3183 | C91: 1.155483322 | D91: 0.5247709657 | E91: 1.000308698 | F91: 0.02484425668 | G91: 1 | H91: 0 | I91: 5301.472273 | J91: 1.5706077 | K91: 1.03668531 | L91: 0.26682512 | M91: 1.000000654 | N91: 0.001143420567 | O91: 1 | P91: 0 | Q91: 1 | R91: 0 | S91: 0.9994077054 | T91: 0.01434810478 | U91: 25.44716278 | V91: -104.2325289 | W91: 75.76747113 | Y91: 1000000000 | Z91: 1737914.89 | AB91: 23.53222772 | AC91: -74.76675249 | AE91: 50.35640883 | AF91: -29.46577637 | AH91: 0 | AI91: 0
A92: 1445.4 | B92: 1.4454 | C92: 1.184432497 | D92: 0.5655645627 | E92: 1.00037108 | F92: 0.02723840976 | G92: 1 | H92: 0 | I92: 5812.598044 | J92: 1.570624287 | K92: 1.043943518 | L92: 0.2911784493 | M92: 1.000000786 | N92: 0.001253659972 | O92: 1 | P92: 0 | Q92: 1 | R92: 0 | S92: 0.9992880072 | T92: 0.01573342855 | U92: 24.49493621 | V92: -105.1239518 | W92: 74.87604824 | Y92: 1000000000 | Z92: 2089181.16 | AB92: 22.79335179 | AC92: -73.37867611 | AE92: 50.14305819 | AF92: -31.74527566 | AH92: 0 | AI92: 0
A93: 1584.9 | B93: 1.5849 | C93: 1.218359356 | D93: 0.6080283771 | E93: 1.000446148 | F93: 0.02986577824 | G93: 1 | H93: 0 | I93: 6373.589744 | J93: 1.570639429 | K93: 1.052611961 | L93: 0.3175037218 | M93: 1.000000945 | N93: 0.001374654407 | O93: 1 | P93: 0 | Q93: 1 | R93: 0 | S93: 0.9991439653 | T93: 0.01725454157 | U93: 23.52308664 | V93: -105.9930384 | W93: 74.00696159 | Y93: 1000000000 | Z93: 2511908.01 | AB93: 22.0649001 | AC93: -71.87814918 | AE93: 49.89966031 | AF93: -34.11488924 | AH93: 0 | AI93: 0
A94: 1737.8 | B94: 1.7378 | C94: 1.257923192 | D94: 0.6518528772 | E94: 1.000536359 | F94: 0.03274504972 | G94: 1 | H94: 0 | I94: 6988.468821 | J94: 1.570653234 | K94: 1.062936325 | L94: 0.3458426797 | M94: 1.000001136 | N94: 0.001507271199 | O94: 1 | P94: 0 | Q94: 1 | R94: 0 | S94: 0.9989708634 | T94: 0.01892260696 | U94: 22.53261912 | V94: -106.819287 | W94: 73.18071304 | Y94: 1000000000 | Z94: 3019948.84 | AB94: 21.34971887 | AC94: -70.26283582 | AE94: 49.62437401 | AF94: -36.55645114 | AH94: 0 | AI94: 0
A95: 1905.5 | B95: 1.9055 | C95: 1.303914562 | D95: 0.6967662645 | E95: 1.000644837 | F95: 0.03590239496 | G95: 1 | H95: 0 | I95: 7662.865298 | J95: 1.570665827 | K95: 1.075221345 | L95: 0.3762717558 | M95: 1.000001366 | N95: 0.001652724612 | O95: 1 | P95: 0 | Q95: 1 | R95: 0 | S95: 0.9987627022 | T95: 0.02075323922 | U95: 21.52309807 | V95: -107.5822172 | W95: 72.41778278 | Y95: 1000000000 | Z95: 3630930.25 | AB95: 20.64934626 | AC95: -68.52843359 | AE95: 49.31522558 | AF95: -39.05378362 | AH95: 0 | AI95: 0
A96: 2089.3 | B96: 2.0893 | C96: 1.357124082 | D96: 0.7423938516 | E96: 1.000775185 | F96: 0.03936203575 | G96: 1 | H96: 0 | I96: 8402.007056 | J96: 1.570677308 | K96: 1.089801618 | L96: 0.4088007461 | M96: 1.000001642 | N96: 0.001812142165 | O96: 1 | P96: 0 | Q96: 1 | R96: 0 | S96: 0.9985125671 | T96: 0.0227610791 | U96: 20.49614864 | V96: -108.2593212 | W96: 71.7406788 | Y96: 1000000000 | Z96: 4365174.49 | AB96: 19.96649827 | AC96: -66.67445147 | AE96: 48.97112414 | AF96: -41.58486973 | AH96: 0 | AI96: 0
A97: 2290.9 | B97: 2.2909 | C97: 1.418475918 | D97: 0.7883985507 | E97: 1.000931928 | F97: 0.04315563649 | G97: 1 | H97: 0 | I97: 9212.730552 | J97: 1.570687781 | K97: 1.107082462 | L97: 0.4434539855 | M97: 1.000001974 | N97: 0.001986998309 | O97: 1 | P97: 0 | Q97: 1 | R97: 0 | S97: 0.9982117703 | T97: 0.0249652914 | U97: 19.45261872 | V97: -108.8292653 | W97: 71.17073471 | Y97: 1000000000 | Z97: 5248222.81 | AB97: 19.30303928 | AC97: -64.69958571 | AE97: 48.5910532 | AF97: -44.12967958 | AH97: 0 | AI97: 0
A98: 2511.9 | B98: 2.5119 | C98: 1.488878529 | D98: 0.8343674379 | E98: 1.001120298 | F98: 0.04731286443 | G98: 1 | H98: 0 | I98: 10101.4701 | J98: 1.570697331 | K98: 1.127503477 | L98: 0.4801725602 | M98: 1.000002373 | N98: 0.002178680747 | O98: 1 | P98: 0 | Q98: 1 | R98: 0 | S98: 0.9978502599 | T98: 0.02738415416 | U98: 18.39548409 | V98: -109.2711979 | W98: 70.72880206 | Y98: 1000000000 | Z98: 6309641.61 | AB98: 18.66186993 | AC98: -62.60729612 | AE98: 48.17508793 | AF98: -46.66390182 | AH98: 0 | AI98: 0
A99: 2754.2 | B99: 2.7542 | C99: 1.569337474 | D99: 0.879921594 | E99: 1.0013467 | F99: 0.05186888107 | G99: 1 | H99: 0 | I99: 11075.86645 | J99: 1.57070604 | K99: 1.151573206 | L99: 0.5188757011 | M99: 1.000002853 | N99: 0.002388837371 | O99: 1 | P99: 0 | Q99: 1 | R99: 0 | S99: 0.9974157388 | T99: 0.03003949686 | U99: 17.32769627 | V99: -109.5673717 | W99: 70.43262831 | Y99: 1000000000 | Z99: 7585617.64 | AB99: 18.04547644 | AC99: -60.40230958 | AE99: 47.72369359 | AF99: -49.16506211 | AH99: 0 | AI99: 0
A100: 3020 | B100: 3.02 | C100: 1.660960409 | D100: 0.9247160829 | E100: 1.001618955 | F100: 0.05686428832 | G100: 1 | H100: 0 | I100: 12144.76677 | J100: 1.570713987 | K100: 1.179874657 | L100: 0.5594490188 | M100: 1.000003431 | N100: 0.002619376256 | O100: 1 | P100: 0 | Q100: 1 | R100: 0 | S100: 0.9968931791 | T100: 0.03295679868 | U100: 16.25240272 | V100: -109.7038245 | W100: 70.29617549 | Y100: 1000000000 | Z100: 9120400 | AB100: 17.45612848 | AC100: -58.09129391 | AE100: 47.23774801 | AF100: -51.6125306 | AH100: 0 | AI100: 0
A101: 3311.3 | B101: 3.3113 | C101: 1.764779904 | D101: 0.9683705398 | E101: 1.001946018 | F101: 0.06233566878 | G101: 1 | H101: 0 | I101: 13316.21397 | J101: 1.57072123 | K101: 1.213010584 | L101: 0.6016636333 | M101: 1.000004124 | N101: 0.002872031982 | O101: 1 | P101: 0 | Q101: 1 | R101: 0 | S101: 0.9962653706 | T101: 0.0361598167 | U101: 15.17482152 | V101: -109.6712449 | W101: 70.32875506 | Y101: 1000000000 | Z101: 10964707.69 | AB101: 16.89686508 | AC101: -55.68746579 | AE101: 46.71943021 | AF101: -53.98377915 | AH101: 0 | AI101: 0
A102: 3630.8 | B102: 3.6308 | C102: 1.882065413 | D102: 1.010625221 | E102: 1.00233921 | F102: 0.06833241327 | G102: 1 | H102: 0 | I102: 14601.06594 | J102: 1.570727839 | K102: 1.251699231 | L102: 0.6453089838 | M102: 1.000004959 | N102: 0.003149146233 | O102: 1 | P102: 0 | Q102: 1 | R102: 0 | S102: 0.9955105553 | T102: 0.03968062582 | U102: 14.09855418 | V102: -109.4659609 | W102: 70.53403909 | Y102: 1000000000 | Z102: 13182708.64 | AB102: 16.3694898 | AC102: -53.20302751 | AE102: 46.17053816 | AF102: -56.2629334 | AH102: 0 | AI102: 0
A103: 3981.1 | B103: 3.9811 | C103: 2.014043579 | D103: 1.051218658 | E103: 1.002811696 | F103: 0.07490157983 | G103: 1 | H103: 0 | I103: 16009.77845 | J103: 1.570733865 | K103: 1.296683043 | L103: 0.6900746642 | M103: 1.000005962 | N103: 0.003452973914 | O103: 1 | P103: 0 | Q103: 1 | R103: 0 | S103: 0.9946034167 | T103: 0.04355103847 | U103: 13.02853607 | V103: -109.0900351 | W103: 70.90996489 | Y103: 1000000000 | Z103: 15849157.21 | AB103: 15.87614281 | AC103: -50.65589628 | AE103: 45.59386703 | AF103: -58.43413883 | AH103: 0 | AI103: 0
A104: 4365.2 | B104: 4.3652 | C104: 2.162078799 | D104: 1.089963383 | E104: 1.00337946 | F104: 0.08209713953 | G104: 1 | H104: 0 | I104: 17554.41583 | J104: 1.570739361 | K104: 1.348781395 | L104: 0.7356272383 | M104: 1.000007167 | N104: 0.003786116805 | O104: 1 | P104: 0 | Q104: 1 | R104: 0 | S104: 0.9935132027 | T104: 0.04780838091 | U104: 11.96904841 | V104: -108.5510292 | W104: 71.44897081 | Y104: 1000000000 | Z104: 19054971.04 | AB104: 15.41826584 | AC104: -48.06532862 | AE104: 44.99225633 | AF104: -60.48570056 | AH104: 0 | AI104: 0
A105: 4786.3 | B105: 4.7863 | C105: 2.327603161 | D105: 1.126717208 | E105: 1.004061543 | F105: 0.08997603461 | G105: 1 | H105: 0 | I105: 19247.84671 | J105: 1.570744373 | K105: 1.408861017 | L105: 0.7815917092 | M105: 1.000008617 | N105: 0.004151350076 | O105: 1 | P105: 0 | Q105: 1 | R105: 0 | S105: 0.9922032687 | T105: 0.05249365546 | U105: 10.92426606 | V105: -107.8615306 | W105: 72.1384694 | Y105: 1000000000 | Z105: 22908667.69 | AB105: 14.99686958 | AC105: -45.45297191 | AE105: 44.36887025 | AF105: -62.40855869 | AH105: 0 | AI105: 0
A106: 5248.1 | B106: 5.2481 | C106: 2.512238225 | D106: 1.161404569 | E106: 1.004881101 | F106: 0.09860354374 | G106: 1 | H106: 0 | I106: 21104.95045 | J106: 1.570748945 | K106: 1.47787326 | L106: 0.8275957088 | M106: 1.00001036 | N106: 0.004551882459 | O106: 1 | P106: 0 | Q106: 1 | R106: 0 | S106: 0.9906290182 | T106: 0.05765537109 | U106: 9.897429435 | V106: -107.0377703 | W106: 72.96222966 | Y106: 1000000000 | Z106: 27542553.61 | AB106: 14.61219151 | AC106: -42.84034764 | AE106: 43.7267117 | AF106: -64.1974227 | AH106: 0 | AI106: 0
A107: 5370.3 | B107: 5.3703 | C107: 2.561555318 | D107: 1.169743525 | E107: 1.005110472 | F107: 0.100884118 | G107: 1 | H107: 0 | I107: 21596.37114 | J107: 1.570750023 | K107: 1.496627687 | L107: 0.8390514593 | M107: 1.000010848 | N107: 0.004657869785 | O107: 1 | P107: 0 | Q107: 1 | R107: 0 | S107: 0.990188374 | T107: 0.05902568227 | U107: 9.644016406 | V107: -106.8131713 | W107: 73.18682868 | Y107: 1000000000 | Z107: 28840122.09 | AB107: 14.52179003 | AC107: -42.19011589 | AE107: 43.56370014 | AF107: -64.62305544 | AH107: 0 | AI107: 0
A108: 5432.85 | B108: 5.43285 | C108: 2.586865987 | D108: 1.173888776 | E108: 1.005229901 | F108: 0.1020510602 | G108: 1 | H108: 0 | I108: 21847.91258 | J108: 1.570750556 | K108: 1.506302001 | L108: 0.8448045033 | M108: 1.000011102 | N108: 0.004712121031 | O108: 1 | P108: 0 | Q108: 1 | R108: 0 | S108: 0.989958929 | T108: 0.05972784776 | U108: 9.51703751 | V108: -106.6975608 | W108: 73.30243923 | Y108: 1000000000 | Z108: 29515859.12 | AB108: 14.47717004 | AC108: -41.86362966 | AE108: 43.48134124 | AF108: -64.8339311 | AH108: 0 | AI108: 0
A109: 5495.4 | B109: 5.4954 | C109: 2.612220244 | D109: 1.177953628 | E109: 1.005350699 | F109: 0.1032177236 | G109: 1 | H109: 0 | I109: 22099.45403 | J109: 1.570751077 | K109: 1.516025532 | L109: 0.850483935 | M109: 1.000011359 | N109: 0.004766372249 | O109: 1 | P109: 0 | Q109: 1 | R109: 0 | S109: 0.9897268481 | T109: 0.06043052945 | U109: 9.391855654 | V109: -106.5816062 | W109: 73.4183938 | Y109: 1000000000 | Z109: 30199421.16 | AB109: 14.43362516 | AC109: -41.54136041 | AE109: 43.39970426 | AF109: -65.0402458 | AH109: 0 | AI109: 0
A110: 5559.4 | B110: 5.5594 | C110: 2.638206054 | D110: 1.182031773 | E110: 1.005475713 | F110: 0.1044111401 | G110: 1 | H110: 0 | I110: 22356.82657 | J110: 1.570751598 | K110: 1.52602443 | L110: 0.8562199221 | M110: 1.000011625 | N110: 0.004821881061 | O110: 1 | P110: 0 | Q110: 1 | R110: 0 | S110: 0.9894866596 | T110: 0.06115004122 | U110: 9.265590225 | V110: -106.4626764 | W110: 73.53732362 | Y110: 1000000000 | Z110: 30906928.36 | AB110: 14.39015 | AC110: -41.21592282 | AE110: 43.316914 | AF110: -65.24675355 | AH110: 0 | AI110: 0
A111: 5623.4 | B111: 5.6234 | C111: 2.664234885 | D111: 1.186030299 | E111: 1.005602159 | F111: 0.1056042581 | G111: 1 | H111: 0 | I111: 22614.1991 | J111: 1.570752107 | K111: 1.536072882 | L111: 0.8618810477 | M111: 1.000011895 | N111: 0.004877389843 | O111: 1 | P111: 0 | Q111: 1 | R111: 0 | S111: 0.9892437131 | T111: 0.06187010683 | U111: 9.1411227 | V111: -106.3435221 | W111: 73.6564779 | Y111: 1000000000 | Z111: 31622627.56 | AB111: 14.3477333 | AC111: -40.8947738 | AE111: 43.23486317 | AF111: -65.44874829 | AH111: 0 | AI111: 0
A112: 5688.9 | B112: 5.6889 | C112: 2.690917009 | D112: 1.19004238 | E112: 1.00573305 | F112: 0.1068250274 | G112: 1 | H112: 0 | I112: 22877.60381 | J112: 1.570752616 | K112: 1.546407146 | L112: 0.8675984902 | M112: 1.000012173 | N112: 0.004934199581 | O112: 1 | P112: 0 | Q112: 1 | R112: 0 | S112: 0.9889922176 | T112: 0.06260762952 | U112: 9.015557461 | V112: -106.2214082 | W112: 73.77859181 | Y112: 1000000000 | Z112: 32363583.21 | AB112: 14.30538493 | AC112: -40.57047261 | AE112: 43.1516463 | AF112: -65.65093558 | AH112: 0 | AI112: 0
A113: 5754.4 | B113: 5.7544 | C113: 2.717641597 | D113: 1.193975615 | E113: 1.005865439 | F113: 0.1080454772 | G113: 1 | H113: 0 | I113: 23141.00852 | J113: 1.570753113 | K113: 1.556791289 | L113: 0.8732398418 | M113: 1.000012455 | N113: 0.004991009286 | O113: 1 | P113: 0 | Q113: 1 | R113: 0 | S113: 0.9887378351 | T113: 0.06334574675 | U113: 8.891791118 | V113: -106.0991882 | W113: 73.90081183 | Y113: 1000000000 | Z113: 33113119.36 | AB113: 14.26407843 | AC113: -40.25053043 | AE113: 43.06918646 | AF113: -65.84865774 | AH113: 0 | AI113: 0
A114: 5821.4 | B114: 5.8214 | C114: 2.745020839 | D114: 1.197919625 | E114: 1.00600241 | F114: 0.109293542 | G114: 1 | H114: 0 | I114: 23410.4454 | J114: 1.570753611 | K114: 1.567463808 | L114: 0.8789328662 | M114: 1.000012747 | N114: 0.005049119945 | O114: 1 | P114: 0 | Q114: 1 | R114: 0 | S114: 0.9884746409 | T114: 0.06410139017 | U114: 8.767009113 | V114: -105.9741214 | W114: 74.0258786 | Y114: 1000000000 | Z114: 33888697.96 | AB114: 14.22287059 | AC114: -39.92770216 | AE114: 42.98561229 | AF114: -66.04641924 | AH114: 0 | AI114: 0
A115: 5888.4 | B115: 5.8884 | C115: 2.772441937 | D115: 1.201785678 | E115: 1.006140948 | F115: 0.1105412651 | G115: 1 | H115: 0 | I115: 23679.88228 | J115: 1.570754097 | K115: 1.578186442 | L115: 0.8845487105 | M115: 1.000013042 | N115: 0.005107230569 | O115: 1 | P115: 0 | Q115: 1 | R115: 0 | S115: 0.9882084277 | T115: 0.06485767121 | U115: 8.644024379 | V115: -105.8490655 | W115: 74.15093449 | Y115: 1000000000 | Z115: 34673254.56 | AB115: 14.1826865 | AC115: -39.60929532 | AE115: 42.90281165 | AF115: -66.23977019 | AH115: 0 | AI115: 0
A116: 5957 | B116: 5.957 | C116: 2.800559951 | D116: 1.205665554 | E116: 1.006284416 | F116: 0.1118184265 | G116: 1 | H116: 0 | I116: 23955.75347 | J116: 1.570754583 | K116: 1.589216002 | L116: 0.8902199634 | M116: 1.000013348 | N116: 0.005166728874 | O116: 1 | P116: 0 | Q116: 1 | R116: 0 | S116: 0.9879327303 | T116: 0.06563268154 | U116: 8.519921992 | V116: -105.7210929 | W116: 74.27890709 | Y116: 1000000000 | Z116: 35485849 | AB116: 14.14257035 | AC116: -39.28779333 | AE116: 42.81882541 | AF116: -66.43329958 | AH116: 0 | AI116: 0
A117: 6025.6 | B117: 6.0256 | C117: 2.828719283 | D117: 1.20946824 | E117: 1.006429526 | F117: 0.1130952217 | G117: 1 | H117: 0 | I117: 24231.62466 | J117: 1.570755058 | K117: 1.600295972 | L117: 0.895812862 | M117: 1.000013657 | N117: 0.005226227142 | O117: 1 | P117: 0 | Q117: 1 | R117: 0 | S117: 0.9876538702 | T117: 0.06640837703 | U117: 8.397617972 | V117: -105.5932466 | W117: 74.40675341 | Y117: 1000000000 | Z117: 36307855.36 | AB117: 14.10346135 | AC117: -38.97078007 | AE117: 42.73563039 | AF117: -66.62246652 | AH117: 0 | AI117: 0
A118: 6095.8 | B118: 6.0958 | C118: 2.857576895 | D118: 1.213281974 | E118: 1.006579717 | F118: 0.114401413 | G118: 1 | H118: 0 | I118: 24513.93016 | J118: 1.570755534 | K118: 1.611685467 | L118: 0.9014564152 | M118: 1.000013977 | N118: 0.005287113086 | O118: 1 | P118: 0 | Q118: 1 | R118: 0 | S118: 0.9873652329 | T118: 0.06720288273 | U118: 8.274279929 | V118: -105.462604 | W118: 74.53739603 | Y118: 1000000000 | Z118: 37158777.64 | AB118: 14.0644499 | AC118: -38.65094403 | AE118: 42.65130379 | AF118: -66.81165994 | AH118: 0 | AI118: 0
A119: 6166 | B119: 6.166 | C119: 2.886475238 | D119: 1.217019397 | E119: 1.006731626 | F119: 0.1157072125 | G119: 1 | H119: 0 | I119: 24796.23567 | J119: 1.570755998 | K119: 1.623125573 | L119: 0.9070205899 | M119: 1.000014301 | N119: 0.005347998992 | O119: 1 | P119: 0 | Q119: 1 | R119: 0 | S119: 0.987073286 | T119: 0.06799812397 | U119: 8.152738687 | V119: -105.3322011 | W119: 74.66779886 | Y119: 1000000000 | Z119: 38019556 | AB119: 14.02642749 | AC119: -38.33565542 | AE119: 42.56778497 | AF119: -66.99654572 | AH119: 0 | AI119: 0
A120: 6237.8 | B120: 6.2378 | C120: 2.916073105 | D120: 1.220765324 | E120: 1.006888772 | F120: 0.1170423638 | G120: 1 | H120: 0 | I120: 25084.97549 | J120: 1.570756462 | K120: 1.634877668 | L120: 0.9126308519 | M120: 1.000014636 | N120: 0.005410272569 | O120: 1 | P120: 0 | Q120: 1 | R120: 0 | S120: 0.9867712625 | T120: 0.06881226076 | U120: 8.030242495 | V120: -105.1991252 | W120: 74.80087476 | Y120: 1000000000 | Z120: 38910148.84 | AB120: 13.98852889 | AC120: -38.01780569 | AE120: 42.48318737 | AF120: -67.18131955 | AH120: 0 | AI120: 0
A121: 6309.6 | B121: 6.3096 | C121: 2.945711067 | D121: 1.224435922 | E121: 1.007047713 | F121: 0.118377096 | G121: 1 | H121: 0 | I121: 25373.7153 | J121: 1.570756916 | K121: 1.646680486 | L121: 0.9181608613 | M121: 1.000014975 | N121: 0.005472546104 | O121: 1 | P121: 0 | Q121: 1 | R121: 0 | S121: 0.9864657792 | T121: 0.0696271864 | U121: 7.909539051 | V121: -105.0664001 | W121: 74.93359989 | Y121: 1000000000 | Z121: 39811052.16 | AB121: 13.95159986 | AC121: -37.7045535 | AE121: 42.39941296 | AF121: -67.36184661 | AH121: 0 | AI121: 0
A122: 6383.05 | B122: 6.38305 | C122: 2.976070363 | D122: 1.228115173 | E122: 1.007212162 | F122: 0.1197420627 | G122: 1 | H122: 0 | I122: 25669.09051 | J122: 1.570757369 | K122: 1.658805893 | L122: 0.9237363501 | M122: 1.000015325 | N122: 0.005536250673 | O122: 1 | P122: 0 | Q122: 1 | R122: 0 | S122: 0.9861496973 | T122: 0.07046166596 | U122: 7.787873116 | V122: -104.931035 | W122: 75.068965 | Y122: 1000000000 | Z122: 40743327.3 | AB122: 13.91479306 | AC122: -37.38877751 | AE122: 42.31455383 | AF122: -67.54225749 | AH122: 0 | AI122: 0
A123: 6456.5 | B123: 6.4565 | C123: 3.006469133 | D123: 1.231720069 | E123: 1.007378487 | F123: 0.1211065812 | G123: 1 | H123: 0 | I123: 25964.46571 | J123: 1.570757813 | K123: 1.670982117 | L123: 0.929230752 | M123: 1.00001568 | N123: 0.005599955196 | O123: 1 | P123: 0 | Q123: 1 | R123: 0 | S123: 0.9858299975 | T123: 0.0712969919 | U123: 7.66799597 | V123: -104.7961292 | W123: 75.2038708 | Y123: 1000000000 | Z123: 41686392.25 | AB123: 13.87893645 | AC123: -37.07764686 | AE123: 42.23053329 | AF123: -67.71848234 | AH123: 0 | AI123: 0
A124: 6531.7 | B124: 6.5317 | C124: 3.037631832 | D124: 1.235336056 | E124: 1.007550717 | F124: 0.1225031409 | G124: 1 | H124: 0 | I124: 26266.87845 | J124: 1.570758256 | K124: 1.683499945 | L124: 0.9347735488 | M124: 1.000016047 | N124: 0.00566517748 | O124: 1 | P124: 0 | Q124: 1 | R124: 0 | S124: 0.985498934 | T124: 0.07215310806 | U124: 7.547071956 | V124: -104.6585284 | W124: 75.34147163 | Y124: 1000000000 | Z124: 42663104.89 | AB124: 13.84317786 | AC124: -36.76383036 | AE124: 42.14536787 | AF124: -67.89469801 | AH124: 0 | AI124: 0
A125: 6606.9 | B125: 6.6069 | C125: 3.068833443 | D125: 1.23887856 | E125: 1.007724911 | F125: 0.1238992206 | G125: 1 | H125: 0 | I125: 26569.29118 | J125: 1.570758689 | K125: 1.696068729 | L125: 0.9402343612 | M125: 1.000016419 | N125: 0.005730399715 | O125: 1 | P125: 0 | Q125: 1 | R125: 0 | S125: 0.9851640814 | T125: 0.07301013396 | U125: 7.427935155 | V125: -104.5214937 | W125: 75.47850635 | Y125: 1000000000 | Z125: 43651127.61 | AB125: 13.80835136 | AC125: -36.45471064 | AE125: 42.06105756 | AF125: -68.06678301 | AH125: 0 | AI125: 0
A126: 6683.85 | B126: 6.68385 | C126: 3.100800209 | D126: 1.242429656 | E126: 1.007905192 | F126: 0.1253272863 | G126: 1 | H126: 0 | I126: 26878.74145 | J126: 1.570759123 | K126: 1.708981582 | L126: 0.9457389362 | M126: 1.000016804 | N126: 0.005797139704 | O126: 1 | P126: 0 | Q126: 1 | R126: 0 | S126: 0.9848175154 | T126: 0.07388805763 | U126: 7.307831823 | V126: -104.3818955 | W126: 75.61810452 | Y126: 1000000000 | Z126: 44673850.82 | AB126: 13.7736475 | AC126: -36.14317047 | AE126: 41.97565809 | AF126: -68.238725 | AH126: 0 | AI126: 0
A127: 6760.8 | B127: 6.7608 | C127: 3.13280528 | D127: 1.245908238 | E127: 1.008087528 | F127: 0.1267548385 | G127: 1 | H127: 0 | I127: 27188.19171 | J127: 1.570759546 | K127: 1.721945439 | L127: 0.9511607899 | M127: 1.000017193 | N127: 0.005863879642 | O127: 1 | P127: 0 | Q127: 1 | R127: 0 | S127: 0.9844669852 | T127: 0.07476695816 | U127: 7.189511644 | V127: -104.242967 | W127: 75.75703301 | Y127: 1000000000 | Z127: 45708416.64 | AB127: 13.73985633 | AC127: -35.83636932 | AE127: 41.89112909 | AF127: -68.40659767 | AH127: 0 | AI127: 0
A128: 6839.55 | B128: 6.83955 | C128: 3.165597452 | D128: 1.249395322 | E128: 1.008276255 | F128: 0.128215246 | G128: 1 | H128: 0 | I128: 27504.88058 | J128: 1.57075997 | K128: 1.735264161 | L128: 0.9566254298 | M128: 1.000017596 | N128: 0.005932180694 | O128: 1 | P128: 0 | Q128: 1 | R128: 0 | S128: 0.9841041529 | T128: 0.07566744205 | U128: 7.07022564 | V128: -104.1015177 | W128: 75.89848228 | Y128: 1000000000 | Z128: 46779444.2 | AB128: 13.70618824 | AC128: -35.52720614 | AE128: 41.80551117 | AF128: -68.57431158 | AH128: 0 | AI128: 0
A129: 6918.3 | B129: 6.9183 | C129: 3.198427328 | D129: 1.252810861 | E129: 1.008467131 | F129: 0.1296751038 | G129: 1 | H129: 0 | I129: 27821.56944 | J129: 1.570760383 | K129: 1.748633912 | L129: 0.9620066649 | M129: 1.000018003 | N129: 0.00600048169 | O129: 1 | P129: 0 | Q129: 1 | R129: 0 | S129: 0.9837371725 | T129: 0.07656897524 | U129: 6.952718667 | V129: -103.960839 | W129: 76.03916096 | Y129: 1000000000 | Z129: 47862874.89 | AB129: 13.67341345 | AC129: -35.22282115 | AE129: 41.72077898 | AF129: -68.73801789 | AH129: 0 | AI129: 0
A130: 6998.9 | B130: 6.9989 | C130: 3.232066289 | D130: 1.256234745 | E130: 1.008664717 | F130: 0.1311686812 | G130: 1 | H130: 0 | I130: 28145.69799 | J130: 1.570760797 | K130: 1.762369375 | L130: 0.9674296092 | M130: 1.000018425 | N130: 0.00607038716 | O130: 1 | P130: 0 | Q130: 1 | R130: 0 | S130: 0.9833572775 | T130: 0.07749278776 | U130: 6.834248972 | V130: -103.8176852 | W130: 76.18231476 | Y130: 1000000000 | Z130: 48984601.21 | AB130: 13.64076264 | AC130: -34.91613833 | AE130: 41.6349601 | AF130: -68.90154691 | AH130: 0 | AI130: 0
A131: 7079.5 | B131: 7.0795 | C131: 3.265742359 | D131: 1.259588055 | E131: 1.008864551 | F131: 0.1326616703 | G131: 1 | H131: 0 | I131: 28469.82653 | J131: 1.570761202 | K131: 1.776155863 | L131: 0.972768523 | M131: 1.000018852 | N131: 0.00614029257 | O131: 1 | P131: 0 | Q131: 1 | R131: 0 | S131: 0.9829730412 | T131: 0.07841772773 | U131: 6.717554085 | V131: -103.6754002 | W131: 76.32459985 | Y131: 1000000000 | Z131: 50119320.25 | AB131: 13.60898571 | AC131: -34.61426957 | AE131: 41.55004214 | AF131: -69.06113058 | AH131: 0 | AI131: 0
A132: 7161.95 | B132: 7.16195 | C132: 3.300228602 | D132: 1.262947484 | E132: 1.009071299 | F132: 0.1341883124 | G132: 1 | H132: 0 | I132: 28801.39475 | J132: 1.570761606 | K132: 1.790310358 | L132: 0.9781447446 | M132: 1.000019294 | N132: 0.006211802447 | O132: 1 | P132: 0 | Q132: 1 | R132: 0 | S132: 0.9825754959 | T132: 0.07936507925 | U132: 6.599972577 | V132: -103.530776 | W132: 76.46922405 | Y132: 1000000000 | Z132: 51293527.8 | AB132: 13.57735291 | AC132: -34.31035515 | AE132: 41.46409343 | AF132: -69.2204208 | AH132: 0 | AI132: 0
A133: 7244.4 | B133: 7.2444 | C133: 3.33475132 | D133: 1.266237394 | E133: 1.009280397 | F133: 0.1357143255 | G133: 1 | H133: 0 | I133: 29132.96296 | J133: 1.570762001 | K133: 1.804515786 | L133: 0.9834364722 | M133: 1.00001974 | N133: 0.006283312261 | O133: 1 | P133: 0 | Q133: 1 | R133: 0 | S133: 0.9821734124 | T133: 0.08031364104 | U133: 6.484159401 | V133: -103.3871145 | W133: 76.61288545 | Y133: 1000000000 | Z133: 52481331.36 | AB133: 13.54657352 | AC133: -34.01128134 | AE133: 41.37905965 | AF133: -69.37583321 | AH133: 0 | AI133: 0
A134: 7328.75 | B134: 7.32875 | C134: 3.370106166 | D134: 1.26953333 | E134: 1.009496744 | F134: 0.1372748465 | G134: 1 | H134: 0 | I134: 29472.17193 | J134: 1.570762396 | K134: 1.819100033 | L134: 0.9887644657 | M134: 1.000020203 | N134: 0.006356469899 | O134: 1 | P134: 0 | Q134: 1 | R134: 0 | S134: 0.9817573691 | T134: 0.08128533033 | U134: 6.367462783 | V134: -103.2411629 | W134: 76.75883706 | Y134: 1000000000 | Z134: 53710576.56 | AB134: 13.51593772 | AC134: -33.71022406 | AE134: 41.29299883 | AF134: -69.53093889 | AH134: 0 | AI134: 0
A135: 7413.1 | B135: 7.4131 | C135: 3.405496861 | D135: 1.272760797 | E135: 1.00971555 | F135: 0.138834695 | G135: 1 | H135: 0 | I135: 29811.38089 | J135: 1.570762783 | K135: 1.833735096 | L135: 0.9940075604 | M135: 1.00002067 | N135: 0.006429627469 | O135: 1 | P135: 0 | Q135: 1 | R135: 0 | S135: 0.9813365809 | T135: 0.08225831917 | U135: 6.252528028 | V135: -103.0962651 | W135: 76.90373488 | Y135: 1000000000 | Z135: 54954051.61 | AB135: 13.48613494 | AC135: -33.4140306 | AE135: 41.20786686 | AF135: -69.68223452 | AH135: 0 | AI135: 0
A136: 7499.45 | B136: 7.49945 | C136: 3.441762676 | D136: 1.275996001 | E136: 1.009942086 | F136: 0.1404308246 | G136: 1 | H136: 0 | I136: 30158.63275 | J136: 1.570763169 | K136: 1.848768547 | L136: 0.9992888384 | M136: 1.000021155 | N136: 0.006504519588 | O136: 1 | P136: 0 | Q136: 1 | R136: 0 | S136: 0.9809009031 | T136: 0.08325574188 | U136: 6.136648524 | V136: -102.9490435 | W136: 77.05095652 | Y136: 1000000000 | Z136: 56241750.3 | AB136: 13.45645856 | AC136: -33.11574879 | AE136: 41.12166373 | AF136: -69.83329469 | AH136: 0 | AI136: 0
A137: 7585.8 | B137: 7.5858 | C137: 3.478063762 | D137: 1.279163705 | E137: 1.010171195 | F137: 0.1420262341 | G137: 1 | H137: 0 | I137: 30505.88461 | J137: 1.570763546 | K137: 1.863852731 | L137: 1.004484776 | M137: 1.000021645 | N137: 0.006579411633 | O137: 1 | P137: 0 | Q137: 1 | R137: 0 | S137: 0.9804602581 | T137: 0.08425456201 | U137: 6.022526403 | V137: -102.8029648 | W137: 77.19703521 | Y137: 1000000000 | Z137: 57544361.64 | AB137: 13.42759583 | AC137: -32.82235609 | AE137: 41.03640435 | AF137: -69.9806087 | AH137: 0 | AI137: 0
A138: 7674.15 | B138: 7.67415 | C138: 3.515241006 | D138: 1.282337031 | E138: 1.01040827 | F138: 0.1436578428 | G138: 1 | H138: 0 | I138: 30861.17935 | J138: 1.570763924 | K138: 1.879337523 | L138: 1.009714587 | M138: 1.000022152 | N138: 0.006656038218 | O138: 1 | P138: 0 | Q138: 1 | R138: 0 | S138: 0.9800042689 | T138: 0.08527798155 | U138: 5.90753536 | V138: -102.6547022 | W138: 77.34529779 | Y138: 1000000000 | Z138: 58892578.22 | AB138: 13.39887733 | AC138: -32.52712202 | AE138: 40.9501318 | AF138: -70.12758019 | AH138: 0 | AI138: 0
A139: 7762.5 | B139: 7.7625 | C139: 3.552452906 | D139: 1.285443906 | E139: 1.010648034 | F139: 0.1452886816 | G139: 1 | H139: 0 | I139: 31216.4741 | J139: 1.570764292 | K139: 1.894872876 | L139: 1.014858782 | M139: 1.000022665 | N139: 0.006732664725 | O139: 1 | P139: 0 | Q139: 1 | R139: 0 | S139: 0.9795430858 | T139: 0.08630290234 | U139: 5.794295069 | V139: -102.5076673 | W139: 77.49233265 | Y139: 1000000000 | Z139: 60256406.25 | AB139: 13.37095216 | AC139: -32.23679287 | AE139: 40.86481667 | AF139: -70.27087448 | AH139: 0 | AI139: 0
A140: 7852.9 | B140: 7.8529 | C140: 3.59056299 | D140: 1.288556183 | E140: 1.010896142 | F140: 0.1469565558 | G140: 1 | H140: 0 | I140: 31580.01282 | J140: 1.570764661 | K140: 1.910819746 | L140: 1.020035618 | M140: 1.000023196 | N140: 0.006811069128 | O140: 1 | P140: 0 | Q140: 1 | R140: 0 | S140: 0.979065829 | T140: 0.08735317878 | U140: 5.680194867 | V140: -102.3585045 | W140: 77.64149552 | Y140: 1000000000 | Z140: 61668038.41 | AB140: 13.3431713 | AC140: -31.9446954 | AE140: 40.77849734 | AF140: -70.41380907 | AH140: 0 | AI140: 0
A141: 7943.3 | B141: 7.9433 | C141: =SQRT(1+(A141/pole1)^2) -> 3.628707122 | D141: =ATAN(A141/pole1) -> 1.291603058 | E141: =SQRT(1+(A141/Zero1)^2) -> 1.01114706 | F141: =ATAN(A141/Zero1) -> 0.1486236068 | G141: =IF(VIN_nom>Vout, 1, SQRT(1+(A141/z_RHP)^2)) -> 1 | H141: =IF(VIN_nom>Vout, 0, -ATAN(A141/z_RHP)) -> 0 | I141: =SQRT(1+(A141/Pole2)^2) -> 31943.55153 | J141: =ATAN(A141/Pole2) -> 1.570765022 | K141: =SQRT(1+(A141/Zero2)^2) -> 1.926816977 | L141: =ATAN(A141/Zero2) -> 1.025126627 | M141: =SQRT(1+(A141/pole4)^2) -> 1.000023733 | N141: =ATAN(A141/pole4) -> 0.006889473447 | O141: =IF(VOUT_setting=1,1,SQRT(1+(A141*zterm1)^2)) -> 1 | P141: =IF(VOUT_setting=1,0,ATAN(((A141*zterm1)))) -> 0 | Q141: 1 | R141: =IF(VOUT_setting=1,0,ATAN(A141*$Q$4/(1+Afbr-$Q$5*(A141)^2))) -> 0 | S141: =SQRT((1-(Z141/pterm2))^2+(A141/pterm1)^2) -> 0.9785831409 | T141: =IF((ATAN((A141/pterm1)/(1-A141^2/pterm2))>0),ATAN((A141/pterm1)/(1-A141^2/pterm2)),PI()+ATAN((A141/pterm1)/(1-A141^2/pterm2))) -> 0.08840506834 | U141: =20*LOG10(((E141*K141*G141*O141)/(C141*I141*S141*M141*Q141))*Adc) -> 5.56783874 | V141: =((F141+L141+H141+P141)-(D141+J141+T141+N141+R141))*radconv -> -102.2106509 | W141: =IF(V141>0,V141,V141+180) -> 77.7893491 | Y141: =IF(U141<0,A141,1000000000) -> 1000000000 | Z141: =A141^2 -> 63096014.89 | AB141: =20*LOG10((K141/(I141*M141))*AEA) -> 13.31616355 | AC141: =(L141-(J141+N141))*radconv -> -31.65751492 | AE141: =20*LOG10((E141*G141/(C141*S141))*Acs*Am) -> 40.69314896 | AF141: =(F141+H141-(D141+T141))*radconv -> -70.55313599 | AH141: =SUM((U142<0)*(U141>0))*A141 -> 0 | AI141: 0
A142: 8035.8 | B142: =A142/1000 -> 8.0358 | C142: 3.667771481 | D142: 1.294655083 | E142: 1.011406715 | F142: 0.1503285225 | G142: 1 | H142: 0 | I142: 32315.53528 | J142: 1.570765382 | K142: 1.943236656 | L142: 1.030249001 | M142: 1.000024289 | N142: 0.006969699017 | O142: 1 | P142: 0 | Q142: 1 | R142: 0 | S142: 0.9780836217 | T142: 0.08948308514 | U142: 5.454633427 | V142: -102.0607273 | W142: 77.93927273 | Y142: 1000000000 | Z142: 64574081.64 | AB142: 13.28930024 | AC142: -31.36864174 | AE142: 40.60680696 | AF142: -70.69208553 | AH142: 0 | AI142: 0
A143: 8128.3 | B143: 8.1283 | C143: 3.706869285 | D143: 1.297642755 | E143: 1.011669308 | F143: 0.1520325581 | G143: 1 | H143: 0 | I143: 32687.51903 | J143: 1.570765734 | K143: 1.959706469 | L143: 1.035285406 | M143: 1.000024851 | N143: 0.007049924498 | O143: 1 | P143: 0 | Q143: =IF(VOUT_setting=1,1,SQRT((1+Afbr-$Q$5*(A143)^2)^2+(A143*$Q$4)^2)) -> 1 | R143: 0 | S143: 0.9775784233 | T143: 0.0905628356 | U143: 5.343165452 | V143: -101.9121913 | W143: 78.08780867 | Y143: 1000000000 | Z143: 66069260.89 | AB143: 13.26318989 | AC143: -31.08469374 | AE143: 40.52144933 | AF143: -70.82749758 | AH143: 0 | AI143: 0
A144: 8222.95 | B144: 8.22295 | C144: 3.746909376 | D144: 1.300635301 | E144: 1.011941044 | F144: 0.1537752803 | G144: 1 | H144: 0 | I144: 33068.14888 | J144: 1.570766086 | K144: 1.97660968 | L144: 1.040351863 | M144: 1.000025433 | N144: 0.007132014585 | O144: 1 | P144: 0 | Q144: 1 | R144: 0 | S144: 0.9770556078 | T144: 0.0916695013 | U144: 5.230860621 | V144: -101.7616452 | W144: 78.23835479 | Y144: 1000000000 | Z144: 67616906.7 | AB144: 13.23722417 | AC144: -30.79913074 | AE144: 40.43511022 | AF144: -70.96251447 | AH144: 0 | AI144: 0
A145: 8270.275 | B145: 8.270275 | C145: 3.766941804 | D145: 1.30210771 | E145: 1.012078064 | F145: 0.1546462892 | G145: 1 | H145: 0 | I145: 33258.46381 | J145: 1.570766259 | K145: 1.985080069 | L145: 1.042852703 | M145: 1.000025727 | N145: 0.007173059593 | O145: 1 | P145: 0 | Q145: 1 | R145: 0 | S145: 0.9767919729 | T145: 0.09222353145 | U145: 5.175359845 | V145: -101.6869206 | W145: 78.31307944 | Y145: 1000000000 | Z145: 68397448.58 | AB145: 13.22451781 | AC145: -30.65820478 | AE145: 40.3923158 | AF145: -71.02871579 | AH145: 0 | AI145: 0
A146: 8317.6 | B146: 8.3176 | C146: 3.786982313 | D146: 1.303564539 | E146: 1.012215851 | F146: 0.1555170616 | G146: 1 | H146: 0 | I146: 33448.77874 | J146: 1.57076643 | K146: 1.993562768 | L146: 1.045332277 | M146: 1.000026022 | N146: 0.007214104576 | O146: 1 | P146: 0 | Q146: 1 | R146: 0 | S146: 0.976526854 | T146: 0.09277803055 | U146: 5.120286333 | V146: -101.612562 | W146: 78.38743798 | Y146: 1000000000 | Z146: 69182469.76 | AB146: 13.21199134 | AC146: -30.5184972 | AE146: 40.34976876 | AF146: -71.09406481 | AH146: 0 | AI146: 0
A147: 8366.05 | B147: 8.36605 | C147: 3.807507457 | D147: 1.305040109 | E147: 1.012357709 | F147: 0.1564082875 | G147: 1 | H147: 0 | I147: 33643.6178 | J147: 1.570766603 | K147: 2.002259704 | L147: 1.047849013 | M147: 1.000026326 | N147: 0.007256125248 | O147: 1 | P147: 0 | Q147: 1 | R147: 0 | S147: 0.976253896 | T147: 0.09334620012 | U147: 5.064340758 | V147: -101.5368154 | W147: 78.46318465 | Y147: 1000000000 | Z147: 69990792.6 | AB147: 13.19935007 | AC147: -30.37671636 | AE147: 40.30646446 | AF147: -71.16009899 | AH147: 0 | AI147: 0
A148: 8414.5 | B148: 8.4145 | C148: 3.828040803 | D148: 1.306499853 | E148: 1.012500371 | F148: 0.1572992631 | G148: 1 | H148: 0 | I148: 33838.45685 | J148: 1.570766775 | K148: =SQRT(1+(A148/Zero2)^2) -> 2.010969213 | L148: =ATAN(A148/Zero2) -> 1.050343965 | M148: 1.000026632 | N148: 0.007298145893 | O148: 1 | P148: 0 | Q148: 1 | R148: 0 | S148: 0.9759793836 | T148: 0.09391486776 | U148: 5.008831959 | V148: -101.4614528 | W148: 78.53854719 | Y148: 1000000000 | Z148: 70803810.25 | AB148: 13.18689053 | AC148: -30.23618355 | AE148: 40.2634152 | AF148: -71.22526926 | AH148: 0 | AI148: 0
A149: 8462.95 | B149: 8.46295 | C149: 3.848582218 | D149: 1.307944017 | E149: 1.012643836 | F149: 0.1581899869 | G149: 1 | H149: 0 | I149: 34033.29591 | J149: 1.570766944 | K149: 2.019691131 | L149: 1.052817384 | M149: 1.00002694 | N149: 0.007340166513 | O149: 1 | P149: 0 | Q149: 1 | R149: 0 | S149: 0.9757033174 | T149: 0.09448403677 | U149: 4.953754497 | V149: -101.3864744 | W149: 78.61352557 | Y149: 1000000000 | Z149: 71621522.7 | AB149: 13.17460938 | AC149: -30.09688439 | AE149: 40.22061888 | AF149: -71.28959005 | AH149: 0 | AI149: 0
A150: 8511.4 | B150: 8.5114 | C150: 3.869131575 | D150: 1.309372844 | E150: 1.012788105 | F150: 0.1590804576 | G150: 1 | H150: 0 | I150: 34228.13496 | J150: 1.570767111 | K150: 2.0284253 | L150: 1.055269517 | M150: 1.000027249 | N150: 0.007382187106 | O150: 1 | P150: 0 | Q150: 1 | R150: 0 | S150: 0.9754256981 | T150: 0.0950537105 | U150: 4.899103034 | V150: -101.3118802 | W150: 78.68811982 | Y150: 1000000000 | Z150: 72443929.96 | AB150: 13.16250338 | AC150: -29.95880469 | AE150: 40.17807342 | AF150: -71.35307549 | AH150: 0 | AI150: 0
A151: 8560.95 | B151: 8.56095 | C151: 3.890155564 | D151: 1.310818495 | E151: 1.012936479 | F151: 0.1599908823 | G151: 1 | H151: 0 | I151: 34427.39761 | J151: 1.57076728 | K151: 2.037370273 | L151: 1.057755562 | M151: 1.000027567 | N151: 0.007425161701 | O151: 1 | P151: 0 | Q151: 1 | R151: 0 | S151: 0.9751401699 | T151: 0.09563684351 | U151: 4.843645926 | V151: -101.2359895 | W151: 78.76401049 | Y151: 1000000000 | Z151: 73289864.9 | AB151: 13.15030035 | AC151: -29.81883678 | AE151: 40.13481934 | AF151: -71.41715273 | AH151: 0 | AI151: 0
A152: 8610.5 | B152: 8.6105 | C152: 3.911187596 | D152: 1.312248601 | E152: 1.013085693 | F152: 0.1609010396 | G152: 1 | H152: 0 | I152: 34626.66026 | J152: 1.570767447 | K152: 2.046327728 | L152: 1.060219857 | M152: 1.000027887 | N152: 0.007468136268 | O152: 1 | P152: 0 | Q152: 1 | R152: 0 | S152: 0.9748530184 | T152: 0.09622051148 | U152: 4.788623386 | V152: -101.1605002 | W152: 78.8394998 | Y152: 1000000000 | Z152: 74140710.25 | AB152: 13.13827384 | AC152: -29.68011489 | AE152: 40.09182331 | AF152: -71.4803853 | AH152: 0 | AI152: 0
A153: 8660.05 | B153: 8.66005 | C153: 3.93222754 | D153: 1.313663406 | E153: 1.013235746 | F153: 0.161810928 | G153: 1 | H153: 0 | I153: 34825.9229 | J153: 1.570767613 | K153: 2.055297501 | L153: 1.062662658 | M153: 1.000028209 | N153: 0.007511110808 | O153: 1 | P153: 0 | Q153: 1 | R153: 0 | S153: 0.9745642442 | T153: 0.096804718 | U153: 4.734030008 | V153: -101.0854119 | W153: 78.9145881 | Y153: 1000000000 | Z153: 74996466 | AB153: 13.12642058 | AC153: -29.54262446 | AE153: 40.04908319 | AF153: -71.54278744 | AH153: 0 | AI153: 0
A154: 8709.6 | B154: 8.7096 | C154: 3.953275273 | D154: 1.315063148 | E154: 1.013386637 | F154: 0.1627205463 | G154: 1 | H154: 0 | I154: 35025.18555 | J154: 1.570767776 | K154: 2.064279432 | L154: 1.065084215 | M154: 1.000028533 | N154: 0.00755408532 | O154: 1 | P154: 0 | Q154: 1 | R154: 0 | S154: 0.974273848 | T154: 0.09738946667 | U154: 4.67986048 | V154: -101.0107242 | W154: 78.98927581 | Y154: 1000000000 | Z154: 75857132.16 | AB154: 13.11473739 | AC154: -29.40635107 | AE154: 40.00659686 | AF154: -71.60437311 | AH154: 0 | AI154: =IF(AH154>0,W154,0) -> 0
A155: 8760.325 | B155: 8.760325 | C155: 3.974830056 | D155: 1.316480725 | E155: 1.013541975 | F155: 0.1636514533 | G155: 1 | H155: 0 | I155: 35229.17339 | J155: 1.570767941 | K155: 2.073486784 | L155: 1.067541449 | M155: 1.000028866 | N155: 0.007598078876 | O155: 1 | P155: 0 | Q155: 1 | R155: 0 | S155: 0.9739748859 | T155: 0.09798864707 | U155: 4.624840009 | V155: -100.9346798 | W155: 79.06532022 | Y155: 1000000000 | Z155: 76743294.11 | AB155: 13.10295005 | AC155: -29.26809204 | AE155: 39.96336373 | AF155: -71.66658774 | AH155: 0 | AI155: 0
A156: 8811.05 | B156: 8.81105 | C156: 3.99639274 | D156: 1.317883007 | E156: 1.01369819 | F156: 0.1645820743 | G156: 1 | H156: 0 | I156: 35433.16124 | J156: 1.570768105 | K156: 2.082706546 | L156: 1.069976942 | M156: 1.000029201 | N156: 0.007642072402 | O156: 1 | P156: 0 | Q156: 1 | R156: 0 | S156: 0.9736742254 | T156: 0.0985884033 | U156: 4.57025277 | V156: -100.859054 | W156: 79.14094599 | Y156: 1000000000 | Z156: 77634602.1 | AB156: 13.09133439 | AC156: -29.13107856 | AE156: 39.92039214 | AF156: -71.72797544 | AH156: 0 | AI156: 0
A157: 8861.775 | B157: 8.861775 | C157: 4.017963199 | D157: 1.319270236 | E157: 1.013855284 | F157: 0.1655124077 | G157: 1 | H157: 0 | I157: 35637.14908 | J157: 1.570768266 | K157: 2.091938552 | L157: 1.072390953 | M157: 1.000029539 | N157: 0.007686065899 | O157: 1 | P157: 0 | Q157: 1 | R157: 0 | S157: 0.9733718669 | T157: 0.09918873923 | U157: 4.51609337 | V157: -100.7838461 | W157: 79.21615386 | Y157: 1000000000 | Z157: 78531056.15 | AB157: 13.07988723 | AC157: -28.99529581 | AE157: 39.87767991 | AF157: -71.78855033 | AH157: 0 | AI157: 0
A158: 8912.5 | B158: 8.9125 | C158: 4.039541307 | D158: 1.320642646 | E158: 1.014013254 | F158: 0.166442452 | G158: 1 | H158: 0 | I158: 35841.13693 | J158: 1.570768426 | K158: =SQRT(1+(A158/Zero2)^2) -> 2.101182642 | L158: =ATAN(A158/Zero2) -> 1.074783738 | M158: 1.000029878 | N158: 0.007730059366 | O158: 1 | P158: 0 | Q158: 1 | R158: 0 | S158: 0.9730678113 | T158: 0.09978965877 | U158: 4.462356515 | V158: -100.7090554 | W158: 79.29094462 | Y158: 1000000000 | Z158: 79432656.25 | AB158: 13.06860542 | AC158: -28.86072916 | AE158: 39.83522486 | AF158: -71.84832623 | AH158: 0 | AI158: 0
A159: 8964.4 | B159: 8.9644 | C159: 4.061627044 | D159: 1.322031752 | E159: 1.014175792 | F159: 0.1673937392 | G159: 1 | H159: 0 | I159: 36049.84997 | J159: 1.570768587 | K159: 2.110653203 | L159: 1.077210241 | M159: 1.000030227 | N159: 0.007775071872 | O159: 1 | P159: 0 | Q159: 1 | R159: 0 | S159: 0.9727549567 | T159: 0.1004051062 | U159: 4.40780681 | V159: -100.632963 | W159: 79.36703703 | Y159: 1000000000 | Z159: 80360467.36 | AB159: 13.05723025 | AC159: -28.72428903 | AE159: 39.79205033 | AF159: -71.90867393 | AH159: 0 | AI159: 0
A160: 9016.3 | B160: 9.0163 | C160: 4.083720533 | D160: 1.323405831 | E160: 1.014339247 | F160: 0.1683447208 | G160: 1 | H160: 0 | I160: 36258.56302 | J160: 1.570768747 | K160: 2.120136082 | L160: 1.079615052 | M160: 1.000030578 | N160: 0.007820084346 | O160: 1 | P160: 0 | Q160: 1 | R160: 0 | S160: 0.9724403269 | T160: 0.1010211729 | U160: 4.353688544 | V160: -100.5573053 | W160: 79.44269472 | Y160: 1000000000 | Z160: 81293665.69 | AB160: 13.04602179 | AC160: -28.58909168 | AE160: 39.74914052 | AF160: -71.9682136 | AH160: 0 | AI160: 0
A161: 9068.2 | B161: 9.0682 | C161: 4.105821649 | D161: 1.324765118 | E161: 1.014503619 | F161: 0.169295395 | G161: 1 | H161: 0 | I161: 36467.27606 | J161: 1.570768905 | K161: 2.129631112 | L161: 1.081998433 | M161: 1.000030931 | N161: 0.007865096789 | O161: 1 | P161: 0 | Q161: 1 | R161: 0 | S161: 0.9721239226 | T161: 0.101637863 | U161: 4.299996349 | V161: -100.4820813 | W161: 79.51791875 | Y161: 1000000000 | Z161: 82232251.24 | AB161: 13.03497691 | AC161: -28.45512208 | AE161: 39.70649321 | AF161: -72.02695917 | AH161: 0 | AI161: 0
A162: 9120.1 | B162: 9.1201 | C162: 4.12793027 | D162: 1.326109848 | E162: 1.014668907 | F162: 0.1702457603 | G162: 1 | H162: 0 | I162: 36675.9891 | J162: 1.570769061 | K162: 2.139138132 | L162: 1.084360642 | M162: 1.000031286 | N162: 0.0079101092 | O162: 1 | P162: 0 | Q162: 1 | R162: 0 | S162: 0.9718057447 | T162: 0.1022551808 | U162: 4.246724958 | V162: -100.4072897 | W162: 79.59271028 | Y162: 1000000000 | Z162: 83176224.01 | AB162: 13.02409255 | AC162: -28.32236542 | AE162: 39.66410618 | AF162: -72.0849243 | AH162: 0 | AI162: 0
A163: 9173.2 | B163: 9.1732 | C163: 4.150557716 | D163: 1.327470841 | E163: 1.014838966 | F163: 0.1712177781 | G163: 1 | H163: 0 | I163: 36889.52788 | J163: 1.570769219 | K163: 2.14887721 | L163: 1.086755823 | M163: 1.000031651 | N163: 0.007956162327 | O163: 1 | P163: 0 | Q163: 1 | R163: 0 | S163: 0.9714783751 | T163: 0.1028874259 | U163: 4.192651975 | V163: -100.3312153 | W163: 79.66878474 | Y163: 1000000000 | Z163: 84147598.24 | AB163: 13.01311954 | AC163: -28.18777936 | AE163: 39.6210062 | AF163: -72.1434359 | AH163: 0 | AI163: 0
A164: 9226.3 | B164: 9.2263 | C164: 4.173192766 | D164: 1.328817072 | E164: 1.015009983 | F164: 0.1721894693 | G164: 1 | H164: 0 | I164: 37103.06666 | J164: 1.570769375 | K164: 2.158628505 | L164: 1.089129378 | M164: 1.000032019 | N164: 0.008002215421 | O164: 1 | P164: 0 | Q164: 1 | R164: 0 | S164: 0.9711491505 | T164: 0.103520337 | U164: 4.139008629 | V164: -100.2555909 | W164: 79.7444091 | Y164: 1000000000 | Z164: 85124611.69 | AB164: 13.00230832 | AC164: -28.05443229 | AE164: 39.57817408 | AF164: -72.20115861 | AH164: 0 | AI164: 0
A165: 9279.4 | B165: 9.2794 | C165: 4.195835298 | D165: 1.330148777 | E165: 1.015181957 | F165: 0.1731608322 | G165: 1 | H165: 0 | I165: 37316.60544 | J165: 1.570769529 | K165: 2.168391852 | L165: 1.091481571 | M165: 1.000032388 | N165: 0.00804826848 | O165: 1 | P165: 0 | Q165: 1 | R165: 0 | S165: 0.9708180718 | T165: 0.1041539187 | U165: 4.085789583 | V165: -100.1804152 | W165: 79.81958479 | Y165: 1000000000 | Z165: 86107264.36 | AB165: 12.9916558 | AC165: -27.92230901 | AE165: 39.53560755 | AF165: -72.2581062 | AH165: 0 | AI165: 0
A166: 9332.5 | B166: 9.3325 | C166: 4.218485191 | D166: 1.331466183 | E166: 1.01535489 | F166: 0.1741318651 | G166: 1 | H166: 0 | I166: 37530.14422 | J166: 1.570769682 | K166: 2.178167088 | L166: 1.093812665 | M166: 1.00003276 | N166: 0.008094321505 | O166: 1 | P166: 0 | Q166: 1 | R166: 0 | S166: 0.9704851397 | T166: 0.1047881756 | U166: 4.032989598 | V166: -100.1056867 | W166: 79.89431329 | Y166: 1000000000 | Z166: 87095556.25 | AB166: 12.98115902 | AC166: -27.79139454 | AE166: 39.49330434 | AF166: -72.31429217 | AH166: 0 | AI166: 0
A167: 9386.85 | B167: 9.38685 | C167: 4.241675774 | D167: 1.332800029 | E167: 1.015532884 | F167: 0.1751254132 | G167: 1 | H167: 0 | I167: 37748.70981 | J167: 1.570769836 | K167: 2.188184585 | L167: 1.096177052 | M167: 1.000033143 | N167: 0.008141458606 | O167: 1 | P167: 0 | Q167: 1 | R167: 0 | S167: 0.9701424518 | T167: 0.1054380671 | U167: 3.979375285 | V167: -100.0296606 | W167: 79.97033943 | Y167: 1000000000 | Z167: 88112952.92 | AB167: 12.97057336 | AC167: -27.65863473 | AE167: 39.45027569 | AF167: -72.37102584 | AH167: 0 | AI167: 0
A168: 9441.2 | B168: 9.4412 | C168: 4.264873821 | D168: 1.334119366 | E168: 1.015711881 | F168: 0.1761186121 | G168: 1 | H168: 0 | I168: 37967.27539 | J168: 1.570769988 | K168: 2.198214203 | L168: 1.098519877 | M168: 1.000033527 | N168: 0.00818859567 | O168: 1 | P168: 0 | Q168: 1 | R168: 0 | S168: 0.9697978241 | T168: 0.1060886756 | U168: 3.926189195 | V168: -99.9540996 | W168: 80.0459004 | Y168: 1000000000 | Z168: 89136257.44 | AB168: 12.96014473 | AC168: -27.52711025 | AE168: 39.40751823 | AF168: -72.42698934 | AH168: 0 | AI168: 0
A169: 9495.55 | B169: 9.49555 | C169: 4.288079211 | D169: 1.335424427 | E169: 1.015891879 | F169: 0.17711146 | G169: 1 | H169: 0 | I169: 38185.84098 | J169: 1.570770139 | K169: 2.208255777 | L169: 1.100841407 | M169: 1.000033915 | N169: 0.008235732698 | O169: 1 | P169: 0 | Q169: 1 | R169: 0 | S169: 0.9694512575 | T169: 0.1067400061 | U169: 3.873426017 | V169: -99.87900206 | W169: 80.12099794 | Y169: 1000000000 | Z169: 90165469.8 | AB169: 12.94987014 | AC169: -27.39680576 | AE169: 39.36502965 | AF169: -72.4821963 | AH169: 0 | AI169: 0
A170: 9549.9 | B170: 9.5499 | C170: 4.311291827 | D170: 1.336715436 | E170: 1.016072879 | F170: 0.1781039551 | G170: 1 | H170: 0 | I170: 38404.40657 | J170: 1.570770288 | K170: 2.218309145 | L170: 1.103141908 | M170: 1.000034304 | N170: 0.00828286969 | O170: 1 | P170: 0 | Q170: 1 | R170: 0 | S170: 0.969102753 | T170: 0.1073920636 | U170: 3.821080539 | V170: -99.80436614 | W170: 80.19563386 | Y170: 1000000000 | Z170: 91200590.01 | AB170: 12.93974666 | AC170: -27.26770609 | AE170: 39.32280764 | AF170: -72.53666006 | AH170: 0 | AI170: 0
A171: 9605.525 | B171: 9.605525 | C171: 4.335056348 | D171: 1.338022414 | E171: 1.01625916 | F171: 0.1791193662 | G171: 1 | H171: 0 | I171: 38628.0995 | J171: 1.570770439 | K171: 2.2286104 | L171: 1.105474871 | M171: 1.000034705 | N171: 0.008331112432 | O171: 1 | P171: 0 | Q171: 1 | R171: 0 | S171: 0.9687440672 | T171: 0.1080601757 | U171: 3.767934258 | V171: -99.72845541 | W171: 80.27154459 | Y171: 1000000000 | Z171: 92266110.53 | AB171: 12.9295392 | AC171: -27.13680985 | AE171: 39.27986883 | AF171: -72.59164556 | AH171: 0 | AI171: 0
A172: 9661.15 | B172: 9.66115 | C172: 4.358828193 | D172: 1.339315137 | E172: 1.016446489 | F172: 0.180134404 | G172: 1 | H172: 0 | I172: 38851.79243 | J172: 1.570770588 | K172: 2.238923674 | L172: 1.107786355 | M172: 1.000035108 | N172: 0.008379355136 | O172: 1 | P172: 0 | Q172: 1 | R172: 0 | S172: 0.9683833534 | T172: 0.1087290597 | U172: 3.71521476 | V172: -99.65302426 | W172: 80.34697574 | Y172: 1000000000 | Z172: 93337819.32 | AB172: 12.91948404 | AC172: -27.00714425 | AE172: 39.23720449 | AF172: -72.64588001 | AH172: 0 | AI172: 0
A173: 9716.775 | B173: 9.716775 | C173: 4.382607244 | D173: 1.340593835 | E173: 1.016634864 | F173: 0.1811490668 | G173: 1 | H173: 0 | I173: 39075.48536 | J173: 1.570770735 | K173: 2.2492488 | L173: 1.110076629 | M173: 1.000035513 | N173: 0.008427597801 | O173: 1 | P173: 0 | Q173: 1 | R173: 0 | S173: 0.9680206126 | T173: 0.1093987211 | U173: 3.662916762 | V173: -99.57807063 | W173: 80.42192937 | Y173: 1000000000 | Z173: 94415716.4 | AB173: 12.90957827 | AC173: -26.87869377 | AE173: 39.19481226 | AF173: -72.69937686 | AH173: 0 | AI173: 0
A174: 9772.4 | B174: 9.7724 | C174: 4.406393383 | D174: 1.341858729 | E174: 1.016824286 | F174: 0.1821633525 | G174: 1 | H174: 0 | I174: 39299.17829 | J174: 1.570770881 | K174: 2.259585617 | L174: 1.11234596 | M174: 1.000035921 | N174: 0.008475840427 | O174: 1 | P174: 0 | Q174: 1 | R174: 0 | S174: 0.967655846 | T174: 0.1100691653 | U174: 3.61103508 | V174: -99.50359242 | W174: 80.49640758 | Y174: 1000000000 | Z174: 95499801.76 | AB174: 12.89981904 | AC174: -26.7514431 | AE174: 39.15268981 | AF174: -72.75214931 | AH174: 0 | AI174: 0
A175: 9829.3 | B175: 9.8293 | C175: 4.430731948 | D175: 1.343138563 | E175: 1.017019132 | F175: 0.183200495 | G175: 1 | H175: 0 | I175: 39527.99856 | J175: 1.570771028 | K175: 2.270171296 | L175: 1.114645913 | M175: 1.000036341 | N175: 0.008525188798 | O175: 1 | P175: 0 | Q175: 1 | R175: 0 | S175: 0.9672806234 | T175: 0.1107557925 | U175: 3.558389633 | V175: -99.42789672 | W175: 80.57210328 | Y175: 1000000000 | Z175: 96615138.49 | AB175: 12.88998482 | AC175: -26.62250138 | AE175: 39.10987858 | AF175: -72.80539535 | AH175: 0 | AI175: 0
A176: 9886.2 | B176: 9.8862 | C176: 4.455077691 | D176: 1.344404411 | E176: 1.017215071 | F176: 0.184237239 | G176: 1 | H176: 0 | I176: 39756.81884 | J176: 1.570771174 | K176: 2.280768872 | L176: 1.116924505 | M176: 1.000036762 | N176: 0.008574537128 | O176: 1 | P176: 0 | Q176: 1 | R176: 0 | S176: 0.9669032832 | T176: 0.1114432502 | U176: 3.506169136 | V176: -99.35269394 | W176: 80.64730606 | Y176: 1000000000 | Z176: 97736950.44 | AB176: 12.8802981 | AC176: -26.49478347 | AE176: 39.06734481 | AF176: -72.85791047 | AH176: 0 | AI176: 0
A177: 9943.1 | B177: 9.9431 | C177: 4.479430495 | D177: 1.345656498 | E177: 1.017412103 | F177: 0.1852735827 | G177: 1 | H177: 0 | I177: 39985.63911 | J177: 1.570771318 | K177: 2.291378181 | L177: 1.119182009 | M177: 1.000037187 | N177: 0.008623885415 | O177: 1 | P177: 0 | Q177: 1 | R177: 0 | S177: 0.9665238265 | T177: 0.1121315442 | U177: 3.454368344 | V177: -99.27798171 | W177: 80.72201829 | Y177: 1000000000 | Z177: 98865237.61 | AB177: 12.87075603 | AC177: -26.36827376 | AE177: 39.02508608 | AF177: -72.90970796 | AH177: 0 | AI177: 0
A178: 10000 | B178: 10 | C178: 4.503790245 | D178: 1.346895041 | E178: 1.017610228 | F178: 0.1863095239 | G178: 1 | H178: 0 | I178: 40214.45938 | J178: 1.57077146 | K178: 2.301999059 | L178: 1.121418692 | M178: 1.000037614 | N178: 0.008673233661 | O178: 1 | P178: 0 | Q178: 1 | R178: 0 | S178: 0.9661422544 | T178: 0.1128206803 | U178: 3.402982111 | V178: -99.20375766 | W178: 80.79624234 | Y178: 1000000000 | Z178: 100000000 | AB178: 12.86135584 | AC178: -26.24295684 | AE178: 38.98310004 | AF178: -72.96080083 | AH178: 0 | AI178: 0
A179: 10058.25 | B179: 10.05825 | C179: 4.52873503 | D179: 1.348149167 | E179: 1.017814184 | F179: 0.1873696247 | G179: 1 | H179: 0 | I179: 40448.70861 | J179: 1.570771604 | K179: 2.312883745 | L179: 1.123687152 | M179: 1.000038053 | N179: 0.008723752691 | O179: 1 | P179: 0 | Q179: 1 | R179: 0 | S179: 0.9657494391 | T179: 0.1135270452 | U179: 3.350800853 | V179: -99.12827577 | W179: 80.87172423 | Y179: 1000000000 | Z179: 101168393.1 | AB179: 12.85187675 | AC179: -26.11588642 | AE179: 38.94039787 | AF179: -73.01238935 | AH179: 0 | AI179: 0
A180: 10116.5 | B180: 10.1165 | C180: 4.553686859 | D180: 1.34938955 | E180: 1.018019283 | F180: 0.1884292995 | G180: 1 | H180: 0 | I180: 40682.95784 | J180: 1.570771746 | K180: 2.323780221 | L180: 1.12593435 | M180: 1.000038495 | N180: 0.008774271677 | O180: 1 | P180: 0 | Q180: 1 | R180: 0 | S180: 0.9653544094 | T180: 0.1142343052 | U180: 3.299043449 | V180: -99.05330036 | W180: 80.94669964 | Y180: 1000000000 | Z180: 102343572.2 | AB180: 12.84254065 | AC180: -25.99003417 | AE180: 38.89797657 | AF180: -73.06326619 | AH180: 0 | AI180: 0
A181: 10174.75 | B181: 10.17475 | C181: 4.578645618 | D181: 1.350616413 | E181: 1.018225525 | F181: 0.1894885463 | G181: 1 | H181: 0 | I181: 40917.20706 | J181: 1.570771887 | K181: 2.334688323 | L181: 1.12816056 | M181: 1.00003894 | N181: 0.008824790618 | O181: 1 | P181: 0 | Q181: 1 | R181: 0 | S181: 0.9649571663 | T181: 0.1149424665 | U181: 3.247704681 | V181: -98.97882882 | W181: 81.02117118 | Y181: 1000000000 | Z181: 103525537.6 | AB181: 12.83334477 | AC181: -25.86538431 | AE181: 38.85583368 | AF181: -73.11344451 | AH181: 0 | AI181: 0
A182: 10233 | B182: 10.233 | C182: 4.603611195 | D182: 1.35182997 | E182: 1.018432909 | F182: 0.1905473629 | G182: 1 | H182: 0 | I182: 41151.45629 | J182: 1.570772026 | K182: 2.345607888 | L182: 1.130366053 | M182: 1.000039387 | N182: 0.008875309514 | O182: 1 | P182: 0 | Q182: 1 | R182: 0 | S182: 0.9645577113 | T182: 0.1156515355 | U182: 3.196779432 | V182: -98.90485851 | W182: 81.09514149 | Y182: 1000000000 | Z182: 104714289 | AB182: 12.82428639 | AC182: -25.74192134 | AE182: 38.81396681 | AF182: -73.16293717 | AH182: 0 | AI182: 0
A183: 10292.5 | B183: 10.2925 | C183: 4.629119436 | D183: 1.353056054 | E183: 1.018645921 | F183: 0.1916284545 | G183: 1 | H183: 0 | I183: 41390.73232 | J183: 1.570772167 | K183: 2.356773447 | L183: 1.132597764 | M183: 1.000039846 | N183: 0.00892691246 | O183: 1 | P183: 0 | Q183: 1 | R183: 0 | S183: 0.9641474019 | T183: 0.1163767642 | U183: 3.145183067 | V183: -98.82981556 | W183: 81.17018444 | Y183: 1000000000 | Z183: 105935556.2 | AB183: 12.81517283 | AC183: -25.61701842 | AE183: 38.771484 | AF183: -73.21279714 | AH183: 0 | AI183: 0
A184: 10352 | B184: 10.352 | C184: 4.65463456 | D184: 1.354268697 | E184: 1.018860124 | F184: 0.1927090928 | G184: 1 | H184: 0 | I184: 41630.00835 | J184: 1.570772306 | K184: 2.367950634 | L184: 1.134808417 | M184: 1.000040308 | N184: 0.008978515358 | O184: 1 | P184: 0 | Q184: 1 | R184: 0 | S184: 0.9637347872 | T184: 0.1171029535 | U184: 3.094007665 | V184: -98.75528995 | W184: 81.24471005 | Y184: 1000000000 | Z184: 107163904 | AB184: 12.80619722 | AC184: -25.49332189 | AE184: 38.72928422 | AF184: -73.26196805 | AH184: 0 | AI184: 0
A185: 10411.5 | B185: 10.4115 | C185: 4.680156454 | D185: 1.355468116 | E185: 1.019075516 | F185: 0.1937892756 | G185: 1 | H185: 0 | I185: 41869.28439 | J185: 1.570772443 | K185: 2.379139284 | L185: 1.136998289 | M185: 1.000040773 | N185: 0.009030118208 | O185: 1 | P185: 0 | Q185: 1 | R185: 0 | S185: 0.9633198686 | T185: 0.1178301101 | U185: 3.043248073 | V185: -98.68127881 | W185: 81.31872119 | Y185: 1000000000 | Z185: 108399332.2 | AB185: 12.79735686 | AC185: -25.370816 | AE185: 38.68736498 | AF185: -73.31046282 | AH185: 0 | AI185: 0
A186: 10471 | B186: 10.471 | C186: 4.705685008 | D186: 1.356654524 | E186: 1.019292096 | F186: 0.1948690005 | G186: 1 | H186: 0 | I186: 42108.56042 | J186: 1.570772579 | K186: 2.390339236 | L186: 1.139167649 | M186: 1.00004124 | N186: 0.00908172101 | O186: 1 | P186: 0 | Q186: 1 | R186: 0 | S186: 0.9629026475 | T186: 0.1185582408 | U186: 2.992899233 | V186: -98.60777929 | W186: 81.39222071 | Y186: 1000000000 | Z186: 109641841 | AB186: 12.78864912 | AC186: -25.2494852 | AE186: 38.64572388 | AF186: -73.35829409 | AH186: 0 | AI186: 0
A187: 10532 | B187: 10.532 | C187: 4.73186394 | D187: 1.357857549 | E187: 1.01951537 | F187: 0.1959754679 | G187: 1 | H187: 0 | I187: 42353.86862 | J187: 1.570772716 | K187: 2.401833108 | L187: 1.141370685 | M187: 1.000041722 | N187: 0.009134624673 | O187: 1 | P187: 0 | Q187: 1 | R187: 0 | S187: 0.9624725194 | T187: 0.1193057464 | U187: 2.941702318 | V187: -98.53295494 | W187: 81.46704506 | Y187: 1000000000 | Z187: 110923024 | AB187: 12.77985685 | AC187: -25.12629956 | AE187: 38.60331923 | AF187: -73.40665537 | AH187: 0 | AI187: 0
A188: 10593 | B188: 10.593 | C188: 4.758049645 | D188: 1.359047335 | E188: 1.019739891 | F188: 0.1970814494 | G188: 1 | H188: 0 | I188: 42599.17682 | J188: 1.570772852 | K188: 2.413338526 | L188: 1.143552726 | M188: 1.000042207 | N188: 0.009187528285 | O188: 1 | P188: 0 | Q188: 1 | R188: 0 | S188: 0.9620399741 | T188: 0.1200542905 | U188: 2.890926668 | V188: -98.45866218 | W188: 81.54133782 | Y188: 1000000000 | Z188: 112211649 | AB188: 12.77119858 | AC188: -25.00431677 | AE188: 38.56120185 | AF188: -73.45434541 | AH188: 0 | AI188: 0
A189: 10654 | B189: 10.654 | C189: 4.784242011 | D189: 1.360224095 | E189: 1.019965659 | F189: 0.1981869426 | G189: 1 | H189: 0 | I189: 42844.48503 | J189: 1.570772987 | K189: 2.424855325 | L189: 1.14571405 | M189: 1.000042694 | N189: 0.009240431845 | O189: 1 | P189: 0 | Q189: 1 | R189: 0 | S189: 0.9616050133 | T189: 0.1208038807 | U189: 2.840567137 | V189: -98.3848979 | W189: 81.6151021 | Y189: 1000000000 | Z189: 113507716 | AB189: 12.76267167 | AC189: -24.88352087 | AE189: 38.51936923 | AF189: -73.50137704 | AH189: 0 | AI189: 0
A190: 10715 | B190: 10.715 | C190: 4.810440931 | D190: 1.361388038 | E190: 1.020192673 | F190: 0.1992919452 | G190: 1 | H190: 0 | I190: 43089.79323 | J190: 1.570773119 | K190: 2.436383345 | L190: 1.147854931 | M190: 1.000043185 | N190: 0.009293335354 | O190: 1 | P190: 0 | Q190: 1 | R190: 0 | S190: 0.9611676384 | T190: 0.1215545244 | U190: 2.790618678 | V190: -98.311659 | W190: 81.688341 | Y190: 1000000000 | Z190: 114811225 | AB190: 12.75427355 | AC190: -24.76389618 | AE190: 38.47781889 | AF190: -73.54776282 | AH190: 0 | AI190: 0
A191: 10777.5 | B191: 10.7775 | C191: 4.837290771 | D191: 1.362567525 | E191: 1.02042656 | F191: 0.2004236086 | G191: 1 | H191: 0 | I191: 43341.1336 | J191: 1.570773254 | K191: 2.448206312 | L191: 1.150027535 | M191: 1.00004369 | N191: 0.009347539715 | O191: 1 | P191: 0 | Q191: 1 | R191: 0 | S191: 0.9607170063 | T191: 0.1223247272 | U191: 2.739863157 | V191: -98.2371608 | W191: 81.7628392 | Y191: 1000000000 | Z191: 116154506.2 | AB191: 12.74579987 | AC191: -24.64252855 | AE191: 38.43553706 | AF191: -73.59463226 | AH191: 0 | AI191: 0
A192: 10840 | B192: 10.84 | C192: 4.864147267 | D192: 1.363733988 | E192: 1.020661754 | F192: 0.201554752 | G192: 1 | H192: 0 | I192: 43592.47397 | J192: 1.570773387 | K192: 2.460040724 | L192: 1.152179246 | M192: 1.000044198 | N192: 0.00940174402 | O192: 1 | P192: 0 | Q192: 1 | R192: 0 | S192: 0.9602638432 | T192: 0.1230960519 | U192: 2.689528746 | V192: -98.16320753 | W192: 81.83679247 | Y192: 1000000000 | Z192: 117505600 | AB192: 12.7374561 | AC192: -24.52235791 | AE192: 38.39354641 | AF192: -73.64084961 | AH192: 0 | AI192: 0
A193: 10902.5 | B193: 10.9025 | C193: 4.891010308 | D193: 1.36488764 | E193: 1.020898253 | F193: 0.2026853727 | G193: 1 | H193: 0 | I193: 43843.81434 | J193: 1.570773519 | K193: 2.471886417 | L193: 1.154310343 | M193: 1.000044709 | N193: 0.009455948271 | O193: 1 | P193: 0 | Q193: 1 | R193: 0 | S193: 0.9598081509 | T193: 0.1238685068 | U193: 2.639610321 | V193: -98.08979584 | W193: 81.91020416 | Y193: 1000000000 | Z193: 118864506.2 | AB193: 12.72923969 | AC193: -24.40336822 | AE193: 38.3518444 | AF193: -73.68642761 | AH193: 0 | AI193: 0
A194: 10965 | B194: 10.965 | C194: 4.917879788 | D194: 1.366028687 | E194: 1.021136057 | F194: 0.2038154682 | G194: 1 | H194: 0 | I194: 44095.15471 | J194: 1.570773649 | K194: 2.483743229 | L194: 1.156421104 | M194: 1.000045223 | N194: 0.009510152466 | O194: 1 | P194: 0 | Q194: 1 | R194: 0 | S194: 0.9593499311 | T194: 0.1246421001 | U194: 2.590102851 | V194: -98.0169224 | W194: 81.9830776 | Y194: 1000000000 | Z194: 120231225 | AB194: 12.72114811 | AC194: -24.28554368 | AE194: 38.3104285 | AF194: -73.73137872 | AH194: 0 | AI194: 0
A195: 11028.75 | B195: 11.02875 | C195: 4.945293181 | D195: 1.36717978 | E195: 1.021379959 | F195: 0.204967622 | G195: 1 | H195: 0 | I195: 44351.52189 | J195: 1.57077378 | K195: 2.495848467 | L195: 1.158553409 | M195: 1.000045751 | N195: 0.009565440687 | O195: 1 | P195: 0 | Q195: 1 | R195: 0 | S195: 0.9588799449 | T195: 0.1254323464 | U195: 2.540023482 | V195: -97.94314258 | W195: 82.05685742 | Y195: 1000000000 | Z195: 121633326.6 | AB195: 12.71302077 | AC195: -24.16654687 | AE195: 38.26847648 | AF195: -73.77659571 | AH195: 0 | AI195: 0
A196: 11092.5 | B196: 11.0925 | C196: 4.972713055 | D196: 1.36831818 | E196: 1.021625217 | F196: 0.2061192242 | G196: 1 | H196: 0 | I196: 44607.88907 | J196: 1.570773909 | K196: 2.507964944 | L196: 1.160665121 | M196: 1.000046281 | N196: 0.00962072885 | O196: 1 | P196: 0 | Q196: 1 | R196: 0 | S196: 0.9584073327 | T196: 0.1262237943 | U196: 2.490361402 | V196: -97.8699158 | W196: 82.1300842 | Y196: 1000000000 | Z196: 123043556.2 | AB196: 12.70501821 | AC196: -24.0487299 | AE196: 38.22681696 | AF196: -73.8211859 | AH196: 0 | AI196: 0
A197: 11156.25 | B197: 11.15625 | C197: 5.000139302 | D197: 1.369444093 | E197: 1.021871829 | F197: 0.207270272 | G197: 1 | H197: 0 | I197: 44864.25625 | J197: 1.570774037 | K197: 2.520092497 | L197: 1.162756517 | M197: 1.000046814 | N197: 0.009676016953 | O197: 1 | P197: 0 | Q197: 1 | R197: 0 | S197: 0.9579320963 | T197: 0.1270164526 | U197: 2.441111575 | V197: -97.79723857 | W197: 82.20276143 | Y197: 1000000000 | Z197: 124461914.1 | AB197: 12.69713796 | AC197: -23.93207682 | AE197: 38.18544738 | AF197: -73.86516174 | AH197: 0 | AI197: 0
A198: 11220 | B198: 11.22 | C198: 5.027571819 | D198: 1.37055772 | E198: 1.022119794 | F198: 0.2084207629 | G198: 1 | H198: 0 | I198: 45120.62343 | J198: 1.570774164 | K198: 2.532230968 | L198: 1.164827872 | M198: 1.000047351 | N198: 0.009731304998 | O198: 1 | P198: 0 | Q198: 1 | R198: 0 | S198: 0.9574542377 | T198: 0.1278103302 | U198: 2.392269056 | V198: -97.72510741 | W198: 82.27489259 | Y198: 1000000000 | Z198: 125888400 | AB198: 12.68937761 | AC198: -23.81657196 | AE198: 38.14436522 | AF198: -73.90853545 | AH198: 0 | AI198: 0
A199: 11285.5 | B199: 11.2855 | C199: 5.055763808 | D199: 1.371689329 | E199: 1.022375974 | F199: 0.209602253 | G199: 1 | H199: 0 | I199: 45384.02813 | J199: 1.570774293 | K199: 2.544713858 | L199: 1.166935496 | M199: 1.000047905 | N199: 0.009788110692 | O199: 1 | P199: 0 | Q199: 1 | R199: 0 | S199: 0.9569605322 | T199: 0.1286272796 | U199: 2.342504901 | V199: -97.6515613 | W199: 82.3484387 | Y199: 1000000000 | Z199: 127362510.2 | AB199: 12.68152661 | AC199: -23.69907609 | AE199: 38.10245206 | AF199: -73.95248521 | AH199: 0 | AI199: 0
A200: 11351 | B200: 11.351 | C200: 5.083962199 | D200: 1.372808386 | E200: 1.022633581 | F200: 0.2107831495 | G200: 1 | H200: 0 | I200: 45647.43284 | J200: 1.57077442 | K200: 2.557207941 | L200: 1.169022535 | M200: 1.000048463 | N200: 0.009844916323 | O200: 1 | P200: 0 | Q200: 1 | R200: 0 | S200: 0.9564640625 | T200: 0.129445535 | U200: 2.293160448 | V200: -97.57858427 | W200: 82.42141573 | Y200: 1000000000 | Z200: 128845201 | AB200: 12.67379719 | AC200: -23.58275961 | AE200: 38.06083703 | AF200: -73.99582467 | AH200: 0 | AI200: 0
A201: 11416.5 | B201: 11.4165 | C201: 5.112166887 | D201: 1.373915097 | E201: 1.022892614 | F201: 0.2119634496 | G201: 1 | H201: 0 | I201: 45910.83755 | J201: 1.570774545 | K201: 2.569713054 | L201: 1.171089269 | M201: 1.000049024 | N201: 0.00990172189 | O201: 1 | P201: 0 | Q201: 1 | R201: 0 | S201: 0.9559648307 | T201: 0.1302651062 | U201: 2.244230637 | V201: -97.50617262 | W201: 82.49382738 | Y201: 1000000000 | Z201: 130336472.2 | AB201: 12.6661869 | AC201: -23.46760635 | AE201: 38.01951751 | AF201: -74.03856626 | AH201: 0 | AI201: 0
A202: 11482 | B202: 11.482 | C202: 5.140377767 | D202: 1.375009661 | E202: 1.02315307 | F202: 0.2131431504 | G202: 1 | H202: 0 | I202: 46174.24226 | J202: 1.57077467 | K202: 2.582229038 | L202: 1.173135978 | M202: 1.000049588 | N202: 0.009958527393 | O202: 1 | P202: 0 | Q202: 1 | R202: 0 | S202: 0.955462839 | T202: 0.1310860028 | U202: 2.195710506 | V202: -97.43432264 | W202: 82.56567736 | Y202: 1000000000 | Z202: 131836324 | AB202: 12.65869336 | AC202: -23.35360042 | AE202: 37.97849091 | AF202: -74.08072222 | AH202: 0 | AI202: 0
... 433 more rows

Sheet Bode Plot Management (hidden)
J1: Single or dual output (MODE) | N1: 3.3V or 5V fixed (FB1/2)
A2: =CHOOSE(BODE_PLOT_TYPE, "BODE_PLOT_Ch1", "BODE_PLOT_Ch2") -> BODE_PLOT_Ch1 | J2: With/without dither (DITH) | N2: With/without VOUT connected to VCCX
J3: FPWM or DEM (DEMB)
J4: Shunt or inductor DCR current sensing
F6: =INDIRECT(A2) -> 0

Sheet Efficiency Calculations (hidden)
A1: BUCK CONTROLLER POWER DESIGN TOOL
H2: =AV19 -> 0.894650307 | I2: 10% load
H3: =AV59 -> 0.9480871977 | I3: 50% load | AP3: =IF(MODE=1, (Qg_Q1+Qg_Q2)*Fsw*Vin, (Qg_Q1+Qg_Q2+Qg_Q3+Qg_Q4)*Fsw*Vin) -> 0.03444
H4: =AV109 -> 0.9199519979 | I4: 100% load | AO4: I_VCC | AP4: =(Qg_Q1+Qg_Q2)*Fsw*1000 -> 2.05 | AQ4: mA | AR4: =AP4*5/1000 -> 0.01025
A6: Enter the values of your design and MOSFET datasheet specifications below. Note that thermal resistance (θJA) will change when components are placed on the PCB
G7: Operating Point Condtions | R7: Filter Inductor | V7: Cout | Y7: Cin | AB7: High-side BUCK "Control" MOSFET Losses | AH7: Low-side BUCK "Sync" MOSFET Losses | AL7: External Diode | AM7: Diode/FET | AN7: Sense Rs | AO7: Controller IC Losses | AT7: RESULTS | AZ7: Consolidated Buck/Boost Efficiency & Losses
A8: Input Parameters | G8: Step | H8: Vin | I8: Mode | J8: Iout | K8: Iout/ phase | L8: Iin | M8: Duty Cycle BUCK Leg | N8: Ripple Current pk-pk | O8: Peak Inductor Current | P8: Valley Inductor Current | Q8: SW node voltage at Q1 turn-on | R8: Irms Lf | S8: DCR Loss | T8: Core Loss | U8: Total Inductor Loss | V8: Irms Cout | W8: Cout ESR Loss | X8: Total Cout Loss | Y8: Irms Cin | Z8: Cin ESR Loss | AA8: Total Cin Loss | AB8: Irms | AC8: RDS(on) Loss | AD8: Transition Loss (not including capacitive loss) | AE8: MOSFET Output Capacitance Loss | AF8: Dead Time Loss | AG8: Total Control MOSFET Loss | AH8: Irms | AI8: RDS(on) Loss | AJ8: Deadtime Loss | AK8: Total Sync MOSFET Loss | AL8: Deadtime Loss | AM8: Reverse Recovery Loss | AN8: Isense Shunt Loss | AO8: IQ Loss | AP8: Switching Current Loss | AQ8: Switching Current Diss | AR8: LDO Loss Saved from Gate Drive Current (ext VCC) | AS8: Total IC Loss | AT8: Total Loss | AU8: Pout | AV8: EFF, h | AW8: =IF(Vin>Vout, "Buck ''CONTROL'' MOSFET Temp Rise", "Boost ''CONTROL'' MOSFET Temp Rise") -> Buck ''CONTROL'' MOSFET Temp Rise | AX8: =IF(Vin>Vout, "Buck ''SYNC'' MOSFET Temp Rise", "Boost ''SYNC'' MOSFET Temp Rise") -> Buck ''SYNC'' MOSFET Temp Rise | AZ8: h | BA8: Inductor Cu & Core Loss | BB8: Total MOSFET Loss | BC8: Control MOSFET Loss | BD8: SYNC MOSFET Loss | BE8: Shunt Loss
A9: Design | B9: Input Value | C9: Units | D9: Description | G9: 0 | H9: =Vin -> 16.8 | I9: =MODE -> 1 | J9: 0 | K9: =Iout*G9/100/Number_of_Phases -> 0 | L9: =Vout*K9/(Vin*Efficiency) -> 0 | M9: =(Vout+(Rdson2+Rs+Rdcr)*K9)/(Vin+(Rs+Rdson2-Rdson1)*K9) -> 0.4404761905 | N9: =(Vin-(Rdson1+Rdcr)*K9-Vout)*M9/(Fsw*Lf) -> 12.54689755 | O9: =K9+N9/2 -> 6.273448773 | P9: =K9-N9/2 -> -6.273448773 | Q9: =IF(MIN(Vin, -P9/(Coss_Q1+Coss_Q2)*0.00000002)<0, 0, MIN(Vin, -P9/(Coss_Q1+Coss_Q2)*0.00000002)) -> 16.8 | R9: =SQRT(K9^2+(N9^2)/12) -> 3.621977338 | S9: =R9^2*Rdcr -> 0.1836620777 | T9: =Core_Loss_Ch1 -> 0.2 | U9: =(T9+S9*(1+Ltc*(Ta-25)))/(1-S9*Ltc*ThetaCa) -> 0.389383273 | V9: =N9/SQRT(12) -> 3.621977338 | W9: =RCoutEsr*V9^2 -> 0.2623743968 | X9: =W9 -> 0.2623743968 | Y9: =SQRT(M9*(1-M9))*SQRT(K9^2+(N9^2)/12) -> 1.798109906 | Z9: =RCinEsr*Y9^2 -> 0.0001616599617 | AA9: =Z9 -> 0.0001616599617 | AB9: =SQRT(M9)*SQRT(K9^2+(N9^2)/12) -> 2.403847694 | AC9: =Rdson1*AB9^2 -> 0.1444620935 | AD9: =(Vin*K9/2)*Fsw*(Tr_buck+Tf_buck) -> 0 | AE9: =(0.5*Coss_Q1*(Vin-Q9)^2-0.5*Coss_Q2*(Vin-Q9)^2+(Qoss_Q2*(Vin-Q9)/Vin)*Vin)*Fsw -> 0 | AF9: =IF(K9>N9/2,0,ABS(K9-N9/2)*Vsd_Q1*Deadtime*Fsw) -> 0.007026262626 | AG9: =(AF9+AE9+AD9+AC9*(1+RdsonTopTc*Ta-RdsonTopTc*25))/(1-AC9*RdsonTopTc*ThetaJA_Q1) -> 0.1553483716 | AH9: =SQRT((1-M9))*SQRT(K9^2+(N9^2)/12) -> 2.709287009 | AI9: =Rdson2*AH9^2 -> 0.0807425971 | AJ9: =IF(K9<N9/2,Deadtime*Fsw*IF(VfdSky_Q2>0,0,Vsd_Q2)*(K9+N9/2),2*Deadtime*Fsw*IF(VfdSky_Q2>0,0,Vsd_Q2)*K9) -> 0.007026262626 | AK9: =(AJ9+AI9*(1+RdsonBotTc*Ta-RdsonBotTc*25))/(1-AI9*RdsonBotTc*ThetaJA_Q2) -> 0.08885942026 | AL9: =2*Deadtime*Fsw*IF(VfdSky_Q2>0,VfdSky_Q2,Vsd_Q2)*K9 -> 0 | AM9: =IF(QrrSky_Q2>0,QrrSky_Q2,Qrr_Q2*K9/(Iout/Number_of_Phases))*Fsw*Vin -> 0 | AN9: =Rs*R9^2 -> 0.04591551943 | AO9: =Iq*Vin -> 3.696e-05 | AP9: =IF(Ext_VCC=1, (Qg_Q1+Qg_Q2)*Fsw*VCC, (Qg_Q1+Qg_Q2)*Fsw*Vin) -> 0.03444 | AQ9: =(Vin-VCC)*Fsw*(Qg_Q1+Qg_Q2)+(RdsonDRT+RdsonDRT2)*Fsw*Qg_Q1*VCC/(RdsonDRT+2*Rgate1+RdsonDRT2)+(RdsonDRB+RdsonDRB2)*Fsw*Qg_Q2*VCC/(RdsonDRB+2*Rgate2+RdsonDRB2) -> 0.03034 | AR9: =(Qg_Q1+Qg_Q2)*Fsw*(Vin-VCC) -> 0.02419 | AS9: =SUM(AO9:AP9) -> 0.03447696 | AT9: =SUM(U9,X9,AA9,AG9,AK9,AL9,AM9,AS9,AN9) -> 0.9765196011 | AU9: =Vout*K9 -> 0 | AV9: =AU9/(AU9+AT9) -> 0 | AW9: =ThetaJA_Q1*BC9 -> 6.679979981 | AX9: =ThetaJA_Q2*BD9 -> 3.37665797 | AZ9: =AV9*100 -> 0 | BA9: =U9 -> 0.389383273 | BB9: =AG9+AK9+AM9 -> 0.2442077919 | BC9: =AG9+AM9*0.66 -> 0.1553483716 | BD9: =AK9+AM9*0.33 -> 0.08885942026 | BE9: =AN9 -> 0.04591551943
G10: 1 | H10: 16.8 | I10: 1 | J10: =Iout*G10/100 -> 0.12 | K10: 0.12 | L10: 0.05873015873 | M10: 0.4407128154 | N10: 12.54738766 | O10: =K10+N10/2 -> 6.393693831 | P10: =K10-N10/2 -> -6.153693831 | Q10: 16.8 | R10: =SQRT(K10^2+(N10^2)/12) -> 3.624106064 | S10: 0.1838780267 | T10: 0.2 | U10: 0.3896092734 | V10: =N10/SQRT(12) -> 3.622118822 | W10: 0.2623948952 | X10: =W10 -> 0.2623948952 | Y10: =SQRT(M10*(1-M10))*SQRT(K10^2+(N10^2)/12) -> 1.799269313 | Z10: 0.0001618685031 | AA10: =Z10 -> 0.0001618685031 | AB10: =SQRT(M10)*SQRT(K10^2+(N10^2)/12) -> 2.405906464 | AC10: 0.1447096479 | AD10: 0.0003193205165 | AE10: 0 | AF10: 0.006892137091 | AG10: 0.1557989506 | AH10: 2.710306043 | AI10: 0.08080334731 | AJ10: 0.007160937091 | AK10: 0.08905810574 | AL10: 0.0002688 | AM10: 0.001008 | AN10: 0.04596950667 | AO10: 3.696e-05 | AP10: 0.03444 | AQ10: 0.03034 | AR10: 0.02419 | AS10: 0.03447696 | AT10: 0.9787463602 | AU10: 0.888 | AV10: =AU10/(AU10+AT10) -> 0.4756939769 | AW10: 6.727961917 | AX10: 3.396848338 | AZ10: =AV10*100 -> 47.56939769 | BA10: 0.3896092734 | BB10: 0.2458650564 | BC10: 0.1564642306 | BD10: 0.08939074574 | BE10: 0.04596950667
A11: Vin | B11: =Vin -> 16.8 | C11: V | D11: Vin | G11: 2 | H11: 16.8 | I11: 1 | J11: 0.24 | K11: 0.24 | L11: 0.1174603175 | M11: 0.4409494758 | N11: 12.54787208 | O11: 6.513936038 | P11: -6.033936038 | Q11: 16.8 | R11: 3.630200794 | S11: 0.1844970092 | T11: 0.2 | U11: 0.3902571108 | V11: 3.62225866 | W11: 0.262415156 | X11: 0.262415156 | Y11: 1.802397566 | Z11: 0.0001624318493 | AA11: 0.0001624318493 | AB11: 2.410599503 | AC11: 0.1452747491 | AD11: 0.000638641033 | AE11: 0 | AF11: 0.006758008362 | AG11: 0.1565840032 | AH11: 2.714289564 | AI11: 0.08104104622 | AJ11: 0.007295608362 | AK11: 0.0894383779 | AL11: 0.0005376 | AM11: 0.002016 | AN11: 0.04612425231 | AO11: 3.696e-05 | AP11: 0.03444 | AQ11: 0.03034 | AR11: 0.02419 | AS11: 0.03447696 | AT11: 0.9820118921 | AU11: 1.776 | AV11: 0.643942111 | AW11: 6.790326218 | AX11: 3.423939 | AZ11: 64.3942111 | BA11: 0.3902571108 | BB11: 0.2480383811 | BC11: 0.1579145632 | BD11: 0.0901036579 | BE11: 0.04612425231
A12: Vout | B12: =Vout -> 7.4 | C12: V | D12: Vout | G12: 3 | H12: 16.8 | I12: 1 | J12: 0.36 | K12: 0.36 | L12: 0.1761904762 | M12: 0.4411861717 | N12: 12.54835079 | O12: 6.634175393 | P12: -5.914175393 | Q12: 16.8 | R12: 3.640241607 | S12: 0.1855190254 | T12: 0.2 | U12: 0.3913269124 | V12: 3.622396852 | W12: 0.2624351791 | X12: 0.2624351791 | Y12: 1.807485106 | Z12: 0.0001633501204 | AA12: 0.0001633501204 | AB12: 2.417915699 | AC12: 0.1461579082 | AD12: 0.0009579615495 | AE12: 0 | AF12: 0.006623876441 | AG12: 0.1577042998 | AH12: 2.721220798 | AI12: 0.08145546892 | AJ12: 0.007430276441 | AK12: 0.09000005688 | AL12: 0.0008064 | AM12: 0.003024 | AN12: 0.04637975635 | AO12: 3.696e-05 | AP12: 0.03444 | AQ12: 0.03034 | AR12: 0.02419 | AS12: 0.03447696 | AT12: 0.9863169147 | AU12: 2.664 | AV12: 0.7297996482 | AW12: 6.867106012 | AX12: 3.457923121 | AZ12: 72.97996482 | BA12: 0.3913269124 | BB12: 0.2507283567 | BC12: 0.1597001398 | BD12: 0.09099797688 | BE12: 0.04637975635
A13: Fsw | B13: =Fsw/1000 -> 100 | C13: kHz | D13: Switching Frequency | G13: 4 | H13: 16.8 | I13: 1 | J13: 0.48 | K13: 0.48 | L13: 0.2349206349 | M13: 0.4414229031 | N13: 12.54882379 | O13: 6.754411897 | P13: -5.794411897 | Q13: 16.8 | R13: 3.654195974 | S13: 0.186944075 | T13: 0.2 | U13: 0.3928188881 | V13: 3.622533398 | W13: 0.2624549644 | X13: 0.2624549644 | Y13: 1.81451611 | Z13: 0.0001646234357 | AA13: 0.0001646234357 | AB13: 2.427835549 | AC13: 0.1473596363 | AD13: 0.001277282066 | AE13: 0 | AF13: 0.006489741325 | AG13: 0.1591607247 | AH13: 2.731073556 | AI13: 0.08204639043 | AJ13: 0.007564941325 | AK13: 0.09074299227 | AL13: 0.0010752 | AM13: 0.004032 | AN13: 0.04673601876 | AO13: 3.696e-05 | AP13: 0.03444 | AQ13: 0.03034 | AR13: 0.02419 | AS13: 0.03447696 | AT13: 0.9916623717 | AU13: 3.552 | AV13: 0.7817482263 | AW13: 6.958339323 | AX13: 3.498794986 | AZ13: 78.17482263 | BA13: 0.3928188881 | BB13: 0.253935717 | BC13: 0.1618218447 | BD13: 0.09207355227 | BE13: 0.04673601876
A14: Iout | B14: =Iout -> 12 | C14: A | D14: Max Output Current | G14: 5 | H14: 16.8 | I14: 1 | J14: 0.6 | K14: 0.6 | L14: 0.2936507937 | M14: 0.44165967 | N14: 12.5492911 | O14: 6.874645548 | P14: -5.674645548 | Q14: 16.8 | R14: 3.672019279 | S14: 0.1887721582 | T14: 0.2 | U14: 0.3947333312 | V14: 3.622668296 | W14: 0.2624745117 | X14: 0.2624745117 | Y14: 1.823468746 | Z14: 0.0001662519134 | AA14: 0.0001662519134 | AB14: 2.440331492 | AC14: 0.1488804448 | AD14: 0.001596602582 | AE14: 0 | AF14: 0.006355603014 | AG14: 0.1609542768 | AH14: 2.743812638 | AI14: 0.08281358572 | AJ14: 0.007699603014 | AK14: 0.09166706301 | AL14: 0.001344 | AM14: 0.00504 | AN14: 0.04719303955 | AO14: 3.696e-05 | AP14: 0.03444 | AQ14: 0.03034 | AR14: 0.02419 | AS14: 0.03447696 | AT14: 0.9980494342 | AU14: 4.44 | AV14: 0.8164692237 | AW14: 7.064069103 | AX14: 3.546549995 | AZ14: 81.64692237 | BA14: 0.3947333312 | BB14: 0.2576613398 | BC14: 0.1642806768 | BD14: 0.09333026301 | BE14: 0.04719303955
A15: Ta | B15: =Ta -> 25 | C15: °C | D15: Ambient Temperature | G15: 6 | H15: 16.8 | I15: 1 | J15: 0.72 | K15: 0.72 | L15: 0.3523809524 | M15: 0.4418964725 | N15: 12.54975269 | O15: 6.994876346 | P15: -5.554876346 | Q15: 16.8 | R15: 3.693655513 | S15: 0.1910032747 | T15: 0.2 | U15: 0.3970706178 | V15: 3.622801547 | W15: 0.262493821 | X15: 0.262493821 | Y15: 1.834315517 | Z15: 0.0001682356708 | AA15: 0.0001682356708 | AB15: 2.455368365 | AC15: 0.1507208452 | AD15: 0.001915923099 | AE15: 0 | AF15: 0.006221461507 | AG15: 0.1630860707 | AH15: 2.759394362 | AI15: 0.08375682967 | AJ15: 0.007834261507 | AK15: 0.0927721773 | AL15: 0.0016128 | AM15: 0.006048 | AN15: 0.04775081868 | AO15: 3.696e-05 | AP15: 0.03444 | AQ15: 0.03034 | AR15: 0.02419 | AS15: 0.03447696 | AT15: 1.005479501 | AU15: 5.328 | AV15: 0.8412437427 | AW15: 7.184343282 | AX15: 3.601184657 | AZ15: 84.12437427 | BA15: 0.3970706178 | BB15: 0.261906248 | BC15: 0.1670777507 | BD15: 0.0947680173 | BE15: 0.04775081868
A16: Vcc | B16: =VCC -> 5 | C16: V | D16: Subregulated VCC Voltage | G16: 7 | H16: 16.8 | I16: 1 | J16: 0.84 | K16: 0.84 | L16: 0.4111111111 | M16: 0.4421333105 | N16: 12.55020858 | O16: 7.11510429 | P16: -5.43510429 | Q16: 16.8 | R16: 3.71903813 | S16: 0.1936374246 | T16: 0.2 | U16: 0.3998312074 | V16: 3.622933151 | W16: 0.2625128923 | X16: 0.2625128923 | Y16: 1.847023684 | Z16: 0.0001705748244 | AA16: 0.0001705748244 | AB16: 2.472903955 | AC16: 0.1528813492 | AD16: 0.002235243615 | AE16: 0 | AF16: 0.006087316804 | AG16: 0.1655573379 | AH16: 2.777767205 | AI16: 0.0848758971 | AJ16: 0.007968916804 | AK16: 0.0940582725 | AL16: 0.0018816 | AM16: 0.007056 | AN16: 0.04840935615 | AO16: 3.696e-05 | AP16: 0.03444 | AQ16: 0.03034 | AR16: 0.02419 | AS16: 0.03447696 | AT16: 1.013954201 | AU16: 6.216 | AV16: 0.8597564835 | AW16: 7.319214809 | AX16: 3.662696595 | AZ16: 85.97564835 | BA16: 0.3998312074 | BB16: 0.2666716104 | BC16: 0.1702142979 | BD16: 0.0963867525 | BE16: 0.04840935615
A17: Components | B17: Input Value | C17: Units | D17: Description | G17: 8 | H17: 16.8 | I17: 1 | J17: 0.96 | K17: 0.96 | L17: 0.4698412698 | M17: 0.442370184 | N17: 12.55065876 | O17: 7.235329379 | P17: -5.315329379 | Q17: 16.8 | R17: 3.748091017 | S17: 0.1966746078 | T17: 0.2 | U17: 0.4030156433 | V17: 3.623063106 | W17: 0.2625317254 | X17: 0.2625317254 | Y17: 1.861555745 | Z17: 0.0001732694896 | AA17: 0.0001732694896 | AB17: 2.492889638 | AC17: 0.1553624686 | AD17: 0.002554564132 | AE17: 0 | AF17: 0.005953168904 | AG17: 0.1683694275 | AH17: 2.798872545 | AI17: 0.08617056278 | AJ17: 0.008103568904 | AK17: 0.09552531515 | AL17: 0.0021504 | AM17: 0.008064 | AN17: 0.04916865195 | AO17: 3.696e-05 | AP17: 0.03444 | AQ17: 0.03034 | AR17: 0.02419 | AS17: 0.03447696 | AT17: 1.023475393 | AU17: 7.104 | AV17: 0.8740721634 | AW17: 7.468741704 | AX17: 3.731084536 | AZ17: 87.40721634 | BA17: 0.4030156433 | BB17: 0.2719587427 | BC17: 0.1736916675 | BD17: 0.09818643515 | BE17: 0.04916865195
A18: L | B18: =Lf*1000000 -> 3.3 | C18: uH | D18: Filter Inductance | G18: 9 | H18: 16.8 | I18: 1 | J18: 1.08 | K18: 1.08 | L18: 0.5285714286 | M18: 0.4426070931 | N18: 12.55110323 | O18: 7.355551613 | P18: -5.195551613 | Q18: 16.8 | R18: 3.780729561 | S18: 0.2001148242 | T18: 0.2 | U18: 0.4066245523 | V18: 3.623191413 | W18: 0.2625503203 | X18: 0.2625503203 | Y18: 1.877869969 | Z18: 0.000176319781 | AA18: 0.000176319781 | AB18: 2.515271082 | AC18: 0.1581647154 | AD18: 0.002873884648 | AE18: 0 | AF18: 0.005819017807 | AG18: 0.1715238083 | AH18: 2.822645461 | AI18: 0.08764060139 | AJ18: 0.008238217807 | AK18: 0.09717330082 | AL18: 0.0024192 | AM18: 0.009072 | AN18: 0.05002870606 | AO18: 3.696e-05 | AP18: 0.03444 | AQ18: 0.03034 | AR18: 0.02419 | AS18: 0.03447696 | AT18: 1.034045168 | AU18: 7.992 | AV18: 0.8854376254 | AW18: 7.632987119 | AX18: 3.806348311 | AZ18: 88.54376254 | BA18: 0.4066245523 | BB18: 0.2777691092 | BC18: 0.1775113283 | BD18: 0.1001670608 | BE18: 0.05002870606
A19: Rdcr | B19: =Rdcr*1000 -> 14 | C19: mW | D19: Inductor DCR at 25°C | G19: 10 | H19: 16.8 | I19: 1 | J19: 1.2 | K19: 1.2 | L19: 0.5873015873 | M19: 0.4428440378 | N19: 12.55154198 | O19: 7.475770991 | P19: -5.075770991 | Q19: 16.8 | R19: 3.81686178 | S19: 0.2039580738 | T19: 0.2 | U19: 0.4106586455 | V19: 3.623318071 | W19: 0.2625686769 | X19: 0.2625686769 | Y19: 1.895920949 | Z19: 0.0001797258122 | AA19: 0.0001797258122 | AB19: 2.53998899 | AC19: 0.1612886017 | AD19: 0.003193205165 | AE19: 0 | AF19: 0.00568486351 | AG19: 0.1750220695 | AH19: 2.84901558 | AI19: 0.08928578755 | AJ19: 0.00837286351 | AK19: 0.09900225418 | AL19: 0.002688 | AM19: 0.01008 | AN19: 0.05098951846 | AO19: 3.696e-05 | AP19: 0.03444 | AQ19: 0.03034 | AR19: 0.02419 | AS19: 0.03447696 | AT19: 1.04566585 | AU19: 8.88 | AV19: 0.894650307 | AW19: 7.81201939 | AX19: 3.888488859 | AZ19: 89.4650307 | BA19: 0.4106586455 | BB19: 0.2841043237 | BC19: 0.1816748695 | BD19: 0.1023286542 | BE19: 0.05098951846
A20: LTc | B20: =Ltc*1000000 -> 4000 | C20: ppm | D20: Inductor Series Resistance Temp Co | G20: 11 | H20: 16.8 | I20: 1 | J20: 1.32 | K20: 1.32 | L20: 0.646031746 | M20: 0.443081018 | N20: 12.55197503 | O20: 7.595987513 | P20: -4.955987513 | Q20: 16.8 | R20: 3.856389471 | S20: 0.2082043566 | T20: 0.2 | U20: 0.4151187186 | V20: 3.62344308 | W20: 0.2625867951 | X20: 0.2625867951 | Y20: 1.915660177 | Z20: 0.0001834876957 | AA20: 0.0001834876957 | AB20: 2.566979858 | AC20: 0.1647346398 | AD20: 0.003512525681 | AE20: 0 | AF20: 0.005550706015 | AG20: 0.1788659226 | AH20: 2.877907949 | AI20: 0.09110589581 | AJ20: 0.008507506015 | AK20: 0.1010122289 | AL20: 0.0029568 | AM20: 0.011088 | AN20: 0.05205108914 | AO20: 3.696e-05 | AP20: 0.03444 | AQ20: 0.03034 | AR20: 0.02419 | AS20: 0.03447696 | AT20: 1.058340002 | AU20: 9.768 | AV20: 0.9022439715 | AW20: 8.00591211 | AX20: 3.977508218 | AZ20: 90.22439715 | BA20: 0.4151187186 | BB20: 0.2909661514 | BC20: 0.1861840026 | BD20: 0.1046712689 | BE20: 0.05205108914
A21: ThetaCa | B21: =ThetaCa -> 20 | C21: °C/W | D21: Core to Ambient Thermal Resistance | G21: 12 | H21: 16.8 | I21: 1 | J21: 1.44 | K21: 1.44 | L21: 0.7047619048 | M21: 0.4433180338 | N21: 12.55240236 | O21: 7.716201178 | P21: -4.836201178 | Q21: 16.8 | R21: 3.899209374 | S21: 0.2128536724 | T21: 0.2 | U21: 0.420005652 | V21: 3.62356644 | W21: 0.2626046748 | X21: 0.2626046748 | Y21: 1.937036621 | Z21: 0.0001876055435 | AA21: 0.0001876055435 | AB21: 2.596176743 | AC21: 0.168503342 | AD21: 0.003831846198 | AE21: 0 | AF21: 0.005416545319 | AG21: 0.1830572026 | AH21: 2.909243898 | AI21: 0.09310070066 | AJ21: 0.008642145319 | AK21: 0.1032033076 | AL21: 0.0032256 | AM21: 0.012096 | AN21: 0.0532134181 | AO21: 3.696e-05 | AP21: 0.03444 | AQ21: 0.03034 | AR21: 0.02419 | AS21: 0.03447696 | AT21: 1.072070421 | AU21: 10.656 | AV21: 0.9085893602 | AW21: 8.214744193 | AX21: 4.07340953 | AZ21: 90.85893602 | BA21: 0.420005652 | BB21: 0.2983565102 | BC21: 0.1910405626 | BD21: 0.1071949876 | BE21: 0.0532134181
A22: Cin | B22: =Cin*1000000 -> 160 | C22: μF | D22: Input Capacitance | G22: 13 | H22: 16.8 | I22: 1 | J22: 1.56 | K22: 1.56 | L22: 0.7634920635 | M22: 0.4435550853 | N22: 12.55282397 | O22: 7.836411985 | P22: -4.716411985 | Q22: 16.8 | R22: 3.945214291 | S22: 0.2179060212 | T22: 0.2 | U22: 0.4253204115 | V22: 3.623688149 | W22: 0.262622316 | X22: 0.262622316 | Y22: 1.959997276 | Z22: 0.0001920794662 | AA22: 0.0001920794662 | AB22: 2.627510008 | AC22: 0.1725952211 | AD22: 0.004151166714 | AE22: 0 | AF22: 0.005282381423 | AG22: 0.1875978705 | AH22: 2.942941888 | AI22: 0.09526997653 | AJ22: 0.008776781423 | AK22: 0.1055756021 | AL22: 0.0034944 | AM22: 0.013104 | AN22: 0.0544765053 | AO22: 3.696e-05 | AP22: 0.03444 | AQ22: 0.03034 | AR22: 0.02419 | AS22: 0.03447696 | AT22: 1.086860145 | AU22: 11.544 | AV22: 0.9139520086 | AW22: 8.438599953 | AX22: 4.176197039 | AZ22: 91.39520086 | BA22: 0.4253204115 | BB22: 0.3062774726 | BC22: 0.1962465105 | BD22: 0.1098999221 | BE22: 0.0544765053
A23: RCinEsr | B23: =RCinEsr*1000 -> 0.05 | C23: mW | D23: Input Capacitor ESR | G23: 14 | H23: 16.8 | I23: 1 | J23: 1.68 | K23: 1.68 | L23: 0.8222222222 | M23: 0.4437921723 | N23: 12.55323987 | O23: 7.956619933 | P23: -4.596619933 | Q23: 16.8 | R23: 3.994294172 | S23: 0.223361403 | T23: 0.2 | U23: 0.4310640487 | V23: 3.623808208 | W23: 0.2626397186 | X23: 0.2626397186 | Y23: 1.984487711 | Z23: 0.0001969095737 | AA23: 0.0001969095737 | AB23: 2.660908038 | AC23: 0.1770107897 | AD23: 0.004470487231 | AE23: 0 | AF23: 0.005148214325 | AG23: 0.1924900145 | AH23: 2.978918317 | AI23: 0.09761349775 | AJ23: 0.008911414325 | AK23: 0.108129253 | AL23: 0.0037632 | AM23: 0.014112 | AN23: 0.05584035075 | AO23: 3.696e-05 | AP23: 0.03444 | AQ23: 0.03034 | AR23: 0.02419 | AS23: 0.03447696 | AT23: 1.102712455 | AU23: 12.432 | AV23: 0.9185270866 | AW23: 8.677569184 | AX23: 4.285876095 | AZ23: 91.85270866 | BA23: 0.4310640487 | BB23: 0.3147312675 | BC23: 0.2018039345 | BD23: 0.112786213 | BE23: 0.05584035075
A24: Cout | B24: =Cout*1000000 -> 150 | C24: μF | D24: Output Capcitance | G24: 15 | H24: 16.8 | I24: 1 | J24: 1.8 | K24: 1.8 | L24: 0.880952381 | M24: 0.4440292949 | N24: 12.55365005 | O24: 8.076825023 | P24: -4.476825023 | Q24: 16.8 | R24: 4.046337124 | S24: 0.2292198177 | T24: 0.2 | U24: 0.4372377014 | V24: 3.623926617 | W24: 0.2626568825 | X24: 0.2626568825 | Y24: 2.01045256 | Z24: 0.0002020959749 | AA24: 0.0002020959749 | AB24: 2.696297912 | AC24: 0.1817505608 | AD24: 0.004789807747 | AE24: 0 | AF24: 0.005014044026 | AG24: 0.1977358521 | AH24: 3.01708828 | AI24: 0.1001310386 | AJ24: 0.009046044026 | AK24: 0.1108644302 | AL24: 0.004032 | AM24: 0.01512 | AN24: 0.05730495443 | AO24: 3.696e-05 | AP24: 0.03444 | AQ24: 0.03034 | AR24: 0.02419 | AS24: 0.03447696 | AT24: 1.119630877 | AU24: 13.32 | AV24: 0.9224612536 | AW24: 8.93174724 | AX24: 4.402453146 | AZ24: 92.24612536 | BA24: 0.4372377014 | BB24: 0.3237202823 | BC24: 0.2077150521 | BD24: 0.1158540302 | BE24: 0.05730495443
A25: RCoutEsr | B25: =Cout_ESR*1000 -> 20 | C25: mW | D25: Output Capacitor ESR | G25: 16 | H25: 16.8 | I25: 1 | J25: 1.92 | K25: 1.92 | L25: 0.9396825397 | M25: 0.4442664531 | N25: 12.55405451 | O25: 8.197027253 | P25: -4.357027253 | Q25: 16.8 | R25: 4.101230349 | S25: 0.2354812653 | T25: 0.2 | U25: 0.4438425946 | V25: 3.624043374 | W25: 0.2626738076 | X25: 0.2626738076 | Y25: 2.037835998 | Z25: 0.0002076387777 | AA25: 0.0002076387777 | AB25: 2.733606024 | AC25: 0.1868150473 | AD25: 0.005109128264 | AE25: 0 | AF25: 0.004879870523 | AG25: 0.2033377324 | AH25: 3.057366266 | AI25: 0.1028223733 | AJ25: 0.009180670523 | AK25: 0.1137813324 | AL25: 0.0043008 | AM25: 0.016128 | AN25: 0.05887031632 | AO25: 3.696e-05 | AP25: 0.03444 | AQ25: 0.03034 | AR25: 0.02419 | AS25: 0.03447696 | AT25: 1.137619182 | AU25: 14.208 | AV25: 0.9258668439 | AW25: 9.201235132 | AX25: 4.525935751 | AZ25: 92.58668439 | BA25: 0.4438425946 | BB25: 0.3332470648 | BC25: 0.2139822124 | BD25: 0.1191035724 | BE25: 0.05887031632
A26: Top Driver | B26: Input Value | C26: Units | D26: Description | G26: 17 | H26: 16.8 | I26: 1 | J26: 2.04 | K26: 2.04 | L26: 0.9984126984 | M26: 0.4445036469 | N26: 12.55445324 | O26: 8.317226622 | P26: -4.237226622 | Q26: 16.8 | R26: 4.158860985 | S26: 0.2421457457 | T26: 0.2 | U26: 0.4508800403 | V26: 3.62415848 | W26: 0.2626904938 | X26: 0.2626904938 | Y26: 2.066582151 | Z26: 0.0002135380893 | AA26: 0.0002135380893 | AB26: 2.772758645 | AC26: 0.1922047626 | AD26: 0.00542844878 | AE26: 0 | AF26: 0.004745693817 | AG26: 0.2092981382 | AH26: 3.099666787 | AI26: 0.1056872761 | AJ26: 0.009315293817 | AK26: 0.1168801877 | AL26: 0.0045696 | AM26: 0.017136 | AN26: 0.06053643641 | AO26: 3.696e-05 | AP26: 0.03444 | AQ26: 0.03034 | AR26: 0.02419 | AS26: 0.03447696 | AT26: 1.156681394 | AU26: 15.096 | AV26: 0.92883135 | AW26: 9.486139621 | AX26: 4.656332572 | AZ26: 92.883135 | BA26: 0.4508800403 | BB26: 0.3433143258 | BC26: 0.2206078982 | BD26: 0.1225350677 | BE26: 0.06053643641
A27: RdsonDRT | B27: 0.7 | C27: W | D27: Drain to Source Resistance of pullup Top FET Driver | G27: 18 | H27: 16.8 | I27: 1 | J27: 2.16 | K27: 2.16 | L27: 1.057142857 | M27: 0.4447408764 | N27: 12.55484626 | O27: 8.437423131 | P27: -4.117423131 | Q27: 16.8 | R27: 4.219116857 | S27: 0.2492132588 | T27: 0.2 | U27: 0.4583514392 | V27: 3.624271935 | W27: 0.2627069411 | X27: 0.2627069411 | Y27: 2.096635474 | Z27: 0.0002197940156 | AA27: 0.0002197940156 | AB27: 2.813682426 | AC27: 0.1979202198 | AD27: 0.005747769297 | AE27: 0 | AF27: 0.004611513907 | AG27: 0.2156196884 | AH27: 3.143904938 | AI27: 0.1087255209 | AJ27: 0.009449913907 | AK27: 0.1201612532 | AL27: 0.0048384 | AM27: 0.018144 | AN27: 0.06230331469 | AO27: 3.696e-05 | AP27: 0.03444 | AQ27: 0.03034 | AR27: 0.02419 | AS27: 0.03447696 | AT27: 1.176821791 | AU27: 15.984 | AV27: 0.9314239257 | AW27: 9.78657332 | AX27: 4.793653382 | AZ27: 93.14239257 | BA27: 0.4583514392 | BB27: 0.3539249416 | BC27: 0.2275947284 | BD27: 0.1261487732 | BE27: 0.06230331469
A28: RdsonDRT2 | B28: =RdsonDRT2 -> 0.5 | C28: W | D28: Drain to Source Resistance of pulldown Top FET Driver | G28: 19 | H28: 16.8 | I28: 1 | J28: 2.28 | K28: 2.28 | L28: 1.115873016 | M28: 0.4449781415 | N28: 12.55523356 | O28: 8.557616778 | P28: -3.997616778 | Q28: 16.8 | R28: 4.281887139 | S28: 0.2566838046 | T28: 0.2 | U28: 0.4662582805 | V28: 3.624383737 | W28: 0.2627231494 | X28: 0.2627231494 | Y28: 2.12794108 | Z28: 0.0002264066619 | AA28: 0.0002264066619 | AB28: 2.856304835 | AC28: 0.2039619327 | AD28: 0.006067089813 | AE28: 0 | AF28: 0.004477330791 | AG28: 0.2223051405 | AH28: 3.189996891 | AI28: 0.1119368818 | AJ28: 0.009584530791 | AK28: 0.1236248154 | AL28: 0.0051072 | AM28: 0.019152 | AN28: 0.06417095115 | AO28: 3.696e-05 | AP28: 0.03444 | AQ28: 0.03034 | AR28: 0.02419 | AS28: 0.03447696 | AT28: 1.198044904 | AU28: 16.872 | AV28: 0.9336999487 | AW28: 10.1026548 | AX28: 4.937909065 | AZ28: 93.36999487 | BA28: 0.4662582805 | BB28: 0.3650819559 | BC28: 0.2349454605 | BD28: 0.1299449754 | BE28: 0.06417095115
A29: Bottom Driver | B29: Input Value | C29: Units | D29: Description | G29: 20 | H29: 16.8 | I29: 1 | J29: 2.4 | K29: 2.4 | L29: 1.174603175 | M29: 0.4452154422 | N29: 12.55561513 | O29: 8.677807563 | P29: -3.877807563 | Q29: 16.8 | R29: 4.347062909 | S29: 0.264557383 | T29: 0.2 | U29: 0.4746021431 | V29: 3.624493886 | W29: 0.2627391186 | X29: 0.2627391186 | Y29: 2.160445011 | Z29: 0.0002333761323 | AA29: 0.0002333761323 | AB29: 2.900554532 | AC29: 0.2103304148 | AD29: 0.00638641033 | AE29: 0 | AF29: 0.00434314447 | AG29: 0.2293573933 | AH29: 3.237860303 | AI29: 0.1153211327 | AJ29: 0.00971914447 | AK29: 0.12727119 | AL29: 0.005376 | AM29: 0.02016 | AN29: 0.06613934576 | AO29: 3.696e-05 | AP29: 0.03444 | AQ29: 0.03034 | AR29: 0.02419 | AS29: 0.03447696 | AT29: 1.220355527 | AU29: 17.76 | AV29: 0.9357042851 | AW29: 10.43450871 | AX29: 5.08911162 | AZ29: 93.57042851 | BA29: 0.4746021431 | BB29: 0.3767885833 | BC29: 0.2426629933 | BD29: 0.13392399 | BE29: 0.06613934576
A30: RdsonDRB | B30: 0.7 | C30: W | D30: Drain to Source Resistance of pullup Bottom FET Driver | G30: 21 | H30: 16.8 | I30: 1 | J30: 2.52 | K30: 2.52 | L30: 1.233333333 | M30: 0.4454527786 | N30: 12.55599097 | O30: 8.797995485 | P30: -3.757995485 | Q30: 16.8 | R30: 4.414537624 | S30: 0.2728339941 | T30: 0.2 | U30: 0.4833846963 | V30: 3.624602383 | W30: 0.2627548487 | X30: 0.2627548487 | Y30: 2.194094483 | Z30: 0.0002407025301 | AA30: 0.0002407025301 | AB30: 2.946361688 | AC30: 0.2170261799 | AD30: 0.006705730846 | AE30: 0 | AF30: 0.004208954943 | AG30: 0.2367794896 | AH30: 3.287414674 | AI30: 0.1188780476 | AJ30: 0.009853754943 | AK30: 0.1311007222 | AL30: 0.0056448 | AM30: 0.021168 | AN30: 0.06820849852 | AO30: 3.696e-05 | AP30: 0.03444 | AQ30: 0.03034 | AR30: 0.02419 | AS30: 0.03447696 | AT30: 1.243758718 | AU30: 18.648 | AV30: 0.9374736676 | AW30: 10.78226589 | AX30: 5.247274165 | AZ30: 93.74736676 | BA30: 0.4833846963 | BB30: 0.3890482118 | BC30: 0.2507503696 | BD30: 0.1380861622 | BE30: 0.06820849852
A31: RdsonDRB2 | B31: 0.5 | C31: W | D31: Drain to Source Resistance of pulldown Bottom FET Driver | G31: 22 | H31: 16.8 | I31: 1 | J31: 2.64 | K31: 2.64 | L31: 1.292063492 | M31: 0.4456901507 | N31: 12.55636109 | O31: 8.918180543 | P31: -3.638180543 | Q31: 16.8 | R31: 4.484207508 | S31: 0.2815136377 | T31: 0.2 | U31: 0.4926077005 | V31: 3.624709226 | W31: 0.2627703395 | X31: 0.2627703395 | Y31: 2.228838072 | Z31: 0.0002483859576 | AA31: 0.0002483859576 | AB31: 2.993658244 | AC31: 0.2240497421 | AD31: 0.007025051363 | AE31: 0 | AF31: 0.004074762208 | AG31: 0.2445746191 | AH31: 3.338581629 | AI31: 0.1226074002 | AJ31: 0.009988362208 | AK31: 0.1351137868 | AL31: 0.0059136 | AM31: 0.022176 | AN31: 0.07037840942 | AO31: 3.696e-05 | AP31: 0.03444 | AQ31: 0.03034 | AR31: 0.02419 | AS31: 0.03447696 | AT31: 1.268259801 | AU31: 19.536 | AV31: 0.9390384559 | AW31: 11.1460635 | AX31: 5.41241094 | AZ31: 93.90384559 | BA31: 0.4926077005 | BB31: 0.4018644059 | BC31: 0.2592107791 | BD31: 0.1424318668 | BE31: 0.07037840942
A32: Deadtime | B32: Input Value | C32: Units | D32: Description | G32: 23 | H32: 16.8 | I32: 1 | J32: 2.76 | K32: 2.76 | L32: 1.350793651 | M32: 0.4459275584 | N32: 12.55672547 | O32: 9.038362737 | P32: -3.518362737 | Q32: 16.8 | R32: 4.555971856 | S32: 0.2905963137 | T32: 0.2 | U32: 0.5022730085 | V32: 3.624814416 | W32: 0.262785591 | X32: 0.262785591 | Y32: 2.264625868 | Z32: 0.0002564265161 | AA32: 0.0002564265161 | AB32: 3.042378119 | AC32: 0.2314016154 | AD32: 0.007344371879 | AE32: 0 | AF32: 0.003940566265 | AG32: 0.2527461217 | AH32: 3.391285145 | AI32: 0.1265089643 | AJ32: 0.01012296627 | AK32: 0.1393107882 | AL32: 0.0061824 | AM32: 0.023184 | AN32: 0.07264907843 | AO32: 3.696e-05 | AP32: 0.03444 | AQ32: 0.03034 | AR32: 0.02419 | AS32: 0.03447696 | AT32: 1.293864374 | AU32: 20.424 | AV32: 0.9404239592 | AW32: 11.52604515 | AX32: 5.584537311 | AZ32: 94.04239592 | BA32: 0.5022730085 | BB32: 0.4152409099 | BC32: 0.2680475617 | BD32: 0.1469615082 | BE32: 0.07264907843
A33: Deadtime | B33: =Deadtime*1000000000 -> 14 | C33: ns | D33: Total Deadtime | G33: 24 | H33: 16.8 | I33: 1 | J33: 2.88 | K33: 2.88 | L33: 1.40952381 | M33: 0.4461650018 | N33: 12.55708413 | O33: 9.158542066 | P33: -3.398542066 | Q33: 16.8 | R33: 4.629733271 | S33: 0.3000820222 | T33: 0.2 | U33: 0.5123825659 | V33: 3.624917952 | W33: 0.2628006032 | X33: 0.2628006032 | Y33: 2.301409595 | Z33: 0.0002648243062 | AA33: 0.0002648243062 | AB33: 3.092457367 | AC33: 0.2390823142 | AD33: 0.007663692396 | AE33: 0 | AF33: 0.003806367114 | AG33: 0.2612974904 | AH33: 3.445451725 | AI33: 0.1305825135 | AJ33: 0.01025756711 | AK33: 0.1436921605 | AL33: 0.0064512 | AM33: 0.024192 | AN33: 0.07502050555 | AO33: 3.696e-05 | AP33: 0.03444 | AQ33: 0.03034 | AR33: 0.02419 | AS33: 0.03447696 | AT33: 1.32057831 | AU33: 21.312 | AV33: 0.9416514419 | AW33: 11.92236105 | AX33: 5.763669778 | AZ33: 94.16514419 | BA33: 0.5123825659 | BB33: 0.4291816509 | BC33: 0.2772642104 | BD33: 0.1516755205 | BE33: 0.07502050555
A34: IQ | B34: Input Value | C34: Units | D34: Description | G34: 25 | H34: 16.8 | I34: 1 | J34: 3 | K34: 3 | L34: 1.468253968 | M34: 0.4464024808 | N34: 12.55743706 | O34: 9.27871853 | P34: -3.27871853 | Q34: 16.8 | R34: 4.705397836 | S34: 0.3099707631 | T34: 0.2 | U34: 0.5229384126 | V34: 3.625019833 | W34: 0.2628153758 | X34: 0.2628153758 | Y34: 2.339142694 | Z34: 0.0002735794272 | AA34: 0.0002735794272 | AB34: 3.143834302 | AC34: 0.2470923529 | AD34: 0.007983012912 | AE34: 0 | AF34: 0.003672164753 | AG34: 0.2702323754 | AH34: 3.501010522 | AI34: 0.1348278214 | AJ34: 0.01039216475 | AK34: 0.1482583678 | AL34: 0.00672 | AM34: 0.0252 | AN34: 0.07749269077 | AO34: 3.696e-05 | AP34: 0.03444 | AQ34: 0.03034 | AR34: 0.02419 | AS34: 0.03447696 | AT34: 1.348407762 | AU34: 22.2 | AV34: 0.9427388987 | AW34: 12.33516814 | AX34: 5.949825976 | AZ34: 94.27388987 | BA34: 0.5229384126 | BB34: 0.4436907432 | BC34: 0.2868643754 | BD34: 0.1565743678 | BE34: 0.07749269077
A35: IQ | B35: =Iq*1000 -> 0.0022 | C35: mA | D35: Quiescent Current Of Controller (Not Switching!) | G35: 26 | H35: 16.8 | I35: 1 | J35: 3.12 | K35: 3.12 | L35: 1.526984127 | M35: 0.4466399956 | N35: 12.55778425 | O35: 9.398892127 | P35: -3.158892127 | Q35: 16.8 | R35: 4.782875228 | S35: 0.3202625363 | T35: 0.2 | U35: 0.5339426833 | V35: 3.62512006 | W35: 0.262829909 | X35: 0.262829909 | Y35: 2.377780384 | Z35: 0.0002826919776 | AA35: 0.0002826919776 | AB35: 3.196449568 | AC35: 0.2554322461 | AD35: 0.008302333429 | AE35: 0 | AF35: 0.003537959183 | AG35: 0.2795545867 | AH35: 3.557893423 | AI35: 0.1392446617 | AJ35: 0.01052675918 | AK35: 0.1530099043 | AL35: 0.0069888 | AM35: 0.026208 | AN35: 0.08006563407 | AO35: 3.696e-05 | AP35: 0.03444 | AQ35: 0.03034 | AR35: 0.02419 | AS35: 0.03447696 | AT35: 1.377359169 | AU35: 23.088 | AV35: 0.9437016575 | AW35: 12.76463027 | AX35: 6.143024684 | AZ35: 94.37016575 | BA35: 0.5339426833 | BB35: 0.458772491 | BC35: 0.2968518667 | BD35: 0.1616585443 | BE35: 0.08006563407
A36: High-side FET | B36: Input Value | C36: Units | D36: Description | G36: 27 | H36: 16.8 | I36: 1 | J36: 3.24 | K36: 3.24 | L36: 1.585714286 | M36: 0.4468775461 | N36: 12.55812572 | O36: 9.519062858 | P36: -3.039062858 | Q36: 16.8 | R36: 4.862078786 | S36: 0.3309573418 | T36: 0.2 | U36: 0.5453976092 | V36: 3.625218631 | W36: 0.2628442025 | X36: 0.2628442025 | Y36: 2.417279691 | Z36: 0.0002921620551 | AA36: 0.0002921620551 | AB36: 3.250246197 | AC36: 0.2641025085 | AD36: 0.008621653945 | AE36: 0 | AF36: 0.003403750401 | AG36: 0.2892680989 | AH36: 3.616035092 | AI36: 0.1438328077 | AJ36: 0.0106613504 | AK36: 0.1579472945 | AL36: 0.0072576 | AM36: 0.027216 | AN36: 0.08273933544 | AO36: 3.696e-05 | AP36: 0.03444 | AQ36: 0.03034 | AR36: 0.02419 | AS36: 0.03447696 | AT36: 1.407439263 | AU36: 23.976 | AV36: 0.944552854 | AW36: 13.21091833 | AX36: 6.343285831 | AZ36: 94.4552854 | BA36: 0.5453976092 | BB36: 0.4744313934 | BC36: 0.3072306589 | BD36: 0.1669285745 | BE36: 0.08273933544
A37: RdsonTop | B37: =Rdson1*1000 -> 25 | C37: mW | D37: Drain-Source Resistance of Top FET | G37: 28 | H37: 16.8 | I37: 1 | J37: 3.36 | K37: 3.36 | L37: 1.644444444 | M37: 0.4471151323 | N37: 12.55846144 | O37: 9.639230722 | P37: -2.919230722 | Q37: 16.8 | R37: 4.942925532 | S37: 0.3420551795 | T37: 0.2 | U37: 0.5573055186 | V37: 3.625315547 | W37: 0.2628582564 | X37: 0.2628582564 | Y37: 2.457599464 | Z37: 0.0003019897564 | AA37: 0.0003019897564 | AB37: 3.305169617 | AC37: 0.273103655 | AD37: 0.008940974462 | AE37: 0 | AF37: 0.003269538408 | AG37: 0.2993770543 | AH37: 3.67537299 | AI37: 0.1485920328 | AJ37: 0.01079593841 | AK37: 0.1630710931 | AL37: 0.0075264 | AM37: 0.028224 | AN37: 0.08551379486 | AO37: 3.696e-05 | AP37: 0.03444 | AQ37: 0.03034 | AR37: 0.02419 | AS37: 0.03447696 | AT37: 1.438655067 | AU37: 24.864 | AV37: 0.9453038082 | AW37: 13.67421046 | AX37: 6.550630499 | AZ37: 94.53038082 | BA37: 0.5573055186 | BB37: 0.4906721474 | BC37: 0.3180048943 | BD37: 0.1723850131 | BE37: 0.08551379486
A38: RdsonTopTc | B38: =RdsonTopTc*1000000 -> 4000 | C38: ppm | D38: Drain to Source Resistance Temp Co | G38: 29 | H38: 16.8 | I38: 1 | J38: 3.48 | K38: 3.48 | L38: 1.703174603 | M38: 0.4473527541 | N38: 12.55879143 | O38: 9.759395717 | P38: -2.799395717 | Q38: 16.8 | R38: 5.02533616 | S38: 0.3535560493 | T38: 0.2 | U38: 0.5696688384 | V38: 3.625410808 | W38: 0.2628720705 | X38: 0.2628720705 | Y38: 2.49870037 | Z38: 0.0003121751769 | AA38: 0.0003121751769 | AB38: 3.361167659 | AC38: 0.2824362007 | AD38: 0.009260294978 | AE38: 0 | AF38: 0.003135323203 | AG38: 0.3098857679 | AH38: 3.73584736 | AI38: 0.1535221104 | AJ38: 0.0109305232 | AK38: 0.1683818857 | AL38: 0.0077952 | AM38: 0.029232 | AN38: 0.08838901233 | AO38: 3.696e-05 | AP38: 0.03444 | AQ38: 0.03034 | AR38: 0.02419 | AS38: 0.03447696 | AT38: 1.47101391 | AU38: 25.752 | AV38: 0.9459643258 | AW38: 14.15469218 | AX38: 6.765080936 | AZ38: 94.59643258 | BA38: 0.5696688384 | BB38: 0.5074996535 | BC38: 0.3291788879 | BD38: 0.1780284457 | BE38: 0.08838901233
A39: QgTop | B39: =Qg_Q1*1000000000 -> 6.5 | C39: nC | D39: Gate Charge Of Top FET | G39: 30 | H39: 16.8 | I39: 1 | J39: 3.6 | K39: 3.6 | L39: 1.761904762 | M39: 0.4475904118 | N39: 12.55911569 | O39: 9.879557844 | P39: -2.679557844 | Q39: 16.8 | R39: 5.109234995 | S39: 0.3654599513 | T39: 0.2 | U39: 0.5824900955 | V39: 3.625504411 | W39: 0.2628856447 | X39: 0.2628856447 | Y39: 2.540544869 | Z39: 0.0003227184116 | AA39: 0.0003227184116 | AB39: 3.418190521 | AC39: 0.2921006609 | AD39: 0.009579615495 | AE39: 0 | AF39: 0.003001104785 | AG39: 0.3207987308 | AH39: 3.797401191 | AI39: 0.1586228138 | AJ39: 0.01106510478 | AK39: 0.1738802885 | AL39: 0.008064 | AM39: 0.03024 | AN39: 0.09136498783 | AO39: 3.696e-05 | AP39: 0.03444 | AQ39: 0.03034 | AR39: 0.02419 | AS39: 0.03447696 | AT39: 1.504523426 | AU39: 26.64 | AV39: 0.9465429418 | AW39: 14.65255663 | AX39: 6.986660561 | AZ39: 94.65429418 | BA39: 0.5824900955 | BB39: 0.5249190193 | BC39: 0.3407571308 | BD39: 0.1838594885 | BE39: 0.09136498783
A40: QgdTop | B40: =Qgd_Q1*1000000000 -> 2.1 | C40: nC | D40: Gate to Drain Charge | G40: 31 | H40: 16.8 | I40: 1 | J40: 3.72 | K40: 3.72 | L40: 1.820634921 | M40: 0.4478281051 | N40: 12.5594342 | O40: 9.999717101 | P40: -2.559717101 | Q40: 16.8 | R40: 5.194549928 | S40: 0.3777668854 | T40: 0.2 | U40: 0.5957719175 | V40: 3.625596359 | W40: 0.2628989791 | X40: 0.2628989791 | Y40: 2.583097188 | Z40: 0.0003336195541 | AA40: 0.0003336195541 | AB40: 3.476190736 | AC40: 0.3020975508 | AD40: 0.009898936011 | AE40: 0 | AF40: 0.002866883153 | AG40: 0.3321206158 | AH40: 3.859980171 | AI40: 0.1638939162 | AJ40: 0.01119968315 | AK40: 0.1795669487 | AL40: 0.0083328 | AM40: 0.031248 | AN40: 0.09444172134 | AO40: 3.696e-05 | AP40: 0.03444 | AQ40: 0.03034 | AR40: 0.02419 | AS40: 0.03447696 | AT40: 1.539191562 | AU40: 27.528 | AV40: 0.9470471181 | AW40: 15.16800472 | AX40: 7.215393972 | AZ40: 94.70471181 | BA40: 0.5957719175 | BB40: 0.5429355645 | BC40: 0.3527442958 | BD40: 0.1898787887 | BE40: 0.09444172134
A41: QgsTop | B41: =Qgs_Q1*1000000000 -> 2.2 | C41: nC | G41: 32 | H41: =Vin -> 16.8 | I41: =MODE -> 1 | J41: 3.84 | K41: =Iout*G41/100/Number_of_Phases -> 3.84 | L41: =Vout*K41/(Vin*Efficiency) -> 1.879365079 | M41: =(Vout+(Rdson2+Rs+Rdcr)*K41)/(Vin+(Rs+Rdson2-Rdson1)*K41) -> 0.4480658342 | N41: =(Vin-(Rdson1+Rdcr)*K41-Vout)*M41/(Fsw*Lf) -> 12.55974698 | O41: 10.11987349 | P41: -2.439873488 | Q41: =IF(MIN(Vin, -P41/(Coss_Q1+Coss_Q2)*0.00000002)<0, 0, MIN(Vin, -P41/(Coss_Q1+Coss_Q2)*0.00000002)) -> 16.8 | R41: 5.28121233 | S41: =R41^2*Rdcr -> 0.3904768515 | T41: =Core_Loss_Ch1 -> 0.2 | U41: =(T41+S41*(1+Ltc*(Ta-25)))/(1-S41*Ltc*ThetaCa) -> 0.6095170349 | V41: 3.625686649 | W41: 0.2629120735 | X41: 0.2629120735 | Y41: 2.626323275 | Z41: 0.0003448786974 | AA41: 0.0003448786974 | AB41: 3.535123115 | AC41: =Rdson1*AB41^2 -> 0.312427386 | AD41: =(Vin*K41/2)*Fsw*(Tr_buck+Tf_buck) -> 0.01021825653 | AE41: =(0.5*Coss_Q1*(Vin-Q41)^2-0.5*Coss_Q2*(Vin-Q41)^2+(Qoss_Q2*(Vin-Q41)/Vin)*Vin)*Fsw -> 0 | AF41: =IF(K41>N41/2,0,ABS(K41-N41/2)*Vsd_Q1*Deadtime*Fsw) -> 0.002732658307 | AG41: =(AF41+AE41+AD41+AC41*(1+RdsonTopTc*Ta-RdsonTopTc*25))/(1-AC41*RdsonTopTc*ThetaJA_Q1) -> 0.3438562814 | AH41: =SQRT((1-M41))*SQRT(K41^2+(N41^2)/12) -> 3.923532622 | AI41: =Rdson2*AH41^2 -> 0.1693351906 | AJ41: =IF(K41<N41/2,Deadtime*Fsw*IF(VfdSky_Q2>0,0,Vsd_Q2)*(K41+N41/2),2*Deadtime*Fsw*IF(VfdSky_Q2>0,0,Vsd_Q2)*K41) -> 0.01133425831 | AK41: =(AJ41+AI41*(1+RdsonBotTc*Ta-RdsonBotTc*25))/(1-AI41*RdsonBotTc*ThetaJA_Q2) -> 0.1854425451 | AL41: =2*Deadtime*Fsw*IF(VfdSky_Q2>0,VfdSky_Q2,Vsd_Q2)*K41 -> 0.0086016 | AM41: =IF(QrrSky_Q2>0,QrrSky_Q2,Qrr_Q2*K41/(Iout/Number_of_Phases))*Fsw*Vin -> 0.032256 | AN41: =Rs*R41^2 -> 0.09761921286 | AO41: =Iq*Vin -> 3.696e-05 | AP41: =IF(Ext_VCC=1, (Qg_Q1+Qg_Q2)*Fsw*VCC, (Qg_Q1+Qg_Q2)*Fsw*Vin) -> 0.03444 | AQ41: 0.03034 | AR41: =(Qg_Q1+Qg_Q2)*Fsw*(Vin-VCC) -> 0.02419 | AS41: =SUM(AO41:AP41) -> 0.03447696 | AT41: =SUM(U41,X41,AA41,AG41,AK41,AL41,AM41,AS41,AN41) -> 1.575026586 | AU41: =Vout*K41 -> 28.416 | AV41: 0.9474834054 | AW41: =ThetaJA_Q1*BC41 -> 15.70124538 | AX41: =ThetaJA_Q2*BD41 -> 7.451306953 | AZ41: 94.74834054 | BA41: =U41 -> 0.6095170349 | BB41: =AG41+AK41+AM41 -> 0.5615548264 | BC41: =AG41+AM41*0.66 -> 0.3651452414 | BD41: =AK41+AM41*0.33 -> 0.1960870251 | BE41: =AN41 -> 0.09761921286
A42: RGateTop | B42: =Rgate1 -> 0.5 | C42: W | D42: Gate Resistance | G42: 33 | H42: 16.8 | I42: 1 | J42: =Iout*G42/100 -> 3.96 | K42: 3.96 | L42: 1.938095238 | M42: 0.448303599 | N42: 12.56005401 | O42: 10.240027 | P42: -2.320027005 | Q42: 16.8 | R42: 5.369156954 | S42: 0.4035898495 | T42: 0.2 | U42: 0.6237282818 | V42: 3.625775282 | W42: 0.2629249279 | X42: 0.2629249279 | Y42: 2.670190754 | Z42: 0.0003564959332 | AA42: 0.0003564959332 | AB42: 3.594944685 | AC42: 0.3230906823 | AD42: 0.01053757704 | AE42: 0 | AF42: 0.002598430245 | AG42: 0.3560107771 | AH42: 3.988009416 | AI42: 0.1749464101 | AJ42: 0.01146883025 | AK42: 0.1915077876 | AL42: 0.0088704 | AM42: =IF(QrrSky_Q2>0,QrrSky_Q2,Qrr_Q2*K42/(Iout/Number_of_Phases))*Fsw*Vin -> 0.033264 | AN42: 0.1008974624 | AO42: 3.696e-05 | AP42: 0.03444 | AQ42: 0.03034 | AR42: 0.02419 | AS42: 0.03447696 | AT42: 1.612037093 | AU42: 29.304 | AV42: 0.9478575767 | AW42: 16.25249574 | AX42: 7.694426488 | AZ42: 94.78575767 | BA42: 0.6237282818 | BB42: 0.5807825647 | BC42: 0.3779650171 | BD42: 0.2024849076 | BE42: 0.1008974624
A43: GfsTop | B43: =Gfs_Q1 -> 45 | C43: S | D43: Transconductance of Top FET | G43: 34 | H43: 16.8 | I43: 1 | J43: 4.08 | K43: 4.08 | L43: 1.996825397 | M43: 0.4485413996 | N43: 12.5603553 | O43: 10.36017765 | P43: -2.20017765 | Q43: 16.8 | R43: 5.458321821 | S43: 0.4171058795 | T43: 0.2 | U43: 0.6384085978 | V43: 3.625862257 | W43: 0.2629375421 | X43: 0.2629375421 | Y43: 2.714668865 | Z43: 0.0003684713525 | AA43: 0.0003684713525 | AB43: 3.655614615 | AC43: 0.3340879553 | AD43: 0.01085689756 | AE43: 0 | AF43: 0.002464198968 | AG43: 0.3685893489 | AH43: 4.053363898 | AI43: 0.1807273478 | AJ43: 0.01160339897 | AK43: 0.197763418 | AL43: 0.0091392 | AM43: 0.034272 | AN43: 0.1042764699 | AO43: 3.696e-05 | AP43: 0.03444 | AQ43: 0.03034 | AR43: 0.02419 | AS43: 0.03447696 | AT43: 1.650232008 | AU43: 30.192 | AV43: 0.9481747383 | AW43: 16.82198136 | AX43: 7.944780764 | AZ43: 94.81747383 | BA43: 0.6384085978 | BB43: 0.6006247669 | BC43: 0.3912088689 | BD43: 0.209073178 | BE43: 0.1042764699
A44: VthTop | B44: =Vth_Q1 -> 2 | C44: V | D44: Threshold Voltage of Top FET | G44: 35 | H44: 16.8 | I44: 1 | J44: 4.2 | K44: 4.2 | L44: 2.055555556 | M44: 0.448779236 | N44: 12.56065085 | O44: 10.48032542 | P44: -2.080325423 | Q44: 16.8 | R44: 5.548648106 | S44: 0.4310249413 | T44: 0.2 | U44: 0.6535610297 | V44: 3.625947574 | W44: 0.2629499161 | X44: 0.2629499161 | Y44: 2.759728411 | Z44: 0.0003808050452 | AA44: 0.0003808050452 | AB44: 3.71709414 | AC44: 0.3454197211 | AD44: 0.01117621808 | AE44: 0 | AF44: 0.002329964474 | AG44: 0.3815974443 | AH44: 4.119551791 | AI44: 0.1866777766 | AJ44: 0.01173796447 | AK44: 0.2042102103 | AL44: 0.009408 | AM44: 0.03528 | AN44: 0.1077562353 | AO44: 3.696e-05 | AP44: 0.03444 | AQ44: 0.03034 | AR44: 0.02419 | AS44: 0.03447696 | AT44: 1.689620601 | AU44: 31.08 | AV44: 0.9484394213 | AW44: 17.40993651 | AX44: 8.20239919 | AZ44: 94.84394213 | BA44: 0.6535610297 | BB44: 0.6210876546 | BC44: 0.4048822443 | BD44: 0.2158526103 | BE44: 0.1077562353
A45: VspTop | B45: =Vsp_Q1 -> 2.266666667 | C45: V | G45: 36 | H45: 16.8 | I45: 1 | J45: 4.32 | K45: 4.32 | L45: 2.114285714 | M45: 0.4490171081 | N45: 12.56094065 | O45: 10.60047032 | P45: -1.960470324 | Q45: 16.8 | R45: 5.640080008 | S45: 0.4453470349 | T45: 0.2 | U45: 0.6691887324 | V45: 3.626031232 | W45: 0.2629620499 | X45: 0.2629620499 | Y45: 2.805341692 | Z45: 0.0003934971004 | AA45: 0.0003934971004 | AB45: 3.779346483 | AC45: 0.3570864959 | AD45: 0.01149553859 | AE45: 0 | AF45: 0.002195726763 | AG45: 0.3950407187 | AH45: 4.186531101 | AI45: 0.1927974692 | AJ45: 0.01187252676 | AK45: 0.2108489705 | AL45: 0.0096768 | AM45: 0.036288 | AN45: 0.1113367587 | AO45: 3.696e-05 | AP45: 0.03444 | AQ45: 0.03034 | AR45: 0.02419 | AS45: 0.03447696 | AT45: 1.730212487 | AU45: 31.968 | AV45: 0.9486556598 | AW45: 18.01660435 | AX45: 8.467312398 | AZ45: 94.86556598 | BA45: 0.6691887324 | BB45: 0.6421776892 | BC45: 0.4189907987 | BD45: 0.2228240105 | BE45: 0.1113367587
A46: VsdTop | B46: =Vsd_Q1 -> 0.8 | C46: V | G46: 37 | H46: 16.8 | I46: 1 | J46: 4.44 | K46: 4.44 | L46: 2.173015873 | M46: 0.449255016 | N46: 12.5612247 | O46: 10.72061235 | P46: -1.840612351 | Q46: 16.8 | R46: 5.732564624 | S46: 0.4600721604 | T46: 0.2 | U46: 0.6852949714 | V46: 3.626113232 | W46: 0.2629739434 | X46: 0.2629739434 | Y46: 2.851482443 | Z46: 0.0004065476061 | AA46: 0.0004065476061 | AB46: 3.842336768 | AC46: 0.369088796 | AD46: 0.01181485911 | AE46: 0 | AF46: 0.002061485833 | AG46: 0.4089250409 | AH46: 4.254262019 | AI46: 0.1990861986 | AJ46: 0.01200708583 | AK46: 0.2176805374 | AL46: 0.0099456 | AM46: 0.037296 | AN46: 0.1150180401 | AO46: 3.696e-05 | AP46: 0.03444 | AQ46: 0.03034 | AR46: 0.02419 | AS46: 0.03447696 | AT46: 1.772017641 | AU46: 32.856 | AV46: 0.948827055 | AW46: 18.64223724 | AX46: 8.739552263 | AZ46: 94.8827055 | BA46: 0.6852949714 | BB46: 0.6639015784 | BC46: 0.4335404009 | BD46: 0.2299882174 | BE46: 0.1150180401
A47: θJATop | B47: =ThetaJA_Q1 -> 43 | C47: °C/W | D47: Junction to Ambient Resistance | G47: 38 | H47: 16.8 | I47: 1 | J47: 4.56 | K47: 4.56 | L47: 2.231746032 | M47: 0.4494929597 | N47: 12.56150301 | O47: 10.8407515 | P47: -1.720751505 | Q47: 16.8 | R47: 5.826051821 | S47: 0.4752003175 | T47: 0.2 | U47: 0.7018831242 | V47: 3.626193572 | W47: 0.2629855964 | X47: 0.2629855964 | Y47: 2.898125772 | Z47: 0.0004199566494 | AA47: 0.0004199566494 | AB47: 3.906031939 | AC47: 0.3814271378 | AD47: 0.01213417963 | AE47: 0 | AF47: 0.001927241685 | AG47: 0.4232564997 | AH47: 4.322706827 | AI47: 0.2055437374 | AJ47: 0.01214164169 | AK47: 0.2247057828 | AL47: 0.0102144 | AM47: 0.038304 | AN47: 0.1188000794 | AO47: 3.696e-05 | AP47: 0.03444 | AQ47: 0.03034 | AR47: 0.02419 | AS47: 0.03447696 | AT47: 1.815046399 | AU47: 33.744 | AV47: 0.9489568314 | AW47: 19.28709701 | AX47: 9.019151906 | AZ47: 94.89568314 | BA47: 0.7018831242 | BB47: 0.6862662825 | BC47: 0.4485371397 | BD47: 0.2373461028 | BE47: 0.1188000794
A48: Low-side FET | B48: Input Value | C48: Units | D48: Description | G48: 39 | H48: 16.8 | I48: 1 | J48: 4.68 | K48: 4.68 | L48: 2.29047619 | M48: 0.4497309392 | N48: 12.56177557 | O48: 10.96088778 | P48: -1.600887784 | Q48: 16.8 | R48: 5.920494105 | S48: 0.4907315063 | T48: 0.2 | U48: 0.718956682 | V48: 3.626272253 | W48: 0.262997009 | X48: 0.262997009 | Y48: 2.945248093 | Z48: 0.0004337243165 | AA48: 0.0004337243165 | AB48: 3.970400674 | AC48: 0.3941020379 | AD48: 0.01245350014 | AE48: 0 | AF48: 0.001792994318 | AG48: 0.4380414105 | AH48: 4.391829794 | AI48: 0.2121698583 | AJ48: 0.01227619432 | AK48: 0.2319256115 | AL48: 0.0104832 | AM48: 0.039312 | AN48: 0.1226828766 | AO48: 3.696e-05 | AP48: 0.03444 | AQ48: 0.03034 | AR48: 0.02419 | AS48: 0.03447696 | AT48: 1.859309474 | AU48: 34.632 | AV48: 0.9490478829 | AW48: 19.95145521 | AX48: 9.306145716 | AZ48: 94.90478829 | BA48: 0.718956682 | BB48: 0.709279022 | BC48: 0.4639873305 | BD48: 0.2448985715 | BE48: 0.1226828766
A49: RdsonBot | B49: =Rdson2*1000 -> 11 | C49: mW | D49: Drain-Source Resistance of Low-side FET | G49: 40 | H49: 16.8 | I49: 1 | J49: 4.8 | K49: 4.8 | L49: 2.349206349 | M49: 0.4499689545 | N49: 12.56204238 | O49: 11.08102119 | P49: -1.481021188 | Q49: 16.8 | R49: 6.015846495 | S49: 0.5066657267 | T49: 0.2 | U49: 0.7365192517 | V49: 3.626349273 | W49: 0.2630081811 | X49: 0.2630081811 | Y49: 2.992827067 | Z49: 0.0004478506925 | AA49: 0.0004478506925 | AB49: 4.035413303 | AC49: 0.4071140131 | AD49: 0.01277282066 | AE49: 0 | AF49: 0.00165874373 | AG49: 0.4532863223 | AH49: 4.461597083 | AI49: 0.2189643338 | AJ49: 0.01241074373 | AK49: 0.239340962 | AL49: 0.010752 | AM49: 0.04032 | AN49: 0.1266664317 | AO49: 3.696e-05 | AP49: 0.03444 | AQ49: 0.03034 | AR49: 0.02419 | AS49: 0.03447696 | AT49: 1.904817959 | AU49: 35.52 | AV49: 0.949102813 | AW49: 20.63559346 | AX49: 9.600569355 | AZ49: 94.9102813 | BA49: 0.7365192517 | BB49: 0.7329472842 | BC49: 0.4798975223 | BD49: 0.252646562 | BE49: 0.1266664317
A50: RdsonBotTc | B50: =RdsonBotTc*1000000 -> 4000 | C50: ppm | D50: Drain To Source Resitance Temp Co | G50: 41 | H50: 16.8 | I50: 1 | J50: 4.92 | K50: 4.92 | L50: 2.407936508 | M50: 0.4502070056 | N50: 12.56230343 | O50: 11.20115172 | P50: -1.361151716 | Q50: 16.8 | R50: 6.112066396 | S50: 0.5230029787 | T50: 0.2 | U50: 0.7545745581 | V50: 3.626424634 | W50: 0.2630191125 | X50: 0.2630191125 | Y50: 3.040841534 | Z50: 0.0004623358617 | AA50: 0.0004623358617 | AB50: 4.101041723 | AC50: 0.4204635803 | AD50: 0.01309214118 | AE50: 0 | AF50: 0.001524489921 | AG50: 0.4689980247 | AH50: 4.531976656 | AI50: 0.2259269365 | AJ50: 0.01254528992 | AK50: 0.2469528067 | AL50: 0.0110208 | AM50: 0.041328 | AN50: 0.1307507447 | AO50: 3.696e-05 | AP50: 0.03444 | AQ50: 0.03034 | AR50: 0.02419 | AS50: 0.03447696 | AT50: 1.951583342 | AU50: 36.408 | AV50: 0.9491239692 | AW50: 21.3398037 | AX50: 9.902459775 | AZ50: 94.91239692 | BA50: 0.7545745581 | BB50: 0.7572788314 | BC50: 0.4962745047 | BD50: 0.2605910467 | BE50: 0.1307507447
A51: QgBot | B51: =Qg_Q2*1000000000 -> 14 | C51: nC | D51: Gate Charge Of Top FET | G51: 42 | H51: 16.8 | I51: 1 | J51: 5.04 | K51: 5.04 | L51: 2.466666667 | M51: 0.4504450925 | N51: 12.56255873 | O51: 11.32127937 | P51: -1.241279367 | Q51: 16.8 | R51: 6.209113476 | S51: 0.5397432623 | T51: 0.2 | U51: 0.7731264455 | V51: 3.626498333 | W51: 0.2630298032 | X51: 0.2630298032 | Y51: 3.089271459 | Z51: 0.0004771799073 | AA51: 0.0004771799073 | AB51: 4.167259323 | AC51: 0.4341512566 | AD51: 0.01341146169 | AE51: 0 | AF51: 0.001390232891 | AG51: 0.4851835559 | AH51: 4.602938181 | AI51: 0.2330574389 | AJ51: 0.01267983289 | AK51: 0.2547621524 | AL51: 0.0112896 | AM51: 0.042336 | AN51: 0.1349358156 | AO51: 3.696e-05 | AP51: 0.03444 | AQ51: 0.03034 | AR51: 0.02419 | AS51: 0.03447696 | AT51: 1.999617512 | AU51: 37.296 | AV51: 0.9491134727 | AW51: 22.06438858 | AX51: 10.21185523 | AZ51: 94.91134727 | BA51: 0.7731264455 | BB51: 0.7822817083 | BC51: 0.5131253159 | BD51: 0.2687330324 | BE51: 0.1349358156
A52: RGateBot | B52: =Rgate2 -> 0.5 | C52: W | D52: Gate Resistance | G52: 43 | H52: 16.8 | I52: 1 | J52: 5.16 | K52: 5.16 | L52: 2.525396825 | M52: 0.4506832153 | N52: 12.56280828 | O52: 11.44140414 | P52: -1.121404141 | Q52: 16.8 | R52: 6.306949553 | S52: 0.5568865773 | T52: 0.2 | U52: 0.7921788801 | V52: 3.626570372 | W52: 0.2630402533 | X52: 0.2630402533 | Y52: 3.138097869 | Z52: 0.0004923829117 | AA52: 0.0004923829117 | AB52: 4.234040903 | AC52: 0.4481775593 | AD52: 0.01373078221 | AE52: 0 | AF52: 0.001255972638 | AG52: 0.5018502105 | AH52: 4.67445294 | AI52: 0.2403556132 | AJ52: 0.01281437264 | AK52: 0.2627700405 | AL52: 0.0115584 | AM52: 0.043344 | AN52: 0.1392216443 | AO52: 3.696e-05 | AP52: 0.03444 | AQ52: 0.03034 | AR52: 0.02419 | AS52: 0.03447696 | AT52: 2.048932772 | AU52: 38.184 | AV52: 0.9490732435 | AW52: 22.80966177 | AX52: 10.5287953 | AZ52: 94.90732435 | BA52: 0.7921788801 | BB52: 0.807964251 | BC52: 0.5304572505 | BD52: 0.2770735605 | BE52: 0.1392216443
A53: VsdBot | B53: =Vsd_Q2 -> 0.8 | C53: V | D53: Diode Forward Voltage of Bottom FET Body Diode | G53: 44 | H53: 16.8 | I53: 1 | J53: 5.28 | K53: 5.28 | L53: 2.584126984 | M53: 0.4509213739 | N53: 12.56305208 | O53: 11.56152604 | P53: -1.001526038 | Q53: 16.8 | R53: 6.405538472 | S53: 0.5744329237 | T53: 0.2 | U53: 0.8117359522 | V53: 3.626640749 | W53: 0.2630504624 | X53: 0.2630504624 | Y53: 3.187302797 | Z53: 0.0005079449561 | AA53: 0.0005079449561 | AB53: 4.301362601 | AC53: 0.4625430056 | AD53: 0.01405010273 | AE53: 0 | AF53: 0.001121709162 | AG53: 0.5190055479 | AH53: 4.746493748 | AI53: 0.2478212319 | AJ53: 0.01294890916 | AK53: 0.2709775474 | AL53: 0.0118272 | AM53: 0.044352 | AN53: 0.1436082309 | AO53: 3.696e-05 | AP53: 0.03444 | AQ53: 0.03034 | AR53: 0.02419 | AS53: 0.03447696 | AT53: 2.099541846 | AU53: 39.072 | AV53: 0.9490050226 | AW53: 23.57594832 | AX53: 10.85332088 | AZ53: 94.90050226 | BA53: 0.8117359522 | BB53: 0.8343350954 | BC53: 0.5482778679 | BD53: 0.2856137074 | BE53: 0.1436082309
A54: QrrBot | B54: =Qrr_Q2*1000000000 -> 60 | C54: nC | D54: Reverse Recovery Charge of Body Diode | G54: 45 | H54: 16.8 | I54: 1 | J54: 5.4 | K54: 5.4 | L54: 2.642857143 | M54: 0.4511595683 | N54: 12.56329011 | O54: 11.68164506 | P54: -0.881645056 | Q54: 16.8 | R54: 6.504846004 | S54: 0.5923823015 | T54: 0.2 | U54: 0.8318018784 | V54: 3.626709464 | W54: 0.2630604307 | X54: 0.2630604307 | Y54: 3.236869231 | Z54: 0.000523866121 | AA54: 0.000523866121 | AB54: 4.369201818 | AC54: 0.4772481133 | AD54: 0.01436942324 | AE54: 0 | AF54: 0.0009874424628 | AG54: 0.5366574009 | AH54: 4.819034863 | AI54: 0.2554540671 | AJ54: 0.01308344246 | AK54: 0.2793857853 | AL54: 0.012096 | AM54: 0.04536 | AN54: 0.1480955754 | AO54: 3.696e-05 | AP54: 0.03444 | AQ54: 0.03034 | AR54: 0.02419 | AS54: 0.03447696 | AT54: 2.151457897 | AU54: 39.96 | AV54: 0.9489103915 | AW54: 24.36358504 | AX54: 11.18547424 | AZ54: 94.89103915 | BA54: 0.8318018784 | BB54: 0.8614031861 | BC54: 0.5665950009 | BD54: 0.2943545853 | BE54: 0.1480955754
A55: TrrBot | B55: =Trr_Q2*1000000000 -> 40 | C55: ns | D55: Reverse Recovery Time of Body Diode | G55: 46 | H55: 16.8 | I55: 1 | J55: 5.52 | K55: 5.52 | L55: 2.701587302 | M55: 0.4513977986 | N55: 12.56352239 | O55: 11.8017612 | P55: -0.761761195 | Q55: 16.8 | R55: 6.604839733 | S55: 0.6107347107 | T55: 0.2 | U55: 0.8523810039 | V55: 3.626776517 | W55: 0.2630701581 | X55: 0.2630701581 | Y55: 3.286781057 | Z55: 0.0005401464858 | AA55: 0.0005401464858 | AB55: 4.437537154 | AC55: 0.4922933998 | AD55: 0.01468874376 | AE55: 0 | AF55: 0.0008531725384 | AG55: 0.5548138849 | AH55: 4.892051912 | AI55: 0.263253891 | AJ55: 0.01321797254 | AK55: 0.2879959019 | AL55: 0.0123648 | AM55: 0.046368 | AN55: 0.1526836777 | AO55: 3.696e-05 | AP55: 0.03444 | AQ55: 0.03034 | AR55: 0.02419 | AS55: 0.03447696 | AT55: 2.204694533 | AU55: 40.848 | AV55: 0.9487907887 | AW55: 25.17292089 | AX55: 11.52529899 | AZ55: 94.87907887 | BA55: 0.8523810039 | BB55: 0.8891777868 | BC55: 0.5854167649 | BD55: 0.3032973419 | BE55: 0.1526836777
A56: θJABot | B56: =ThetaJA_Q2 -> 38 | C56: °C/W | D56: Junction to Ambient Resistance | G56: 47 | H56: 16.8 | I56: 1 | J56: 5.64 | K56: 5.64 | L56: 2.76031746 | M56: 0.4516360647 | N56: 12.56374891 | O56: 11.92187445 | P56: -0.6418744543 | Q56: 16.8 | R56: 6.705488962 | S56: 0.6294901511 | T56: 0.2 | U56: 0.8734778051 | V56: 3.626841907 | W56: 0.2630796444 | X56: 0.2630796444 | Y56: 3.337023011 | Z56: 0.0005567861289 | AA56: 0.0005567861289 | AB56: 4.506348337 | AC56: 0.5076793833 | AD56: 0.01500806428 | AE56: 0 | AF56: 0.0007188993888 | AG56: 0.5734834078 | AH56: 4.965521814 | AI56: 0.2712204758 | AJ56: 0.01335249939 | AK56: 0.2968090816 | AL56: 0.0126336 | AM56: 0.047376 | AN56: 0.1573725378 | AO56: 3.696e-05 | AP56: 0.03444 | AQ56: 0.03034 | AR56: 0.02419 | AS56: 0.03447696 | AT56: 2.259265823 | AU56: 41.736 | AV56: 0.9486475242 | AW56: 26.00431742 | AX56: 11.87284014 | AZ56: 94.86475242 | BA56: 0.8734778051 | BB56: 0.9176684894 | BC56: 0.6047515678 | BD56: 0.3124431616 | BE56: 0.1573725378
A57: Bottom Schottky | B57: Input Value | C57: Units | D57: Std Units | G57: 48 | H57: 16.8 | I57: 1 | J57: 5.76 | K57: 5.76 | L57: 2.819047619 | M57: 0.4518743668 | N57: 12.56396967 | O57: 12.04198483 | P57: -0.5219848331 | Q57: 16.8 | R57: 6.806764612 | S57: 0.6486486227 | T57: 0.2 | U57: 0.895096892 | V57: 3.626905634 | W57: 0.2630888896 | X57: 0.2630888896 | Y57: 3.387580635 | Z57: 0.0005737851279 | AA57: 0.0005737851279 | AB57: 4.575616162 | AC57: 0.5234065815 | AD57: 0.01532738479 | AE57: 0 | AF57: 0.0005846230131 | AG57: 0.5926746798 | AH57: 5.039422707 | AI57: 0.2793535934 | AJ57: 0.01348702301 | AK57: 0.3058265456 | AL57: 0.0129024 | AM57: 0.048384 | AN57: 0.1621621557 | AO57: 3.696e-05 | AP57: 0.03444 | AQ57: 0.03034 | AR57: 0.02419 | AS57: 0.03447696 | AT57: 2.315186308 | AU57: 42.624 | AV57: 0.9484817929 | AW57: 26.85814915 | AX57: 12.22814409 | AZ57: 94.84817929 | BA57: 0.895096892 | BB57: 0.9468852254 | BC57: 0.6246081198 | BD57: 0.3217932656 | BE57: 0.1621621557
A58: VfdSky | B58: =VfdSky_Q2 -> 0 | C58: V | D58: Diode Forward Voltage | G58: 49 | H58: 16.8 | I58: 1 | J58: 5.88 | K58: 5.88 | L58: 2.877777778 | M58: 0.4521127047 | N58: 12.56418466 | O58: 12.16209233 | P58: -0.4020923309 | Q58: 16.8 | R58: 6.908639134 | S58: 0.6682101256 | T58: 0.2 | U58: 0.917243011 | V58: 3.626967698 | W58: 0.2630978937 | X58: 0.2630978937 | Y58: 3.438440225 | Z58: 0.0005911435592 | AA58: 0.0005911435592 | AB58: 4.645322434 | AC58: 0.5394755128 | AD58: 0.01564670531 | AE58: 0 | AF58: 0.0004503434107 | AG58: 0.6123967238 | AH58: 5.113733878 | AI58: 0.2876530159 | AJ58: 0.01362154341 | AK58: 0.3150495523 | AL58: 0.0131712 | AM58: 0.049392 | AN58: 0.1670525314 | AO58: 3.696e-05 | AP58: 0.03444 | AQ58: 0.03034 | AR58: 0.02419 | AS58: 0.03447696 | AT58: 2.372471016 | AU58: 43.512 | AV58: 0.9482946853 | AW58: 27.73480408 | AX58: 12.59125867 | AZ58: 94.82946853 | BA58: 0.917243011 | BB58: 0.9768382761 | BC58: 0.6449954438 | BD58: 0.3313489123 | BE58: 0.1670525314
A59: QrrSky | B59: =QrrSky_Q2*1000000000 -> 0 | C59: nC | D59: Diode Reverse Recovery Charge | G59: 50 | H59: 16.8 | I59: 1 | J59: 6 | K59: 6 | L59: 2.936507937 | M59: 0.4523510784 | N59: 12.56439389 | O59: 12.28219695 | P59: -0.2821969471 | Q59: 16.8 | R59: 7.011086423 | S59: 0.6881746596 | T59: 0.2 | U59: 0.9399210473 | V59: 3.627028098 | W59: 0.2631066565 | X59: 0.2631066565 | Y59: 3.489588797 | Z59: 0.0006088614985 | AA59: 0.0006088614985 | AB59: 4.715449906 | AC59: 0.5558866954 | AD59: 0.01596602582 | AE59: 0 | AF59: 0.0003160605807 | AG59: 0.632658887 | AH59: 5.1884357 | AI59: 0.2961185151 | AJ59: 0.01375606058 | AK59: 0.3244793981 | AL59: 0.01344 | AM59: 0.0504 | AN59: 0.1720436649 | AO59: 3.696e-05 | AP59: 0.03444 | AQ59: 0.03034 | AR59: 0.02419 | AS59: 0.03447696 | AT59: 2.431135475 | AU59: 44.4 | AV59: 0.9480871977 | AW59: 28.63468414 | AX59: 12.96223313 | AZ59: 94.80871977 | BA59: 0.9399210473 | BB59: 1.007538285 | BC59: 0.665922887 | BD59: 0.3411113981 | BE59: 0.1720436649
A60: Ireverse | B60: =Ireverse -> 0 | C60: mA | D60: Reverse Leakage Current | G60: 51 | H60: 16.8 | I60: 1 | J60: 6.12 | K60: 6.12 | L60: 2.995238095 | M60: 0.4525894881 | N60: 12.56459736 | O60: 12.40229868 | P60: -0.1622986808 | Q60: 11.84661904 | R60: 7.114081733 | S60: 0.7085422247 | T60: 0.2 | U60: 0.9631360282 | V60: 3.627086835 | W60: 0.2631151781 | X60: 0.2631151781 | Y60: 3.541014036 | Z60: 0.0006269390203 | AA60: 0.0006269390203 | AB60: 4.785982231 | AC60: 0.5726406478 | AD60: 0.01628534634 | AE60: 0.004818433055 | AF60: 0.0001817745225 | AG60: 0.6588157237 | AH60: 5.26350957 | AI60: 0.3047498629 | AJ60: 0.01389057452 | AK60: 0.3341174175 | AL60: 0.0137088 | AM60: 0.051408 | AN60: 0.1771355562 | AO60: 3.696e-05 | AP60: 0.03444 | AQ60: 0.03034 | AR60: 0.02419 | AS60: 0.03447696 | AT60: 2.496540603 | AU60: 45.288 | AV60: 0.9477542199 | AW60: 29.78803516 | AX60: 13.34111818 | AZ60: 94.77542199 | BA60: 0.9631360282 | BB60: 1.044341141 | BC60: 0.6927450037 | BD60: 0.3510820575 | BE60: 0.1771355562
A61: Controller | B61: Input Value | C61: Units | D61: Std Units | G61: 52 | H61: 16.8 | I61: 1 | J61: 6.24 | K61: 6.24 | L61: 3.053968254 | M61: 0.4528279337 | N61: 12.56479506 | O61: 12.52239753 | P61: -0.04239753161 | Q61: 3.094710337 | R61: 7.217601604 | S61: 0.7293128208 | T61: 0.2 | U61: 0.9868931255 | V61: 3.627143906 | W61: 0.2631234583 | X61: 0.2631234583 | Y61: 3.592704269 | Z61: 0.0006453761983 | AA61: 0.0006453761983 | AB61: 4.856903906 | AC61: 0.5897378887 | AD61: 0.01660466686 | AE61: 0.01267219736 | AF61: 4.748523541e-05 | AG61: 0.6889453527 | AH61: 5.33893785 | AI61: 0.313546831 | AJ61: 0.01402508524 | AK61: 0.3439649842 | AL61: 0.0139776 | AM61: 0.052416 | AN61: 0.1823282052 | AO61: 3.696e-05 | AP61: 0.03444 | AQ61: 0.03034 | AR61: 0.02419 | AS61: 0.03447696 | AT61: 2.566771062 | AU61: 46.176 | AV61: 0.9473404772 | AW61: 31.11221625 | AX61: 13.72796604 | AZ61: 94.73404772 | BA61: 0.9868931255 | BB61: 1.085326337 | BC61: 0.7235399127 | BD61: 0.3612622642 | BE61: 0.1823282052
A62: θJA | B62: 30 | C62: °C/W | D62: Junction to Ambient Resistance | G62: 53 | H62: 16.8 | I62: 1 | J62: 6.36 | K62: 6.36 | L62: 3.112698413 | M62: 0.4530664152 | N62: 12.564987 | O62: 12.6424935 | P62: 0.07750650126 | Q62: 0 | R62: 7.321623785 | S62: 0.750486448 | T62: 0.2 | U62: 1.011197659 | V62: 3.627199313 | W62: 0.2631314971 | X62: 0.2631314971 | Y62: 3.644648419 | Z62: 0.0006641731051 | AA62: 0.0006641731051 | AB62: 4.928200227 | AC62: 0.6071789368 | AD62: 0.01692398737 | AE62: 0.01524768 | AF62: 0 | AG62: 0.7139073603 | AH62: 5.414703813 | AI62: 0.3225091912 | AJ62: 0.0142464 | AK62: 0.3541147931 | AL62: 0.0142464 | AM62: 0.053424 | AN62: 0.187621612 | AO62: 3.696e-05 | AP62: 0.03444 | AQ62: 0.03034 | AR62: 0.02419 | AS62: 0.03447696 | AT62: 2.632784455 | AU62: 47.064 | AV62: 0.9470230422 | AW62: 32.21418961 | AX62: 14.1262991 | AZ62: 94.70230422 | BA62: 1.011197659 | BB62: 1.121446153 | BC62: 0.7491672003 | BD62: 0.3717447131 | BE62: 0.187621612
A63: Theta Ja | B63: 2 | C63: °C/W | D63: Junction to Ambient Resistance | G63: 54 | H63: 16.8 | I63: 1 | J63: 6.48 | K63: 6.48 | L63: 3.171428571 | M63: 0.4533049326 | N63: 12.56517316 | O63: 12.76258658 | P63: 0.1974134184 | Q63: 0 | R63: 7.426127168 | S63: 0.7720631061 | T63: 0.2 | U63: 1.0360551 | V63: 3.627253054 | W63: 0.2631392944 | X63: 0.2631392944 | Y63: 3.696835978 | Z63: 0.0006833298124 | AA63: 0.0006833298124 | AB63: 4.999857243 | AC63: 0.6249643112 | AD63: 0.01724330789 | AE63: 0.01524768 | AF63: 0 | AG63: 0.7366395263 | AH63: 5.490791589 | AI63: 0.331636715 | AJ63: 0.0145152 | AK63: 0.3645272913 | AL63: 0.0145152 | AM63: 0.054432 | AN63: 0.1930157765 | AO63: 3.696e-05 | AP63: 0.03444 | AQ63: 0.03034 | AR63: 0.02419 | AS63: 0.03447696 | AT63: 2.697484478 | AU63: 47.952 | AV63: 0.9467421139 | AW63: 33.22027979 | AX63: 14.53461435 | AZ63: 94.67421139 | BA63: 1.0360551 | BB63: 1.155598818 | BC63: 0.7725646463 | BD63: 0.3824898513 | BE63: 0.1930157765
G64: 55 | H64: 16.8 | I64: 1 | J64: 6.6 | K64: 6.6 | L64: 3.23015873 | M64: 0.4535434859 | N64: 12.56535356 | O64: 12.88267678 | P64: 0.3173232206 | Q64: 0 | R64: 7.531091721 | S64: 0.7940427951 | T64: 0.2 | U64: 1.061471072 | V64: 3.62730513 | W64: 0.2631468501 | X64: 0.2631468501 | Y64: 3.749256969 | Z64: 0.000702846391 | AA64: 0.000702846391 | AB64: 5.071861713 | AC64: 0.6430945308 | AD64: 0.01756262841 | AE64: 0.01524768 | AF64: 0 | AG64: 0.7599664446 | AH64: 5.567186118 | AI64: 0.340929174 | AJ64: 0.014784 | AK64: 0.3751541238 | AL64: 0.014784 | AM64: 0.05544 | AN64: 0.1985106988 | AO64: 3.696e-05 | AP64: 0.03444 | AQ64: 0.03034 | AR64: 0.02419 | AS64: 0.03447696 | AT64: 2.763652995 | AU64: 48.84 | AV64: 0.9464446248 | AW64: 34.25194432 | AX64: 14.9510743 | AZ64: 94.64446248 | BA64: 1.061471072 | BB64: 1.190560568 | BC64: 0.7965568446 | BD64: 0.3934493238 | BE64: 0.1985106988
G65: 56 | H65: 16.8 | I65: 1 | J65: 6.72 | K65: 6.72 | L65: 3.288888889 | M65: 0.4537820752 | N65: 12.56552818 | O65: 13.00276409 | P65: 0.4372359083 | Q65: 0 | R65: 7.636498426 | S65: 0.816425515 | T65: 0.2 | U65: 1.087451358 | V65: 3.62735554 | W65: 0.2631541642 | X65: 0.2631541642 | Y65: 3.801901921 | Z65: 0.0007227229107 | AA65: 0.0007227229107 | AB65: 5.144201065 | AC65: 0.661570115 | AD65: 0.01788194892 | AE65: 0.01524768 | AF65: 0 | AG65: 0.7838997425 | AH65: 5.643873104 | AI65: 0.3503863397 | AJ65: 0.0150528 | AK65: 0.3859968387 | AL65: 0.0150528 | AM65: 0.056448 | AN65: 0.2041063787 | AO65: 3.696e-05 | AP65: 0.03444 | AQ65: 0.03034 | AR65: 0.02419 | AS65: 0.03447696 | AT65: 2.831308965 | AU65: 49.728 | AV65: 0.9461311608 | AW65: 35.30968317 | AX65: 15.37573779 | AZ65: 94.61311608 | BA65: 1.087451358 | BB65: 1.226344581 | BC65: 0.8211554225 | BD65: 0.4046246787 | BE65: 0.2041063787
A66: Outputs | G66: 57 | H66: 16.8 | I66: 1 | J66: 6.84 | K66: 6.84 | L66: 3.347619048 | M66: 0.4540207004 | N66: 12.56569704 | O66: 13.12284852 | P66: 0.5571514823 | Q66: 0 | R66: 7.742329225 | S66: 0.8392112657 | T66: 0.2 | U66: 1.114001901 | V66: 3.627404283 | W66: 0.2631612366 | X66: 0.2631612366 | Y66: 3.854761835 | Z66: 0.0007429594401 | AA66: 0.0007429594401 | AB66: 5.216863361 | AC66: 0.6803915832 | AD66: 0.01820126944 | AE66: 0.01524768 | AF66: 0 | AG66: 0.8084514674 | AH66: 5.720838968 | AI66: 0.3600079835 | AJ66: 0.0153216 | AK66: 0.3970570258 | AL66: 0.0153216 | AM66: 0.057456 | AN66: 0.2098028164 | AO66: 3.696e-05 | AP66: 0.03444 | AQ66: 0.03034 | AR66: 0.02419 | AS66: 0.03447696 | AT66: 2.900471967 | AU66: 50.616 | AV66: 0.9458022575 | AW66: 36.39401438 | AX66: 15.80866522 | AZ66: 94.58022575 | BA66: 1.114001901 | BB66: 1.262964493 | BC66: 0.8463724274 | BD66: 0.4160175058 | BE66: 0.2098028164
A67: Design | B67: Value | C67: Units | G67: 58 | H67: 16.8 | I67: 1 | J67: 6.96 | K67: 6.96 | L67: 3.406349206 | M67: 0.4542593616 | N67: 12.56586011 | O67: 13.24293006 | P67: 0.6770699431 | Q67: 0 | R67: 7.848566963 | S67: 0.8624000471 | T67: 0.2 | U67: 1.14112881 | V67: 3.62745136 | W67: 0.2631680673 | X67: 0.2631680673 | Y67: 3.907828162 | Z67: 0.0007635560472 | AA67: 0.0007635560472 | AB67: 5.289837257 | AC67: 0.699559455 | AD67: 0.01852058996 | AE67: 0.01524768 | AF67: 0 | AG67: 0.8336341035 | AH67: 5.798070814 | AI67: 0.3697938768 | AJ67: 0.0155904 | AK67: 0.4083363179 | AL67: 0.0155904 | AM67: 0.058464 | AN67: 0.2156000118 | AO67: 3.696e-05 | AP67: 0.03444 | AQ67: 0.03034 | AR67: 0.02419 | AS67: 0.03447696 | AT67: 2.971162227 | AU67: 51.504 | AV67: 0.9454584052 | AW67: 37.50547477 | AX67: 16.24991864 | AZ67: 94.54584052 | BA67: 1.14112881 | BB67: 1.300434421 | BC67: 0.8722203435 | BD67: 0.4276294379 | BE67: 0.2156000118
A68: Dmax | B68: =D1_Vinmin -> 0.8222222222 | C68: index | G68: 59 | H68: 16.8 | I68: 1 | J68: 7.08 | K68: 7.08 | L68: 3.465079365 | M68: 0.4544980587 | N68: 12.56601742 | O68: 13.36300871 | P68: 0.7969912916 | Q68: 0 | R68: 7.955195334 | S68: 0.8859918593 | T68: 0.2 | U68: 1.168838361 | V68: 3.627496769 | W68: 0.2631746562 | X68: 0.2631746562 | Y68: 3.961092775 | Z68: 0.0007845127988 | AA68: 0.0007845127988 | AB68: 5.36311197 | AC68: 0.7190742501 | AD68: 0.01883991047 | AE68: 0.01524768 | AF68: 0 | AG68: 0.8594605889 | AH68: 5.875556383 | AI68: 0.3797437909 | AJ68: 0.0158592 | AK68: 0.4198363908 | AL68: 0.0158592 | AM68: 0.059472 | AN68: 0.2214979648 | AO68: 3.696e-05 | AP68: 0.03444 | AQ68: 0.03034 | AR68: 0.02419 | AS68: 0.03447696 | AT68: 3.043400635 | AU68: 52.392 | AV68: 0.9451000516 | AW68: 38.64462068 | AX68: 16.69956173 | AZ68: 94.51000516 | BA68: 1.168838361 | BB68: 1.33876898 | BC68: 0.8987121089 | BD68: 0.4394621508 | BE68: 0.2214979648
A69: Dprime | B69: =1-B68 -> 0.1777777778 | C69: index | G69: 60 | H69: 16.8 | I69: 1 | J69: 7.2 | K69: 7.2 | L69: 3.523809524 | M69: 0.4547367918 | N69: 12.56616894 | O69: 13.48308447 | P69: 0.9169155282 | Q69: 0 | R69: 8.062198841 | S69: 0.9099867022 | T69: 0.2 | U69: 1.197137002 | V69: 3.627540511 | W69: 0.2631810032 | X69: 0.2631810032 | Y69: 4.014547946 | Z69: 0.0008058297607 | AA69: 0.0008058297607 | AB69: 5.436677251 | AC69: 0.7389364884 | AD69: 0.01915923099 | AE69: 0.01524768 | AF69: 0 | AG69: 0.8859443337 | AH69: 5.95328402 | AI69: 0.3898574969 | AJ69: 0.016128 | AK69: 0.4315589645 | AL69: 0.016128 | AM69: 0.06048 | AN69: 0.2274966756 | AO69: 3.696e-05 | AP69: 0.03444 | AQ69: 0.03034 | AR69: 0.02419 | AS69: 0.03447696 | AT69: 3.117208769 | AU69: 53.28 | AV69: 0.9447276055 | AW69: 39.81202875 | AX69: 17.15765985 | AZ69: 94.47276055 | BA69: 1.197137002 | BB69: 1.377983298 | BC69: 0.9258611337 | BD69: 0.4515173645 | BE69: 0.2274966756
A70: Ipp | B70: =Iripple_Vinnom -> 12.8707812 | C70: A | G70: 61 | H70: 16.8 | I70: 1 | J70: 7.32 | K70: 7.32 | L70: 3.582539683 | M70: 0.4549755608 | N70: 12.56631469 | O70: 13.60315735 | P70: 1.036842654 | Q70: 0 | R70: 8.169562743 | S70: 0.9343845758 | T70: 0.2 | U70: 1.226031359 | V70: 3.627582585 | W70: 0.2631871082 | X70: 0.2631871082 | Y70: 4.068186323 | Z70: 0.0008275069979 | AA70: 0.0008275069979 | AB70: 5.510523351 | AC70: 0.75914669 | AD70: 0.01947855151 | AE70: 0.01524768 | AF70: 0 | AG70: 0.913099239 | AH70: 6.031242643 | AI70: 0.400134766 | AJ70: 0.0163968 | AK70: 0.4435058038 | AL70: 0.0163968 | AM70: 0.061488 | AN70: 0.2335961439 | AO70: 3.696e-05 | AP70: 0.03444 | AQ70: 0.03034 | AR70: 0.02419 | AS70: 0.03447696 | AT70: 3.192608921 | AU70: 54.168 | AV70: 0.9443414395 | AW70: 41.00829672 | AX70: 17.62428006 | AZ70: 94.43414395 | BA70: 1.226031359 | BB70: 1.418093043 | BC70: 0.953681319 | BD70: 0.4637968438 | BE70: 0.2335961439
A71: Top FET | B71: Value | C71: Units | G71: 62 | H71: 16.8 | I71: 1 | J71: 7.44 | K71: 7.44 | L71: 3.641269841 | M71: 0.4552143658 | N71: 12.56645466 | O71: 13.72322733 | P71: 1.156772669 | Q71: 0 | R71: 8.277273015 | S71: 0.9591854799 | T71: 0.2 | U71: 1.255528236 | V71: 3.627622991 | W71: 0.2631929713 | X71: 0.2631929713 | Y71: 4.122000908 | Z71: 0.0008495445743 | AA71: 0.0008495445743 | AB71: 5.584640991 | AC71: 0.7797053749 | AD71: 0.01979787202 | AE71: 0.01524768 | AF71: 0 | AG71: 0.9409397168 | AH71: 6.109421705 | AI71: 0.4105753692 | AJ71: 0.0166656 | AK71: 0.4556787189 | AL71: 0.0166656 | AM71: 0.062496 | AN71: 0.23979637 | AO71: 3.696e-05 | AP71: 0.03444 | AQ71: 0.03034 | AR71: 0.02419 | AS71: 0.03447696 | AT71: 3.269624118 | AU71: 55.056 | AV71: 0.9439418923 | AW71: 42.2340443 | AX71: 18.09949116 | AZ71: 94.39418923 | BA71: 1.255528236 | BB71: 1.459114436 | BC71: 0.9821870768 | BD71: 0.4763023989 | BE71: 0.23979637
A72: Tr | B72: =(Qgd_Q1+Qgs_Q1/2)*(RdsonDRT+Rgate1)/(VCC-Vsp_Q1)*1000000000 -> 1.756097561 | C72: ns | D72: Turn on of MOSFET -> Rise time of current | G72: 63 | H72: 16.8 | I72: 1 | J72: 7.56 | K72: 7.56 | L72: 3.7 | M72: 0.4554532069 | N72: 12.56658885 | O72: 13.84329443 | P72: 1.276705574 | Q72: 0 | R72: 8.38531631 | S72: 0.9843894146 | T72: 0.2 | U72: 1.285634624 | V72: 3.627661728 | W72: 0.2631985923 | X72: 0.2631985923 | Y72: 4.17598504 | Z72: 0.0008719425528 | AA72: 0.0008719425528 | AB72: 5.659021342 | AC72: 0.8006130637 | AD72: 0.02011719254 | AE72: 0.01524768 | AF72: 0 | AG72: 0.9694807109 | AH72: 6.187811169 | AI72: 0.4211790777 | AJ72: 0.0169344 | AK72: 0.4680795664 | AL72: 0.0169344 | AM72: 0.063504 | AN72: 0.2460973537 | AO72: 3.696e-05 | AP72: 0.03444 | AQ72: 0.03034 | AR72: 0.02419 | AS72: 0.03447696 | AT72: 3.34827815 | AU72: 55.944 | AV72: 0.9435292714 | AW72: 43.48991409 | AX72: 18.58336368 | AZ72: 94.35292714 | BA72: 1.285634624 | BB72: 1.501064277 | BC72: 1.011393351 | BD72: 0.4890358864 | BE72: 0.2460973537
A73: Tf | B73: =(Qgd_Q1+Qgs_Q1/2)*(RdsonDRT2+Rgate1)/(Vsp_Q1)*1000000000 -> 1.411764706 | C73: ns | D73: Turn off of MOSFET -> Fall time of current | G73: 64 | H73: =Vin -> 16.8 | I73: =MODE -> 1 | J73: 7.68 | K73: =Iout*G73/100/Number_of_Phases -> 7.68 | L73: =Vout*K73/(Vin*Efficiency) -> 3.758730159 | M73: =(Vout+(Rdson2+Rs+Rdcr)*K73)/(Vin+(Rs+Rdson2-Rdson1)*K73) -> 0.4556920839 | N73: =(Vin-(Rdson1+Rdcr)*K73-Vout)*M73/(Fsw*Lf) -> 12.56671726 | O73: 13.96335863 | P73: 1.39664137 | Q73: =IF(MIN(Vin, -P73/(Coss_Q1+Coss_Q2)*0.00000002)<0, 0, MIN(Vin, -P73/(Coss_Q1+Coss_Q2)*0.00000002)) -> 0 | R73: 8.493679918 | S73: =R73^2*Rdcr -> 1.00999638 | T73: =Core_Loss_Ch1 -> 0.2 | U73: =(T73+S73*(1+Ltc*(Ta-25)))/(1-S73*Ltc*ThetaCa) -> 1.316357701 | V73: 3.627698796 | W73: 0.2632039711 | X73: 0.2632039711 | Y73: 4.230132375 | Z73: 0.0008947009954 | AA73: 0.0008947009954 | AB73: 5.733655996 | AC73: =Rdson1*AB73^2 -> 0.8218702769 | AD73: =(Vin*K73/2)*Fsw*(Tr_buck+Tf_buck) -> 0.02043651306 | AE73: =(0.5*Coss_Q1*(Vin-Q73)^2-0.5*Coss_Q2*(Vin-Q73)^2+(Qoss_Q2*(Vin-Q73)/Vin)*Vin)*Fsw -> 0.01524768 | AF73: =IF(K73>N73/2,0,ABS(K73-N73/2)*Vsd_Q1*Deadtime*Fsw) -> 0 | AG73: =(AF73+AE73+AD73+AC73*(1+RdsonTopTc*Ta-RdsonTopTc*25))/(1-AC73*RdsonTopTc*ThetaJA_Q1) -> 0.9987377194 | AH73: =SQRT((1-M73))*SQRT(K73^2+(N73^2)/12) -> 6.266401478 | AI73: =Rdson2*AH73^2 -> 0.4319456623 | AJ73: =IF(K73<N73/2,Deadtime*Fsw*IF(VfdSky_Q2>0,0,Vsd_Q2)*(K73+N73/2),2*Deadtime*Fsw*IF(VfdSky_Q2>0,0,Vsd_Q2)*K73) -> 0.0172032 | AK73: =(AJ73+AI73*(1+RdsonBotTc*Ta-RdsonBotTc*25))/(1-AI73*RdsonBotTc*ThetaJA_Q2) -> 0.4807102498 | AL73: =2*Deadtime*Fsw*IF(VfdSky_Q2>0,VfdSky_Q2,Vsd_Q2)*K73 -> 0.0172032 | AM73: =IF(QrrSky_Q2>0,QrrSky_Q2,Qrr_Q2*K73/(Iout/Number_of_Phases))*Fsw*Vin -> 0.064512 | AN73: =Rs*R73^2 -> 0.252499095 | AO73: =Iq*Vin -> 3.696e-05 | AP73: =IF(Ext_VCC=1, (Qg_Q1+Qg_Q2)*Fsw*VCC, (Qg_Q1+Qg_Q2)*Fsw*Vin) -> 0.03444 | AQ73: =(Vin-VCC)*Fsw*(Qg_Q1+Qg_Q2)+(RdsonDRT+RdsonDRT2)*Fsw*Qg_Q1*VCC/(RdsonDRT+2*Rgate1+RdsonDRT2)+(RdsonDRB+RdsonDRB2)*Fsw*Qg_Q2*VCC/(RdsonDRB+2*Rgate2+RdsonDRB2) -> 0.03034 | AR73: =(Qg_Q1+Qg_Q2)*Fsw*(Vin-VCC) -> 0.02419 | AS73: 0.03447696 | AT73: =SUM(U73,X73,AA73,AG73,AK73,AL73,AM73,AS73,AN73) -> 3.428595597 | AU73: =Vout*K73 -> 56.832 | AV73: 0.9431038548 | AW73: =ThetaJA_Q1*BC73 -> 44.7765725 | AX73: =ThetaJA_Q2*BD73 -> 19.07596997 | AZ73: 94.31038548 | BA73: =U73 -> 1.316357701 | BB73: 1.543959969 | BC73: 1.041315639 | BD73: 0.5019992098 | BE73: 0.252499095
A74: Part Power | B74: Value | C74: Units | G74: 65 | H74: 16.8 | I74: 1 | J74: =Iout*G74/100 -> 7.8 | K74: 7.8 | L74: 3.817460317 | M74: 0.4559309969 | N74: 12.56683988 | O74: =K74+N74/2 -> 14.08341994 | P74: =K74-N74/2 -> 1.516580058 | Q74: 0 | R74: =SQRT(K74^2+(N74^2)/12) -> 8.602351736 | S74: 1.036006375 | T74: 0.2 | U74: 1.34770484 | V74: =N74/SQRT(12) -> 3.627734195 | W74: =RCoutEsr*V74^2 -> 0.2632091078 | X74: =W74 -> 0.2632091078 | Y74: =SQRT(M74*(1-M74))*SQRT(K74^2+(N74^2)/12) -> 4.284436867 | Z74: =RCinEsr*Y74^2 -> 0.0009178199632 | AA74: =Z74 -> 0.0009178199632 | AB74: =SQRT(M74)*SQRT(K74^2+(N74^2)/12) -> 5.808536941 | AC74: 0.843477535 | AD74: 0.02075583357 | AE74: 0.01524768 | AF74: 0 | AG74: 1.028726818 | AH74: 6.345183527 | AI74: 0.4428748939 | AJ74: 0.017472 | AK74: 0.4935727208 | AL74: 0.017472 | AM74: 0.06552 | AN74: 0.2590015939 | AO74: 3.696e-05 | AP74: 0.03444 | AQ74: 0.03034 | AR74: 0.02419 | AS74: 0.03447696 | AT74: 3.51060186 | AU74: 57.72 | AV74: =AU74/(AU74+AT74) -> 0.9426658933 | AW74: 46.09471077 | AX74: 19.57738419 | AZ74: =AV74*100 -> 94.26658933 | BA74: 1.34770484 | BB74: =AG74+AK74+AM74 -> 1.587819539 | BC74: =AG74+AM74*0.66 -> 1.071970018 | BD74: =AK74+AM74*0.33 -> 0.5151943208 | BE74: =AN74 -> 0.2590015939
A75: Power Dis | B75: =AS9 -> 0.03447696 | C75: W | G75: 66 | H75: 16.8 | I75: 1 | J75: 7.92 | K75: 7.92 | L75: 3.876190476 | M75: 0.456169946 | N75: 12.56695673 | O75: 14.20347836 | P75: 1.636521637 | Q75: 0 | R75: 8.711320228 | S75: 1.062419402 | T75: 0.2 | U75: 1.379683613 | V75: 3.627767924 | W75: 0.2632140022 | X75: 0.2632140022 | Y75: 4.338892753 | Z75: 0.000941299516 | AA75: 0.000941299516 | AB75: 5.883656547 | AC75: 0.865435359 | AD75: 0.02107515409 | AE75: 0.01524768 | AF75: 0 | AG75: 1.059464683 | AH75: 6.42414864 | AI75: 0.4539665433 | AJ75: 0.0177408 | AK75: 0.5066689796 | AL75: 0.0177408 | AM75: 0.066528 | AN75: 0.2656048504 | AO75: 3.696e-05 | AP75: 0.03444 | AQ75: 0.03034 | AR75: 0.02419 | AS75: =SUM(AO75:AP75) -> 0.03447696 | AT75: 3.594323188 | AU75: 58.608 | AV75: 0.9422156118 | AW75: 47.44504602 | AX75: 20.08768234 | AZ75: 94.22156118 | BA75: 1.379683613 | BB75: 1.632661663 | BC75: 1.103373163 | BD75: 0.5286232196 | BE75: 0.2656048504
A76: Temp rise | B76: =B75*B62 -> 1.0343088 | C76: °C | G76: 67 | H76: 16.8 | I76: 1 | J76: 8.04 | K76: 8.04 | L76: 3.934920635 | M76: 0.4564089311 | N76: 12.56706778 | O76: 14.32353389 | P76: 1.75646611 | Q76: 0 | R76: 8.820574398 | S76: 1.089235458 | T76: 0.2 | U76: 1.412301793 | V76: 3.627799983 | W76: 0.2632186543 | X76: 0.2632186543 | Y76: 4.393494539 | Z76: 0.0009651397131 | AA76: 0.0009651397131 | AB76: 5.959007534 | AC76: 0.8877442698 | AD76: 0.02139447461 | AE76: 0.01524768 | AF76: 0 | AG76: 1.090968621 | AH76: 6.503288547 | AI76: 0.4652203812 | AJ76: 0.0180096 | AK76: 0.5200010762 | AL76: 0.0180096 | AM76: 0.067536 | AN76: 0.2723088645 | AO76: 3.696e-05 | AP76: 0.03444 | AQ76: 0.03034 | AR76: 0.02419 | AS76: 0.03447696 | AT76: 3.679786709 | AU76: 59.496 | AV76: 0.9417532112 | AW76: 48.82832237 | AX76: 20.60694234 | AZ76: 94.17532112 | BA76: 1.412301793 | BB76: 1.678505697 | BC76: 1.135542381 | BD76: 0.5422879562 | BE76: 0.2723088645
A77: Current (switching) | B77: =(Qg_Q1+Qg_Q2)*Fsw+Iq -> 0.0020522 | C77: A | G77: 68 | H77: 16.8 | I77: 1 | J77: 8.16 | K77: 8.16 | L77: 3.993650794 | M77: 0.4566479522 | N77: 12.56717305 | O77: 14.44358652 | P77: 1.876413476 | Q77: 0 | R77: 8.930103762 | S77: 1.116454545 | T77: 0.2 | U77: 1.445567365 | V77: 3.627830371 | W77: 0.2632230641 | X77: 0.2632230641 | Y77: 4.448236982 | Z77: 0.0009893406124 | AA77: 0.0009893406124 | AB77: 6.034582963 | AC77: 0.9104047886 | AD77: 0.02171379512 | AE77: 0.01524768 | AF77: 0 | AG77: 1.12325659 | AH77: 6.582595359 | AI77: 0.4766361783 | AJ77: 0.0182784 | AK77: 0.5335711111 | AL77: 0.0182784 | AM77: 0.068544 | AN77: 0.2791136362 | AO77: 3.696e-05 | AP77: 0.03444 | AQ77: 0.03034 | AR77: 0.02419 | AS77: 0.03447696 | AT77: 3.767020468 | AU77: 60.384 | AV77: 0.9412788691 | AW77: 50.24531211 | AX77: 21.13524398 | AZ77: 94.12788691 | BA77: 1.445567365 | BB77: 1.725371702 | BC77: 1.16849563 | BD77: 0.5561906311 | BE77: 0.2791136362
A78: Qrr Current | B78: =Qrr_Q2*Fsw -> 0.006 | C78: A | G78: 69 | H78: 16.8 | I78: 1 | J78: 8.28 | K78: 8.28 | L78: 4.052380952 | M78: 0.4568870093 | N78: 12.56727253 | O78: 14.56363626 | P78: 1.996363736 | Q78: 0 | R78: 9.039898316 | S78: 1.144076662 | T78: 0.2 | U78: 1.479488525 | V78: 3.627859089 | W78: 0.2632272314 | X78: 0.2632272314 | Y78: 4.50311508 | Z78: 0.001013902271 | AA78: 0.001013902271 | AB78: 6.110376213 | AC78: 0.9334174366 | AD78: 0.02203311564 | AE78: 0.01524768 | AF78: 0 | AG78: 1.156347236 | AH78: 6.662061551 | AI78: 0.4882137051 | AJ78: 0.0185472 | AK78: 0.5473812364 | AL78: 0.0185472 | AM78: 0.069552 | AN78: 0.2860191655 | AO78: 3.696e-05 | AP78: 0.03444 | AQ78: 0.03034 | AR78: 0.02419 | AS78: 0.03447696 | AT78: 3.856053457 | AU78: 61.272 | AV78: 0.9407927421 | AW78: 51.69681691 | AX78: 21.67266906 | AZ78: 94.07927421 | BA78: 1.479488525 | BB78: 1.773280472 | BC78: 1.202251556 | BD78: 0.5703333964 | BE78: 0.2860191655
A79: Diode Current | B79: =Deadtime*Fsw*(Iripple_Vinnom/2)*(Vsd_Q2)/Vin -> 0.00042902604 | G79: 70 | H79: 16.8 | I79: 1 | J79: 8.4 | K79: 8.4 | L79: 4.111111111 | M79: 0.4571261025 | N79: 12.56736622 | O79: 14.68368311 | P79: 2.11631689 | Q79: 0 | R79: 9.149948514 | S79: 1.172101809 | T79: 0.2 | U79: 1.51407369 | V79: 3.627886135 | W79: 0.2632311562 | X79: 0.2632311562 | Y79: 4.558124055 | Z79: 0.001038824745 | AA79: 0.001038824745 | AB79: 6.186380963 | AC79: 0.9567827354 | AD79: 0.02235243615 | AE79: 0.01524768 | AF79: 0 | AG79: 1.190259915 | AH79: 6.741679938 | AI79: 0.4999527323 | AJ79: 0.018816 | AK79: 0.5614336565 | AL79: 0.018816 | AM79: 0.07056 | AN79: 0.2930254523 | AO79: 3.696e-05 | AP79: 0.03444 | AQ79: 0.03034 | AR79: 0.02419 | AS79: 0.03447696 | AT79: 3.946915655 | AU79: 62.16 | AV79: 0.9402949659 | AW79: 53.18366916 | AX79: 22.21930135 | AZ79: 94.02949659 | BA79: 1.51407369 | BB79: 1.822253572 | BC79: 1.236829515 | BD79: 0.5847184565 | BE79: 0.2930254523
A80: Total | B80: =SUM(B77:B79) -> 0.00848122604 | C80: A | G80: 71 | H80: 16.8 | I80: 1 | J80: 8.52 | K80: 8.52 | L80: 4.16984127 | M80: 0.4573652318 | N80: 12.56745412 | O80: 14.80372706 | P80: 2.23627294 | Q80: 0 | R80: 9.260245241 | S80: 1.200529987 | T80: 0.2 | U80: 1.549331501 | V80: 3.627911509 | W80: 0.2632348384 | X80: 0.2632348384 | Y80: 4.613259347 | Z80: 0.00106410809 | AA80: 0.00106410809 | AB80: 6.262591178 | AC80: 0.9805012066 | AD80: 0.02267175667 | AE80: 0.01524768 | AF80: 0 | AG80: 1.225014732 | AH80: 6.821443664 | AI80: 0.5118530302 | AJ80: 0.0190848 | AK80: 0.5757306292 | AL80: 0.0190848 | AM80: 0.071568 | AN80: 0.3001324967 | AO80: 3.696e-05 | AP80: 0.03444 | AQ80: 0.03034 | AR80: 0.02419 | AS80: 0.03447696 | AT80: 4.039638065 | AU80: 63.048 | AV80: 0.9397856568 | AW80: 54.70673332 | AX80: 22.77522663 | AZ80: 93.97856568 | BA80: 1.549331501 | BB80: 1.872313361 | BC80: 1.272249612 | BD80: 0.5993480692 | BE80: 0.3001324967
G81: 72 | H81: 16.8 | I81: 1 | J81: 8.64 | K81: 8.64 | L81: 4.228571429 | M81: 0.4576043971 | N81: 12.56753623 | O81: 14.92376811 | P81: 2.356231887 | Q81: 0 | R81: 9.370779792 | S81: 1.229361195 | T81: 0.2 | U81: 1.58527083 | V81: 3.627935212 | W81: 0.263238278 | X81: 0.263238278 | Y81: 4.668516594 | Z81: 0.001089752359 | AA81: 0.001089752359 | AB81: 6.339001094 | AC81: 1.004573372 | AD81: 0.02299107719 | AE81: 0.01524768 | AF81: 0 | AG81: 1.26063257 | AH81: 6.901346175 | AI81: 0.5239143693 | AJ81: 0.0193536 | AK81: 0.5902744671 | AL81: 0.0193536 | AM81: 0.072576 | AN81: 0.3073402987 | AO81: 3.696e-05 | AP81: 0.03444 | AQ81: 0.03034 | AR81: 0.02419 | AS81: 0.03447696 | AT81: 4.134252756 | AU81: 63.936 | AV81: 0.9392649125 | AW81: 56.26690738 | AX81: 23.34053279 | AZ81: 93.92649125 | BA81: 1.58527083 | BB81: 1.923483037 | BC81: 1.30853273 | BD81: 0.6142245471 | BE81: 0.3073402987
G82: 73 | H82: 16.8 | I82: 1 | J82: 8.76 | K82: 8.76 | L82: 4.287301587 | M82: 0.4578435985 | N82: 12.56761254 | O82: 15.04380627 | P82: 2.476193729 | Q82: 0 | R82: 9.481543848 | S82: 1.258595432 | T82: 0.2 | U82: 1.621900786 | V82: 3.627957242 | W82: 0.263241475 | X82: 0.263241475 | Y82: 4.72389163 | Z82: 0.001115757607 | AA82: 0.001115757607 | AB82: 6.415605204 | AC82: 1.028999753 | AD82: 0.0233103977 | AE82: 0.01524768 | AF82: 0 | AG82: 1.297135128 | AH82: 6.981381211 | AI82: 0.5361365198 | AJ82: 0.0196224 | AK82: 0.605067538 | AL82: 0.0196224 | AM82: 0.073584 | AN82: 0.3146488581 | AO82: 3.696e-05 | AP82: 0.03444 | AQ82: 0.03034 | AR82: 0.02419 | AS82: 0.03447696 | AT82: 4.230792903 | AU82: 64.824 | AV82: 0.9387328131 | AW82: 57.86512442 | AX82: 23.91530981 | AZ82: 93.87328131 | BA82: 1.621900786 | BB82: 1.975786666 | BC82: 1.345700568 | BD82: 0.629350258 | BE82: 0.3146488581
G83: 74 | H83: 16.8 | I83: 1 | J83: 8.88 | K83: 8.88 | L83: 4.346031746 | M83: 0.4580828359 | N83: 12.56768306 | O83: 15.16384153 | P83: 2.59615847 | Q83: 0 | R83: 9.592529461 | S83: 1.2882327 | T83: 0.2 | U83: 1.659230722 | V83: 3.627977599 | W83: 0.2632444292 | X83: 0.2632444292 | Y83: 4.779380471 | Z83: 0.001142123884 | AA83: 0.001142123884 | AB83: 6.49239824 | AC83: 1.053780873 | AD83: 0.02362971822 | AE83: 0.01524768 | AF83: 0 | AG83: 1.334544959 | AH83: 7.061542788 | AI83: 0.548519252 | AJ83: 0.0198912 | AK83: 0.6201122666 | AL83: 0.0198912 | AM83: 0.074592 | AN83: 0.3220581751 | AO83: 3.696e-05 | AP83: 0.03444 | AQ83: 0.03034 | AR83: 0.02419 | AS83: 0.03447696 | AT83: 4.329292836 | AU83: 65.712 | AV83: 0.9381894214 | AW83: 59.50235418 | AX83: 24.49964981 | AZ83: 93.81894214 | BA83: 1.659230722 | BB83: 2.029249225 | BC83: 1.383775679 | BD83: 0.6447276266 | BE83: 0.3220581751
G84: 75 | H84: 16.8 | I84: 1 | J84: 9 | K84: 9 | L84: 4.404761905 | M84: 0.4583221095 | N84: 12.56774778 | O84: 15.28387389 | P84: 2.716126108 | Q84: 0 | R84: 9.703729027 | S84: 1.318272998 | T84: 0.2 | U84: 1.697270241 | V84: 3.627996283 | W84: 0.2632471406 | X84: 0.2632471406 | Y84: 4.834979303 | Z84: 0.001168851243 | AA84: 0.001168851243 | AB84: 6.569375169 | AC84: 1.078917253 | AD84: 0.02394903874 | AE84: 0.01524768 | AF84: 0 | AG84: 1.372885507 | AH84: 7.141825181 | AI84: 0.5610623361 | AJ84: 0.02016 | AK84: 0.635411135 | AL84: 0.02016 | AM84: 0.0756 | AN84: 0.3295682496 | AO84: 3.696e-05 | AP84: 0.03444 | AQ84: 0.03034 | AR84: 0.02419 | AS84: 0.03447696 | AT84: 4.429788085 | AU84: 66.6 | AV84: 0.9376347839 | AW84: 61.17960482 | AX84: 25.09364713 | AZ84: 93.76347839 | BA84: 1.697270241 | BB84: 2.083896642 | BC84: 1.422781507 | BD84: 0.660359135 | BE84: 0.3295682496
G85: 76 | H85: 16.8 | I85: 1 | J85: 9.12 | K85: 9.12 | L85: 4.463492063 | M85: 0.4585614191 | N85: 12.56780671 | O85: 15.40390336 | P85: 2.836096645 | Q85: 0 | R85: 9.815135275 | S85: 1.348716326 | T85: 0.2 | U85: 1.7360292 | V85: 3.628013294 | W85: 0.2632496092 | X85: 0.2632496092 | Y85: 4.890684478 | Z85: 0.001195939733 | AA85: 0.001195939733 | AB85: 6.646531172 | AC85: 1.104409415 | AD85: 0.02426835925 | AE85: 0.01524768 | AF85: 0 | AG85: 1.412181155 | AH85: 7.222222915 | AI85: 0.5737655422 | AJ85: 0.0204288 | AK85: 0.6509666847 | AL85: 0.0204288 | AM85: 0.076608 | AN85: 0.3371790816 | AO85: 3.696e-05 | AP85: 0.03444 | AQ85: 0.03034 | AR85: 0.02419 | AS85: 0.03447696 | AT85: 4.532315431 | AU85: 67.488 | AV85: 0.9370689311 | AW85: 62.8979247 | AX85: 25.69739834 | AZ85: 93.70689311 | BA85: 1.7360292 | BB85: 2.13975584 | BC85: 1.462742435 | BD85: 0.6762473247 | BE85: 0.3371790816
G86: 77 | H86: 16.8 | I86: 1 | J86: 9.24 | K86: 9.24 | L86: 4.522222222 | M86: 0.4588007649 | N86: 12.56785984 | O86: 15.52392992 | P86: 2.956070081 | Q86: 0 | R86: 9.926741245 | S86: 1.379562684 | T86: 0.2 | U86: 1.775517724 | V86: 3.62802863 | W86: 0.2632518348 | X86: 0.2632518348 | Y86: 4.946492503 | Z86: 0.001223389404 | AA86: 0.001223389404 | AB86: 6.723861639 | AC86: 1.130257884 | AD86: 0.02458767977 | AE86: 0.01524768 | AF86: 0 | AG86: 1.452457262 | AH86: 7.302730749 | AI86: 0.5866286404 | AJ86: 0.0206976 | AK86: 0.6667815168 | AL86: 0.0206976 | AM86: 0.077616 | AN86: 0.3448906711 | AO86: 3.696e-05 | AP86: 0.03444 | AQ86: 0.03034 | AR86: 0.02419 | AS86: 0.03447696 | AT86: 4.636912958 | AU86: 68.376 | AV86: 0.9364918783 | AW86: 64.65840434 | AX86: 26.31100228 | AZ86: 93.64918783 | BA86: 1.775517724 | BB86: 2.196854779 | BC86: 1.503683822 | BD86: 0.6923947968 | BE86: 0.3448906711
G87: 78 | H87: 16.8 | I87: 1 | J87: 9.36 | K87: 9.36 | L87: 4.580952381 | M87: 0.4590401468 | N87: 12.56790716 | O87: 15.64395358 | P87: 3.076046418 | Q87: 0 | R87: 10.03854028 | S87: 1.410812072 | T87: 0.2 | U87: 1.815746206 | V87: 3.628042292 | W87: 0.2632538175 | X87: 0.2632538175 | Y87: 5.002400032 | Z87: 0.001251200304 | AA87: 0.001251200304 | AB87: 6.801362157 | AC87: 1.15646318 | AD87: 0.02490700029 | AE87: 0.01524768 | AF87: 0 | AG87: 1.493740217 | AH87: 7.383343665 | AI87: 0.5996514005 | AJ87: 0.0209664 | AK87: 0.6828582942 | AL87: 0.0209664 | AM87: 0.078624 | AN87: 0.3527030181 | AO87: 3.696e-05 | AP87: 0.03444 | AQ87: 0.03034 | AR87: 0.02419 | AS87: 0.03447696 | AT87: 4.743620112 | AU87: 69.264 | AV87: 0.9359036258 | AW87: 66.46217843 | AX87: 26.93456014 | AZ87: 93.59036258 | BA87: 1.815746206 | BB87: 2.255222511 | BC87: 1.545632057 | BD87: 0.7088042142 | BE87: 0.3527030181
G88: 79 | H88: 16.8 | I88: 1 | J88: 9.48 | K88: 9.48 | L88: 4.63968254 | M88: 0.4592795648 | N88: 12.56794869 | O88: 15.76397435 | P88: 3.196025655 | Q88: 0 | R88: 10.15052599 | S88: 1.44246449 | T88: 0.2 | U88: 1.856725317 | V88: 3.62805428 | W88: 0.2632555572 | X88: 0.2632555572 | Y88: 5.058403859 | Z88: 0.00127937248 | AA88: 0.00127937248 | AB88: 6.879028498 | AC88: 1.183025827 | AD88: 0.0252263208 | AE88: 0.01524768 | AF88: 0 | AG88: 1.536057484 | AH88: 7.464056858 | AI88: 0.6128335925 | AJ88: 0.0212352 | AK88: 0.6991997422 | AL88: 0.0212352 | AM88: 0.079632 | AN88: 0.3606161225 | AO88: 3.696e-05 | AP88: 0.03444 | AQ88: 0.03034 | AR88: 0.02419 | AS88: 0.03447696 | AT88: 4.852477755 | AU88: 70.152 | AV88: 0.9353041592 | AW88: 68.31042797 | AX88: 27.56817548 | AZ88: 93.53041592 | BA88: 1.856725317 | BB88: 2.314889226 | BC88: 1.588614604 | BD88: 0.7254783022 | BE88: 0.3606161225
G89: 80 | H89: 16.8 | I89: 1 | J89: 9.6 | K89: 9.6 | L89: 4.698412698 | M89: 0.4595190189 | N89: 12.56798441 | O89: 15.88399221 | P89: 3.316007793 | Q89: 0 | R89: 10.26269227 | S89: 1.474519938 | T89: 0.2 | U89: 1.898466017 | V89: 3.628064592 | W89: 0.2632570537 | X89: 0.2632570537 | Y89: 5.114500912 | Z89: 0.001307905979 | AA89: 0.001307905979 | AB89: 6.956856613 | AC89: 1.209946348 | AD89: 0.02554564132 | AE89: 0.01524768 | AF89: 0 | AG89: 1.57943766 | AH89: 7.544865721 | AI89: 0.6261749863 | AJ89: 0.021504 | AK89: 0.71580865 | AL89: 0.021504 | AM89: 0.08064 | AN89: 0.3686299844 | AO89: 3.696e-05 | AP89: 0.03444 | AQ89: 0.03034 | AR89: 0.02419 | AS89: 0.03447696 | AT89: 4.963528231 | AU89: 71.04 | AV89: 0.9346934498 | AW89: 70.20438259 | AX89: 28.2119543 | AZ89: 93.46934498 | BA89: 1.898466017 | BB89: 2.37588631 | BC89: 1.63266006 | BD89: 0.74241985 | BE89: 0.3686299844
G90: 81 | H90: 16.8 | I90: 1 | J90: 9.72 | K90: 9.72 | L90: 4.757142857 | M90: 0.4597585091 | N90: 12.56801433 | O90: 16.00400717 | P90: 3.435992833 | Q90: 0 | R90: 10.37503327 | S90: 1.506978415 | T90: 0.2 | U90: 1.940979559 | V90: 3.628073229 | W90: 0.2632583072 | X90: 0.2632583072 | Y90: 5.170688243 | Z90: 0.001336800845 | AA90: 0.001336800845 | AB90: 7.034842619 | AC90: 1.237225267 | AD90: 0.02586496184 | AE90: 0.01524768 | AF90: 0 | AG90: 1.623910528 | AH90: 7.625765843 | AI90: 0.6396753516 | AJ90: 0.0217728 | AK90: 0.7326878721 | AL90: 0.0217728 | AM90: 0.081648 | AN90: 0.3767446038 | AO90: 3.696e-05 | AP90: 0.03444 | AQ90: 0.03034 | AR90: 0.02419 | AS90: 0.03447696 | AT90: 5.076815431 | AU90: 71.928 | AV90: 0.9340714551 | AW90: 72.14532295 | AX90: 28.86600506 | AZ90: 93.40714551 | BA90: 1.940979559 | BB90: 2.4382464 | BC90: 1.677798208 | BD90: 0.7596317121 | BE90: 0.3767446038
G91: 82 | H91: 16.8 | I91: 1 | J91: 9.84 | K91: 9.84 | L91: 4.815873016 | M91: 0.4599980355 | N91: 12.56803845 | O91: 16.12401922 | P91: 3.555980776 | Q91: 0 | R91: 10.48754337 | S91: 1.539839922 | T91: 0.2 | U91: 1.984277499 | V91: 3.628080191 | W91: 0.2632593174 | X91: 0.2632593174 | Y91: 5.226963026 | Z91: 0.001366057124 | AA91: 0.001366057124 | AB91: 7.112982794 | AC91: 1.264863106 | AD91: 0.02618428235 | AE91: 0.01524768 | AF91: 0 | AG91: 1.669507117 | AH91: 7.706752989 | AI91: 0.653334458 | AJ91: 0.0220416 | AK91: 0.7498403299 | AL91: 0.0220416 | AM91: 0.082656 | AN91: 0.3849599805 | AO91: 3.696e-05 | AP91: 0.03444 | AQ91: 0.03034 | AR91: 0.02419 | AS91: 0.03447696 | AT91: 5.192384861 | AU91: 72.816 | AV91: 0.9334381186 | AW91: 74.1345833 | AX91: 29.53043878 | AZ91: 93.34381186 | BA91: 1.984277499 | BB91: 2.502003447 | BC91: 1.724060077 | BD91: 0.7771168099 | BE91: 0.3849599805
G92: 83 | H92: 16.8 | I92: 1 | J92: 9.96 | K92: 9.96 | L92: 4.874603175 | M92: 0.4602375981 | N92: 12.56805676 | O92: 16.24402838 | P92: 3.675971622 | Q92: 0 | R92: 10.60021718 | S92: 1.573104459 | T92: 0.2 | U92: 2.028371705 | V92: 3.628085476 | W92: 0.2632600844 | X92: 0.2632600844 | Y92: 5.283322549 | Z92: 0.001395674858 | AA92: 0.001395674858 | AB92: 7.19127357 | AC92: 1.292860389 | AD92: 0.02650360287 | AE92: 0.01524768 | AF92: 0 | AG92: 1.716259766 | AH92: 7.787823102 | AI92: 0.6671520753 | AJ92: 0.0223104 | AK92: 0.7672690126 | AL92: 0.0223104 | AM92: 0.083664 | AN92: 0.3932761148 | AO92: 3.696e-05 | AP92: 0.03444 | AQ92: 0.03034 | AR92: 0.02419 | AS92: 0.03447696 | AT92: 5.310283718 | AU92: 73.704 | AV92: 0.9327933702 | AW92: 76.17355426 | AX92: 30.20536904 | AZ92: 93.27933702 | BA92: 2.028371705 | BB92: 2.567192779 | BC92: 1.771478006 | BD92: 0.7948781326 | BE92: 0.3932761148
G93: 84 | H93: 16.8 | I93: 1 | J93: 10.08 | K93: 10.08 | L93: 4.933333333 | M93: 0.4604771968 | N93: 12.56806926 | O93: 16.36403463 | P93: 3.795965372 | Q93: 0 | R93: 10.71304954 | S93: 1.606772026 | T93: 0.2 | U93: 2.073274366 | V93: 3.628089084 | W93: 0.263260608 | X93: 0.263260608 | Y93: 5.339764207 | Z93: 0.001425654089 | AA93: 0.001425654089 | AB93: 7.269711521 | AC93: 1.32121764 | AD93: 0.02682292339 | AE93: 0.01524768 | AF93: 0 | AG93: 1.764202193 | AH93: 7.868972284 | AI93: 0.6811279729 | AJ93: 0.0225792 | AK93: 0.7849769793 | AL93: 0.0225792 | AM93: 0.084672 | AN93: 0.4016930064 | AO93: 3.696e-05 | AP93: 0.03444 | AQ93: 0.03034 | AR93: 0.02419 | AS93: 0.03447696 | AT93: 5.430560967 | AU93: 74.592 | AV93: 0.9321371261 | AW93: 78.26368566 | AX93: 30.89091209 | AZ93: 93.21371261 | BA93: 2.073274366 | BB93: 2.633851172 | BC93: 1.820085713 | BD93: 0.8129187393 | BE93: 0.4016930064
G94: 85 | H94: 16.8 | I94: 1 | J94: 10.2 | K94: 10.2 | L94: 4.992063492 | M94: 0.4607168317 | N94: 12.56807595 | O94: 16.48403797 | P94: 3.915962027 | Q94: 0 | R94: 10.82603549 | S94: 1.640842622 | T94: 0.2 | U94: 2.118998001 | V94: 3.628091015 | W94: 0.2632608883 | X94: 0.2632608883 | Y94: 5.3962855 | Z94: 0.00145599486 | AA94: 0.00145599486 | AB94: 7.348293359 | AC94: 1.349935382 | AD94: 0.0271422439 | AE94: 0.01524768 | AF94: 0 | AG94: 1.813369565 | AH94: 7.950196798 | AI94: 0.6952619204 | AJ94: 0.022848 | AK94: 0.80296736 | AL94: 0.022848 | AM94: 0.08568 | AN94: 0.4102106555 | AO94: 3.696e-05 | AP94: 0.03444 | AQ94: 0.03034 | AR94: 0.02419 | AS94: 0.03447696 | AT94: 5.553267424 | AU94: 75.48 | AV94: 0.9314692891 | AW94: 80.40648969 | AX94: 31.58718688 | AZ94: 93.14692891 | BA94: 2.118998001 | BB94: 2.702016925 | BC94: 1.869918365 | BD94: 0.83124176 | BE94: 0.4102106555
G95: 86 | H95: 16.8 | I95: 1 | J95: 10.32 | K95: 10.32 | L95: 5.050793651 | M95: 0.4609565028 | N95: 12.56807683 | O95: 16.60403841 | P95: 4.035961587 | Q95: 0 | R95: 10.93917027 | S95: 1.675316248 | T95: 0.2 | U95: 2.165555469 | V95: 3.62809127 | W95: 0.2632609252 | X95: 0.2632609252 | Y95: 5.452884026 | Z95: 0.00148669721 | AA95: 0.00148669721 | AB95: 7.427015929 | AC95: 1.37901414 | AD95: 0.02746156442 | AE95: 0.01524768 | AF95: 0 | AG95: 1.863798574 | AH95: 8.031493052 | AI95: 0.7095536871 | AJ95: 0.0231168 | AK95: 0.8212433575 | AL95: 0.0231168 | AM95: 0.086688 | AN95: 0.4188290619 | AO95: 3.696e-05 | AP95: 0.03444 | AQ95: 0.03034 | AR95: 0.02419 | AS95: 0.03447696 | AT95: 5.678455844 | AU95: 76.368 | AV95: 0.9307897485 | AW95: 82.60354411 | AX95: 32.2943151 | AZ95: 93.07897485 | BA95: 2.165555469 | BB95: 2.771729931 | BC95: 1.921012654 | BD95: 0.8498503975 | BE95: 0.4188290619
G96: 87 | H96: 16.8 | I96: 1 | J96: 10.44 | K96: 10.44 | L96: 5.10952381 | M96: 0.46119621 | N96: 12.5680719 | O96: 16.72403595 | P96: 4.155964052 | Q96: 0 | R96: 11.05244932 | S96: 1.710192903 | T96: 0.2 | U96: 2.212959979 | V96: 3.628089846 | W96: 0.2632607186 | X96: 0.2632607186 | Y96: 5.509557475 | Z96: 0.001517761178 | AA96: 0.001517761178 | AB96: 7.505876199 | AC96: 1.408454438 | AD96: 0.02778088494 | AE96: 0.01524768 | AF96: 0 | AG96: 1.91552752 | AH96: 8.112857598 | AI96: 0.7240030425 | AJ96: 0.0233856 | AK96: 0.8398082491 | AL96: 0.0233856 | AM96: 0.087696 | AN96: 0.4275482258 | AO96: 3.696e-05 | AP96: 0.03444 | AQ96: 0.03034 | AR96: 0.02419 | AS96: 0.03447696 | AT96: 5.806181013 | AU96: 77.256 | AV96: 0.93009838 | AW96: 84.85649582 | AX96: 33.0124213 | AZ96: 93.009838 | BA96: 2.212959979 | BB96: 2.843031769 | BC96: 1.97340688 | BD96: 0.8687479291 | BE96: 0.4275482258
G97: 88 | H97: 16.8 | I97: 1 | J97: 10.56 | K97: 10.56 | L97: 5.168253968 | M97: 0.4614359535 | N97: 12.56806115 | O97: 16.84403058 | P97: 4.275969425 | Q97: 0 | R97: 11.16586823 | S97: 1.745472588 | T97: 0.2 | U97: 2.261225102 | V97: 3.628086744 | W97: 0.2632602685 | X97: 0.2632602685 | Y97: 5.566303628 | Z97: 0.001549186804 | AA97: 0.001549186804 | AB97: 7.584871257 | AC97: 1.4382568 | AD97: 0.02810020545 | AE97: 0.01524768 | AF97: 0 | AG97: 1.968596395 | AH97: 8.194287122 | AI97: 0.7386097557 | AJ97: 0.0236544 | AK97: 0.8586653879 | AL97: 0.0236544 | AM97: 0.088704 | AN97: 0.436368147 | AO97: 3.696e-05 | AP97: 0.03444 | AQ97: 0.03034 | AR97: 0.02419 | AS97: 0.03447696 | AT97: 5.936499848 | AU97: 78.144 | AV97: 0.9293950457 | AW97: 87.16706452 | AX97: 33.7416329 | AZ97: 92.93950457 | BA97: 2.261225102 | BB97: 2.915965783 | BC97: 2.027141035 | BD97: 0.8879377079 | BE97: 0.436368147
G98: 89 | H98: 16.8 | I98: 1 | J98: 10.68 | K98: 10.68 | L98: 5.226984127 | M98: 0.4616757331 | N98: 12.56804459 | O98: 16.9640223 | P98: 4.395977704 | Q98: 0 | R98: 11.2794228 | S98: 1.781155302 | T98: 0.2 | U98: 2.310364781 | V98: 3.628081964 | W98: 0.2632595747 | X98: 0.2632595747 | Y98: 5.623120351 | Z98: 0.001580974124 | AA98: 0.001580974124 | AB98: 7.663998304 | AC98: 1.46842175 | AD98: 0.02841952597 | AE98: 0.01524768 | AF98: 0 | AG98: 2.02304698 | AH98: 8.275778437 | AI98: 0.7533735961 | AJ98: 0.0239232 | AK98: 0.8778182049 | AL98: 0.0239232 | AM98: 0.089712 | AN98: 0.4452888256 | AO98: 3.696e-05 | AP98: 0.03444 | AQ98: 0.03034 | AR98: 0.02419 | AS98: 0.03447696 | AT98: 6.0694715 | AU98: 79.032 | AV98: 0.928679594 | AW98: 89.53704671 | AX98: 34.48208026 | AZ98: 92.8679594 | BA98: 2.310364781 | BB98: 2.990577185 | BC98: 2.0822569 | BD98: 0.9074231649 | BE98: 0.4452888256
G99: 90 | H99: 16.8 | I99: 1 | J99: 10.8 | K99: 10.8 | L99: 5.285714286 | M99: 0.461915549 | N99: 12.56802222 | O99: 17.08401111 | P99: 4.515988892 | Q99: 0 | R99: 11.39310896 | S99: 1.817241046 | T99: 0.2 | U99: 2.360393339 | V99: 3.628075505 | W99: 0.2632586374 | X99: 0.2632586374 | Y99: 5.68000559 | Z99: 0.001613123175 | AA99: 0.001613123175 | AB99: 7.743254648 | AC99: 1.498949813 | AD99: 0.02873884648 | AE99: 0.01524768 | AF99: 0 | AG99: 2.078922938 | AH99: 8.357328481 | AI99: 0.7682943327 | AJ99: 0.024192 | AK99: 0.8972702105 | AL99: 0.024192 | AM99: 0.09072 | AN99: 0.4543102615 | AO99: 3.696e-05 | AP99: 0.03444 | AQ99: 0.03034 | AR99: 0.02419 | AS99: 0.03447696 | AT99: 6.205157469 | AU99: 79.92 | AV99: 0.9279518592 | AW99: 91.96831992 | AX99: 35.2338968 | AZ99: 92.79518592 | BA99: 2.360393339 | BB99: 3.066913148 | BC99: 2.138798138 | BD99: 0.9272078105 | BE99: 0.4543102615
G100: 91 | H100: 16.8 | I100: 1 | J100: 10.92 | K100: 10.92 | L100: 5.344444444 | M100: 0.4621554011 | N100: 12.56799402 | O100: 17.20399701 | P100: 4.636002988 | Q100: 0 | R100: 11.50692282 | S100: 1.853729819 | T100: 0.2 | U100: 2.411325498 | V100: 3.628067367 | W100: 0.2632574563 | X100: 0.2632574563 | Y100: 5.736957367 | Z100: 0.001645633992 | AA100: 0.001645633992 | AB100: 7.8226377 | AC100: 1.529841515 | AD100: 0.029058167 | AE100: 0.01524768 | AF100: 0 | AG100: 2.13626992 | AH100: 8.438934307 | AI100: 0.7833717345 | AJ100: 0.0244608 | AK100: 0.9170249968 | AL100: 0.0244608 | AM100: 0.091728 | AN100: 0.4634324549 | AO100: 3.696e-05 | AP100: 0.03444 | AQ100: 0.03034 | AR100: 0.02419 | AS100: 0.03447696 | AT100: 6.34362172 | AU100: 80.808 | AV100: 0.9272116618 | AW100: 94.46284721 | AX100: 35.997219 | AZ100: 92.72116618 | BA100: 2.411325498 | BB100: 3.145022917 | BC100: 2.1968104 | BD100: 0.9472952368 | BE100: 0.4634324549
G101: 92 | H101: 16.8 | I101: 1 | J101: 11.04 | K101: 11.04 | L101: 5.403174603 | M101: 0.4623952894 | N101: 12.56796001 | O101: 17.32398001 | P101: 4.756019993 | Q101: 0 | R101: 11.62086062 | S101: 1.890621622 | T101: 0.2 | U101: 2.463176385 | V101: 3.628057549 | W101: 0.2632560315 | X101: 0.2632560315 | Y101: 5.793973781 | Z101: 0.001678506609 | AA101: 0.001678506609 | AB101: 7.902144971 | AC101: 1.561097379 | AD101: 0.02937748752 | AE101: 0.01524768 | AF101: 0 | AG101: 2.195135683 | AH101: 8.52059308 | AI101: 0.7986055707 | AJ101: 0.0247296 | AK101: 0.9370862389 | AL101: 0.0247296 | AM101: 0.092736 | AN101: 0.4726554055 | AO101: 3.696e-05 | AP101: 0.03444 | AQ101: 0.03034 | AR101: 0.02419 | AS101: 0.03447696 | AT101: 6.48493081 | AU101: 81.696 | AV101: 0.9264588075 | AW101: 97.02268203 | AX101: 36.77218652 | AZ101: 92.64588075 | BA101: 2.463176385 | BB101: 3.224957921 | BC101: 2.256341443 | BD101: 0.9676891189 | BE101: 0.4726554055
G102: 93 | H102: 16.8 | I102: 1 | J102: 11.16 | K102: 11.16 | L102: 5.461904762 | M102: 0.462635214 | N102: 12.56792018 | O102: 17.44396009 | P102: 4.876039908 | Q102: 0 | R102: 11.73491875 | S102: 1.927916454 | T102: 0.2 | U102: 2.515961547 | V102: 3.628046051 | W102: 0.2632543629 | X102: 0.2632543629 | Y102: 5.851052999 | Z102: 0.00171174106 | AA102: 0.00171174106 | AB102: 7.981774065 | AC102: 1.592717931 | AD102: 0.02969680803 | AE102: 0.01524768 | AF102: 0 | AG102: 2.2555702 | AH102: 8.602302071 | AI102: 0.8139956101 | AJ102: 0.0249984 | AK102: 0.9574576972 | AL102: 0.0249984 | AM102: 0.093744 | AN102: 0.4819791135 | AO102: 3.696e-05 | AP102: 0.03444 | AQ102: 0.03034 | AR102: 0.02419 | AS102: 0.03447696 | AT102: 6.629154022 | AU102: 82.584 | AV102: 0.9256930876 | AW102: 99.64997333 | AX102: 37.55894225 | AZ102: 92.56930876 | BA102: 2.515961547 | BB102: 3.306771897 | BC102: 2.31744124 | BD102: 0.9883932172 | BE102: 0.4819791135
G103: 94 | H103: 16.8 | I103: 1 | J103: 11.28 | K103: 11.28 | L103: 5.520634921 | M103: 0.4628751747 | N103: 12.56787453 | O103: 17.56393727 | P103: 4.996062734 | Q103: 0 | R103: 11.84909374 | S103: 1.965614315 | T103: 0.2 | U103: 2.569696967 | V103: 3.628032872 | W103: 0.2632524504 | X103: 0.2632524504 | Y103: 5.908193256 | Z103: 0.001745337377 | AA103: 0.001745337377 | AB103: 8.061522675 | AC103: 1.624703696 | AD103: 0.03001612855 | AE103: 0.01524768 | AF103: 0 | AG103: 2.317625799 | AH103: 8.684058653 | AI103: 0.8295416216 | AJ103: 0.0252672 | AK103: 0.9781432195 | AL103: 0.0252672 | AM103: 0.094752 | AN103: 0.4914035788 | AO103: 3.696e-05 | AP103: 0.03444 | AQ103: 0.03034 | AR103: 0.02419 | AS103: 0.03447696 | AT103: 6.776363512 | AU103: 83.472 | AV103: 0.9249142782 | AW103: 102.3469711 | AX103: 38.35763242 | AZ103: 92.49142782 | BA103: 2.569696967 | BB103: 3.390521018 | BC103: 2.380162119 | BD103: 1.009411379 | BE103: 0.4914035788
G104: 95 | H104: 16.8 | I104: 1 | J104: 11.4 | K104: 11.4 | L104: 5.579365079 | M104: 0.4631151718 | N104: 12.56782306 | O104: 17.68391153 | P104: 5.116088471 | Q104: 0 | R104: 11.96338224 | S104: 2.003715206 | T104: 0.2 | U104: 2.624399072 | V104: 3.628018013 | W104: 0.2632502941 | X104: 0.2632502941 | Y104: 5.965392849 | Z104: 0.001779295592 | AA104: 0.001779295592 | AB104: 8.141388578 | AC104: 1.6570552 | AD104: 0.03033544907 | AE104: 0.01524768 | AF104: 0 | AG104: 2.381357292 | AH104: 8.765860295 | AI104: 0.8452433739 | AJ104: 0.025536 | AK104: 0.9991467428 | AL104: 0.025536 | AM104: 0.09576 | AN104: 0.5009288015 | AO104: 3.696e-05 | AP104: 0.03444 | AQ104: 0.03034 | AR104: 0.02419 | AS104: 0.03447696 | AT104: 6.926634458 | AU104: 84.36 | AV104: 0.9241221401 | AW104: 105.1160323 | AX104: 39.16840663 | AZ104: 92.41221401 | BA104: 2.624399072 | BB104: 3.476264034 | BC104: 2.444558892 | BD104: 1.030747543 | BE104: 0.5009288015
G105: 96 | H105: 16.8 | I105: 1 | J105: 11.52 | K105: 11.52 | L105: =Vout*K105/(Vin*Efficiency) -> 5.638095238 | M105: 0.4633552051 | N105: =(Vin-(Rdson1+Rdcr)*K105-Vout)*M105/(Fsw*Lf) -> 12.56776576 | O105: 17.80388288 | P105: 5.236117119 | Q105: =IF(MIN(Vin, -P105/(Coss_Q1+Coss_Q2)*0.00000002)<0, 0, MIN(Vin, -P105/(Coss_Q1+Coss_Q2)*0.00000002)) -> 0 | R105: 12.07778103 | S105: =R105^2*Rdcr -> 2.042219126 | T105: 0.2 | U105: =(T105+S105*(1+Ltc*(Ta-25)))/(1-S105*Ltc*ThetaCa) -> 2.680084753 | V105: 3.628001473 | W105: 0.2632478937 | X105: 0.2632478937 | Y105: 6.02265014 | Z105: 0.001813615735 | AA105: 0.001813615735 | AB105: 8.221369636 | AC105: =Rdson1*AB105^2 -> 1.689772967 | AD105: 0.03065476958 | AE105: 0.01524768 | AF105: 0 | AG105: =(AF105+AE105+AD105+AC105*(1+RdsonTopTc*Ta-RdsonTopTc*25))/(1-AC105*RdsonTopTc*ThetaJA_Q1) -> 2.446822125 | AH105: 8.84770456 | AI105: =Rdson2*AH105^2 -> 0.8611006359 | AJ105: 0.0258048 | AK105: =(AJ105+AI105*(1+RdsonBotTc*Ta-RdsonBotTc*25))/(1-AI105*RdsonBotTc*ThetaJA_Q2) -> 1.020472296 | AL105: 0.0258048 | AM105: 0.096768 | AN105: 0.5105547814 | AO105: 3.696e-05 | AP105: 0.03444 | AQ105: 0.03034 | AR105: 0.02419 | AS105: 0.03447696 | AT105: =SUM(U105,X105,AA105,AG105,AK105,AL105,AM105,AS105,AN105) -> 7.080045225 | AU105: 85.248 | AV105: 0.923316418 | AW105: 107.9596272 | AX105: 39.99141797 | AZ105: 92.3316418 | BA105: 2.680084753 | BB105: 3.564062421 | BC105: 2.510689005 | BD105: 1.052405736 | BE105: 0.5105547814
G106: 97 | H106: 16.8 | I106: 1 | J106: 11.64 | K106: 11.64 | L106: =Vout*K106/(Vin*Efficiency) -> 5.696825397 | M106: 0.4635952747 | N106: =(Vin-(Rdson1+Rdcr)*K106-Vout)*M106/(Fsw*Lf) -> 12.56770264 | O106: 17.92385132 | P106: 5.35614868 | Q106: =IF(MIN(Vin, -P106/(Coss_Q1+Coss_Q2)*0.00000002)<0, 0, MIN(Vin, -P106/(Coss_Q1+Coss_Q2)*0.00000002)) -> 0 | R106: 12.19228701 | S106: =R106^2*Rdcr -> 2.081126075 | T106: 0.2 | U106: =(T106+S106*(1+Ltc*(Ta-25)))/(1-S106*Ltc*ThetaCa) -> 2.736771376 | V106: 3.627983251 | W106: 0.2632452494 | X106: 0.2632452494 | Y106: 6.079963545 | Z106: 0.001848297835 | AA106: 0.001848297835 | AB106: 8.301463787 | AC106: =Rdson1*AB106^2 -> 1.722857525 | AD106: 0.0309740901 | AE106: 0.01524768 | AF106: 0 | AG106: =(AF106+AE106+AD106+AC106*(1+RdsonTopTc*Ta-RdsonTopTc*25))/(1-AC106*RdsonTopTc*ThetaJA_Q1) -> 2.514080538 | AH106: 8.929589098 | AI106: =Rdson2*AH106^2 -> 0.877113176 | AJ106: 0.0260736 | AK106: =(AJ106+AI106*(1+RdsonBotTc*Ta-RdsonBotTc*25))/(1-AI106*RdsonBotTc*ThetaJA_Q2) -> 1.042124001 | AL106: 0.0260736 | AM106: 0.097776 | AN106: 0.5202815186 | AO106: 3.696e-05 | AP106: 0.03444 | AQ106: 0.03034 | AR106: 0.02419 | AS106: 0.03447696 | AT106: =SUM(U106,X106,AA106,AG106,AK106,AL106,AM106,AS106,AN106) -> 7.236677542 | AU106: 86.136 | AV106: 0.9224968403 | AW106: 110.880346 | AX106: 40.82682309 | AZ106: 92.24968403 | BA106: 2.736771376 | BB106: 3.65398054 | BC106: 2.578612698 | BD106: 1.074390081 | BE106: 0.5202815186
G107: 98 | H107: 16.8 | I107: 1 | J107: 11.76 | K107: 11.76 | L107: =Vout*K107/(Vin*Efficiency) -> 5.755555556 | M107: 0.4638353805 | N107: =(Vin-(Rdson1+Rdcr)*K107-Vout)*M107/(Fsw*Lf) -> 12.56763369 | O107: 18.04381685 | P107: 5.476183155 | Q107: =IF(MIN(Vin, -P107/(Coss_Q1+Coss_Q2)*0.00000002)<0, 0, MIN(Vin, -P107/(Coss_Q1+Coss_Q2)*0.00000002)) -> 0 | R107: 12.30689717 | S107: =R107^2*Rdcr -> 2.120436053 | T107: 0.2 | U107: =(T107+S107*(1+Ltc*(Ta-25)))/(1-S107*Ltc*ThetaCa) -> 2.794476801 | V107: 3.627963347 | W107: 0.263242361 | X107: 0.263242361 | Y107: 6.137331539 | Z107: 0.001883341921 | AA107: 0.001883341921 | AB107: 8.381669044 | AC107: =Rdson1*AB107^2 -> 1.756309399 | AD107: 0.03129341062 | AE107: 0.01524768 | AF107: 0 | AG107: =(AF107+AE107+AD107+AC107*(1+RdsonTopTc*Ta-RdsonTopTc*25))/(1-AC107*RdsonTopTc*ThetaJA_Q1) -> 2.583195732 | AH107: 9.011511643 | AI107: =Rdson2*AH107^2 -> 0.893280763 | AJ107: 0.0263424 | AK107: =(AJ107+AI107*(1+RdsonBotTc*Ta-RdsonBotTc*25))/(1-AI107*RdsonBotTc*ThetaJA_Q2) -> 1.064106077 | AL107: 0.0263424 | AM107: 0.098784 | AN107: 0.5301090132 | AO107: 3.696e-05 | AP107: 0.03444 | AQ107: 0.03034 | AR107: 0.02419 | AS107: 0.03447696 | AT107: =SUM(U107,X107,AA107,AG107,AK107,AL107,AM107,AS107,AN107) -> 7.396616686 | AU107: 87.024 | AV107: 0.9216631182 | AW107: 113.8809064 | AX107: 41.6747823 | AZ107: 92.16631182 | BA107: 2.794476801 | BB107: 3.746085809 | BC107: 2.648393172 | BD107: 1.096704797 | BE107: 0.5301090132
G108: 99 | H108: 16.8 | I108: 1 | J108: 11.88 | K108: 11.88 | L108: =Vout*K108/(Vin*Efficiency) -> 5.814285714 | M108: 0.4640755227 | N108: =(Vin-(Rdson1+Rdcr)*K108-Vout)*M108/(Fsw*Lf) -> 12.56755891 | O108: 18.16377946 | P108: 5.596220543 | Q108: =IF(MIN(Vin, -P108/(Coss_Q1+Coss_Q2)*0.00000002)<0, 0, MIN(Vin, -P108/(Coss_Q1+Coss_Q2)*0.00000002)) -> 0 | R108: 12.42160865 | S108: =R108^2*Rdcr -> 2.16014906 | T108: 0.2 | U108: =(T108+S108*(1+Ltc*(Ta-25)))/(1-S108*Ltc*ThetaCa) -> 2.853219396 | V108: 3.627941761 | W108: 0.2632392285 | X108: 0.2632392285 | Y108: 6.19475265 | Z108: 0.00191874802 | AA108: 0.00191874802 | AB108: 8.461983489 | AC108: =Rdson1*AB108^2 -> 1.790129114 | AD108: 0.03161273113 | AE108: 0.01524768 | AF108: 0 | AG108: =(AF108+AE108+AD108+AC108*(1+RdsonTopTc*Ta-RdsonTopTc*25))/(1-AC108*RdsonTopTc*ThetaJA_Q1) -> 2.654234049 | AH108: 9.093470012 | AI108: =Rdson2*AH108^2 -> 0.9096031654 | AJ108: 0.0266112 | AK108: =(AJ108+AI108*(1+RdsonBotTc*Ta-RdsonBotTc*25))/(1-AI108*RdsonBotTc*ThetaJA_Q2) -> 1.086422841 | AL108: 0.0266112 | AM108: 0.099792 | AN108: 0.540037265 | AO108: 3.696e-05 | AP108: 0.03444 | AQ108: 0.03034 | AR108: 0.02419 | AS108: 0.03447696 | AT108: =SUM(U108,X108,AA108,AG108,AK108,AL108,AM108,AS108,AN108) -> 7.559951687 | AU108: 87.912 | AV108: 0.9208149456 | AW108: 116.9641611 | AX108: 42.53545964 | AZ108: 92.08149456 | BA108: 2.853219396 | BB108: 3.84044889 | BC108: 2.720096769 | BD108: 1.119354201 | BE108: 0.540037265
G109: 100 | H109: 16.8 | I109: 1 | J109: 12 | K109: 12 | L109: =Vout*K109/(Vin*Efficiency) -> 5.873015873 | M109: 0.4643157011 | N109: =(Vin-(Rdson1+Rdcr)*K109-Vout)*M109/(Fsw*Lf) -> 12.56747831 | O109: 18.28373915 | P109: 5.716260845 | Q109: =IF(MIN(Vin, -P109/(Coss_Q1+Coss_Q2)*0.00000002)<0, 0, MIN(Vin, -P109/(Coss_Q1+Coss_Q2)*0.00000002)) -> 0 | R109: 12.53641865 | S109: =R109^2*Rdcr -> 2.200265096 | T109: 0.2 | U109: =(T109+S109*(1+Ltc*(Ta-25)))/(1-S109*Ltc*ThetaCa) -> 2.913018052 | V109: 3.627918493 | W109: 0.2632358518 | X109: 0.2632358518 | Y109: 6.252225457 | Z109: 0.001954516158 | AA109: 0.001954516158 | AB109: 8.542405277 | AC109: =Rdson1*AB109^2 -> 1.824317198 | AD109: 0.03193205165 | AE109: 0.01524768 | AF109: 0 | AG109: =(AF109+AE109+AD109+AC109*(1+RdsonTopTc*Ta-RdsonTopTc*25))/(1-AC109*RdsonTopTc*ThetaJA_Q1) -> 2.727265171 | AH109: 9.175462096 | AI109: =Rdson2*AH109^2 -> 0.9260801515 | AJ109: 0.02688 | AK109: =(AJ109+AI109*(1+RdsonBotTc*Ta-RdsonBotTc*25))/(1-AI109*RdsonBotTc*ThetaJA_Q2) -> 1.10907871 | AL109: 0.02688 | AM109: 0.1008 | AN109: 0.5500662741 | AO109: 3.696e-05 | AP109: 0.03444 | AQ109: 0.03034 | AR109: 0.02419 | AS109: 0.03447696 | AT109: =SUM(U109,X109,AA109,AG109,AK109,AL109,AM109,AS109,AN109) -> 7.726775535 | AU109: 88.8 | AV109: 0.9199519979 | AW109: 120.1331064 | AX109: 43.40902298 | AZ109: 91.99519979 | BA109: 2.913018052 | BB109: 3.937143881 | BC109: 2.793793171 | BD109: 1.14234271 | BE109: 0.5500662741

Sheet Efficiency Plot Management (hidden)
A2: =IF(PLOT_TYPE=1, "EFF_Ch1", "EFF_Ch2") -> EFF_Ch1

Sheet Input Filter Calculations (hidden)
AD2: AEF comparison Values
D3: =L_infilter*0.000001 -> 6.8e-07 | L3: Lfilter Passive | M3: ='Input Filters'!O9*0.000001 -> 6.8e-07 | AD3: Lfilter | AE3: ='Input Filters'!G9*0.000001 -> 1e-06
L4: Cfilter Passive | M4: ='Input Filters'!O10*0.000001 -> 4.7e-07 | AD4: Cinj | AE4: ='Input Filters'!G10*0.000001 -> 1e-06
L5: Cdamp passive | M5: ='Input Filters'!O11*0.000001 -> 1e-06 | AD5: Cdamp | AE5: ='Input Filters'!G11*0.000001 -> 1e-06
L6: Rdamp passive | M6: ='Input Filters'!O12 -> 0.35 | AD6: Rdamp | AE6: ='Input Filters'!G12 -> 10
A10: Freq (Hz) | B10: (kHz) | W10: AEF | AA10: Passive | AD10: AEFCompare
I11: AEF Numerator | L11: AEF Denominator | Q11: Passive | W11: Magnitude | X11: Phase | AA11: Magnitude | AB11: Phase | AD11: AEF Numerator | AF11: AEF Denominator
C12: jω | D12: -ω^2 | E12: -jω^3 | G12: Gop | Q12: Numerator | R12: Denominator | AM12: Magnitude | AN12: Phase
A13: 1 | B13: =A13/1000 -> 0.001 | C13: =COMPLEX(0,2*Pi*A13) -> 6.2831853i | D13: =COMPLEX(-POWER(2*Pi*A13,2),0) -> -39.4784175141361 | E13: =COMPLEX(0,-POWER(2*Pi*A13,3)) -> -248.050212592082i | G13: =IMSUM(IMPRODUCT(C13,Rcomp_AEF*Csen_AEF),Csen_AEF/Ccomp_AEF) -> 100+0.00062831853i | I13: =IMPRODUCT((RdampSel*CdampSel+RdampSel*CinjSel),C13) ->  | J13: =IMSUM(1,I13) ->  | L13: =IMPRODUCT(G13,L_infilterStd*RdampSel*CinjSel*CdampSel,E13) ->  | M13: =IMPRODUCT(G13,L_infilterStd*CinjSel,D13) ->  | N13: =J13 ->  | O13: =IMSUM(L13:N13) ->  | P13: 0 | Q13: =IMSUM(IMPRODUCT(C13,RdampPssv*CdampPssv),1) -> 1+0.000002199114855i | R13: =IMPRODUCT(RdampPssv*CdampPssv*CfilterPssv*LinfilterPssv,E13) -> -2.77468967805503E-17i | S13: =IMPRODUCT(D13,LinfilterPssv*(CfilterPssv+CdampPssv)) -> -3.94626261471304E-11 | T13: =IMSUM(S13,R13,Q13) -> 0.999999999960537+2.19911485497225E-06i | U13: 1 | V13: =CHOOSE(INFILTER_TYPE,U13,IMDIV(J13,O13)) -> 1 | W13: =20*LOG10(IMABS(V13)) -> 0 | X13: =IMARGUMENT(V13)*180/Pi -> 0 | Z13: =IMDIV(Q13,T13) -> 1.00000000003946-5.9033537744459E-17i | AA13: =20*LOG10(IMABS(Z13)) -> 3.427451255e-10 | AB13: =IMARGUMENT(Z13)*180/Pi -> -3.382372566e-15 | AD13: =IMPRODUCT((RdampCom*CdampCom+RdampCom*CinjCom),C13) -> 0.000125663706i | AE13: =IMSUM(1,AD13) -> 1+0.000125663706i | AF13: =IMPRODUCT(G13,L_infilterStd*RdampSel*CinjSel*CdampSel,E13) ->  | AG13: =IMPRODUCT(G13,LAEFCom*CinjCom,D13) -> -3.94784175141361E-09-2.48050212592082E-14i | AH13: =AE13 -> 1+0.000125663706i | AI13: =IMSUM(AF13:AH13) ->  | AK13: =IMDIV(AE13,AI13) ->  | AM13: =20*LOG10(IMABS(AK13)) ->  | AN13: =IMARGUMENT(AK13)*180/Pi -> 
A14: 2 | B14: =A14/1000 -> 0.002 | C14: 12.5663706i | D14: -157.913670056544 | E14: -1984.40170073666i | G14: 100+0.00125663706i | J14: =IMSUM(1,I14) ->  | N14: =J14 ->  | O14: =IMSUM(L14:N14) ->  | P14: 0 | Q14: 1+0.00000439822971i | R14: -2.21975174244403E-16i | S14: -1.57850504588521E-10 | T14: =IMSUM(S14,R14,Q14) -> 0.999999999842149+4.39822970977802E-06i | U14: 1 | V14: =CHOOSE(INFILTER_TYPE,U14,IMDIV(J14,O14),IMDIV(Q14,T14)) -> 1 | W14: =20*LOG10(IMABS(V14)) -> 0 | X14: 0 | Z14: 1.00000000015785-4.72284395630731E-16i | AA14: =20*LOG10(IMABS(Z14)) -> 1.371067291e-09 | AB14: -2.705990263e-14 | AD14: 0.000251327412i | AE14: =IMSUM(1,AD14) -> 1+0.000251327412i | AG14: -1.57913670056544E-08-1.98440170073665E-13i | AH14: =AE14 -> 1+0.000251327412i | AI14: =IMSUM(AF14:AH14) ->  | AK14: =IMDIV(AE14,AI14) ->  | AM14: =20*LOG10(IMABS(AK14)) -> 
A15: 3 | B15: 0.003 | C15: 18.8495559i | D15: -355.305757627225 | E15: -6697.35573998623i | G15: 100+0.00188495559i | P15: 0 | Q15: 1+0.000006597344565i | R15: -7.4916621307486E-16i | S15: -3.55163635324174E-10 | T15: 0.999999999644836+6.59734456425083E-06i | U15: 1 | V15: 1 | W15: 0 | X15: 0 | Z15: 1.00000000035516-1.59396947052946E-15i | AA15: 3.084879708e-09 | AB15: -9.132772341e-14 | AD15: 0.000376991118i | AE15: 1+0.000376991118i | AG15: -3.55305757627225E-08-6.69735573998623E-13i | AH15: 1+0.000376991118i
A16: 4 | B16: 0.004 | C16: 25.1327412i | D16: -631.654680226178 | E16: -15875.2136058933i | G16: 100+0.00251327412i | P16: 0 | Q16: 1+0.00000879645942i | R16: -1.77580139395522E-15i | S16: -6.31402018354088E-10 | T16: 0.999999999368598+0.0000087964594182242i | U16: 1 | V16: 1 | W16: 0 | X16: 0 | Z16: 1.0000000006314-3.77830227167012E-15i | AA16: 5.484271092e-09 | AB16: -2.16480774e-13 | AD16: 0.000502654824i | AE16: 1+0.000502654824i | AG16: -6.31654680226178E-08-1.58752136058933E-12i | AH16: 1+0.000502654824i
A17: 5 | B17: 0.005 | C17: 31.4159265i | D17: -986.960437853402 | E17: -31006.2765740103i | G17: 100+0.00314159265i | P17: 0 | Q17: 1+0.000010995574275i | R17: -3.46836209756879E-15i | S17: -9.86565653678261E-10 | T17: 0.999999999013434+0.0000109955742715316i | U17: 1 | V17: 1 | W17: 0 | X17: 0 | Z17: 1.00000000098657-7.37945946308484E-15i | AA17: 8.569237588e-09 | AB17: -4.228118824e-13 | AD17: 0.00062831853i | AE17: 1+0.00062831853i | AG17: -9.86960437853402E-08-3.10062765740103E-12i | AH17: 1+0.00062831853i
A18: 6 | B18: 0.006 | C18: 37.6991118i | D18: -1421.2230305089 | E18: -53578.8459198898i | G18: 100+0.00376991118i | P18: 0 | Q18: 1+0.00001319468913i | R18: -5.99332970459887E-15i | S18: -1.4206545412967E-09 | T18: 0.999999998579345+0.0000131946891240067i | U18: 1 | V18: 1 | W18: 0 | X18: 0 | Z18: 1.00000000142066-1.27518015159367E-14i | AA18: 1.233969626e-08 | AB18: -7.306244078e-13 | AD18: 0.000753982236i | AE18: 1+0.000753982236i | AG18: -1.4212230305089E-07-5.35788459198898E-12i | AH18: 1+0.000753982236i
A19: 7 | B19: 0.007 | C19: 43.9822971i | D19: -1934.44245819267 | E19: -85081.2229190843i | G19: 100+0.00439822971i | P19: 0 | Q19: 1+0.000015393803985i | R19: -9.51718559572877E-15i | S19: -1.93366868120939E-09 | T19: 0.999999998066331+0.0000153938039754828i | U19: 1 | V19: 1 | W19: 0 | X19: 0 | Z19: 1.00000000193367-2.02493221373488E-14i | AA19: 1.679564325e-08 | AB19: -1.160200696e-12 | AD19: 0.000879645942i | AE19: 1+0.000879645942i | AG19: -1.93444245819267E-07-8.50812229190843E-12i | AH19: 1+0.000879645942i
A20: 8 | B20: 0.008 | C20: 50.2654824i | D20: -2526.61872090471 | E20: -127001.708847146i | G20: 100+0.00502654824i | P20: 0 | Q20: 1+0.00001759291884i | R20: -1.42064111516417E-14i | S20: -2.52560807341635E-09 | T20: 0.999999997474392+0.0000175929188257936i | U20: 1 | V20: 1 | W20: 0 | X20: 0 | Z20: 1.00000000252561-3.02264148354676E-14i | AA20: 2.193716921e-08 | AB20: -1.731845997e-12 | AD20: 0.001005309648i | AE20: 1+0.001005309648i | AG20: -2.52661872090471E-07-1.27001708847146E-11i | AH20: 1+0.001005309648i
A21: 9 | B21: 0.009 | C21: 56.5486677i | D21: -3197.75181864502 | E21: -180828.604979628i | G21: 100+0.00565486677i | P21: 0 | Q21: 1+0.000019792033695i | R21: -2.02274877530212E-14i | S21: -3.19647271791756E-09 | T21: 0.999999996803527+0.0000197920336747725i | U21: 1 | V21: 1 | W21: 0 | X21: 0 | Z21: 1.00000000319647-4.30372020696133E-14i | AA21: 2.776418541e-08 | AB21: -2.465850036e-12 | AD21: 0.001130973354i | AE21: 1+0.001130973354i | AG21: -3.19775181864502E-07-1.80828604979628E-11i | AH21: 1+0.001130973354i
A22: 10 | B22: 0.01 | C22: 62.831853i | D22: -3947.84175141361 | E22: -248050.212592082i | G22: 100+0.0062831853i | P22: 0 | Q22: 1+0.00002199114855i | R22: -2.77468967805503E-14i | S22: -3.94626261471304E-09 | T22: 0.999999996053737+0.0000219911485222531i | U22: 1 | V22: 1 | W22: 0 | X22: 0 | Z22: 1.00000000394626-5.90359570729332E-14i | AA22: 3.427677865e-08 | AB22: -3.38251117e-12 | AD22: 0.00125663706i | AE22: 1+0.00125663706i | AG22: -3.94784175141361E-07-2.48050212592082E-11i | AH22: 1+0.00125663706i
A23: 20 | B23: 0.02 | C23: 125.663706i | D23: -15791.3670056544 | E23: -1984401.70073666i | G23: 100+0.0125663706i | P23: 0 | Q23: 1+0.0000439822971i | R23: -2.21975174244403E-13i | S23: -1.57850504588521E-08 | T23: 0.99999998421495+0.0000439822968780248i | U23: 1 | V23: 1 | W23: 0 | X23: 0 | Z23: 1.00000001578505-4.72287580174405E-13i | AA23: 1.371072006e-07 | AB23: -2.706008466e-11 | AD23: 0.00251327412i | AE23: 1+0.00251327412i | AG23: -1.57913670056544E-06-1.98440170073665E-10i | AH23: 1+0.00251327412i
A24: 30 | B24: 0.03 | C24: 188.495559i | D24: -35530.5757627225 | E24: -6697355.73998623i | G24: 100+0.0188495559i | P24: 0 | Q24: 1+0.00006597344565i | R24: -7.4916621307486E-13i | S24: -3.55163635324174E-08 | T24: 0.999999964483636+0.0000659734449008338i | U24: 1 | V24: 1 | W24: 0 | X24: 0 | Z24: 1.00000003551637-1.59397081397336E-12i | AA24: 3.084912653e-07 | AB24: -9.132779717e-11 | AD24: 0.00376991118i | AE24: 1+0.00376991118i | AG24: -3.55305757627225E-06-6.69735573998623E-10i | AH24: 1+0.00376991118i
A25: 40 | B25: 0.04 | C25: 251.327412i | D25: -63165.4680226178 | E25: -15875213.6058933i | G25: 100+0.0251327412i | P25: 0 | Q25: 1+0.0000879645942i | R25: -1.77580139395522E-12i | S25: -6.31402018354088E-08 | T25: 0.999999936859798+0.0000879645924241986i | U25: 1 | V25: 1 | W25: 0 | X25: 0 | Z25: 1.00000006314021-3.77830129983406E-12i | AA25: 5.48428878e-07 | AB25: -2.164807048e-10 | AD25: 0.00502654824i | AE25: 1+0.00502654824i | AG25: -6.31654680226178E-06-1.58752136058933E-09i | AH25: 1+0.00502654824i
A26: 50 | B26: 0.05 | C26: 314.159265i | D26: -98696.0437853402 | E26: -31006276.5740103i | G26: 100+0.0314159265i | P26: 0 | Q26: 1+0.00010995574275i | R26: -3.46836209756879E-12i | S26: -9.86565653678261E-08 | T26: 0.999999901343435+0.000109955739281638i | U26: 1 | V26: 1 | W26: 0 | X26: 0 | Z26: 1.00000009865657-7.37949525076775E-12i | AA26: 8.56920037e-07 | AB26: -4.228138916e-10 | AD26: 0.0062831853i | AE26: 1+0.0062831853i | AG26: -9.86960437853402E-06-3.10062765740103E-09i | AH26: 1+0.0062831853i
A27: 60 | B27: 0.06 | C27: 376.991118i | D27: -142122.30305089 | E27: -53578845.9198898i | G27: 100+0.0376991118i | P27: 0 | Q27: 1+0.0001319468913i | R27: -5.99332970459887E-12i | S27: -1.4206545412967E-07 | T27: 0.999999857934546+0.00013194688530667i | U27: 1 | V27: 1 | W27: 0 | X27: 0 | Z27: 1.00000014206547-1.27517683815965E-11i | AA27: 1.233964907e-06 | AB27: -7.306224066e-10 | AD27: 0.00753982236i | AE27: 1+0.00753982236i | AG27: -0.000014212230305089-5.35788459198898E-09i | AH27: 1+0.00753982236i
A28: 70 | B28: 0.07 | C28: 439.822971i | D28: -193444.245819267 | E28: -85081222.9190843i | G28: 100+0.0439822971i | P28: 0 | Q28: 1+0.00015393803985i | R28: -9.51718559572877E-12i | S28: -1.93366868120939E-07 | T28: 0.999999806633132+0.000153938030332814i | U28: 1 | V28: 1 | W28: 0 | X28: 0 | Z28: 1.0000001933669-2.02493379799158E-11i | AA28: 1.679563391e-06 | AB28: -1.160201381e-09 | AD28: 0.00879645942i | AE28: 1+0.00879645942i | AG28: -0.0000193444245819267-8.50812229190843E-09i | AH28: 1+0.00879645942i
A29: 80 | B29: 0.08 | C29: 502.654824i | D29: -252661.872090471 | E29: -127001708.847146i | G29: 100+0.0502654824i | P29: 0 | Q29: 1+0.0001759291884i | R29: -1.42064111516417E-11i | S29: -2.52560807341635E-07 | T29: 0.999999747439193+0.000175929174193589i | U29: 1 | V29: 1 | W29: 0 | X29: 0 | Z29: 1.00000025256087-3.02264211687963E-11i | AA29: 2.193715567e-06 | AB29: -1.731845927e-09 | AD29: 0.01005309648i | AE29: 1+0.01005309648i | AG29: -0.0000252661872090471-1.27001708847146E-08i | AH29: 1+0.01005309648i
A30: 90 | B30: 0.09 | C30: 565.486677i | D30: -319775.181864502 | E30: -180828604.979628i | G30: 100+0.0565486677i | P30: 0 | Q30: 1+0.00019792033695i | R30: -2.02274877530212E-11i | S30: -3.19647271791756E-07 | T30: 0.999999680352728+0.000197920316722512i | U30: 1 | V30: 1 | W30: 0 | X30: 0 | Z30: 1.00000031964737-4.30372335896138E-11i | AA30: 2.776421334e-06 | AB30: -2.465851061e-09 | AD30: 0.01130973354i | AE30: 1+0.01130973354i | AG30: -0.0000319775181864502-1.80828604979628E-08i | AH30: 1+0.01130973354i
A31: 100 | B31: 0.1 | C31: 628.31853i | D31: -394784.175141361 | E31: -248050212.592082i | G31: 100+0.062831853i | P31: 0 | Q31: 1+0.0002199114855i | R31: -2.77468967805503E-11i | S31: -3.94626261471305E-07 | T31: 0.999999605373739+0.000219911457753103i | U31: 1 | V31: 1 | W31: 0 | X31: 0 | Z31: 1.0000003946264-5.90359940073355E-11i | AA31: 3.427680682e-06 | AB31: -3.382511965e-09 | AD31: 0.0125663706i | AE31: 1+0.0125663706i | AG31: -0.0000394784175141361-2.48050212592082E-08i | AH31: 1+0.0125663706i
A32: 200 | B32: 0.2 | C32: 1256.63706i | D32: -1579136.70056544 | E32: -1984401700.73666i | G32: 100+0.125663706i | P32: 0 | Q32: 1+0.000439822971i | R32: -2.21975174244403E-10i | S32: -1.57850504588521E-06 | T32: 0.999998421494954+0.000439822749024826i | U32: 1 | V32: 1 | W32: 0 | X32: 0 | Z32: 1.00000157850733-4.72289004721146E-10i | AA32: 1.371072964e-05 | AB32: -2.7060124e-08 | AD32: 0.0251327412i | AE32: 1+0.0251327412i | AG32: -0.000157913670056544-1.98440170073665E-07i | AH32: 1+0.0251327412i
A33: 300 | B33: 0.3 | C33: 1884.95559i | D33: -3553057.57627225 | E33: -6697355739.98623i | G33: 100+0.188495559i | P33: 0 | Q33: 1+0.0006597344565i | R33: -7.4916621307486E-10i | S33: -3.55163635324174E-06 | T33: 0.999996448363647+0.000659733707333787i | U33: 1 | V33: 1 | W33: 0 | X33: 0 | Z33: 1.00000355164792-1.59398129480179E-09i | AA33: 3.084916708e-05 | AB33: -9.132807655e-08 | AD33: 0.0376991118i | AE33: 1+0.0376991118i | AG33: -0.000355305757627225-6.69735573998623E-07i | AH33: 1+0.0376991118i
A34: 400 | B34: 0.4 | C34: 2513.27412i | D34: -6316546.80226177 | E34: -15875213605.8933i | G34: 100+0.251327412i | P34: 0 | Q34: 1+0.000879645942i | R34: -1.77580139395522E-09i | S34: -6.31402018354087E-06 | T34: 0.999993685979816+0.000879644166198606i | U34: 1 | V34: 1 | W34: 0 | X34: 0 | Z34: 1.00000631405673-3.77834562794476E-09i | AA34: 5.484302678e-05 | AB34: -2.164818914e-07 | AD34: 0.0502654824i | AE34: 1+0.0502654824i | AG34: -0.000631654680226177-1.58752136058933E-06i | AH34: 1+0.0502654824i
A35: 500 | B35: 0.5 | C35: 3141.59265i | D35: -9869604.37853402 | E35: -31006276574.0103i | G35: 100+0.314159265i | P35: 0 | Q35: 1+0.0010995574275i | R35: -3.46836209756879E-09i | S35: -9.86565653678261E-06 | T35: 0.999990134343463+0.0010995539591379i | U35: 1 | V35: 1 | W35: 0 | X35: 0 | Z35: 1.00000986574575-7.37963050952798E-09i | AA35: 8.569235607e-05 | AB35: -4.228175116e-07 | AD35: 0.062831853i | AE35: 1+0.062831853i | AG35: -0.000986960437853402-3.10062765740103E-06i | AH35: 1+0.062831853i
A36: 600 | B36: 0.6 | C36: 3769.91118i | D36: -14212230.305089 | E36: -53578845919.8898i | G36: 100+0.376991118i | P36: 0 | Q36: 1+0.001319468913i | R36: -5.99332970459887E-09i | S36: -0.000014206545412967 | T36: 0.999985793454587+0.0013194629196703i | U36: 1 | V36: 1 | W36: 0 | X36: 0 | Z36: 1.00001420673042-1.27521054564846E-08i | AA36: 0.000123397216 | AB36: -7.306314435e-07 | AD36: 0.0753982236i | AE36: 1+0.0753982236i | AG36: -0.0014212230305089-5.35788459198898E-06i | AH36: 1+0.0753982236i
A37: 700 | B37: 0.7 | C37: 4398.22971i | D37: -19344424.5819267 | E37: -85081222919.0843i | G37: 100+0.439822971i | P37: 0 | Q37: 1+0.0015393803985i | R37: -9.51718559572877E-09i | S37: -0.0000193366868120939 | T37: 0.999980663313188+0.0015393708813144i | U37: 1 | V37: 1 | W37: 0 | X37: 0 | Z37: 1.00001933702955-2.02500661951286E-08i | AA37: 0.0001679576807 | AB37: -1.160220894e-06 | AD37: 0.0879645942i | AE37: 1+0.0879645942i | AG37: -0.00193444245819267-8.50812229190843E-06i | AH37: 1+0.0879645942i
A38: 800 | B38: 0.8 | C38: 5026.54824i | D38: -25266187.2090471 | E38: -127001708847.146i | G38: 100+0.502654824i | P38: 0 | Q38: 1+0.001759291884i | R38: -1.42064111516417E-08i | S38: -0.0000252560807341635 | T38: 0.999974743919266+0.00175927767758885i | U38: 1 | V38: 1 | W38: 0 | X38: 0 | Z38: 1.00002525666544-3.02278400042037E-08i | AA38: 0.0002193738383 | AB38: -1.731883916e-06 | AD38: 0.1005309648i | AE38: 1+0.1005309648i | AG38: -0.00252661872090471-0.0000127001708847146i | AH38: 1+0.1005309648i
A39: 900 | B39: 0.9 | C39: 5654.86677i | D39: -31977518.1864502 | E39: -180828604979.628i | G39: 100+0.565486677i | P39: 0 | Q39: 1+0.0019792033695i | R39: -2.02274877530212E-08i | S39: -0.0000319647271791756 | T39: 0.999968035272821+0.00197918314201225i | U39: 1 | V39: 1 | W39: 0 | X39: 0 | Z39: 1.00003196566377-4.30397908600739E-08i | AA39: 0.0002776457902 | AB39: -2.465919545e-06 | AD39: 0.1130973354i | AE39: 1+0.1130973354i | AG39: -0.00319775181864502-0.0000180828604979628i | AH39: 1+0.1130973354i
A40: 1000 | B40: 1 | C40: 6283.1853i | D40: -39478417.5141361 | E40: -248050212592.082i | G40: 100+0.62831853i | P40: 0 | Q40: 1+0.002199114855i | R40: -2.77468967805503E-08i | S40: -0.0000394626261471304 | T40: 0.999960537373853+0.00219908710810322i | U40: 1 | V40: 1 | W40: 0 | X40: 0 | Z40: 1.00003946405367-5.90403247598128E-08i | AA40: 0.0003427736513 | AB40: -3.382627941e-06 | AD40: 0.125663706i | AE40: 1+0.125663706i | AG40: -0.00394784175141361-0.0000248050212592082i | AH40: 1+0.125663706i
A41: 2000 | B41: 2 | C41: 12566.3706i | D41: -157913670.056544 | E41: -1984401700736.66i | G41: 100+1.25663706i | P41: 0 | Q41: 1+0.00439822971i | R41: -2.21975174244403E-07i | S41: -0.000157850504588521 | T41: 0.999842149495412+0.00439800773482576i | U41: 1 | V41: 1 | W41: 0 | X41: 0 | Z41: 1.00015787334724-4.72427600959129E-07i | AA41: 0.00137116224 | AB41: -2.706383503e-05 | AD41: 0.251327412i | AE41: 1+0.251327412i | AG41: -0.0157913670056544-0.000198440170073665i | AH41: 1+0.251327412i
A42: 3000 | B42: 3 | C42: 18849.5559i | D42: -355305757.627225 | E42: -6697355739986.23i | G42: 100+1.88495559i | P42: 0 | Q42: 1+0.006597344565i | R42: -7.4916621307486E-07i | S42: -0.000355163635324174 | T42: 0.999644836364676+0.00659659539878692i | U42: 1 | V42: 1 | W42: 0 | X42: 0 | Z42: 1.00035527929582-1.59503405307709E-06i | AA42: 0.003085368714 | AB42: -9.135626254e-05 | AD42: 0.376991118i | AE42: 1+0.376991118i | AG42: -0.0355305757627225-0.000669735573998623i | AH42: 1+0.376991118i
A43: 4000 | B43: 4 | C43: 25132.7412i | D43: -631654680.226177 | E43: -15875213605893.3i | G43: 100+2.51327412i | P43: 0 | Q43: 1+0.00879645942i | R43: -1.77580139395522E-06i | S43: -0.000631402018354087 | T43: 0.999368597981646+0.00879468361860604i | U43: 1 | V43: 1 | W43: 0 | X43: 0 | Z43: 1.00063176764934-3.78278365967147E-06i | AA43: 0.00548573147 | AB43: -0.0002166006974 | AD43: 0.502654824i | AE43: 1+0.502654824i | AG43: -0.0631654680226177-0.00158752136058933i | AH43: 1+0.502654824i
A44: 5000 | B44: 5 | C44: 31415.9265i | D44: -986960437.853402 | E44: -31006276574010.3i | G44: 100+3.14159265i | P44: 0 | Q44: 1+0.010995574275i | R44: -3.46836209756879E-06i | S44: -0.000986565653678261 | T44: 0.999013434346322+0.0109921059129024i | U44: 1 | V44: 1 | W44: 0 | X44: 0 | Z44: 1.00098745857977-7.39318105431537E-06i | AA44: 0.008572724574 | AB44: -0.0004231801991 | AD44: 0.62831853i | AE44: 1+0.62831853i | AG44: -0.0986960437853402-0.00310062765740103i | AH44: 1+0.62831853i
A45: 6000 | B45: 6 | C45: =COMPLEX(0,2*Pi*A45) -> 37699.1118i | D45: =COMPLEX(-POWER(2*Pi*A45,2),0) -> -1421223030.5089 | E45: =COMPLEX(0,-POWER(2*Pi*A45,3)) -> -53578845919889.8i | G45: =IMSUM(IMPRODUCT(C45,Rcomp_AEF*Csen_AEF),Csen_AEF/Ccomp_AEF) -> 100+3.76991118i | I45: =IMPRODUCT((RdampSel*CdampSel+RdampSel*CinjSel),C45) ->  | L45: =IMPRODUCT(G45,L_infilterStd*RdampSel*CinjSel*CdampSel,E45) ->  | M45: =IMPRODUCT(G45,L_infilterStd*CinjSel,D45) ->  | P45: 0 | Q45: =IMSUM(IMPRODUCT(C45,RdampPssv*CdampPssv),1) -> 1+0.01319468913i | R45: =IMPRODUCT(RdampPssv*CdampPssv*CfilterPssv*LinfilterPssv,E45) -> -5.99332970459887E-06i | S45: =IMPRODUCT(D45,LinfilterPssv*(CfilterPssv+CdampPssv)) -> -0.0014206545412967 | T45: 0.998579345458703+0.0131886958002954i | U45: 1 | V45: =CHOOSE(INFILTER_TYPE,U45,IMDIV(J45,O45),IMDIV(Q45,T45)) -> 1 | W45: 0 | X45: =IMARGUMENT(V45)*180/Pi -> 0 | Z45: =IMDIV(Q45,T45) -> 1.00142250680344-0.000012785844067251i | AA45: 0.01234695808 | AB45: =IMARGUMENT(Z45)*180/Pi -> -0.0007315342909 | AD45: =IMPRODUCT((RdampCom*CdampCom+RdampCom*CinjCom),C45) -> 0.753982236i | AE45: 1+0.753982236i | AF45: =IMPRODUCT(G45,L_infilterStd*RdampSel*CinjSel*CdampSel,E45) ->  | AG45: =IMPRODUCT(G45,LAEFCom*CinjCom,D45) -> -0.14212230305089-0.00535788459198898i | AH45: 1+0.753982236i | AN45: =IMARGUMENT(AK45)*180/Pi -> 
A46: 7000 | B46: 7 | C46: 43982.2971i | D46: -1934442458.19267 | E46: -85081222919084.3i | G46: 100+4.39822971i | P46: 0 | Q46: 1+0.015393803985i | R46: -9.51718559572877E-06i | S46: -0.00193366868120939 | T46: 0.998066331318791+0.0153842867994043i | U46: 1 | V46: 1 | W46: 0 | X46: 0 | Z46: 1.00193710173868-0.0000203230411399365i | AA46: 0.01680917842 | AB46: -0.001162173238 | AD46: 0.879645942i | AE46: 1+0.879645942i | AG46: -0.193444245819267-0.00850812229190843i | AH46: 1+0.879645942i
A47: 8000 | B47: 8 | C47: 50265.4824i | D47: -2526618720.90471 | E47: -127001708847146i | G47: 100+5.02654824i | P47: 0 | Q47: 1+0.01759291884i | R47: -0.0000142064111516418i | S47: -0.00252560807341635 | T47: 0.997474391926584+0.0175787124288484i | U47: 1 | V47: 1 | W47: 0 | X47: 0 | Z47: 1.00253146769905-0.0000303702348632679i | AA47: 0.0219602689 | AB47: -0.001735692433 | AD47: 1.005309648i | AE47: 1+1.005309648i | AG47: -0.252661872090471-0.0127001708847146i | AH47: 1+1.005309648i
A48: 9000 | B48: 9 | C48: 56548.6677i | D48: -3197751818.64502 | E48: -180828604979628i | G48: 100+5.65486677i | P48: 0 | Q48: 1+0.019792033695i | R48: -0.0000202274877530212i | S48: -0.00319647271791756 | T48: 0.996803527282082+0.019771806207247i | U48: 1 | V48: 1 | W48: 0 | X48: 0 | Z48: 1.00320586412249-0.0000432966329094656i | AA48: 0.02780125032 | AB48: -0.002472786915 | AD48: 1.130973354i | AE48: 1+1.130973354i | AG48: -0.319775181864502-0.0180828604979628i | AH48: 1+1.130973354i
A49: 10000 | B49: 10 | C49: 62831.853i | D49: -3947841751.41361 | E49: -248050212592082i | G49: 100+6.2831853i | P49: 0 | Q49: 1+0.02199114855i | R49: -0.0000277468967805503i | S49: -0.00394626261471305 | T49: 0.996053737385287+0.0219634016532194i | U49: 1 | V49: 1 | W49: 0 | X49: 0 | Z49: 1.0039605858368-0.0000594757476545141i | AA49: 0.03433328159 | AB49: -0.003394266042 | AD49: 1.25663706i | AE49: 1+1.25663706i | AG49: -0.394784175141361-0.0248050212592082i | AH49: 1+1.25663706i
A50: 11000 | B50: 11 | C50: 69115.0383i | D50: -4776888519.21047 | E50: -330154832960062i | G50: 100+6.91150383i | N50: =J50 ->  | O50: =IMSUM(L50:N50) ->  | P50: 0 | Q50: 1+0.024190263405i | R50: -0.0000369311196149125i | S50: -0.00477497776380279 | T50: =IMSUM(S50,R50,Q50) -> 0.995225022236197+0.0241533322853851i | U50: 1 | V50: 1 | W50: 0 | X50: 0 | Z50: 1.00479596336193-0.0000792859658181959i | AA50: 0.04155766053 | AB50: -0.004521068334 | AD50: 1.382300766i | AE50: 1+1.382300766i | AG50: -0.477688851921047-0.0330154832960062i | AH50: 1+1.382300766i
A51: 12000 | B51: 12 | C51: 75398.2236i | D51: -5684892122.0356 | E51: -428630767359119i | G51: 100+7.53982236i | N51: =J51 ->  | O51: =IMSUM(L51:N51) ->  | P51: 0 | Q51: 1+0.02638937826i | R51: -0.000047946637636791i | S51: -0.00568261816518679 | T51: =IMSUM(S51,R51,Q51) -> 0.994317381834813+0.0263414316223632i | U51: 1 | V51: 1 | W51: 0 | X51: 0 | Z51: 1.00571236324959-0.000103111129481765i | AA51: 0.04947582475 | AB51: -0.005874276525 | AD51: 1.507964472i | AE51: 1+1.507964472i | AG51: -0.56848921220356-0.0428630767359119i | AH51: 1+1.507964472i
A52: 13000 | B52: 13 | C52: 81681.4089i | D52: -6671852559.889 | E52: -544966317064805i | G52: 100+8.16814089i | N52: =J52 ->  | O52: =IMSUM(L52:N52) ->  | P52: 0 | Q52: 1+0.028588493115i | R52: -0.0000609599322268691i | S52: -0.00666918381886504 | T52: =IMSUM(S52,R52,Q52) -> 0.993330816181135+0.0285275331827731i | U52: 1 | V52: 1 | W52: 0 | X52: 0 | Z52: 1.00671018846073-0.00013134112988737i | AA52: 0.05808935257 | AB52: -0.007475132835 | AD52: 1.633628178i | AE52: 1+1.633628178i | AG52: -0.6671852559889-0.0544966317064805i | AH52: 1+1.633628178i
A53: 15000 | B53: 15 | C53: 94247.7795i | D53: -8882643940.68062 | E53: -837169467498278i | G53: 100+9.42477795i | N53: =J53 ->  | O53: =IMSUM(L53:N53) ->  | P53: 0 | Q53: 1+0.032986722825i | R53: -0.0000936457766343574i | S53: -0.00887909088310435 | T53: =IMSUM(S53,R53,Q53) -> 0.991120909116896+0.0328930770483656i | U53: 1 | V53: 1 | W53: 0 | X53: 0 | Z53: 1.00895191127968-0.00020260911556929i | AA53: 0.07740952239 | AB53: -0.01150564952 | AD53: 1.88495559i | AE53: 1+1.88495559i | AG53: -0.888264394068062-0.0837169467498278i | AH53: 1+1.88495559i
A54: 16000 | B54: 16 | C54: 100530.9648i | D54: -10106474883.6188 | E54: -1016013670777170i | G54: 100+10.05309648i | N54: =J54 ->  | O54: =IMSUM(L54:N54) ->  | P54: 0 | Q54: 1+0.03518583768i | R54: -0.000113651289213134i | S54: -0.0101024322936654 | T54: =IMSUM(S54,R54,Q54) -> 0.989897567706335+0.0350721863907869i | U54: 1 | V54: 1 | W54: 0 | X54: 0 | Z54: 1.01019680079824-0.000246462681525396i | AA54: 0.08812003465 | AB54: -0.01397873284 | AD54: 2.010619296i | AE54: 1+2.010619296i | AG54: -1.01064748836188-0.101601367077717i | AH54: 1+2.010619296i
A55: 17500 | B55: 17.5 | C55: 109955.74275i | D55: -12090265363.7042 | E55: -1329394108110690i | G55: 100+10.995574275i | P55: 0 | Q55: 1+0.0384845099625i | R55: -0.000148706024933262i | S55: -0.0120854292575587 | T55: 0.987914570742441+0.0383358039375667i | U55: 1 | V55: 1 | W55: 0 | X55: 0 | Z55: 1.01222071263725-0.000323696833892721i | AA55: 0.105504841 | AB55: -0.01832254723 | AD55: 2.199114855i | AE55: 1+2.199114855i | AG55: -1.20902653637042-0.132939410811069i | AH55: 1+2.199114855i
A56: 19000 | B56: 19 | C56: 119380.5207i | D56: -14251708722.6031 | E56: -1701376408169090i | G56: 100+11.93805207i | P56: 0 | Q56: 1+0.041783182245i | R56: -0.000190315965017794i | S56: -0.0142460080391141 | T56: 0.985753991960886+0.0415928662799822i | U56: 1 | V56: 1 | W56: 0 | X56: 0 | Z56: 1.01443433812182-0.000415975520938413i | AA56: 0.1244795592 | AB56: -0.02349451268 | AD56: 2.387610414i | AE56: 1+2.387610414i | AG56: -1.42517087226031-0.170137640816909i | AH56: 1+2.387610414i
A57: 20000 | B57: 20 | C57: 125663.706i | D57: -15791367005.6544 | E57: -1984401700736660i | G57: 100+12.5663706i | P57: 0 | Q57: 1+0.0439822971i | R57: -0.000221975174244403i | S57: -0.0157850504588521 | T57: 0.984214949541148+0.0437603219257556i | U57: 1 | V57: 1 | W57: 0 | X57: 0 | Z57: 1.01601657935512-0.000486596443905099i | AA57: 0.1380168926 | AB57: -0.02744041882 | AD57: 2.51327412i | AE57: 1+2.51327412i | AG57: -1.57913670056544-0.198440170073665i | AH57: 1+2.51327412i
A58: 25000 | B58: 25 | C58: 157079.6325i | D58: -24674010946.3351 | E58: -3875784571751290i | G58: 100+15.70796325i | P58: 0 | Q58: 1+0.054977871375i | R58: -0.000433545262196099i | S58: -0.0246641413419566 | T58: 0.975335858658043+0.0545443261128039i | U58: 1 | V58: 1 | W58: 0 | X58: 0 | Z58: 1.02523378537434-0.000966656304033977i | AA58: 0.2164620491 | AB58: -0.05402212734 | AD58: 3.14159265i | AE58: 1+3.14159265i | AG58: -2.46740109463351-0.387578457175129i | AH58: 1+3.14159265i
A59: 30000 | B59: 30 | C59: 188495.559i | D59: -35530575762.7225 | E59: -6697355739986230i | G59: 100+18.8495559i | P59: 0 | Q59: 1+0.06597344565i | R59: -0.00074916621307486i | S59: -0.0355163635324174 | T59: 0.964483636467583+0.0652242794369251i | U59: 1 | V59: 1 | W59: 0 | X59: 0 | Z59: 1.03670887459481-0.00170572482425677i | AA59: 0.3131480821 | AB59: -0.09427019268 | AD59: 3.76991118i | AE59: 1+3.76991118i | AG59: -3.55305757627225-0.669735573998623i | AH59: 1+3.76991118i
A60: 35000 | B60: 35 | C60: 219911.4855i | D60: -48361061454.8167 | E60: -10635152864885500i | G60: 100+21.99114855i | P60: 0 | Q60: 1+0.076969019925i | R60: -0.00118964819946609i | S60: -0.0483417170302348 | T60: 0.951658282969765+0.0757793717255339i | U60: 1 | V60: 1 | W60: 0 | X60: 0 | Z60: 1.05057619978726-0.00277724104542023i | AA60: 0.4285815074 | AB60: -0.151463378 | AD60: 4.39822971i | AE60: 1+4.39822971i | AG60: -4.83610614548167-1.06351528648855i | AH60: 1+4.39822971i
A61: 40000 | B61: 40 | C61: 251327.412i | D61: -63165468022.6178 | E61: -15875213605893300i | G61: 100+25.1327412i | P61: 0 | Q61: 1+0.0879645942i | R61: -0.00177580139395522i | S61: -0.0631402018354088 | T61: 0.936859798164591+0.0861887928060448i | U61: 1 | V61: 1 | W61: 0 | X61: 0 | Z61: 1.06700286965865-0.00426861635465528i | AA61: 0.5633812551 | AB61: -0.229214376 | AD61: 5.02654824i | AE61: 1+5.02654824i | AG61: -6.31654680226178-1.58752136058933i | AH61: 1+5.02654824i
A62: 45000 | B62: 45 | C62: 282743.3385i | D62: -79943795466.1256 | E62: -22603575622453500i | G62: 100+28.27433385i | P62: 0 | Q62: 1+0.098960168475i | R62: -0.00252843596912765i | S62: -0.0799118179479392 | T62: 0.920088182052061+0.0964317325058724i | U62: 1 | V62: 1 | W62: 0 | X62: 0 | Z62: 1.08619356566251-0.00628565719175738i | AA62: 0.7182899496 | AB62: -0.3315593282 | AD62: 5.65486677i | AE62: 1+5.65486677i | AG62: -7.99437954661256-2.26035756224535i | AH62: 1+5.65486677i
A63: 50000 | B63: 50 | C63: 314159.265i | D63: -98696043785.3402 | E63: -31006276574010300i | G63: 100+31.4159265i | P63: 0 | Q63: 1+0.10995574275i | R63: -0.00346836209756879i | S63: -0.0986565653678261 | T63: 0.901343434632174+0.106487380652431i | U63: 1 | V63: 1 | W63: 0 | X63: 0 | Z63: 1.10839666057698-0.00895831050462997i | AA63: 0.8941878551 | AB63: -0.4630672635 | AD63: 6.2831853i | AE63: 1+6.2831853i | AG63: -9.86960437853402-3.10062765740103i | AH63: 1+6.2831853i
A64: 55000 | B64: 55 | C64: 345575.1915i | D64: -119422212980.262 | E64: -41269354120007700i | G64: 100+34.55751915i | P64: 0 | Q64: 1+0.120951317025i | R64: -0.00461638995186406i | S64: -0.11937444409507 | T64: 0.88062555590493+0.116334927073136i | U64: 1 | V64: 1 | W64: 0 | X64: 0 | Z64: 1.1339119415625-0.0124482487823856i | AA64: 1.092109959 | AB64: -0.628976062 | AD64: 6.91150383i | AE64: 1+6.91150383i | AG64: -11.9422212980262-4.12693541200078i | AH64: 1+6.91150383i
A65: 60000 | B65: 60 | C65: 376991.118i | D65: -142122303050.89 | E65: -53578845919889800i | G65: 100+37.6991118i | P65: 0 | Q65: 1+0.1319468913i | R65: -0.00599332970459887i | S65: -0.14206545412967 | T65: 0.85793454587033+0.125953561595401i | U65: 1 | V65: 1 | W65: 0 | X65: 0 | Z65: 1.1631003258263-0.0169590294511739i | AA65: 1.313266769 | AB65: -0.8353638461 | AD65: 7.53982236i | AE65: 1+7.53982236i | AG65: -14.212230305089-5.35788459198898i | AH65: 1+7.53982236i
A66: 65000 | B66: 65 | C66: 408407.0445i | D66: -166796313997.225 | E66: -68120789633100600i | G66: 100+40.84070445i | P66: 0 | Q66: 1+0.142942465575i | R66: -0.00761999152835863i | S66: -0.166729595471626 | T66: 0.833270404528374+0.135322474046641i | U66: 1 | V66: 1 | W66: 0 | X66: 0 | Z66: 1.19639605981863-0.0227498889631618i | AA66: 1.559069535 | AB66: -1.089367975 | AD66: 8.16814089i | AE66: 1+8.16814089i | AG66: -16.6796313997225-6.81207896331006i | AH66: 1+8.16814089i
A67: 70000 | B67: 70 | C67: 439822.971i | D67: -193444245819.267 | E67: -85081222919084300i | G67: 100+43.9822971i | P67: 0 | Q67: 1+0.15393803985i | R67: -0.00951718559572877i | S67: -0.193366868120939 | T67: 0.806633131879061+0.144420854254271i | U67: 1 | V67: 1 | W67: 0 | X67: 0 | Z67: 1.23432201043572-0.0301547238275632i | AA67: 1.831160713 | AB67: -1.399468529 | AD67: 8.79645942i | AE67: 1+8.79645942i | AG67: -19.3444245819267-8.50812229190843i | AH67: 1+8.79645942i
A68: 75000 | B68: 75 | C68: 471238.8975i | D68: -222066098517.016 | E68: -104646183437285000i | G68: 100+47.12388975i | P68: 0 | Q68: 1+0.164933614125i | R68: -0.0117057220792947i | S68: -0.221977272077609 | T68: 0.778022727922391+0.153227892045705i | U68: 1 | V68: 1 | W68: 0 | X68: 0 | Z68: 1.27750877655212-0.0396085636961541i | AA68: 2.131450634 | AB68: -1.775860031 | AD68: 9.42477795i | AE68: 1+9.42477795i | AG68: -22.2066098517016-10.4646183437285i | AH68: 1+9.42477795i
A69: 80000 | B69: 80 | C69: 502654.824i | D69: -252661872090.471 | E69: -127001708847146000i | G69: 100+50.2654824i | P69: 0 | Q69: 1+0.1759291884i | R69: -0.0142064111516417i | S69: -0.252560807341635 | T69: 0.747439192658365+0.161722777248358i | U69: 1 | V69: 1 | W69: 0 | X69: 0 | Z69: 1.32671843606306-0.0516850094110243i | AA69: 2.462161357 | AB69: -2.23094524 | AD69: 10.05309648i | AE69: 1+10.05309648i | AG69: -25.2661872090471-12.7001708847146i | AH69: 1+10.05309648i
A70: 90000 | B70: 90 | C70: 565486.677i | D70: -319775181864.502 | E70: -180828604979628000i | G70: 100+56.5486677i | P70: 0 | Q70: 1+0.19792033695i | R70: -0.0202274877530212i | S70: -0.319647271791756 | T70: 0.680352728208244+0.177692849196979i | U70: 1 | V70: 1 | W70: 0 | X70: 0 | Z70: 1.44709298035524-0.0870397594174791i | AA70: 3.225612215 | AB70: -3.442080077 | AD70: 11.30973354i | AE70: 1+11.30973354i | AG70: -31.9775181864502-18.0828604979628i | AH70: 1+11.30973354i
A71: 100000 | B71: 100 | C71: 628318.53i | D71: -394784175141.361 | E71: -248050212592082000i | G71: 100+62.831853i | P71: 0 | Q71: 1+0.2199114855i | R71: -0.0277468967805503i | S71: -0.394626261471305 | T71: 0.605373738528695+0.19216458871945i | U71: 1 | V71: 1 | W71: 0 | X71: 0 | Z71: 1.60541786286688-0.146344269997555i | AA71: 4.147700439 | AB71: -5.208487783 | AD71: 12.5663706i | AE71: 1+12.5663706i | AG71: -39.4784175141361-24.8050212592082i | AH71: 1+12.5663706i
A72: 110000 | B72: 110 | C72: 691150.383i | D72: -477688851921.047 | E72: -330154832960062000i | G72: 100+69.1150383i | N72: =J72 ->  | O72: =IMSUM(L72:N72) ->  | P72: 1 | Q72: 1+0.24190263405i | R72: -0.0369311196149125i | S72: -0.477497776380279 | T72: =IMSUM(S72,R72,Q72) -> 0.522502223619721+0.204971514435088i | U72: 1 | V72: 1 | W72: 0 | X72: 0 | Z72: 1.81601781079008-0.249432980334241i | AA72: 5.263570496 | AB72: -7.820732309 | AD72: 13.82300766i | AE72: 1+13.82300766i | AG72: -47.7688851921047-33.0154832960062i | AH72: 1+13.82300766i
A73: 120000 | B73: 120 | C73: 753982.236i | D73: -568489212203.56 | E73: -428630767359118000i | G73: 100+75.3982236i | P73: 2 | Q73: 1+0.2638937826i | R73: -0.0479466376367909i | S73: -0.568261816518679 | T73: 0.431738183481321+0.215947144963209i | U73: 1 | V73: 1 | W73: 0 | X73: 0 | Z73: 2.09725415352119-0.43777055480966i | AA73: 6.618238543 | AB73: -11.79034914 | AD73: 15.07964472i | AE73: 1+15.07964472i | AG73: -56.848921220356-42.8630767359119i | AH73: 1+15.07964472i
A74: 130000 | B74: 130 | C74: 816814.089i | D74: -667185255988.9 | E74: -544966317064805000i | G74: 100+81.6814089i | P74: 3 | Q74: 1+0.28588493115i | R74: -0.0609599322268691i | S74: -0.666918381886505 | T74: 0.333081618113495+0.224924998923131i | U74: 1 | V74: 1 | W74: 0 | X74: 0 | Z74: 2.4600564712321-0.802936137717432i | AA74: 8.258533392 | AB74: -18.0761292 | AD74: 16.33628178i | AE74: 1+16.33628178i | AG74: -66.71852559889-54.4966317064805i | AH74: 1+16.33628178i
A75: 150000 | B75: 150 | C75: 942477.795i | D75: -888264394068.062 | E75: -837169467498278000i | G75: 100+94.2477795i | P75: 4 | Q75: 1+0.32986722825i | R75: -0.0936457766343574i | S75: -0.887909088310435 | T75: 0.112090911689565+0.236221451615643i | U75: 1 | V75: 1 | W75: 0 | X75: 0 | Z75: 2.77938675294686-2.91445167327342i | AA75: 12.1002459 | AB75: -46.35887228 | AD75: 18.8495559i | AE75: 1+18.8495559i | AG75: -88.8264394068062-83.7169467498278i | AH75: 1+18.8495559i
A76: 160000 | B76: 160 | C76: 1005309.648i | D76: -1010647488361.88 | E76: -1016013670777170000i | G76: 100+100.5309648i | P76: 5 | Q76: 1+0.3518583768i | R76: -0.113651289213134i | S76: -1.01024322936654 | T76: -0.01024322936654+0.238207087586866i | U76: 1 | V76: 1 | W76: 0 | X76: 0 | Z76: 1.29419724044521-4.25368014631354i | AA76: 12.95979018 | AB76: -73.0774314 | AD76: 20.10619296i | AE76: 1+20.10619296i | AG76: -101.064748836188-101.601367077717i | AH76: 1+20.10619296i
A77: 175000 | B77: 175 | C77: =COMPLEX(0,2*Pi*A77) -> 1099557.4275i | D77: =COMPLEX(-POWER(2*Pi*A77,2),0) -> -1209026536370.42 | E77: =COMPLEX(0,-POWER(2*Pi*A77,3)) -> -1329394108110690000i | G77: 100+109.95574275i | I77: =IMPRODUCT((RdampSel*CdampSel+RdampSel*CinjSel),C77) ->  | L77: =IMPRODUCT(G77,L_infilterStd*RdampSel*CinjSel*CdampSel,E77) ->  | M77: =IMPRODUCT(G77,L_infilterStd*CinjSel,D77) ->  | P77: 6 | Q77: =IMSUM(IMPRODUCT(C77,RdampPssv*CdampPssv),1) -> 1+0.384845099625i | R77: =IMPRODUCT(RdampPssv*CdampPssv*CfilterPssv*LinfilterPssv,E77) -> -0.148706024933262i | S77: =IMPRODUCT(D77,LinfilterPssv*(CfilterPssv+CdampPssv)) -> -1.20854292575587 | T77: -0.20854292575587+0.236139074691738i | U77: 1 | V77: 1 | W77: 0 | X77: 0 | Z77: =IMDIV(Q77,T77) -> -1.18552956082797-3.18780870043445i | AA77: 10.63243437 | AB77: =IMARGUMENT(Z77)*180/Pi -> -110.3999075 | AD77: =IMPRODUCT((RdampCom*CdampCom+RdampCom*CinjCom),C77) -> 21.99114855i | AE77: 1+21.99114855i | AF77: =IMPRODUCT(G77,L_infilterStd*RdampSel*CinjSel*CdampSel,E77) ->  | AG77: =IMPRODUCT(G77,LAEFCom*CinjCom,D77) -> -120.902653637042-132.939410811069i | AH77: 1+21.99114855i | AN77: =IMARGUMENT(AK77)*180/Pi -> 
A78: 190000 | B78: 190 | C78: 1193805.207i | D78: -1425170872260.31 | E78: -1701376408169090000i | G78: 100+119.3805207i | P78: 7 | Q78: 1+0.41783182245i | R78: -0.190315965017794i | S78: -1.42460080391141 | T78: -0.42460080391141+0.227515857432206i | U78: 1 | V78: 1 | W78: 0 | X78: 0 | Z78: -1.42011816933091-1.74500664759685i | AA78: =20*LOG10(IMABS(Z78)) -> 7.043035928 | AB78: -129.1393238 | AD78: 23.87610414i | AE78: =IMSUM(1,AD78) -> 1+23.87610414i | AG78: -142.517087226031-170.137640816909i | AH78: =AE78 -> 1+23.87610414i | AI78: =IMSUM(AF78:AH78) ->  | AK78: =IMDIV(AE78,AI78) ->  | AM78: =20*LOG10(IMABS(AK78)) -> 
A79: 200000 | B79: 200 | C79: 1256637.06i | D79: -1579136700565.44 | E79: -1984401700736660000i | G79: 100+125.663706i | P79: 0 | Q79: 1+0.439822971i | R79: -0.221975174244403i | S79: -1.57850504588521 | T79: -0.57850504588521+0.217847796755597i | U79: 1 | V79: 1 | W79: 0 | X79: 0 | Z79: -1.26317208366406-1.23594812428182i | AA79: 4.9459583 | AB79: -135.6241223 | AD79: 25.1327412i | AE79: 1+25.1327412i | AG79: -157.913670056544-198.440170073665i | AH79: 1+25.1327412i
A80: 300000 | B80: 300 | C80: 1884955.59i | D80: -3553057576272.25 | E80: -6697355739986230000i | G80: 100+188.495559i | P80: 0 | Q80: 1+0.6597344565i | R80: -0.74916621307486i | S80: -3.55163635324174 | T80: -2.55163635324174-0.08943175657486i | U80: 1 | V80: 1 | W80: 0 | X80: 0 | Z80: -0.400475408867723-0.244517302172491i | AA80: -6.57243309 | AB80: -148.5931141 | AD80: 37.6991118i | AE80: 1+37.6991118i | AG80: -355.305757627225-669.735573998623i | AH80: 1+37.6991118i
A81: 400000 | B81: 400 | C81: 2513274.12i | D81: -6316546802261.78 | E81: -15875213605893300000i | G81: 100+251.327412i | P81: 0 | Q81: 1+0.879645942i | R81: -1.77580139395522i | S81: -6.31402018354088 | T81: -5.31402018354088-0.89615545195522i | U81: 1 | V81: 1 | W81: 0 | X81: 0 | Z81: -0.210121191022436-0.130098243366712i | AA81: -12.14126087 | AB81: -148.2359428 | AD81: 50.2654824i | AE81: 1+50.2654824i | AG81: -631.654680226178-1587.52136058933i | AH81: 1+50.2654824i
A82: 500000 | B82: 500 | C82: 3141592.65i | D82: -9869604378534.03 | E82: -31006276574010300000i | G82: 100+314.159265i | P82: 0 | Q82: 1+1.0995574275i | R82: -3.46836209756879i | S82: -9.86565653678262 | T82: -8.86565653678262-2.36880467006879i | U82: 1 | V82: 1 | W82: 0 | X82: 0 | Z82: -0.136208802833546-0.0876308907321328i | AA82: -15.81168415 | AB82: -147.2445124 | AD82: 62.831853i | AE82: 1+62.831853i | AG82: -986.960437853403-3100.62765740103i | AH82: 1+62.831853i
A83: 600000 | B83: 600 | C83: 3769911.18i | D83: -14212230305089 | E83: -53578845919889800000i | G83: =IMSUM(IMPRODUCT(C83,Rcomp_AEF*Csen_AEF),Csen_AEF/Ccomp_AEF) -> 100+376.991118i | P83: 0 | Q83: 1+1.319468913i | R83: -5.99332970459887i | S83: -14.206545412967 | T83: -13.206545412967-4.67386079159887i | U83: 1 | V83: =CHOOSE(INFILTER_TYPE,U83,IMDIV(J83,O83),IMDIV(Q83,T83)) -> 1 | W83: 0 | X83: =IMARGUMENT(V83)*180/Pi -> 0 | Z83: -0.0987148424567274-0.0649745603002369i | AA83: -18.5491821 | AB83: -146.646905 | AD83: 75.3982236i | AE83: 1+75.3982236i | AG83: -1421.2230305089-5357.88459198898i | AH83: 1+75.3982236i
A84: 700000 | B84: 700 | C84: 4398229.71i | D84: -19344424581926.7 | E84: -85081222919084300000i | G84: 100+439.822971i | P84: 0 | Q84: 1+1.5393803985i | R84: -9.51718559572877i | S84: -19.3366868120939 | T84: -18.3366868120939-7.97780519722877i | U84: 1 | V84: 1 | W84: 0 | X84: 0 | Z84: -0.0765669830392885-0.050638587700621i | AA84: -20.74338888 | AB84: -146.5208154 | AD84: 87.9645942i | AE84: 1+87.9645942i | AG84: -1934.44245819267-8508.12229190843i | AH84: 1+87.9645942i
A85: 800000 | B85: 800 | C85: 5026548.24i | D85: -25266187209047.1 | E85: -127001708847146000000i | G85: 100+502.654824i | P85: 0 | Q85: 1+1.759291884i | R85: -14.2064111516417i | S85: -25.2560807341635 | T85: -24.2560807341635-12.4471192676417i | U85: 1 | V85: 1 | W85: 0 | X85: 0 | Z85: -0.0620946151681225-0.040665794855093i | AA85: -22.58891903 | AB85: -146.7791907 | AD85: 100.5309648i | AE85: 1+100.5309648i | AG85: -2526.61872090471-12700.1708847146i | AH85: 1+100.5309648i
A86: 900000 | B86: 900 | C86: 5654866.77i | D86: -31977518186450.2 | E86: -180828604979628000000i | G86: 100+565.486677i | P86: 0 | Q86: 1+1.9792033695i | R86: -20.2274877530212i | S86: -31.9647271791756 | T86: -30.9647271791756-18.2482843835212i | U86: 1 | V86: 1 | W86: 0 | X86: 0 | Z86: -0.0519283597315569-0.033315323192724i | AA86: -24.19478124 | AB86: -147.3172642 | AD86: 113.0973354i | AE86: 1+113.0973354i | AG86: -3197.75181864502-18082.8604979628i | AH86: 1+113.0973354i
A87: 1000000 | B87: 1000 | C87: 6283185.3i | D87: -39478417514136.1 | E87: -248050212592083000000i | G87: 100+628.31853i | P87: 0 | Q87: 1+2.199114855i | R87: -27.7468967805504i | S87: -39.4626261471305 | T87: -38.4626261471305-25.5477819255504i | U87: 1 | V87: 1 | W87: 0 | X87: 0 | Z87: -0.044391344457259-0.0276895930961649i | AA87: -25.62676805 | AB87: -148.0456906 | AD87: 125.663706i | AE87: 1+125.663706i | AG87: -3947.84175141361-24805.0212592082i | AH87: 1+125.663706i
A88: 2000000 | B88: 2000 | C88: 12566370.6i | D88: -157913670056544 | E88: -1.98440170073666E+21i | G88: 100+1256.63706i | P88: 0 | Q88: 1+4.39822971i | R88: -221.975174244403i | S88: -157.850504588521 | T88: -156.850504588521-217.576944534403i | U88: 1 | V88: 1 | W88: 0 | X88: 0 | Z88: -0.0154820114155727-0.00656485596685991i | AA88: -35.48535935 | AB88: -157.0215402 | AD88: 251.327412i | AE88: 1+251.327412i | AG88: -15791.3670056544-198440.170073666i | AH88: 1+251.327412i
A89: 3000000 | B89: 3000 | C89: 18849555.9i | D89: -355305757627225 | E89: -6.69735573998623E+21i | G89: 100+1884.95559i | P89: 0 | Q89: 1+6.597344565i | R89: -749.16621307486i | S89: -355.163635324174 | T89: -354.163635324174-742.56886850986i | U89: 1 | V89: 1 | W89: 0 | X89: 0 | Z89: -0.00776127767315144-0.00235501700871593i | AA89: -41.81882784 | AB89: -163.1205442 | AD89: 376.991118i | AE89: 1+376.991118i | AG89: -35530.5757627225-669735.573998623i | AH89: 1+376.991118i
A90: 4000000 | B90: 4000 | C90: 25132741.2i | D90: -631654680226178 | E90: -1.58752136058933E+22i | G90: 100+2513.27412i | P90: 0 | Q90: 1+8.79645942i | R90: -1775.80139395522i | S90: -631.402018354088 | T90: -630.402018354088-1767.00493453522i | U90: 1 | V90: 1 | W90: 0 | X90: 0 | Z90: -0.00459520096124435-0.00107346840047734i | AA90: -46.52314764 | AB90: -166.8511405 | AD90: 502.654824i | AE90: 1+502.654824i | AG90: -63165.4680226178-1587521.36058933i | AH90: 1+502.654824i
A91: 5000000 | B91: 5000 | C91: 31415926.5i | D91: -986960437853403 | E91: -3.10062765740103E+22i | G91: 100+3141.59265i | P91: 0 | Q91: 1+10.995574275i | R91: -3468.36209756879i | S91: -986.565653678262 | T91: -985.565653678262-3457.36652329379i | U91: 1 | V91: 1 | W91: 0 | X91: 0 | Z91: -0.00301757308495533-0.000570959537178404i | AA91: -50.25408082 | AB91: -169.2856429 | AD91: 628.31853i | AE91: 1+628.31853i | AG91: -98696.0437853403-3100627.65740103i | AH91: 1+628.31853i
A92: 6000000 | B92: 6000 | C92: 37699111.8i | D92: -1421223030508900 | E92: -5.35788459198898E+22i | G92: 100+3769.91118i | P92: 0 | Q92: 1+13.19468913i | R92: -5993.32970459887i | S92: -1420.6545412967 | T92: -1419.6545412967-5980.13501546887i | U92: 1 | V92: 1 | W92: 0 | X92: 0 | Z92: -0.00212628728062533-0.000337549802608077i | AA92: -53.33946751 | AB92: -170.9795243 | AD92: 753.982236i | AE92: 1+753.982236i | AG92: -142122.30305089-5357884.59198898i | AH92: 1+753.982236i
A93: 7000000 | B93: 7000 | C93: 43982297.1i | D93: -1934442458192670 | E93: -8.50812229190843E+22i | G93: 100+4398.22971i | P93: 0 | Q93: 1+15.393803985i | R93: -9517.18559572877i | S93: -1933.66868120939 | T93: -1932.66868120939-9501.79179174377i | U93: 1 | V93: 1 | W93: 0 | X93: 0 | Z93: -0.00157628762603077-0.000215374297002146i | AA93: -55.96696055 | AB93: -172.2196335 | AD93: 879.645942i | AE93: 1+879.645942i | AG93: -193444.245819267-8508122.29190843i | AH93: 1+879.645942i
A94: 8000000 | B94: 8000 | C94: 50265482.4i | D94: -2526618720904710 | E94: -1.27001708847146E+23i | G94: 100+5026.54824i | P94: 0 | Q94: 1+17.59291884i | R94: -14206.4111516417i | S94: -2525.60807341635 | T94: -2524.60807341635-14188.8182328017i | U94: 1 | V94: 1 | W94: 0 | X94: 0 | Z94: -0.00121401992445827-0.000145531817287078i | AA94: -58.25351868 | AB94: -173.1642323 | AD94: 1005.309648i | AE94: 1+1005.309648i | AG94: -252661.872090471-12700170.8847146i | AH94: 1+1005.309648i
A95: 9000000 | B95: 9000 | C95: 56548667.7i | D95: -3197751818645020 | E95: -1.80828604979628E+23i | G95: 100+5654.86677i | P95: 0 | Q95: 1+19.792033695i | R95: -20227.4877530212i | S95: -3196.47271791756 | T95: -3195.47271791756-20207.6957193262i | U95: 1 | V95: 1 | W95: 0 | X95: 0 | Z95: -0.000963171180292813-0.000102821581350465i | AA95: -60.27671707 | AB95: -173.9065713 | AD95: 1130.973354i | AE95: 1+1130.973354i | AG95: -319775.181864502-18082860.4979628i | AH95: 1+1130.973354i
A96: 10000000 | B96: 10000 | C96: 62831853i | D96: -3947841751413610 | E96: -2.48050212592082E+23i | G96: 100+6283.1853i | P96: 0 | Q96: 1+21.99114855i | R96: -27746.8967805503i | S96: -3946.26261471304 | T96: -3945.26261471304-27724.9056320003i | U96: 1 | V96: 1 | W96: 0 | X96: 0 | Z96: -0.000782478973720499-0.0000752783461022707i | AA96: -62.09053569 | AB96: -174.5047748 | AD96: 1256.63706i | AE96: 1+1256.63706i | AG96: -394784.175141361-24805021.2592083i | AH96: 1+1256.63706i
A97: =Fsw -> 100000 | B97: =A97/1000 -> 100 | C97: 628318.53i | D97: -394784175141.361 | E97: -248050212592082000i | G97: 100+62.831853i | J97: =IMSUM(1,I97) ->  | N97: =J97 ->  | O97: =IMSUM(L97:N97) ->  | P97: 2 | Q97: 1+0.2199114855i | R97: -0.0277468967805503i | S97: -0.394626261471305 | T97: =IMSUM(S97,R97,Q97) -> 0.605373738528695+0.19216458871945i | U97: 1 | V97: 1 | W97: =20*LOG10(IMABS(V97)) -> 0 | X97: 0 | Z97: 1.60541786286688-0.146344269997555i | AA97: 4.147700439 | AB97: -5.208487783 | AD97: 12.5663706i | AE97: 1+12.5663706i | AG97: -39.4784175141361-24.8050212592082i | AH97: 1+12.5663706i

Sheet Standard Value Calculator (hidden)
A2: Capacitors | B2: Css | C2: Cc1ea | D2: Cc2ea | E2: Cout | F2: Cin | G2: Cres | H2: Cdither | I2: Cc3ea | J2: Cc4ea | K2: Cin_Passive | L2: Cdamp_Pssv | M2: Cinj_AEF | N2: Cdamp_AEF
A3: Inputs | B3: =Css -> 0 | C3: =Cc1ea -> 5.414553386e-09 | D3: =Cc2ea -> 3.363586416e-10 | E3: =Cout -> 0.00015 | F3: =Cin -> 0.00016 | G3: =Cres -> 7.5e-08 | H3: =Cdither_init -> 2.022653722e-09 | I3: =Cc3ea -> 0 | J3: =Cc4ea -> 0 | K3: ='Variable Management'!B291*0.000001 -> 0.00313743767 | L3: =K3*4 -> 0.01254975068 | M3: =Cinj_AEF*0.000001 -> 3.13743767e-05 | N3: ='Variable Management'!B294*0.000001 -> 1.045812557e-05 | Q3: Resistors | R3: inputs | S3: Standard Result
A4: Standard Result | B4: =SUM(B6:B158)/1000000000000 -> 0 | C4: =IF(C3="OPEN","OPEN",SUM(C6:C158)/1000000000000) -> 5.6e-09 | D4: =SUM(D6:D158)/1000000000000 -> 3.3e-10 | E4: =SUM(E6:E158)/1000000000000 -> 0.00015 | F4: =SUM(F6:F158)/1000000000000 -> 0.00015 | G4: =SUM(G6:G158)/1000000000000 -> 8.2e-08 | H4: =IF(H3="OPEN","OPEN",SUM(H6:H158)/1000000000000) -> 2.2e-09 | I4: 0 | J4: 0 | K4: 0.0033 | L4: 0.012 | M4: 3.3e-05 | N4: 1e-05 | Q4: Rt | R4: =Rfadj -> 221 | S4: =IF(R4>(INT(0.5+100*POWER(10,IF(96*(LOG(R4)-INT(LOG(R4)))-ROUND(96*(LOG(R4)-INT(LOG(R4))),0)<0,ROUND(96*(LOG(R4)-INT(LOG(R4))),0)-1,ROUND(96*(LOG(R4)-INT(LOG(R4))),0))/96))*POWER(10,INT(LOG(R4))-2)+INT(0.5+100*POWER(10,(IF(96*(LOG(R4)-INT(LOG(R4)))-ROUND(96*(LOG(R4)-INT(LOG(R4))),0)<0,ROUND(96*(LOG(R4)-INT(LOG(R4))),0)-1,ROUND(96*(LOG(R4)-INT(LOG(R4))),0))+1)/96))*POWER(10,INT(LOG(R4))-2))/2,INT(0.5+100*POWER(10,(IF(96*(LOG(R4)-INT(LOG(R4)))-ROUND(96*(LOG(R4)-INT(LOG(R4))),0)<0,ROUND(96*(LOG(R4)-INT(LOG(R4))),0)-1,ROUND(96*(LOG(R4)-INT(LOG(R4))),0))+1)/96))*POWER(10,INT(LOG(R4))-2),INT(0.5+100*POWER(10,IF(96*(LOG(R4)-INT(LOG(R4)))-ROUND(96*(LOG(R4)-INT(LOG(R4))),0)<0,ROUND(96*(LOG(R4)-INT(LOG(R4))),0)-1,ROUND(96*(LOG(R4)-INT(LOG(R4))),0))/96))*POWER(10,INT(LOG(R4))-2)) -> 221 | T4: Ω
A5: (pF)
A6: 0.47 | B6: =IF(IF((B$3*10^12-$A7)*(B$3*10^12-$A6)*-1<0,0,1)*IF(ABS(B$3*10^12-$A7)>(B$3*10^12-$A6),$A6,$A7)=B7,0,IF((B$3*10^12-$A7)*(B$3*10^12-$A6)*-1<0,0,1)*IF(ABS(B$3*10^12-$A7)>(B$3*10^12-$A6),$A6,$A7)) -> 0 | C6: 0 | D6: 0 | E6: 0 | F6: 0 | G6: 0 | H6: 0 | I6: 0 | J6: 0 | K6: 0 | L6: 0 | M6: 0 | N6: 0
